Workbook

Sheet Lajeado
B2: CÁLCULO DA TARIFA DE COMPRA
B3: CONSÓRCIO LAJEADO - UHE LUIS EDUARDO MAGALHÃES
B5: Cálculo do Custo da Energia | F5: Informações Preliminares
B6: Tarifa da UHE Lajeado em mai/08 (R$/MW) | C6: 104.5 | D6: 39569
F7: Aproveitamento Hidrelétrico LAJEADO (Luiz Eduardo Magalhães)
B8: Energia Balanço (MWh) | C8: =(G29)*12 -> 200616 | D8: =C10/C6-1 -> 2.156679952 | F8: * Contrato de Concessão de Geração nº 05/97, de 16/12/1997
B9: Tarifa atual da UHE Lajeado (R$/MWh) Memorando nº 37/2026-SGM/ANEEL (SEI 0313622) | C9: 321.37 | D9: 46143
B10: Tarifa considerada no presente processo tarifário | C10: =C6*VLOOKUP(DATE(YEAR(D10),MONTH(D10)-1,1),Índices!B7:F600,2)/VLOOKUP(DATE(YEAR(D6),MONTH(D6)-1,1),Índices!B7:F600,2) -> 329.873055 | D10: 46143
B11: Custo Energia | C11: =+C8*C10 -> 66177812.81 | F11: Primeiro Termo Aditivo ao Contrato de Concessão nº 05/97, firmado em 17/07/2000
B13: Rede Básica - Cláusula 7 ª (§ 4º) do Contrato - Encargos de Uso | F13: Produtor Independente | G13: Participação % | H13: Cap. instalada (MW) | I13: Energia Assegurada (MWh)
B14: Potência Instalada Mínima (MW) | C14: 895.85 | D14: 1º Termo Aditivo | F14: REDE Lajeado Energia S.A. | G14: 0.44895 | H14: =+$H$22*G14 -> 405.177375 | I14: =+$H$23*G14 -> 2071013.533
B15: Tarifa de Uso RB (R$/MW) | C15: 12820 | D15: Anexo I, DSP 2.269/2026 (Barra 7207) | F15: EDP Lajeado Energia S.A | G15: 0.27375 | H15: =+$H$22*G15 -> 247.059375 | I15: =+$H$23*G15 -> 1262813.13
B16: Participação da EDEVP na geração da UHE Lajeado | C16: =H29 -> 0.044896 | D16: Cláusula 7ª do Contrato | F16: CEB Lajeado S.A | G16: 0.198 | H16: =+$H$22*G16 -> 178.695 | I16: =+$H$23*G16 -> 913377.168
B17: Valor da Rede Básica | C17: =C14*C15*C16*12 -> 6187457.353 | F17: PAULISTA Lajeado Energia S.A. | G17: 0.0693 | H17: =+$H$22*G17 -> 62.54325 | I17: =+$H$23*G17 -> 319682.0088
F18: INVESTCO S.A. | G18: 0.01 | H18: =+$H$22*G18 -> 9.025 | I18: =+$H$23*G18 -> 46130.16
B19: Perdas na Rede Básica - Cláusula 7 ª (§ 3º) do contrato | F19: TOTAL | G19: =SUM(G14:G18) -> 1 | H19: =SUM(H14:H18) -> 902.5 | I19: =SUM(I14:I18) -> 4613016
B20: Energia assegurada EDEVP - Barra da Usina (MWh) | C20: =I19*H29 -> 207105.9663
B21: Tarifa da UHE Lajeado em maio/25 (R$/MWh) | C21: =C10 -> 329.873055 | F21: Quarto Termo Aditivo ao Contrato de Concessão nº 05/97, firmado em 17/08/2005
B22: Percentual de perdas RB geração estimado | C22: =AVERAGE(D39:D48) -> 0.02642345 | D22: Fonte: dados informados pela CCEE | F22: Potência Instalada mínima | H22: 902.5 | I22: MW (Barra da Usina)
B23: Valor das Perdas na Rede Básica | C23: =+C20*C21*C22 -> 1805215.168 | F23: En.Asseg. ao nível de garantia do Sist.Interligado | H23: 4613016 | I23: MWh/ano (Barra da Usina)
F24: Despacho nº 075, DE 19/02/2002 - Define capacidade instalada = 902.500 kW
B25: Financeiro SFF | C25: 0 | D25: Apurado pela SFF
F26: Contrato REDE Lajeado Energia S.A e EDEVP
B27: TARIFA LAJEADO
B28: CE + RB + Perdas RB + Fin.SFF (R$) | C28: =C11+C17+C23+C25 -> 74170485.33 | F28: EDEVP | G28: MWh - mês | H28: %
B29: Montante de energia (MWh) | C29: =C8 -> 200616 | F29: EDEVP | G29: 16718 | H29: 0.044896
B30: Tarifa Lajeado (R$/MWh) | C30: =C28/C29 -> 369.7137084
F32: Contrato REDE Lajeado Energia S.A e Caiuá
F34: Caiuá | G34: MWh - mês | H34: %
F35: Caiuá | G35: 16718 | H35: 0.044896
C38: Mês/Ano | D38: Fator de perdas de geração | F38: Contrato REDE Lajeado Energia S.A
C39: 2025-07-01 | D39: 0.0247259
C40: 2025-08-01 | D40: 0.0232381 | F40: Bragantina | G40: MWh - mês | H40: %
C41: 2025-09-01 | D41: 0.0241956 | F41: Bragantina | G41: 16718 | H41: 0.044896
C42: 2025-10-01 | D42: 0.0234289
C43: 2025-11-01 | D43: 0.0238584
C44: 2025-12-01 | D44: 0.0253452
C45: 2026-01-01 | D45: 0.028145
C46: 2026-02-01 | D46: 0.0295363
C47: 2026-03-01 | D47: 0.0311431
C48: 2026-04-01 | D48: 0.030618
C49: 2026-05-01 | D49: =D48 -> 0.030618
C50: 2026-06-01 | D50: 0.030618

Sheet CAPA
B1: SPARTA | C1: Entrada e CustoOperacional | R1: DF | S1: Sudeste/Centro Oeste
B2: Helenístico LX | C2: 6.1 | M2: =C23 -> 165 | N2: =C22 -> 1000040
C3: Macro Ver.
C4: 2026.1
B6: ESS | L6: CodigoSamp | M6: Empresa | N6: Nome Completo | O6: IdSgtAg | P6: CodigoSamp | Q6: Supridora/suprida | R6: Financeiro 243 (TUSD) | S6: Databse Fin. 243 | T6: Contrato de Concessão | U6: Data Aditivo (Cont Novo) | V6: Cidade Sede | W6: CNPJ | X6: Novo/Antigo | Y6: DtRevisao-2023:2027 | Z6: idCiclo | AA6: Considerar passante | AB6: AnoRevisao | AC6: Obs
B7: =VLOOKUP(B6,TabEmpresas[],2,FALSE) -> Energisa Sul-Sudeste - Distribuidora de Energia S.A. | C7: Revisão | G7: Últ. Atualização | L7: 7019 | M7: Amazonas Energia | N7: Amazonas Energia S.A. | O7: 102 | P7: 7019 | Q7: NÃO SUPRIDA | T7: 1/2019 | U7: 42579 | V7: Manaus - AM | W7: 02.341.467/0001-20 | X7: N | Y7: 45438 | Z7: 5 | AA7: N
B8: CÓDIGO DA EMPRESA | C8: ="D" & TEXT(C23-100,"00") -> D65 | F8: Informações iniciais | G8: 2026-06-30T13:01:18 | L8: 31 | M8: Equatorial AP | N8: Companhia de Eletricidade do Amapá | O8: 107 | P8: 31 | Q8: NÃO SUPRIDA | T8: 01/2021 | U8: 42606 | V8: Macapá - AP | W8: 05.965.546/0001-09 | X8: N | Y8: 46369 | Z8: 5 | AA8: S | AB8: RTP-2026
B9: Data do Reajuste/Revisão Anterior | C9: 45850 | F9: Energia do ano anterior (CM compra, MWh Mercado, R$ Mercado) | G9: 2026-06-10T15:01:00 | L9: 5707 | M9: CEEE-D | N9: Companhia Estadual de Distribuição de Energia Elétrica | O9: 110 | P9: 5707 | Q9: NÃO SUPRIDA | T9: 81/1999 | U9: 42347 | V9: Porto Alegre - RS | W9: 08.467.115/0001-00 | X9: N | Y9: 46348 | Z9: 5 | AA9: S | AB9: RTP-2026
B10: Data de Reajuste/Revisão em Processamento | C10: 46215 | F10: Perdas Regulatórias | G10: 2026-06-10T15:01:00 | L10: 5697 | M10: Celesc-Dis | N10: Celesc Distribuição S.A. | O10: 111 | P10: 5697 | Q10: NÃO SUPRIDA | T10: 56/1999 | U10: 42347 | V10: Florianópolis - SC | W10: 08.336.783/0001-90 | X10: N | Y10: 46256 | Z10: 5 | AA10: S | AB10: RTP-2026
F11: TUSDg ONS-RB | G11: 2026-06-30T13:01:14 | L11: 4950 | M11: Cemig-D | N11: Cemig Distribuição S.A. | O11: 118 | P11: 4950 | Q11: NÃO SUPRIDA | T11: 3/1997 | U11: 42359 | V11: Belo Horizonte - MG | W11: 06.981.180/0001-16 | X11: N | Y11: 45074 | Z11: 5 | AA11: N
F12: Perda de RB | G12: 2026-06-30T11:53:17 | H12: xx | L12: 103 | M12: CHESP | N12: Companhia Hidroelétrica São Patrício | O12: 123 | P12: 103 | Q12: SUPRIDA | T12: 44/1999 | U12: 42347 | V12: Ceres - GO | W12: 01.377.555/0001-10 | X12: N | Y12: 46348 | Z12: 5 | AA12: S | AB12: RTP-2026
F13: Perda DIT | G13: 2026-06-30T11:53:17 | H13: xx | L13: 82 | M13: Cocel | N13: Companhia Campolarguense de Energia | O13: 128 | P13: 82 | Q13: SUPRIDA | T13: 27/1998 | U13: 42347 | V13: Campo Largo - PR | W13: 75.805.895/0001-30 | X13: N | Y13: 46202 | Z13: 5 | AA13: S | AB13: RTP-2026
F14: Encargos ano anterior (não RTE) | G14: 2026-06-10T15:01:00 | L14: 2904 | M14: Cooperaliança | N14: Cooperativa Aliança | O14: 131 | P14: 2904 | Q14: SUPRIDA | T14: 145/2002 | U14: 42347 | V14: Iraça - SC | W14: 83.647.990/0001-81 | X14: N | Y14: 46628 | Z14: 5 | AA14: N
B15: Período de Referencia final | C15: =DATE(YEAR($C$10),MONTH($C$10)-1,1) -> 46174 | F15: Dados da Revisão, Fator X e DecFec | G15: 2026-06-10T15:01:33 | L15: 2866 | M15: Copel-Dis | N15: Copel Distribuição S.A. | O15: 132 | P15: 2866 | Q15: NÃO SUPRIDA | T15: 46/1999 | U15: 42347 | V15: Curitiba - PR | W15: 04.368.898/0001-06 | X15: N | Y15: 46197 | Z15: 5 | AA15: S | AB15: RTP-2026
B16: Período de Referencia inicial | C16: =DATE(YEAR($C$10)-1,MONTH($C$10),1) -> 45839 | F16: Custos Operacionais/Beta | G16: 2026-06-10T15:01:46 | L16: 63 | M16: CPFL Paulista | N16: Companhia Paulista de Força e Luz | O16: 136 | P16: 63 | Q16: NÃO SUPRIDA | T16: 14/1997 | U16: 46150 | V16: Campinas - SP | W16: 33.050.196/0001-88 | X16: N | Y16: 45024 | Z16: 5 | AA16: N
B17: Índice IGPM na data Revisão/Reajuste | C17: =VLOOKUP(C15,Índices!$B$7:$F$500,2,FALSE) -> 1223.761 | F17: Previsão de Subsidios dos Processos Anteriores | G17: 2026-06-10T15:01:38 | L17: 2937 | M17: CPFL Piratininga | N17: Companhia Piratininga de Força e Luz | O17: 135 | P17: 2937 | Q17: NÃO SUPRIDA | T17: 9/2002 | U17: 46150 | V17: Sorocaba - SP | W17: 04.172.213/0001-51 | X17: N | Y17: 45222 | Z17: 4 | AA17: N
B18: Índice IPCA na data Revisão/Reajuste | C18: =VLOOKUP(C15,Índices!$B$7:$F$500,3,FALSE) -> 7664.36 | F18: Conexão ano anterior | G18: 2026-06-10T15:01:38 | L18: 1000041 | M18: CPFL Santa Cruz | N18: Companhia Jaguari de Energia | O18: 166 | P18: 1000041 | Q18: NÃO SUPRIDA | T18: 15/1999 | U18: 42347 | V18: Jaguariúna - SP | W18: 53.859.112/0001-69 | X18: N | Y18: 46103 | Z18: 5 | AA18: S | AB18: RTP-2026
B19: IGPM para o período de Referência | C19: =VLOOKUP(DATE(YEAR($C$10),MONTH($C$10)-1,1),Índices!$B$7:$F$500,2,FALSE)/VLOOKUP(DATE(YEAR($C$9),MONTH($C$9)-1,1),Índices!$B$7:$F$500,2,FALSE)-1 -> 0.03161366953 | F19: Receita de Bandeira | G19: 2026-06-30T11:39:12 | H19: xx | L19: 87 | M19: DCELT | N19: Distribuidora Catarinense de Energia Elétrica Ltda | O19: 158 | P19: 87 | Q19: NÃO SUPRIDA | T19: 50/1999 | U19: 42353 | V19: Xanxerê - SC | W19: 83.855.973/0001-30 | X19: N | Y19: 46263 | Z19: 5 | AA19: S | AB19: RTP-2026
B20: IPCA para o período de Referência | C20: =VLOOKUP(DATE(YEAR(C10),MONTH(C10)-1,1),Índices!$B$7:$F$500,3,FALSE)/VLOOKUP(DATE(YEAR($C$9),MONTH($C$9)-1,1),Índices!$B$7:$F$500,3,FALSE)-1 -> 0.04805024498 | F20: Financeiros | G20: 2026-06-30T11:44:21 | L20: 95 | M20: Demei | N20: Departamento Municipal de Energia de Ijuí | O20: 138 | P20: 95 | Q20: SUPRIDA | T20: 85/2000 | U20: 42347 | V20: Ijuí - RS | W20: 95.289.500/0001-00 | X20: N | Y20: 46590 | Z20: 5 | AA20: N
B21: Dados Gerenciais | F21: Financeiros ano anterior (CVA 5º dia útil, RTE restante) | G21: 2026-06-10T15:06:40 | L21: 51 | M21: DME-D | N21: DME Distribuição S.A. | O21: 139 | P21: 51 | Q21: NÃO SUPRIDA | T21: 49/1999 | U21: 42347 | V21: Poços de Caldas - MG | W21: 23.664.303/0001-04 | X21: N | Y21: 45983 | Z21: 5 | AA21: S | AB21: RTP-2025
B22: IdAgente | C22: =VLOOKUP(B6,TabEmpresas[],4,FALSE) -> 1000040 | F22: Financeiro Desconcatenação (acessante com acessada) | G22: 2026-06-10T15:06:45 | L22: 26 | M22: EAC | N22: Energisa Acre - Distribuidora de Energia S.A | O22: 146 | P22: 26 | Q22: NÃO SUPRIDA | T22: 3/2018 | U22: 42579 | V22: Rio Branco - AC | W22: 04.065.033/0001-70 | X22: N | Y22: 45273 | Z22: 5 | AA22: N
B23: ID Concessão | C23: =VLOOKUP(B6,TabEmpresas[],3,FALSE) -> 165 | F23: Garantias Financeiras | G23: 2026-06-30T11:44:21 | L23: 6611 | M23: EBO | N23: Energisa Borborema - Distribuidora de Energia S.A | O23: 140 | P23: 6611 | Q23: NÃO SUPRIDA | T23: 8/2000 | U23: 46150 | V23: Campina Grande - PB | W23: 08.826.596/0001-95 | X23: N | Y23: 45897 | Z23: 4 | AA23: N
F24: Itens extraordinários REN1000/Covid/Escassez | G24: 2026-06-15T10:43:44 | L24: 380 | M24: EDP ES | N24: EDP Espírito Santo Distribuição de Energia S.A. | O24: 154 | P24: 380 | Q24: NÃO SUPRIDA | T24: 1/1995 | U24: 45839 | V24: Vitória - ES | W24: 28.152.650/0001-71 | X24: N | Y24: 45876 | Z24: 3 | AA24: S | AB24: RTP-2025
B25: Quadro para vínculos | F25: Energia (CCEAR, Bil., Itaipu) | G25: 2026-06-24T12:23:38 | L25: 391 | M25: EDP SP | N25: EDP São Paulo Distribuição de Energia S.A. | O25: 104 | P25: 391 | Q25: NÃO SUPRIDA | T25: 202/1998 | U25: 46150 | V25: São Paulo - SP | W25: 02.302.100/0001-06 | X25: N | Y25: 45222 | Z25: 4 | AA25: N
B26: Descrição | C26: valor | F26: CCEAR | G26: 2026-06-10T15:09:37 | L26: 86 | M26: EFLUL | N26: Empresa Força e Luz de Urussanga Ltda | O26: 144 | P26: 86 | Q26: SUPRIDA | T26: 25/1999 | U26: 42347 | V26: Urussanga - SC | W26: 86.531.175/0001-40 | X26: N | Y26: 46263 | Z26: 5 | AA26: S | AB26: RTP-2026
B27: Tipo de contrato | C27: =IF(VLOOKUP(B6,TabEmpresas[],12,FALSE)="A", "Antigo","Novo") -> Novo | F27: GSF, PLD, Fator de Rateio de RH e MWm Repactuado | G27: 2026-06-24T12:20:53 | L27: 398 | M27: Eletrocar | N27: Centrais Elétricas de Carazinho S.A. | O27: 147 | P27: 398 | Q27: SUPRIDA | T27: 84/2000 | U27: 42347 | V27: Carazinho - RS | W27: 88.446.034/0001-55 | X27: N | Y27: 46590 | Z27: 5 | AA27: N
B28: Contrato de concessão | C28: =VLOOKUP(B6,TabEmpresas[],8,FALSE) -> 13/1999 | F28: Itaipu (Energia, Transporte, MUST) | G28: 2026-06-24T12:23:38 | L28: 6585 | M28: EMR | N28: Energisa Minas Rio - Distribuidora de Energia S.A. | O28: 150 | P28: 6585 | Q28: NÃO SUPRIDA | T28: 40/1999 | U28: 42347 | V28: Cataguases - MG | W28: 19.527.639/0001-58 | X28: N | Y28: 46195 | Z28: 5 | AA28: S | AB28: RTP-2026 | AC28: Agrupada
B29: Número do Processo | C29: 48500.030071/2025-99 | F29: Cotas Lei/Angra | G29: 2026-06-10T15:09:38 | L29: 404 | M29: EMS | N29: Energisa Mato Grossodo Sul - Distribuidora de Energia S.A. | O29: 151 | P29: 404 | Q29: NÃO SUPRIDA | T29: 1/1997 | U29: 46150 | V29: Campo Grande - MS | W29: 15.413.826/0001-50 | X29: N | Y29: 45024 | Z29: 5 | AA29: N
B30: Período de Referencia | C30: =TEXT(C16,"mmmm/aaaa")& " a "&TEXT(C15,"mmmm/aaaa") -> julho/2025 a junho/2026 | F30: Encargos DRP | G30: 2026-06-19T11:20:32 | L30: 405 | M30: EMT | N30: Energisa Mato Grosso - Distribuidora de Energia S.A. | O30: 117 | P30: 405 | Q30: NÃO SUPRIDA | T30: 3/1997 | U30: 46150 | V30: Cuibá - MT | W30: 03.467.321/0001-99 | X30: N | Y30: 45024 | Z30: 5 | AA30: N
B31: Início da vigênica por extenso | C31: =DAY(LnkTxtDRPData)&" de "&TEXT(LnkTxtDRPData,"mmmmmm")&" de "&YEAR(LnkTxtDRPData) -> 12 de julho de 2026 | F31: Indicadores Econômicos / Dólar | G31: 2026-06-29T10:23:16 | L31: 39 | M31: ENEL CE | N31: Companhia Energética do Ceará | O31: 130 | P31: 39 | Q31: NÃO SUPRIDA | T31: 1/1998 | V31: Fortaleza - CE | W31: 07.047.251/0001-70 | X31: A | Y31: 45038 | Z31: 4 | AA31: N
B32: CNPJ | C32: =VLOOKUP(B6,TabEmpresas[],11,FALSE) -> 07.282.377/0001-20 | F32: Tudo Mercado | G32: 2026-06-24T09:33:53 | L32: 6072 | M32: ENEL GO | N32: Enel Distribuição Goiás | O32: 112 | P32: 6072 | Q32: NÃO SUPRIDA | T32: 63/2000 | U32: 42367 | V32: Goiânia - GO | W32: 01.543.032/0001-04 | X32: N | Y32: 45221 | Z32: 5 | AA32: N
B33: Período de competência de previsão de subsídios | C33: =TEXT(EDATE(Aj.Subsidio!G19,12),"mmmmmm")&"/"&TEXT(EDATE(Aj.Subsidio!G19,12),"aaaa")&" a "&TEXT(EDATE(Aj.Subsidio!R19,12),"mmmmmm")&"/"&TEXT(EDATE(Aj.Subsidio!R19,12),"aaaa") -> julho/2026 a junho/2027 | F33: SAMP_Fornecimento/Receita_Uso e Tab_EnergiaConsumidaMWh | G33: 2026-06-24T09:15:48 | L33: 383 | M33: ENEL RJ | N33: Ampla Energia e Serviços S.A. | O33: 103 | P33: 383 | Q33: NÃO SUPRIDA | T33: 5/1996 | U33: 42808 | V33: Rio de Janeiro - RJ | W33: 33.050.071/0001-58 | X33: N | Y33: 45000 | Z33: 5 | AA33: N
B34: Período de competência de ajuste de subsídios | C34: =TEXT(Aj.Subsidio!G19,"mmmmmm")&"/"&TEXT(Aj.Subsidio!G19,"aaaa")&" a "&TEXT(Aj.Subsidio!R19,"mmmmmm")&"/"&TEXT(Aj.Subsidio!R19,"aaaa") -> julho/2025 a junho/2026 | F34: SAMP_balanco | G34: 2026-06-24T09:16:49 | L34: 390 | M34: ENEL SP | N34: Eletropaulo Metropolitana Eletricidade de São Paulo S.A. | O34: 148 | P34: 390 | Q34: NÃO SUPRIDA | T34: 162/1998 | V34: São Paulo - SP | W34: 61.695.227/0001-93 | X34: A | Y34: 45111 | Z34: 4 | AA34: N
B35: Cidade Sede | C35: =VLOOKUP(B6,TabEmpresas[],10,FALSE) -> Presidente Prudente - SP | F35: Subsídio concomitante Irrigante - Fonte incentivada | G35: 2026-06-24T09:33:53 | L35: 6612 | M35: ENF | N35: Energisa Nova Friburgo - Distribuidora de Energia S.A. | O35: 152 | P35: 6612 | Q35: SUPRIDA | T35: 42/1999 | U35: 42347 | V35: Nova Friburgo - RJ | W35: 33.249.046/0001-06 | X35: N | Y35: 46195 | Z35: 5 | AA35: S | AB35: RTP-2026 | AC35: Agrupada
B36: Receita | C36: =IF(Mercado!D24>2000000000,ROUND(Mercado!D24/1000000000,2)&" bilhões",IF(Mercado!D24>1000000000,ROUND(Mercado!D24/1000000000,2)&" bilhão",IF(Mercado!D24>100000000,ROUND(Mercado!D24/1000000,0)&" milhões",IF(Mercado!D24>10000000,ROUND(Mercado!D24/1000000,1)&" milhões",IF(Mercado!D24>2000000,ROUND(Mercado!D24/1000000,2)&" milhões",IF(Mercado!D24>1000000,ROUND(Mercado!D24/1000000,2)&" milhão",ROUND(Mercado!D24/1000,0)&" mil")))))) -> 2,66 bilhões | F36: Rede Básica e Conexão | G36: 2026-06-25T09:14:18 | L36: 6600 | M36: EPB | N36: Energisa Paraíba - Distribuidora de Energia S.A. | O36: 153 | P36: 6600 | Q36: NÃO SUPRIDA | T36: 19/2001 | U36: 46150 | V36: João Pessoa - PB | W36: 09.095.183/0001-40 | X36: N | Y36: 45897 | Z36: 4 | AA36: S | AB36: RTP-2025
B37: Unidades Consumidoras | C37: =IF(Mercado!E38>2000000,ROUND(Mercado!E38/1000000,2)&" milhões de",IF(Mercado!E38>1000000,ROUND(Mercado!E38/1000000,2)&" milhão de",IF(Mercado!E38>100000,ROUND(Mercado!E38/1000,0)&" mil",IF(Mercado!E38>10000,ROUND(Mercado!E38/1000,1)&" mil",IF(Mercado!E38>1000,ROUND(Mercado!E38/1000,2)&" mil",Mercado!E38))))) -> 905 mil | F37: Histórico de Tarifas B1 Residencial | L37: 44 | M37: Equatorial AL | N37: Equatorial Alagoas Distribuidora de Energia S.A. | O37: 108 | P37: 44 | Q37: NÃO SUPRIDA | T37: 2/2019 | U37: 42579 | V37: Maceió - AL | W37: 12.272.084/0001-00 | X37: N | Y37: 45415 | Z37: 5 | AA37: N
B38: Data SAMP | C38: =TEXT(_xlfn.MAXIFS(Mercado_Receita!K:K,Mercado_Receita!B:B,"regular"),"mmmmmm")&"/"&YEAR(_xlfn.MAXIFS(Mercado_Receita!K:K,Mercado_Receita!B:B,"regular")) -> maio/2026 | D38: E | F38: CVA | G38: 2026-06-26T16:47:29 | L38: 37 | M38: Equatorial MA | N38: Equatorial Maranhão Distribuidora de Energia S.A. | O38: 116 | P38: 37 | Q38: NÃO SUPRIDA | T38: 60/2000 | U38: 46150 | V38: São Luís - MA | W38: 06.272.793/0001-84 | X38: N | Y38: 45897 | Z38: 4 | AA38: S | AB38: RTP-2025
B39: Classificação mercado próprio | C39: >700 | F39: CUSD | G39: 2026-06-10T15:42:57 | L39: 371 | M39: Equatorial PA | N39: Equatorial Pará Distribuidora de Energia S.A. | O39: 113 | P39: 371 | Q39: NÃO SUPRIDA | T39: 182/1998 | U39: 46150 | V39: Belém - PA | W39: 04.895.728/0001-80 | X39: N | Y39: 45145 | Z39: 4 | AA39: N
B40: Data Reunião Pública - RPO | C40: =IF(MOD(LnkTxtDRPData,7)>0,ROUNDDOWN(LnkTxtDRPData/7,0)*7+3,ROUNDDOWN(LnkTxtDRPData/7,0)*7-4)-7 -> 46210 | F40: Suprimento: Financeiro de Ultrapassagem e Sobrecontratação | G40: 2026-06-10T15:54:26 | L40: 38 | M40: Equatorial PI | N40: Equatorial Piauí Distribuidora de Energia S.A. | O40: 119 | P40: 38 | Q40: NÃO SUPRIDA | T40: 1/2018 | U40: 42579 | V40: Teresina - PI | W40: 06.840.748/0001-89 | X40: N | Y40: 45262 | Z40: 5 | AA40: N
B41: Data limite Atualização Indicadores Econômicos (RPO-8) | C41: =C40-8 -> 46202 | F41: UDEROR | G41: 2026-06-23T14:21:27 | L41: 369 | M41: ERO | N41: Energisa Rondônia - Distribuidora de Energia S.A. | O41: 120 | P41: 369 | Q41: NÃO SUPRIDA | T41: 2/2018 | U41: 42579 | V41: Porto Velho - RO | W41: 05.914.650/0001-66 | X41: N | Y41: 45273 | Z41: 5 | AA41: N
B42: Resolução Homologatória (processo anterior) | C42: Resolução Homologatória nº 3.480/2025 | F42: BMP/RIT | G42: 2026-06-10T16:07:33 | L42: 6587 | M42: ESE | N42: Energisa Sergipe - Distribuidora de Energia S.A. | O42: 155 | P42: 6587 | Q42: NÃO SUPRIDA | T42: 7/1997 | U42: 46150 | V42: Aracajú - SE | W42: 13.017.462/0001-63 | X42: N | Y42: 45038 | Z42: 5 | AA42: N
B43: Efeito médio do último processo tarifário | C43: -0.0356 | F43: Componente Q do Fator X | G43: 2026-06-22T17:52:44 | L43: 1000040 | M43: ESS | N43: Energisa Sul-Sudeste - Distribuidora de Energia S.A. | O43: 165 | P43: 1000040 | Q43: NÃO SUPRIDA | T43: 13/1999 | U43: 42347 | V43: Presidente Prudente - SP | W43: 07.282.377/0001-20 | X43: N | Y43: 46215 | Z43: 5 | AA43: S | AB43: RTP-2026
B44: Índice Inflacionário do contrato | C44: =IF(VLOOKUP(B6,TabEmpresas[#Data],12,FALSE)="N","IPCA","IGP-M") -> IPCA | F44: GSF e PLD futuros (para previsão de efeito futuro) | G44: 2026-06-10T16:10:03 | L44: 32 | M44: ETO | N44: Energisa Tocantins Distribuidora de Energia S.A. | O44: 115 | P44: 32 | Q44: NÃO SUPRIDA | T44: 52/1999 | U44: 43805 | V44: Palmas - TO | W44: 25.086.034/0001-71 | X44: N | Y44: 45842 | Z44: 5 | AA44: S | AB44: RTP-2025
B45: Variação do Índice Inflacionário (12 meses) | C45: =IF(VLOOKUP(B6,TabEmpresas[#Data],12,FALSE)="N",LnkTxtIPCA,LnkTxtIGPM) -> 0.04805024498 | F45: Compensação DIC FIC | G45: 2026-06-10T16:10:06 | L45: 83 | M45: Pacto Energia PR | N45: Força e Luz Coronel Vivida Ltda. | O45: 156 | P45: 83 | Q45: SUPRIDA | T45: 69/1999 | U45: 42347 | V45: Coronel Vivida - PR | W45: 79.850.574/0001-09 | X45: N | Y45: 46260 | Z45: 5 | AA45: S | AB45: RTP-2026
B46: Resoluções Homologatórias da RAP e TUST | C46: REH nº 3.481 e 3.482, ambas de 15 de julho de 2025 | L46: 399 | M46: Hidropan | N46: Hidropan Distribuição de Energia S.A. | O46: 157 | P46: 399 | Q46: SUPRIDA | T46: 86/2000 | U46: 42347 | V46: Panambi - RS | W46: 91.982.348/0001-87 | X46: N | Y46: 46590 | Z46: 5 | AA46: N
B47: Deslocar mercado | C47: Não | L47: 88 | M47: João Cesa | N47: Empresa Força e Luz João Cesa Ltda. | O47: 143 | P47: 88 | Q47: SUPRIDA | T47: 26/1999 | U47: 42347 | V47: Siderópolis - SC | W47: 86.301.124/0001-22 | X47: N | Y47: 46263 | Z47: 5 | AA47: S | AB47: RTP-2026
B48: Data de processamento em simulação | L48: 382 | M48: Light | N48: Light Serviços de Eletricidade S.A. | O48: 160 | P48: 382 | Q48: NÃO SUPRIDA | T48: 1/1996 | U48: 42803 | V48: Rio de Janeiro - RJ | W48: 60.444.437/0001-46 | X48: N | Y48: 46461 | Z48: 5 | AA48: N
L49: 401 | M49: Mux Energia | N49: Muxfeldt Marin E Cia Ltda | O49: 161 | P49: 401 | Q49: SUPRIDA | T49: 87/2000 | U49: 42347 | V49: Tapejara - RS | W49: 97.578.090/0001-34 | X49: N | Y49: 46590 | Z49: 5 | AA49: N
B50: Ano do Reajuste/Revisão em processamento | C50: =YEAR(C10) -> 2026 | L50: 5160 | M50: Neoenergia Brasília | N50: Neoenergia Distribuição Brasília S.A. | O50: 109 | P50: 5160 | Q50: NÃO SUPRIDA | T50: 66/1999 | U50: 42347 | V50: Brasília - DF | W50: 07.522.669/0001-92 | X50: N | Y50: 46317 | Z50: 5 | AA50: S | AB50: RTP-2026
B51: Mudança de contrato | C51: Data de assinatura | L51: 47 | M51: Neoenergia Coelba | N51: Companhia de Eletricidadedo Estado da Bahia | O51: 129 | P51: 47 | Q51: NÃO SUPRIDA | T51: 10/1997 | U51: 46150 | V51: Salvador - BA | W51: 15.139.629/0001-94 | X51: N | Y51: 45038 | Z51: 5 | AA51: N
B52: =IFERROR(VLOOKUP(C22,K63:N75,4,FALSE),"não") -> não | C52: =IFERROR(VLOOKUP(C22,K63:N75,3,FALSE),"não") -> não | L52: 40 | M52: Neoenergia Cosern | N52: Companhia Energetica do Rio Grande do Norte | O52: 133 | P52: 40 | Q52: NÃO SUPRIDA | T52: 8/1997 | U52: 46150 | V52: Natal - RN | W52: 08.324.196/0001-81 | X52: N | Y52: 45038 | Z52: 5 | AA52: N
L53: 385 | M53: Neoenergia Elektro | N53: Elektro Redes S.A. | O53: 145 | P53: 385 | Q53: NÃO SUPRIDA | T53: 187/1998 | U53: 46150 | V53: Campinas - SP | W53: 02.328.280/0001-97 | X53: N | Y53: 45165 | Z53: 4 | AA53: N
L54: 43 | M54: Neoenergia Pernambuco | N54: Companhia Energética de Pernambuco | O54: 114 | P54: 43 | Q54: NÃO SUPRIDA | T54: 26/2000 | U54: 46082 | V54: Recife - PE | W54: 10.835.932/0001-08 | X54: N | Y54: 45776 | Z54: 4 | AA54: S | AB54: RTP-2025
L55: 400 | M55: Nova Palma | N55: Nova Palma Energia Ltda. | O55: 164 | P55: 400 | Q55: SUPRIDA | T55: 107/2001 | U55: 42347 | V55: Faxinal do Soturno - RS | W55: 89.889.604/0001-44 | X55: N | Y55: 46590 | Z55: 5 | AA55: N
L56: 1000042 | M56: RGE | N56: RGE Sul Distribuidora de Energia S.A. | O56: 167 | P56: 1000042 | Q56: NÃO SUPRIDA | T56: 12/1997 | U56: 46150 | V56: São Leopoldo - RS | W56: 02.016.440/0001-62 | X56: N | Y56: 45096 | Z56: 5 | AA56: N
L57: 370 | M57: Roraima Energia | N57: Roraima Energia S.A. | O57: 105 | P57: 370 | Q57: NÃO SUPRIDA | T57: 4/2018 | U57: 42579 | V57: Boa Vista - RR | W57: 02.341.470/0001-44 | X57: N | Y57: 45316 | Z57: 5 | AA57: N
L58: 381 | M58: Santa Maria | N58: Empresa Luz e Força Santa Maria S/A | O58: 149 | P58: 381 | Q58: SUPRIDA | T58: 20/1999 | U58: 42347 | V58: Colatina - ES | W58: 27.485.069/0001-09 | X58: N | Y58: 46287 | Z58: 5 | AA58: S | AB58: RTP-2026
L59: 46 | M59: Sulgipe | N59: Companhia Sul Sergipana de Eletricidade | O59: 163 | P59: 46 | Q59: SUPRIDA | T59: 91/1999 | U59: 42347 | V59: Estância - SE | W59: 13.255.658/0001-96 | X59: N | Y59: 46529 | Z59: 5 | AA59: N
K62: IDAgente | L62: Concessionaria | M62: data de assinatura
K63: 63 | L63: CPFL Paulista | M63: 46150 | N63: =IF(AND(LnkTxtDRPData>M63,LnkTxtDRAData>M63),"não", "sim") -> sim
K64: 2937 | L64: CPFL Piratininga | M64: 46150 | N64: sim
K65: 1000042 | L65: RGE Sul (grupo CPFL) | M65: 46150 | N65: sim
K66: 405 | L66: Energisa Mato Grosso | M66: 46150 | N66: sim
K67: 404 | L67: Energisa Mato Grosso do Sul | M67: 46150 | N67: sim
K68: 6600 | L68: Energisa Paraíba | M68: 46150 | N68: sim
K69: 6587 | L69: Energisa Sergipe | M69: 46150 | N69: sim
K70: 47 | L70: Neoenergia Coelba | M70: 46150 | N70: sim
K71: 40 | L71: Neoenergia Cosern | M71: 46150 | N71: sim
K72: 385 | L72: Neoenergia Elektro | M72: 46150 | N72: sim
K73: 391 | L73: EDP São Paulo | M73: 46150 | N73: sim
K74: 37 | L74: Equatorial Maranhão | M74: 46150 | N74: sim
K75: 371 | L75: Equatorial Pará | M75: 46150 | N75: sim
L76: EDP ES | M76: 45839 | N76: não

Sheet Multas Geradores
A1: Considerar | B1: Ato Legal | D1: Produto | E1: Valor nominal das multas | F1: Valor atualizado das multas | G1: Valor atualizado já revertido à modicidade | H1: Diferença a ser revertida
A2: S | B2: Desp. nº 4.863/2023 | C2: Goiânia II | D2: 2009-T15 | E2: =SUMIFS($Q:$Q,$T:$T,CAPA!$C$22,$K:$K,$C2,$P:$P,'Multas Geradores'!$D2) -> 4263.85 | F2: =SUMIFS($S:$S,$T:$T,CAPA!$C$22,$K:$K,$C2,$P:$P,'Multas Geradores'!$D2) -> 5826.304086 | G2: =SUMIFS($X:$X,$T:$T,CAPA!$C$22,$K:$K,$C2,$P:$P,'Multas Geradores'!$D2) -> -2579.020889 | H2: =IF(A2="S",F2+G2,0) -> 3247.283198
A3: S | B3: Desp. nº 2.495/2024 | C3: Termoceará | D3: 2009-T15 | E3: =SUMIFS($Q:$Q,$T:$T,CAPA!$C$22,$K:$K,$C3,$P:$P,'Multas Geradores'!$D3) -> 16193.68 | F3: =SUMIFS($S:$S,$T:$T,CAPA!$C$22,$K:$K,$C3,$P:$P,'Multas Geradores'!$D3) -> 22330.41315 | G3: =SUMIFS($X:$X,$T:$T,CAPA!$C$22,$K:$K,$C3,$P:$P,'Multas Geradores'!$D3) -> -19964.48586 | H3: =IF(A3="S",F3+G3,0) -> 2365.927283
A4: S | B4: Desp. nº 2.495/2024 | C4: Termoceará | D4: 2010-T15 | E4: =SUMIFS($Q:$Q,$T:$T,CAPA!$C$22,$K:$K,$C4,$P:$P,'Multas Geradores'!$D4) -> 170453.52 | F4: =SUMIFS($S:$S,$T:$T,CAPA!$C$22,$K:$K,$C4,$P:$P,'Multas Geradores'!$D4) -> 235048.3351 | G4: =SUMIFS($X:$X,$T:$T,CAPA!$C$22,$K:$K,$C4,$P:$P,'Multas Geradores'!$D4) -> -210144.7534 | H4: 24903.58173
J6: Ato legal | K6: Usina | L6: Perfil agente VENDEDOR | M6: Perfil agente COMPRADOR | N6: Código do Contrato CliqCCEE | O6: Leilão | P6: Produto | Q6: Valor da Multa | R6: Data Base Recisão | S6: Valor atualizado da multa | T6: Código Empresa | U6: Já revertida em processo anterior (S/N) | V6: Quanto foi revertido? | W6: Data reversão | X6: Valor já revertido atualizado
J7: Desp. nº 4.863/2023 | K7: Goiânia II | L7: BRENTECH 1LN | M7: AMPLA | N7: 17327 | O7: 1º LEN | P7: 2009-T15 | Q7: 15929.44 | R7: 45280 | S7: =Q7*VLOOKUP(CAPA!$C$15,Índices!$B$8:$F$1000,5)/VLOOKUP(EDATE('Multas Geradores'!R7,-1),Índices!$B$8:$F$1000,5) -> 21766.65721 | T7: =VLOOKUP(M7,$Z$7:$AD$64,2) -> 383 | U7: N | X7: =IFERROR(V7*VLOOKUP(CAPA!$C$15,Índices!$B$8:$F$1000,5)/VLOOKUP(EDATE('Multas Geradores'!W7,-1),Índices!$B$8:$F$1000,5),0) -> 0 | Z7: AMPLA | AA7: 383 | AB7: ENEL RJ | AC7: Ampla Energia e Serviços S.A. | AD7: 103
J8: Desp. nº 4.863/2023 | K8: Goiânia II | L8: BRENTECH 1LN | M8: BANDEIRANTE | N8: 17329 | O8: 1º LEN | P8: 2009-T15 | Q8: 18568.15 | R8: 45280 | S8: =Q8*VLOOKUP(CAPA!$C$15,Índices!$B$8:$F$1000,5)/VLOOKUP(EDATE('Multas Geradores'!R8,-1),Índices!$B$8:$F$1000,5) -> 25372.30161 | T8: 391 | U8: N | X8: =IFERROR(V8*VLOOKUP(CAPA!$C$15,Índices!$B$8:$F$1000,5)/VLOOKUP(EDATE('Multas Geradores'!W8,-1),Índices!$B$8:$F$1000,5),0) -> 0 | Z8: BANDEIRANTE | AA8: 391 | AB8: EDP SP | AC8: EDP São Paulo Distribuição de Energia S.A. | AD8: 104
J9: Desp. nº 4.863/2023 | K9: Goiânia II | L9: BRENTECH 1LN | M9: CEAL | N9: 17324 | O9: 1º LEN | P9: 2009-T15 | Q9: 3361.81 | R9: 45280 | S9: =Q9*VLOOKUP(CAPA!$C$15,Índices!$B$8:$F$1000,5)/VLOOKUP(EDATE('Multas Geradores'!R9,-1),Índices!$B$8:$F$1000,5) -> 4593.718667 | T9: 44 | U9: N | X9: =IFERROR(V9*VLOOKUP(CAPA!$C$15,Índices!$B$8:$F$1000,5)/VLOOKUP(EDATE('Multas Geradores'!W9,-1),Índices!$B$8:$F$1000,5),0) -> 0 | Z9: CEAL | AA9: 44 | AB9: Equatorial AL | AC9: Equatorial Alagoas Distribuidora de Energia S.A. | AD9: 108
J10: Desp. nº 4.863/2023 | K10: Goiânia II | L10: BRENTECH 1LN | M10: CEB DISTRIBUIC | N10: 17325 | O10: 1º LEN | P10: 2009-T15 | Q10: 21286.28 | R10: 45280 | S10: =Q10*VLOOKUP(CAPA!$C$15,Índices!$B$8:$F$1000,5)/VLOOKUP(EDATE('Multas Geradores'!R10,-1),Índices!$B$8:$F$1000,5) -> 29086.46884 | T10: 5160 | U10: N | X10: =IFERROR(V10*VLOOKUP(CAPA!$C$15,Índices!$B$8:$F$1000,5)/VLOOKUP(EDATE('Multas Geradores'!W10,-1),Índices!$B$8:$F$1000,5),0) -> 0 | Z10: CEB DISTRIBUIC | AA10: 5160 | AB10: Neoenergia Brasília | AC10: Neoenergia Distribuição Brasília S.A. | AD10: 109
J11: Desp. nº 4.863/2023 | K11: Goiânia II | L11: BRENTECH 1LN | M11: CEEE DISTRIB | N11: 17333 | O11: 1º LEN | P11: 2009-T15 | Q11: 13746.78 | R11: 45280 | S11: =Q11*VLOOKUP(CAPA!$C$15,Índices!$B$8:$F$1000,5)/VLOOKUP(EDATE('Multas Geradores'!R11,-1),Índices!$B$8:$F$1000,5) -> 18784.17873 | T11: 5707 | U11: N | X11: =IFERROR(V11*VLOOKUP(CAPA!$C$15,Índices!$B$8:$F$1000,5)/VLOOKUP(EDATE('Multas Geradores'!W11,-1),Índices!$B$8:$F$1000,5),0) -> 0 | Z11: CEEE DISTRIB | AA11: 5707 | AB11: CEEE-D | AC11: Companhia Estadual de Distribuição de Energia Elétrica | AD11: 110
J12: Desp. nº 4.863/2023 | K12: Goiânia II | L12: BRENTECH 1LN | M12: CELESC DIST | N12: 17308 | O12: 1º LEN | P12: 2009-T15 | Q12: 58245.53 | R12: 45280 | S12: =Q12*VLOOKUP(CAPA!$C$15,Índices!$B$8:$F$1000,5)/VLOOKUP(EDATE('Multas Geradores'!R12,-1),Índices!$B$8:$F$1000,5) -> 79589.14348 | T12: 5697 | U12: N | X12: =IFERROR(V12*VLOOKUP(CAPA!$C$15,Índices!$B$8:$F$1000,5)/VLOOKUP(EDATE('Multas Geradores'!W12,-1),Índices!$B$8:$F$1000,5),0) -> 0 | Z12: CELESC DIST | AA12: 5697 | AB12: Celesc-Dis | AC12: Celesc Distribuição S.A. | AD12: 111
J13: Desp. nº 4.863/2023 | K13: Goiânia II | L13: BRENTECH 1LN | M13: CELG | N13: 17332 | O13: 1º LEN | P13: 2009-T15 | Q13: 21717.13 | R13: 45280 | S13: =Q13*VLOOKUP(CAPA!$C$15,Índices!$B$8:$F$1000,5)/VLOOKUP(EDATE('Multas Geradores'!R13,-1),Índices!$B$8:$F$1000,5) -> 29675.20041 | T13: 6072 | U13: N | X13: =IFERROR(V13*VLOOKUP(CAPA!$C$15,Índices!$B$8:$F$1000,5)/VLOOKUP(EDATE('Multas Geradores'!W13,-1),Índices!$B$8:$F$1000,5),0) -> 0 | Z13: CELG | AA13: 6072 | AB13: ENEL GO | AC13: Enel Distribuição Goiás | AD13: 112
J14: Desp. nº 4.863/2023 | K14: Goiânia II | L14: BRENTECH 1LN | M14: CELPA | N14: 17313 | O14: 1º LEN | P14: 2009-T15 | Q14: 19498.83 | R14: 45280 | S14: =Q14*VLOOKUP(CAPA!$C$15,Índices!$B$8:$F$1000,5)/VLOOKUP(EDATE('Multas Geradores'!R14,-1),Índices!$B$8:$F$1000,5) -> 26644.02193 | T14: 371 | U14: N | X14: =IFERROR(V14*VLOOKUP(CAPA!$C$15,Índices!$B$8:$F$1000,5)/VLOOKUP(EDATE('Multas Geradores'!W14,-1),Índices!$B$8:$F$1000,5),0) -> 0 | Z14: CELPA | AA14: 371 | AB14: Equatorial PA | AC14: Equatorial Pará Distribuidora de Energia S.A. | AD14: 113
J15: Desp. nº 4.863/2023 | K15: Goiânia II | L15: BRENTECH 1LN | M15: CELPE | N15: 17306 | O15: 1º LEN | P15: 2009-T15 | Q15: 33171 | R15: 45280 | S15: =Q15*VLOOKUP(CAPA!$C$15,Índices!$B$8:$F$1000,5)/VLOOKUP(EDATE('Multas Geradores'!R15,-1),Índices!$B$8:$F$1000,5) -> 45326.25042 | T15: 43 | U15: N | X15: =IFERROR(V15*VLOOKUP(CAPA!$C$15,Índices!$B$8:$F$1000,5)/VLOOKUP(EDATE('Multas Geradores'!W15,-1),Índices!$B$8:$F$1000,5),0) -> 0 | Z15: CELPE | AA15: 43 | AB15: Neoenergia Pernambuco | AC15: Companhia Energética de Pernambuco | AD15: 114
J16: Desp. nº 4.863/2023 | K16: Goiânia II | L16: BRENTECH 1LN | M16: CEMAR | N16: 17338 | O16: 1º LEN | P16: 2009-T15 | Q16: 11687.45 | R16: 45280 | S16: =Q16*VLOOKUP(CAPA!$C$15,Índices!$B$8:$F$1000,5)/VLOOKUP(EDATE('Multas Geradores'!R16,-1),Índices!$B$8:$F$1000,5) -> 15970.22355 | T16: 37 | U16: N | X16: =IFERROR(V16*VLOOKUP(CAPA!$C$15,Índices!$B$8:$F$1000,5)/VLOOKUP(EDATE('Multas Geradores'!W16,-1),Índices!$B$8:$F$1000,5),0) -> 0 | Z16: CEMAR | AA16: 37 | AB16: Equatorial MA | AC16: Equatorial Maranhão Distribuidora de Energia S.A. | AD16: 116
J17: Desp. nº 4.863/2023 | K17: Goiânia II | L17: BRENTECH 1LN | M17: CEMIG DISTRIB | N17: 17321 | O17: 1º LEN | P17: 2009-T15 | Q17: 45542.57 | R17: 45280 | S17: =Q17*VLOOKUP(CAPA!$C$15,Índices!$B$8:$F$1000,5)/VLOOKUP(EDATE('Multas Geradores'!R17,-1),Índices!$B$8:$F$1000,5) -> 62231.28433 | T17: 4950 | U17: N | X17: =IFERROR(V17*VLOOKUP(CAPA!$C$15,Índices!$B$8:$F$1000,5)/VLOOKUP(EDATE('Multas Geradores'!W17,-1),Índices!$B$8:$F$1000,5),0) -> 0 | Z17: CEMIG DISTRIB | AA17: 4950 | AB17: Cemig-D | AC17: Cemig Distribuição S.A. | AD17: 118
J18: Desp. nº 4.863/2023 | K18: Goiânia II | L18: BRENTECH 1LN | M18: CEPISA | N18: 17314 | O18: 1º LEN | P18: 2009-T15 | Q18: 9214.03 | R18: 45280 | S18: =Q18*VLOOKUP(CAPA!$C$15,Índices!$B$8:$F$1000,5)/VLOOKUP(EDATE('Multas Geradores'!R18,-1),Índices!$B$8:$F$1000,5) -> 12590.43837 | T18: 4950 | U18: N | X18: =IFERROR(V18*VLOOKUP(CAPA!$C$15,Índices!$B$8:$F$1000,5)/VLOOKUP(EDATE('Multas Geradores'!W18,-1),Índices!$B$8:$F$1000,5),0) -> 0 | Z18: COELBA | AA18: 47 | AB18: Neoenergia Coelba | AC18: Companhia de Eletricidadedo Estado da Bahia | AD18: 129
J19: Desp. nº 4.863/2023 | K19: Goiânia II | L19: BRENTECH 1LN | M19: COELBA | N19: 17322 | O19: 1º LEN | P19: 2009-T15 | Q19: 37317.37 | R19: 45280 | S19: =Q19*VLOOKUP(CAPA!$C$15,Índices!$B$8:$F$1000,5)/VLOOKUP(EDATE('Multas Geradores'!R19,-1),Índices!$B$8:$F$1000,5) -> 50992.02489 | T19: 47 | U19: S | V19: -41525.5207 | W19: 45748 | X19: =IFERROR(V19*VLOOKUP(CAPA!$C$15,Índices!$B$8:$F$1000,5)/VLOOKUP(EDATE('Multas Geradores'!W19,-1),Índices!$B$8:$F$1000,5),0) -> -49249.08511 | Z19: COELCE | AA19: 39 | AB19: ENEL CE | AC19: Companhia Energética do Ceará | AD19: 130
J20: Desp. nº 4.863/2023 | K20: Goiânia II | L20: BRENTECH 1LN | M20: COELCE | N20: 17309 | O20: 1º LEN | P20: 2009-T15 | Q20: 22642.66 | R20: 45280 | S20: =Q20*VLOOKUP(CAPA!$C$15,Índices!$B$8:$F$1000,5)/VLOOKUP(EDATE('Multas Geradores'!R20,-1),Índices!$B$8:$F$1000,5) -> 30939.88355 | T20: 39 | U20: N | X20: =IFERROR(V20*VLOOKUP(CAPA!$C$15,Índices!$B$8:$F$1000,5)/VLOOKUP(EDATE('Multas Geradores'!W20,-1),Índices!$B$8:$F$1000,5),0) -> 0 | Z20: COPEL DISTRIB | AA20: 2866 | AB20: Copel-Dis | AC20: Copel Distribuição S.A. | AD20: 132
J21: Desp. nº 4.863/2023 | K21: Goiânia II | L21: BRENTECH 1LN | M21: COPEL DISTRIB | N21: 17330 | O21: 1º LEN | P21: 2009-T15 | Q21: 47040.61 | R21: 45280 | S21: =Q21*VLOOKUP(CAPA!$C$15,Índices!$B$8:$F$1000,5)/VLOOKUP(EDATE('Multas Geradores'!R21,-1),Índices!$B$8:$F$1000,5) -> 64278.26923 | T21: 2866 | U21: N | X21: =IFERROR(V21*VLOOKUP(CAPA!$C$15,Índices!$B$8:$F$1000,5)/VLOOKUP(EDATE('Multas Geradores'!W21,-1),Índices!$B$8:$F$1000,5),0) -> 0 | Z21: COSERN | AA21: 40 | AB21: Neoenergia Cosern | AC21: Companhia Energetica do Rio Grande do Norte | AD21: 133
J22: Desp. nº 4.863/2023 | K22: Goiânia II | L22: BRENTECH 1LN | M22: COSERN | N22: 17311 | O22: 1º LEN | P22: 2009-T15 | Q22: 16239.97 | R22: 45280 | S22: =Q22*VLOOKUP(CAPA!$C$15,Índices!$B$8:$F$1000,5)/VLOOKUP(EDATE('Multas Geradores'!R22,-1),Índices!$B$8:$F$1000,5) -> 22190.97847 | T22: 40 | U22: N | X22: =IFERROR(V22*VLOOKUP(CAPA!$C$15,Índices!$B$8:$F$1000,5)/VLOOKUP(EDATE('Multas Geradores'!W22,-1),Índices!$B$8:$F$1000,5),0) -> 0 | Z22: CPFL LESTE PAULISTA | AA22: 1000041 | AB22: CPFL Santa Cruz | AC22: Companhia Jaguari de Energia | AD22: 166
J23: Desp. nº 4.863/2023 | K23: Goiânia II | L23: BRENTECH 1LN | M23: CPFL PAULISTA | N23: 17307 | O23: 1º LEN | P23: 2009-T15 | Q23: 73736.37 | R23: 45280 | S23: =Q23*VLOOKUP(CAPA!$C$15,Índices!$B$8:$F$1000,5)/VLOOKUP(EDATE('Multas Geradores'!R23,-1),Índices!$B$8:$F$1000,5) -> 100756.4792 | T23: 63 | U23: S | V23: -99212.53901 | W23: 45748 | X23: =IFERROR(V23*VLOOKUP(CAPA!$C$15,Índices!$B$8:$F$1000,5)/VLOOKUP(EDATE('Multas Geradores'!W23,-1),Índices!$B$8:$F$1000,5),0) -> -117665.6354 | Z23: CPFL PAULISTA | AA23: 63 | AB23: CPFL Paulista | AC23: Companhia Paulista de Força e Luz | AD23: 136
J24: Desp. nº 4.863/2023 | K24: Goiânia II | L24: BRENTECH 1LN | M24: CPFL SANTA CRUZ | N24: 17316 | O24: 1º LEN | P24: 2009-T15 | Q24: 1715.42 | R24: 45280 | S24: =Q24*VLOOKUP(CAPA!$C$15,Índices!$B$8:$F$1000,5)/VLOOKUP(EDATE('Multas Geradores'!R24,-1),Índices!$B$8:$F$1000,5) -> 2344.022082 | T24: 1000041 | U24: S | V24: -1890.64 | W24: 45717 | X24: =IFERROR(V24*VLOOKUP(CAPA!$C$15,Índices!$B$8:$F$1000,5)/VLOOKUP(EDATE('Multas Geradores'!W24,-1),Índices!$B$8:$F$1000,5),0) -> -2263.907079 | Z24: CPFL PIRATINGA | AA24: 2937 | AB24: CPFL Piratininga | AC24: Companhia Piratininga de Força e Luz | AD24: 135
J25: Desp. nº 4.863/2023 | K25: Goiânia II | L25: BRENTECH 1LN | M25: ELEKTRO | N25: 17323 | O25: 1º LEN | P25: 2009-T15 | Q25: 27188.21 | R25: 45280 | S25: =Q25*VLOOKUP(CAPA!$C$15,Índices!$B$8:$F$1000,5)/VLOOKUP(EDATE('Multas Geradores'!R25,-1),Índices!$B$8:$F$1000,5) -> 37151.11437 | T25: 385 | U25: S | V25: -31659.78 | W25: 45870 | X25: =IFERROR(V25*VLOOKUP(CAPA!$C$15,Índices!$B$8:$F$1000,5)/VLOOKUP(EDATE('Multas Geradores'!W25,-1),Índices!$B$8:$F$1000,5),0) -> -35881.27046 | Z25: CPFL SANTA CRUZ | AA25: 1000041 | AB25: CPFL Santa Cruz | AC25: Companhia Jaguari de Energia | AD25: 166
J26: Desp. nº 4.863/2023 | K26: Goiânia II | L26: BRENTECH 1LN | M26: ELETROPAULO | N26: 17326 | O26: 1º LEN | P26: 2009-T15 | Q26: 52745.37 | R26: 45280 | S26: =Q26*VLOOKUP(CAPA!$C$15,Índices!$B$8:$F$1000,5)/VLOOKUP(EDATE('Multas Geradores'!R26,-1),Índices!$B$8:$F$1000,5) -> 72073.49338 | T26: 390 | U26: N | X26: =IFERROR(V26*VLOOKUP(CAPA!$C$15,Índices!$B$8:$F$1000,5)/VLOOKUP(EDATE('Multas Geradores'!W26,-1),Índices!$B$8:$F$1000,5),0) -> 0 | Z26: ELEKTRO | AA26: 385 | AB26: Neoenergia Elektro | AC26: Elektro Redes S.A. | AD26: 145
J27: Desp. nº 4.863/2023 | K27: Goiânia II | L27: BRENTECH 1LN | M27: ENERGISA BORBOREMA | N27: 17317 | O27: 1º LEN | P27: 2009-T15 | Q27: 1045.7 | R27: 45280 | S27: =Q27*VLOOKUP(CAPA!$C$15,Índices!$B$8:$F$1000,5)/VLOOKUP(EDATE('Multas Geradores'!R27,-1),Índices!$B$8:$F$1000,5) -> 1428.888489 | T27: 6600 | U27: N | X27: =IFERROR(V27*VLOOKUP(CAPA!$C$15,Índices!$B$8:$F$1000,5)/VLOOKUP(EDATE('Multas Geradores'!W27,-1),Índices!$B$8:$F$1000,5),0) -> 0 | Z27: ELETROPAULO | AA27: 390 | AB27: ENEL SP | AC27: Eletropaulo Metropolitana Eletricidade de São Paulo S.A. | AD27: 148
J28: Desp. nº 4.863/2023 | K28: Goiânia II | L28: BRENTECH 1LN | M28: ENERGISA BR | N28: 17320 | O28: 1º LEN | P28: 2009-T15 | Q28: 1003.04 | R28: 45280 | S28: =Q28*VLOOKUP(CAPA!$C$15,Índices!$B$8:$F$1000,5)/VLOOKUP(EDATE('Multas Geradores'!R28,-1),Índices!$B$8:$F$1000,5) -> 1370.596069 | T28: 1000040 | U28: N | X28: =IFERROR(V28*VLOOKUP(CAPA!$C$15,Índices!$B$8:$F$1000,5)/VLOOKUP(EDATE('Multas Geradores'!W28,-1),Índices!$B$8:$F$1000,5),0) -> 0 | Z28: ENERGISA BORBOREMA | AA28: 6600 | AB28: EPB | AC28: Energisa Paraíba - Distribuidora de Energia S.A. | AD28: 153
J29: Desp. nº 4.863/2023 | K29: Goiânia II | L29: BRENTECH 1LN | M29: ENERGISA MR | N29: 17337 | O29: 1º LEN | P29: 2009-T15 | Q29: 1742.24 | R29: 45280 | S29: =Q29*VLOOKUP(CAPA!$C$15,Índices!$B$8:$F$1000,5)/VLOOKUP(EDATE('Multas Geradores'!R29,-1),Índices!$B$8:$F$1000,5) -> 2380.670059 | T29: 6585 | U29: S | V29: -1787.073087 | W29: 45444 | X29: =IFERROR(V29*VLOOKUP(CAPA!$C$15,Índices!$B$8:$F$1000,5)/VLOOKUP(EDATE('Multas Geradores'!W29,-1),Índices!$B$8:$F$1000,5),0) -> -2318.419897 | Z29: ENERGISA BR | AA29: 1000040 | AB29: ESS | AC29: Energisa Sul-Sudeste - Distribuidora de Energia S.A. | AD29: 165
J30: Desp. nº 4.863/2023 | K30: Goiânia II | L30: BRENTECH 1LN | M30: ENERGISA MS | N30: 17319 | O30: 1º LEN | P30: 2009-T15 | Q30: 7504.94 | R30: 45280 | S30: =Q30*VLOOKUP(CAPA!$C$15,Índices!$B$8:$F$1000,5)/VLOOKUP(EDATE('Multas Geradores'!R30,-1),Índices!$B$8:$F$1000,5) -> 10255.06587 | T30: 404 | U30: S | V30: -7504.94 | W30: 45383 | X30: =IFERROR(V30*VLOOKUP(CAPA!$C$15,Índices!$B$8:$F$1000,5)/VLOOKUP(EDATE('Multas Geradores'!W30,-1),Índices!$B$8:$F$1000,5),0) -> -9904.541205 | Z30: ENERGISA MR | AA30: 6585 | AB30: EMG | AC30: Energisa Minas Gerais - Distribuidora de Energia S.A. | AD30: 150
J31: Desp. nº 4.863/2023 | K31: Goiânia II | L31: BRENTECH 1LN | M31: ENERGISA MT | N31: 17335 | O31: 1º LEN | P31: 2009-T15 | Q31: 13185.48 | R31: 45280 | S31: =Q31*VLOOKUP(CAPA!$C$15,Índices!$B$8:$F$1000,5)/VLOOKUP(EDATE('Multas Geradores'!R31,-1),Índices!$B$8:$F$1000,5) -> 18017.19479 | T31: 405 | U31: S | V31: -13185.48 | W31: 45383 | X31: =IFERROR(V31*VLOOKUP(CAPA!$C$15,Índices!$B$8:$F$1000,5)/VLOOKUP(EDATE('Multas Geradores'!W31,-1),Índices!$B$8:$F$1000,5),0) -> -17401.35564 | Z31: ENERGISA MS | AA31: 404 | AB31: EMS | AC31: Energisa Mato Grossodo Sul - Distribuidora de Energia S.A. | AD31: 151
J32: Desp. nº 4.863/2023 | K32: Goiânia II | L32: BRENTECH 1LN | M32: ENERGISA PB | N32: 17328 | O32: 1º LEN | P32: 2009-T15 | Q32: 6622.77 | R32: 45280 | S32: =Q32*VLOOKUP(CAPA!$C$15,Índices!$B$8:$F$1000,5)/VLOOKUP(EDATE('Multas Geradores'!R32,-1),Índices!$B$8:$F$1000,5) -> 9049.63165 | T32: 6600 | U32: S | V32: -6851.87026 | W32: 45505 | X32: =IFERROR(V32*VLOOKUP(CAPA!$C$15,Índices!$B$8:$F$1000,5)/VLOOKUP(EDATE('Multas Geradores'!W32,-1),Índices!$B$8:$F$1000,5),0) -> -8740.309497 | Z32: ENERGISA MT | AA32: 405 | AB32: EMT | AC32: Energisa Mato Grosso - Distribuidora de Energia S.A. | AD32: 117
J33: Desp. nº 4.863/2023 | K33: Goiânia II | L33: BRENTECH 1LN | M33: ENERGISA SE | N33: 17331 | O33: 1º LEN | P33: 2009-T15 | Q33: 5874.03 | R33: 45280 | S33: =Q33*VLOOKUP(CAPA!$C$15,Índices!$B$8:$F$1000,5)/VLOOKUP(EDATE('Multas Geradores'!R33,-1),Índices!$B$8:$F$1000,5) -> 8026.521803 | T33: 6587 | U33: N | X33: =IFERROR(V33*VLOOKUP(CAPA!$C$15,Índices!$B$8:$F$1000,5)/VLOOKUP(EDATE('Multas Geradores'!W33,-1),Índices!$B$8:$F$1000,5),0) -> 0 | Z33: ENERGISA NA | AA33: 1000040 | AB33: ESS | AC33: Energisa Sul-Sudeste - Distribuidora de Energia S.A. | AD33: 165
J34: Desp. nº 4.863/2023 | K34: Goiânia II | L34: BRENTECH 1LN | M34: ENERGISA SS | N34: 17318 | O34: 1º LEN | P34: 2009-T15 | Q34: 2003.62 | R34: 45280 | S34: =Q34*VLOOKUP(CAPA!$C$15,Índices!$B$8:$F$1000,5)/VLOOKUP(EDATE('Multas Geradores'!R34,-1),Índices!$B$8:$F$1000,5) -> 2737.830691 | T34: 1000040 | U34: S | V34: -2003.62 | W34: 45474 | X34: =IFERROR(V34*VLOOKUP(CAPA!$C$15,Índices!$B$8:$F$1000,5)/VLOOKUP(EDATE('Multas Geradores'!W34,-1),Índices!$B$8:$F$1000,5),0) -> -2579.020889 | Z34: ENERGISA PB | AA34: 6600 | AB34: EPB | AC34: Energisa Paraíba - Distribuidora de Energia S.A. | AD34: 153
J35: Desp. nº 4.863/2023 | K35: Goiânia II | L35: BRENTECH 1LN | M35: ENERGISA TO | N35: 17334 | O35: 1º LEN | P35: 2009-T15 | Q35: 2667.56 | R35: 45280 | S35: =Q35*VLOOKUP(CAPA!$C$15,Índices!$B$8:$F$1000,5)/VLOOKUP(EDATE('Multas Geradores'!R35,-1),Índices!$B$8:$F$1000,5) -> 3645.06625 | T35: 32 | U35: S | V35: -2757.774871 | W35: 45839 | X35: =IFERROR(V35*VLOOKUP(CAPA!$C$15,Índices!$B$8:$F$1000,5)/VLOOKUP(EDATE('Multas Geradores'!W35,-1),Índices!$B$8:$F$1000,5),0) -> -3165.367377 | Z35: ENERGISA SE | AA35: 6587 | AB35: ESE | AC35: Energisa Sergipe - Distribuidora de Energia S.A. | AD35: 155
J36: Desp. nº 4.863/2023 | K36: Goiânia II | L36: BRENTECH 1LN | M36: ENERGISA VP | N36: 17336 | O36: 1º LEN | P36: 2009-T15 | Q36: 1257.19 | R36: 45280 | S36: =Q36*VLOOKUP(CAPA!$C$15,Índices!$B$8:$F$1000,5)/VLOOKUP(EDATE('Multas Geradores'!R36,-1),Índices!$B$8:$F$1000,5) -> 1717.877325 | T36: 1000040 | U36: N | X36: =IFERROR(V36*VLOOKUP(CAPA!$C$15,Índices!$B$8:$F$1000,5)/VLOOKUP(EDATE('Multas Geradores'!W36,-1),Índices!$B$8:$F$1000,5),0) -> 0 | Z36: ENERGISA SS | AA36: 1000040 | AB36: ESS | AC36: Energisa Sul-Sudeste - Distribuidora de Energia S.A. | AD36: 165
J37: Desp. nº 4.863/2023 | K37: Goiânia II | L37: BRENTECH 1LN | M37: ESCELSA | N37: 17310 | O37: 1º LEN | P37: 2009-T15 | Q37: 15085.97 | R37: 45280 | S37: =Q37*VLOOKUP(CAPA!$C$15,Índices!$B$8:$F$1000,5)/VLOOKUP(EDATE('Multas Geradores'!R37,-1),Índices!$B$8:$F$1000,5) -> 20614.10431 | T37: 380 | U37: N | V37: 0 | X37: =IFERROR(V37*VLOOKUP(CAPA!$C$15,Índices!$B$8:$F$1000,5)/VLOOKUP(EDATE('Multas Geradores'!W37,-1),Índices!$B$8:$F$1000,5),0) -> 0 | Z37: ENERGISA TO | AA37: 32 | AB37: ETO | AC37: Energisa Tocantins Distribuidora de Energia S.A. | AD37: 115
J38: Desp. nº 4.863/2023 | K38: Goiânia II | L38: BRENTECH 1LN | M38: LIGHT | N38: 17312 | O38: 1º LEN | P38: 2009-T15 | Q38: 34994.68 | R38: 45280 | S38: =Q38*VLOOKUP(CAPA!$C$15,Índices!$B$8:$F$1000,5)/VLOOKUP(EDATE('Multas Geradores'!R38,-1),Índices!$B$8:$F$1000,5) -> 47818.20352 | T38: 382 | U38: N | X38: =IFERROR(V38*VLOOKUP(CAPA!$C$15,Índices!$B$8:$F$1000,5)/VLOOKUP(EDATE('Multas Geradores'!W38,-1),Índices!$B$8:$F$1000,5),0) -> 0 | Z38: ENERGISA VP | AA38: 1000040 | AB38: ESS | AC38: Energisa Sul-Sudeste - Distribuidora de Energia S.A. | AD38: 165
J39: Desp. nº 4.863/2023 | K39: Goiânia II | L39: BRENTECH 1LN | M39: RGE SUL | N39: 17315 | O39: 1º LEN | P39: 2009-T15 | Q39: 18189.04 | R39: 45280 | S39: =Q39*VLOOKUP(CAPA!$C$15,Índices!$B$8:$F$1000,5)/VLOOKUP(EDATE('Multas Geradores'!R39,-1),Índices!$B$8:$F$1000,5) -> 24854.26975 | T39: =VLOOKUP(M39,$Z$7:$AD$64,2) -> 1000042 | U39: S | V39: -20504.82 | W39: 45809 | X39: =IFERROR(V39*VLOOKUP(CAPA!$C$15,Índices!$B$8:$F$1000,5)/VLOOKUP(EDATE('Multas Geradores'!W39,-1),Índices!$B$8:$F$1000,5),0) -> -23793.5784 | Z39: ESCELSA | AA39: 380 | AB39: EDP ES | AC39: EDP Espírito Santo Distribuição de Energia S.A. | AD39: 154
J40: Desp. nº 2.495/2024 | K40: Termoceará | L40: PETROB PIE 1LN | M40: AMPLA | N40: 16299 | O40: 1º LEN | P40: 2009-T15 | Q40: 79105.63 | R40: 45231 | S40: =Q40*VLOOKUP(CAPA!$C$15,Índices!$B$8:$F$1000,5)/VLOOKUP(EDATE('Multas Geradores'!R40,-1),Índices!$B$8:$F$1000,5) -> 109083.3832 | T40: 383 | U40: N | X40: =IFERROR(V40*VLOOKUP(CAPA!$C$15,Índices!$B$8:$F$1000,5)/VLOOKUP(EDATE('Multas Geradores'!W40,-1),Índices!$B$8:$F$1000,5),0) -> 0 | Z40: LIGHT | AA40: 382 | AB40: Light | AC40: Light Serviços de Eletricidade S.A. | AD40: 160
J41: Desp. nº 2.495/2024 | K41: Termoceará | L41: PETROB PIE 1LN | M41: BANDEIRANTE | N41: 16301 | O41: 1º LEN | P41: 2009-T15 | Q41: 88987.05 | R41: 45231 | S41: =Q41*VLOOKUP(CAPA!$C$15,Índices!$B$8:$F$1000,5)/VLOOKUP(EDATE('Multas Geradores'!R41,-1),Índices!$B$8:$F$1000,5) -> 122709.4515 | T41: 391 | U41: N | X41: =IFERROR(V41*VLOOKUP(CAPA!$C$15,Índices!$B$8:$F$1000,5)/VLOOKUP(EDATE('Multas Geradores'!W41,-1),Índices!$B$8:$F$1000,5),0) -> 0 | Z41: RGE SUL | AA41: 1000042 | AB41: RGE | AC41: RGE Sul Distribuidora de Energia S.A. | AD41: 167
J42: Desp. nº 2.495/2024 | K42: Termoceará | L42: PETROB PIE 1LN | M42: CEAL | N42: 16296 | O42: 1º LEN | P42: 2009-T15 | Q42: 16693.61 | R42: 45231 | S42: =Q42*VLOOKUP(CAPA!$C$15,Índices!$B$8:$F$1000,5)/VLOOKUP(EDATE('Multas Geradores'!R42,-1),Índices!$B$8:$F$1000,5) -> 23019.79588 | T42: 44 | U42: N | X42: =IFERROR(V42*VLOOKUP(CAPA!$C$15,Índices!$B$8:$F$1000,5)/VLOOKUP(EDATE('Multas Geradores'!W42,-1),Índices!$B$8:$F$1000,5),0) -> 0 | AA42: 7019 | AB42: Amazonas Energia | AC42: Amazonas Energia S.A. | AD42: 102
J43: Desp. nº 2.495/2024 | K43: Termoceará | L43: PETROB PIE 1LN | M43: CEB DISTRIBUIC | N43: 16297 | O43: 1º LEN | P43: 2009-T15 | Q43: 102183.96 | R43: 45231 | S43: =Q43*VLOOKUP(CAPA!$C$15,Índices!$B$8:$F$1000,5)/VLOOKUP(EDATE('Multas Geradores'!R43,-1),Índices!$B$8:$F$1000,5) -> 140907.4431 | T43: 5160 | U43: N | X43: =IFERROR(V43*VLOOKUP(CAPA!$C$15,Índices!$B$8:$F$1000,5)/VLOOKUP(EDATE('Multas Geradores'!W43,-1),Índices!$B$8:$F$1000,5),0) -> 0 | AA43: 31 | AB43: CEA | AC43: Companhia de Eletricidade do Amapá | AD43: 107
J44: Desp. nº 2.495/2024 | K44: Termoceará | L44: PETROB PIE 1LN | M44: CEEE DISTRIB | N44: 16305 | O44: 1º LEN | P44: 2009-T15 | Q44: 65125.68 | R44: 45231 | S44: =Q44*VLOOKUP(CAPA!$C$15,Índices!$B$8:$F$1000,5)/VLOOKUP(EDATE('Multas Geradores'!R44,-1),Índices!$B$8:$F$1000,5) -> 89805.61187 | T44: 5707 | U44: N | X44: =IFERROR(V44*VLOOKUP(CAPA!$C$15,Índices!$B$8:$F$1000,5)/VLOOKUP(EDATE('Multas Geradores'!W44,-1),Índices!$B$8:$F$1000,5),0) -> 0 | AA44: 103 | AB44: CHESP | AC44: Companhia Hidroelétrica São Patrício | AD44: 123
J45: Desp. nº 2.495/2024 | K45: Termoceará | L45: PETROB PIE 1LN | M45: CELESC DIST | N45: 16280 | O45: 1º LEN | P45: 2009-T15 | Q45: 289258.62 | R45: 45231 | S45: =Q45*VLOOKUP(CAPA!$C$15,Índices!$B$8:$F$1000,5)/VLOOKUP(EDATE('Multas Geradores'!R45,-1),Índices!$B$8:$F$1000,5) -> 398875.641 | T45: 5697 | U45: N | X45: =IFERROR(V45*VLOOKUP(CAPA!$C$15,Índices!$B$8:$F$1000,5)/VLOOKUP(EDATE('Multas Geradores'!W45,-1),Índices!$B$8:$F$1000,5),0) -> 0 | AA45: 82 | AB45: Cocel | AC45: Companhia Campolarguense de Energia | AD45: 128
J46: Desp. nº 2.495/2024 | K46: Termoceará | L46: PETROB PIE 1LN | M46: CELG | N46: 16304 | O46: 1º LEN | P46: 2009-T15 | Q46: 104252.17 | R46: 45231 | S46: =Q46*VLOOKUP(CAPA!$C$15,Índices!$B$8:$F$1000,5)/VLOOKUP(EDATE('Multas Geradores'!R46,-1),Índices!$B$8:$F$1000,5) -> 143759.4189 | T46: 6072 | U46: N | X46: =IFERROR(V46*VLOOKUP(CAPA!$C$15,Índices!$B$8:$F$1000,5)/VLOOKUP(EDATE('Multas Geradores'!W46,-1),Índices!$B$8:$F$1000,5),0) -> 0 | AA46: 2904 | AB46: Cooperaliança | AC46: Cooperativa Aliança | AD46: 131
J47: Desp. nº 2.495/2024 | K47: Termoceará | L47: PETROB PIE 1LN | M47: CELPA | N47: 16285 | O47: 1º LEN | P47: 2009-T15 | Q47: 96834.97 | R47: 45231 | S47: =Q47*VLOOKUP(CAPA!$C$15,Índices!$B$8:$F$1000,5)/VLOOKUP(EDATE('Multas Geradores'!R47,-1),Índices!$B$8:$F$1000,5) -> 133531.4078 | T47: 371 | U47: N | X47: =IFERROR(V47*VLOOKUP(CAPA!$C$15,Índices!$B$8:$F$1000,5)/VLOOKUP(EDATE('Multas Geradores'!W47,-1),Índices!$B$8:$F$1000,5),0) -> 0 | AA47: 87 | AB47: DCELT | AC47: Distribuidora Catarinense de Energia Elétrica Ltda | AD47: 158
J48: Desp. nº 2.495/2024 | K48: Termoceará | L48: PETROB PIE 1LN | M48: CELPE | N48: 16278 | O48: 1º LEN | P48: 2009-T15 | Q48: 164722.26 | R48: 45231 | S48: =Q48*VLOOKUP(CAPA!$C$15,Índices!$B$8:$F$1000,5)/VLOOKUP(EDATE('Multas Geradores'!R48,-1),Índices!$B$8:$F$1000,5) -> 227145.1653 | T48: 43 | U48: N | X48: =IFERROR(V48*VLOOKUP(CAPA!$C$15,Índices!$B$8:$F$1000,5)/VLOOKUP(EDATE('Multas Geradores'!W48,-1),Índices!$B$8:$F$1000,5),0) -> 0 | AA48: 95 | AB48: Demei | AC48: Departamento Municipal de Energia de Ijuí | AD48: 138
J49: Desp. nº 2.495/2024 | K49: Termoceará | L49: PETROB PIE 1LN | M49: CEMAR | N49: 16310 | O49: 1º LEN | P49: 2009-T15 | Q49: 58042.11 | R49: 45231 | S49: =Q49*VLOOKUP(CAPA!$C$15,Índices!$B$8:$F$1000,5)/VLOOKUP(EDATE('Multas Geradores'!R49,-1),Índices!$B$8:$F$1000,5) -> 80037.6626 | T49: 37 | U49: N | X49: =IFERROR(V49*VLOOKUP(CAPA!$C$15,Índices!$B$8:$F$1000,5)/VLOOKUP(EDATE('Multas Geradores'!W49,-1),Índices!$B$8:$F$1000,5),0) -> 0 | AA49: 51 | AB49: DME-D | AC49: DME Distribuição S.A. | AD49: 139
J50: Desp. nº 2.495/2024 | K50: Termoceará | L50: PETROB PIE 1LN | M50: CEMIG DISTRIB | N50: 16293 | O50: 1º LEN | P50: 2009-T15 | Q50: 226149.29 | R50: 45231 | S50: =Q50*VLOOKUP(CAPA!$C$15,Índices!$B$8:$F$1000,5)/VLOOKUP(EDATE('Multas Geradores'!R50,-1),Índices!$B$8:$F$1000,5) -> 311850.4922 | T50: 4950 | U50: N | X50: =IFERROR(V50*VLOOKUP(CAPA!$C$15,Índices!$B$8:$F$1000,5)/VLOOKUP(EDATE('Multas Geradores'!W50,-1),Índices!$B$8:$F$1000,5),0) -> 0 | AA50: 26 | AB50: EAC | AC50: Energisa Acre - Distribuidora de Energia S.A | AD50: 146
J51: Desp. nº 2.495/2024 | K51: Termoceará | L51: PETROB PIE 1LN | M51: CEPISA | N51: 16286 | O51: 1º LEN | P51: 2009-T15 | Q51: 43811.33 | R51: 45231 | S51: =Q51*VLOOKUP(CAPA!$C$15,Índices!$B$8:$F$1000,5)/VLOOKUP(EDATE('Multas Geradores'!R51,-1),Índices!$B$8:$F$1000,5) -> 60414.00715 | T51: 4950 | U51: N | X51: =IFERROR(V51*VLOOKUP(CAPA!$C$15,Índices!$B$8:$F$1000,5)/VLOOKUP(EDATE('Multas Geradores'!W51,-1),Índices!$B$8:$F$1000,5),0) -> 0 | AA51: 6611 | AB51: EBO | AC51: Energisa Borborema - Distribuidora de Energia S.A | AD51: 140
J52: Desp. nº 2.495/2024 | K52: Termoceará | L52: PETROB PIE 1LN | M52: COELBA | N52: 16294 | O52: 1º LEN | P52: 2009-T15 | Q52: 185312.57 | R52: 45231 | S52: =Q52*VLOOKUP(CAPA!$C$15,Índices!$B$8:$F$1000,5)/VLOOKUP(EDATE('Multas Geradores'!R52,-1),Índices!$B$8:$F$1000,5) -> 255538.3489 | T52: 47 | U52: S | V52: =-1801895.84088413*185312.57/(185312.57+1598898.52) -> -187149.3519 | W52: 45748 | X52: =IFERROR(V52*VLOOKUP(CAPA!$C$15,Índices!$B$8:$F$1000,5)/VLOOKUP(EDATE('Multas Geradores'!W52,-1),Índices!$B$8:$F$1000,5),0) -> -221958.3091 | AA52: 86 | AB52: EFLUL | AC52: Empresa Força e Luz de Urussanga Ltda | AD52: 144
J53: Desp. nº 2.495/2024 | K53: Termoceará | L53: PETROB PIE 1LN | M53: COELCE | N53: 16281 | O53: 1º LEN | P53: 2009-T15 | Q53: 112440.14 | R53: 45231 | S53: =Q53*VLOOKUP(CAPA!$C$15,Índices!$B$8:$F$1000,5)/VLOOKUP(EDATE('Multas Geradores'!R53,-1),Índices!$B$8:$F$1000,5) -> 155050.29 | T53: 39 | U53: N | X53: =IFERROR(V53*VLOOKUP(CAPA!$C$15,Índices!$B$8:$F$1000,5)/VLOOKUP(EDATE('Multas Geradores'!W53,-1),Índices!$B$8:$F$1000,5),0) -> 0 | AA53: 398 | AB53: Eletrocar | AC53: Centrais Elétricas de Carazinho S.A. | AD53: 147
J54: Desp. nº 2.495/2024 | K54: Termoceará | L54: PETROB PIE 1LN | M54: COPEL DISTRIB | N54: 16302 | O54: 1º LEN | P54: 2009-T15 | Q54: 233592.3 | R54: 45231 | S54: =Q54*VLOOKUP(CAPA!$C$15,Índices!$B$8:$F$1000,5)/VLOOKUP(EDATE('Multas Geradores'!R54,-1),Índices!$B$8:$F$1000,5) -> 322114.0943 | T54: 2866 | U54: N | X54: =IFERROR(V54*VLOOKUP(CAPA!$C$15,Índices!$B$8:$F$1000,5)/VLOOKUP(EDATE('Multas Geradores'!W54,-1),Índices!$B$8:$F$1000,5),0) -> 0 | AA54: 6612 | AB54: ENF | AC54: Energisa Nova Friburgo - Distribuidora de Energia S.A. | AD54: 152
J55: Desp. nº 2.495/2024 | K55: Termoceará | L55: PETROB PIE 1LN | M55: COSERN | N55: 16283 | O55: 1º LEN | P55: 2009-T15 | Q55: 80645.27 | R55: 45231 | S55: =Q55*VLOOKUP(CAPA!$C$15,Índices!$B$8:$F$1000,5)/VLOOKUP(EDATE('Multas Geradores'!R55,-1),Índices!$B$8:$F$1000,5) -> 111206.4829 | T55: 40 | U55: N | X55: =IFERROR(V55*VLOOKUP(CAPA!$C$15,Índices!$B$8:$F$1000,5)/VLOOKUP(EDATE('Multas Geradores'!W55,-1),Índices!$B$8:$F$1000,5),0) -> 0 | AA55: 38 | AB55: Equatorial PI | AC55: Equatorial Piauí Distribuidora de Energia S.A. | AD55: 119
J56: Desp. nº 2.495/2024 | K56: Termoceará | L56: PETROB PIE 1LN | M56: CPFL PAULISTA | N56: 16279 | O56: 1º LEN | P56: 2009-T15 | Q56: 366163.95 | R56: 45231 | S56: =Q56*VLOOKUP(CAPA!$C$15,Índices!$B$8:$F$1000,5)/VLOOKUP(EDATE('Multas Geradores'!R56,-1),Índices!$B$8:$F$1000,5) -> 504924.9017 | T56: 63 | U56: S | V56: -351995.5516 | W56: 45748 | X56: =IFERROR(V56*VLOOKUP(CAPA!$C$15,Índices!$B$8:$F$1000,5)/VLOOKUP(EDATE('Multas Geradores'!W56,-1),Índices!$B$8:$F$1000,5),0) -> -417465.1777 | AA56: 369 | AB56: ERO | AC56: Energisa Rondônia - Distribuidora de Energia S.A. | AD56: 120
J57: Desp. nº 2.495/2024 | K57: Termoceará | L57: PETROB PIE 1LN | M57: CPFL SANTA CRUZ | N57: 16288 | O57: 1º LEN | P57: 2009-T15 | Q57: 8518.79 | R57: 45231 | S57: =Q57*VLOOKUP(CAPA!$C$15,Índices!$B$8:$F$1000,5)/VLOOKUP(EDATE('Multas Geradores'!R57,-1),Índices!$B$8:$F$1000,5) -> 11747.05812 | T57: 1000041 | U57: S | V57: =-82230.1*8518.79/(8518.79+72840.76+68.22) -> -8602.727959 | W57: 45717 | X57: =IFERROR(V57*VLOOKUP(CAPA!$C$15,Índices!$B$8:$F$1000,5)/VLOOKUP(EDATE('Multas Geradores'!W57,-1),Índices!$B$8:$F$1000,5),0) -> -10301.15555 | AA57: 83 | AB57: Forcel | AC57: Força e Luz Coronel Vivida Ltda. | AD57: 156
J58: Desp. nº 2.495/2024 | K58: Termoceará | L58: PETROB PIE 1LN | M58: ELEKTRO | N58: 16295 | O58: 1º LEN | P58: 2009-T15 | Q58: 135021.97 | R58: 45231 | S58: =Q58*VLOOKUP(CAPA!$C$15,Índices!$B$8:$F$1000,5)/VLOOKUP(EDATE('Multas Geradores'!R58,-1),Índices!$B$8:$F$1000,5) -> 186189.6971 | T58: 385 | U58: S | V58: =-1153405.38*135021.97/(135021.97+935155.36) -> -145522.6739 | W58: 45870 | X58: =IFERROR(V58*VLOOKUP(CAPA!$C$15,Índices!$B$8:$F$1000,5)/VLOOKUP(EDATE('Multas Geradores'!W58,-1),Índices!$B$8:$F$1000,5),0) -> -164926.5541 | AA58: 399 | AB58: Hidropan | AC58: Hidropan Distribuição de Energia S.A. | AD58: 157
J59: Desp. nº 2.495/2024 | K59: Termoceará | L59: PETROB PIE 1LN | M59: ELETROPAULO | N59: 16298 | O59: 1º LEN | P59: 2009-T15 | Q59: 261941.35 | R59: 45231 | S59: =Q59*VLOOKUP(CAPA!$C$15,Índices!$B$8:$F$1000,5)/VLOOKUP(EDATE('Multas Geradores'!R59,-1),Índices!$B$8:$F$1000,5) -> 361206.2586 | T59: 390 | U59: N | X59: =IFERROR(V59*VLOOKUP(CAPA!$C$15,Índices!$B$8:$F$1000,5)/VLOOKUP(EDATE('Multas Geradores'!W59,-1),Índices!$B$8:$F$1000,5),0) -> 0 | AA59: 88 | AB59: João Cesa | AC59: Empresa Força e Luz João Cesa Ltda. | AD59: 143
J60: Desp. nº 2.495/2024 | K60: Termoceará | L60: PETROB PIE 1LN | M60: ENERGISA BORBOREMA | N60: 16289 | O60: 1º LEN | P60: 2009-T15 | Q60: 5193.13 | R60: 45231 | S60: =Q60*VLOOKUP(CAPA!$C$15,Índices!$B$8:$F$1000,5)/VLOOKUP(EDATE('Multas Geradores'!R60,-1),Índices!$B$8:$F$1000,5) -> 7161.110904 | T60: 6600 | U60: S | V60: =-439557.38*5193.13/(5193.13+32889.97+44113.25+279067.32) -> -6318.59444 | W60: 45809 | X60: =IFERROR(V60*VLOOKUP(CAPA!$C$15,Índices!$B$8:$F$1000,5)/VLOOKUP(EDATE('Multas Geradores'!W60,-1),Índices!$B$8:$F$1000,5),0) -> -7332.030819 | AA60: 401 | AB60: Mux Energia | AC60: Muxfeldt Marin E Cia Ltda | AD60: 161
J61: Desp. nº 2.495/2024 | K61: Termoceara | L61: PETROB PIE 1LN | M61: ENERGISA BR | N61: 16292 | O61: 1º LEN | P61: 2009-T15 | Q61: 4981.23 | R61: 45231 | S61: =Q61*VLOOKUP(CAPA!$C$15,Índices!$B$8:$F$1000,5)/VLOOKUP(EDATE('Multas Geradores'!R61,-1),Índices!$B$8:$F$1000,5) -> 6868.909592 | T61: 1000040 | U61: S | V61: =-276681.523893658*4981.23/(4981.23+65963.88+292.48+9950.3+102128.5+6243.38+68032.54) -> -5350.370542 | W61: 45839 | X61: =IFERROR(V61*VLOOKUP(CAPA!$C$15,Índices!$B$8:$F$1000,5)/VLOOKUP(EDATE('Multas Geradores'!W61,-1),Índices!$B$8:$F$1000,5),0) -> -6141.142465 | AA61: 400 | AB61: Nova Palma | AC61: Nova Palma Energia Ltda. | AD61: 164
J62: Desp. nº 2.495/2024 | K62: Termoceará | L62: PETROB PIE 1LN | M62: ENERGISA MR | N62: 16309 | O62: 1º LEN | P62: 2009-T15 | Q62: 8651.55 | R62: 45231 | S62: =Q62*VLOOKUP(CAPA!$C$15,Índices!$B$8:$F$1000,5)/VLOOKUP(EDATE('Multas Geradores'!R62,-1),Índices!$B$8:$F$1000,5) -> 11930.12866 | T62: 6585 | U62: S | V62: -9107.019526 | W62: 45809 | X62: =IFERROR(V62*VLOOKUP(CAPA!$C$15,Índices!$B$8:$F$1000,5)/VLOOKUP(EDATE('Multas Geradores'!W62,-1),Índices!$B$8:$F$1000,5),0) -> -10567.69009 | AA62: 370 | AB62: Roraima Energia | AC62: Roraima Energia S.A. | AD62: 105
J63: Desp. nº 2.495/2024 | K63: Termoceará | L63: PETROB PIE 1LN | M63: ENERGISA MS | N63: 16291 | O63: 1º LEN | P63: 2009-T15 | Q63: 37268.41 | R63: 45231 | S63: =Q63*VLOOKUP(CAPA!$C$15,Índices!$B$8:$F$1000,5)/VLOOKUP(EDATE('Multas Geradores'!R63,-1),Índices!$B$8:$F$1000,5) -> 51391.59182 | T63: 404 | U63: N | X63: =IFERROR(V63*VLOOKUP(CAPA!$C$15,Índices!$B$8:$F$1000,5)/VLOOKUP(EDATE('Multas Geradores'!W63,-1),Índices!$B$8:$F$1000,5),0) -> 0 | AA63: 381 | AB63: Santa Maria | AC63: Empresa Luz e Força Santa Maria S/A | AD63: 149
J64: Desp. nº 2.495/2024 | K64: Termoceará | L64: PETROB PIE 1LN | M64: ENERGISA MT | N64: 16307 | O64: 1º LEN | P64: 2009-T15 | Q64: 65477.12 | R64: 45231 | S64: =Q64*VLOOKUP(CAPA!$C$15,Índices!$B$8:$F$1000,5)/VLOOKUP(EDATE('Multas Geradores'!R64,-1),Índices!$B$8:$F$1000,5) -> 90290.23305 | T64: 405 | U64: N | X64: =IFERROR(V64*VLOOKUP(CAPA!$C$15,Índices!$B$8:$F$1000,5)/VLOOKUP(EDATE('Multas Geradores'!W64,-1),Índices!$B$8:$F$1000,5),0) -> 0 | AA64: 46 | AB64: Sulgipe | AC64: Companhia Sul Sergipana de Eletricidade | AD64: 163
J65: Desp. nº 2.495/2024 | K65: Termoceará | L65: PETROB PIE 1LN | M65: ENERGISA PB | N65: 16300 | O65: 1º LEN | P65: 2009-T15 | Q65: 32889.97 | R65: 45231 | S65: =Q65*VLOOKUP(CAPA!$C$15,Índices!$B$8:$F$1000,5)/VLOOKUP(EDATE('Multas Geradores'!R65,-1),Índices!$B$8:$F$1000,5) -> 45353.90464 | T65: 6600 | U65: S | V65: =-439557.38*32889.97/(5193.13+32889.97+44113.25+279067.32) -> -40017.94324 | W65: 45809 | X65: =IFERROR(V65*VLOOKUP(CAPA!$C$15,Índices!$B$8:$F$1000,5)/VLOOKUP(EDATE('Multas Geradores'!W65,-1),Índices!$B$8:$F$1000,5),0) -> -46436.40226
J66: Desp. nº 2.495/2024 | K66: Termoceará | L66: PETROB PIE 1LN | M66: ENERGISA SE | N66: 16303 | O66: 1º LEN | P66: 2009-T15 | Q66: 29169.57 | R66: 45231 | S66: =Q66*VLOOKUP(CAPA!$C$15,Índices!$B$8:$F$1000,5)/VLOOKUP(EDATE('Multas Geradores'!R66,-1),Índices!$B$8:$F$1000,5) -> 40223.62733 | T66: 6587 | U66: N | X66: =IFERROR(V66*VLOOKUP(CAPA!$C$15,Índices!$B$8:$F$1000,5)/VLOOKUP(EDATE('Multas Geradores'!W66,-1),Índices!$B$8:$F$1000,5),0) -> 0
J67: Desp. nº 2.495/2024 | K67: Termoceará | L67: PETROB PIE 1LN | M67: ENERGISA SS | N67: 16290 | O67: 1º LEN | P67: 2009-T15 | Q67: 9950.3 | R67: 45231 | S67: =Q67*VLOOKUP(CAPA!$C$15,Índices!$B$8:$F$1000,5)/VLOOKUP(EDATE('Multas Geradores'!R67,-1),Índices!$B$8:$F$1000,5) -> 13721.05105 | T67: 1000040 | U67: S | V67: =-276681.523893658*9950.3/(4981.23+65963.88+292.48+9950.3+102128.5+6243.38+68032.54) -> -10687.67995 | W67: 45839 | X67: =IFERROR(V67*VLOOKUP(CAPA!$C$15,Índices!$B$8:$F$1000,5)/VLOOKUP(EDATE('Multas Geradores'!W67,-1),Índices!$B$8:$F$1000,5),0) -> -12267.29339
J68: Desp. nº 2.495/2024 | K68: Termoceará | L68: PETROB PIE 1LN | M68: ENERGISA TO | N68: 16306 | O68: 1º LEN | P68: 2009-T15 | Q68: 13247.46 | R68: 45231 | S68: =Q68*VLOOKUP(CAPA!$C$15,Índices!$B$8:$F$1000,5)/VLOOKUP(EDATE('Multas Geradores'!R68,-1),Índices!$B$8:$F$1000,5) -> 18267.69795 | T68: 32 | U68: S | V68: =-152142.474781536*13247.46/(13247.46+128398.18) -> -14229.18029 | W68: 45839 | X68: =IFERROR(V68*VLOOKUP(CAPA!$C$15,Índices!$B$8:$F$1000,5)/VLOOKUP(EDATE('Multas Geradores'!W68,-1),Índices!$B$8:$F$1000,5),0) -> -16332.21898
J69: Desp. nº 2.495/2024 | K69: Termoceará | L69: PETROB PIE 1LN | M69: ENERGISA VP | N69: 16308 | O69: 1º LEN | P69: 2009-T15 | Q69: 6243.38 | R69: 45231 | S69: =Q69*VLOOKUP(CAPA!$C$15,Índices!$B$8:$F$1000,5)/VLOOKUP(EDATE('Multas Geradores'!R69,-1),Índices!$B$8:$F$1000,5) -> 8609.362098 | T69: 1000040 | U69: S | V69: =-276681.523893658*6243.38/(4981.23+65963.88+292.48+9950.3+102128.5+6243.38+68032.54) -> -6706.053813 | W69: 45839 | X69: =IFERROR(V69*VLOOKUP(CAPA!$C$15,Índices!$B$8:$F$1000,5)/VLOOKUP(EDATE('Multas Geradores'!W69,-1),Índices!$B$8:$F$1000,5),0) -> -7697.192469
J70: Desp. nº 2.495/2024 | K70: Termoceará | L70: PETROB PIE 1LN | M70: ESCELSA | N70: 16282 | O70: 1º LEN | P70: 2009-T15 | Q70: 74919.9 | R70: 45231 | S70: =Q70*VLOOKUP(CAPA!$C$15,Índices!$B$8:$F$1000,5)/VLOOKUP(EDATE('Multas Geradores'!R70,-1),Índices!$B$8:$F$1000,5) -> 103311.4351 | T70: 380 | U70: S | V70: =-1385727.16615225*74919.9/(74919.9+1188922.8) -> -82145.1441 | W70: 01/082025 | X70: =IFERROR(V70*VLOOKUP(CAPA!$C$15,Índices!$B$8:$F$1000,5)/VLOOKUP(EDATE('Multas Geradores'!W70,-1),Índices!$B$8:$F$1000,5),0) -> 0
J71: Desp. nº 2.495/2024 | K71: Termoceará | L71: PETROB PIE 1LN | M71: LIGHT | N71: 16284 | O71: 1º LEN | P71: 2009-T15 | Q71: 173783.63 | R71: 45231 | S71: =Q71*VLOOKUP(CAPA!$C$15,Índices!$B$8:$F$1000,5)/VLOOKUP(EDATE('Multas Geradores'!R71,-1),Índices!$B$8:$F$1000,5) -> 239640.4187 | T71: =VLOOKUP(M71,$Z$7:$AD$64,2) -> 382 | U71: N | X71: =IFERROR(V71*VLOOKUP(CAPA!$C$15,Índices!$B$8:$F$1000,5)/VLOOKUP(EDATE('Multas Geradores'!W71,-1),Índices!$B$8:$F$1000,5),0) -> 0
J72: Desp. nº 2.495/2024 | K72: Termoceará | L72: PETROB PIE 1LN | M72: RGE SUL | N72: 16287 | O72: 1º LEN | P72: 2009-T15 | Q72: 90322.36 | R72: 45231 | S72: =Q72*VLOOKUP(CAPA!$C$15,Índices!$B$8:$F$1000,5)/VLOOKUP(EDATE('Multas Geradores'!R72,-1),Índices!$B$8:$F$1000,5) -> 124550.7886 | T72: 1000042 | U72: S | V72: =-928794.33*90322.36/(90322.36+797751.65+3208.42) -> -94123.80747 | W72: 45809 | X72: =IFERROR(V72*VLOOKUP(CAPA!$C$15,Índices!$B$8:$F$1000,5)/VLOOKUP(EDATE('Multas Geradores'!W72,-1),Índices!$B$8:$F$1000,5),0) -> -109220.2805
J73: Desp. nº 2.495/2024 | K73: Termoceará | L73: PETROB PIE 1LN | M73: AMPLA | N73: 16330 | O73: 1º LEN | P73: 2010-T15 | Q73: 882724.17 | R73: 45231 | S73: =Q73*VLOOKUP(CAPA!$C$15,Índices!$B$8:$F$1000,5)/VLOOKUP(EDATE('Multas Geradores'!R73,-1),Índices!$B$8:$F$1000,5) -> 1217240.023 | T73: 383 | U73: N | X73: =IFERROR(V73*VLOOKUP(CAPA!$C$15,Índices!$B$8:$F$1000,5)/VLOOKUP(EDATE('Multas Geradores'!W73,-1),Índices!$B$8:$F$1000,5),0) -> 0
J74: Desp. nº 2.495/2024 | K74: Termoceará | L74: PETROB PIE 1LN | M74: BANDEIRANTE | N74: 16332 | O74: 1º LEN | P74: 2010-T15 | Q74: 969538.33 | R74: 45231 | S74: =Q74*VLOOKUP(CAPA!$C$15,Índices!$B$8:$F$1000,5)/VLOOKUP(EDATE('Multas Geradores'!R74,-1),Índices!$B$8:$F$1000,5) -> 1336953.149 | T74: 391 | U74: N | X74: =IFERROR(V74*VLOOKUP(CAPA!$C$15,Índices!$B$8:$F$1000,5)/VLOOKUP(EDATE('Multas Geradores'!W74,-1),Índices!$B$8:$F$1000,5),0) -> 0
J75: Desp. nº 2.495/2024 | K75: Termoceará | L75: PETROB PIE 1LN | M75: CEAL | N75: 16328 | O75: 1º LEN | P75: 2010-T15 | Q75: 114293.77 | R75: 45231 | S75: =Q75*VLOOKUP(CAPA!$C$15,Índices!$B$8:$F$1000,5)/VLOOKUP(EDATE('Multas Geradores'!R75,-1),Índices!$B$8:$F$1000,5) -> 157606.3689 | T75: 44 | U75: N | X75: =IFERROR(V75*VLOOKUP(CAPA!$C$15,Índices!$B$8:$F$1000,5)/VLOOKUP(EDATE('Multas Geradores'!W75,-1),Índices!$B$8:$F$1000,5),0) -> 0
J76: Desp. nº 2.495/2024 | K76: Termoceará | L76: PETROB PIE 1LN | M76: CEEE DISTRIB | N76: 16336 | O76: 1º LEN | P76: 2010-T15 | Q76: 817139.55 | R76: 45231 | S76: =Q76*VLOOKUP(CAPA!$C$15,Índices!$B$8:$F$1000,5)/VLOOKUP(EDATE('Multas Geradores'!R76,-1),Índices!$B$8:$F$1000,5) -> 1126801.552 | T76: 5707 | U76: N | X76: =IFERROR(V76*VLOOKUP(CAPA!$C$15,Índices!$B$8:$F$1000,5)/VLOOKUP(EDATE('Multas Geradores'!W76,-1),Índices!$B$8:$F$1000,5),0) -> 0
J77: Desp. nº 2.495/2024 | K77: Termoceará | L77: PETROB PIE 1LN | M77: CELESC DIST | N77: 16312 | O77: 1º LEN | P77: 2010-T15 | Q77: 1717163.29 | R77: 45231 | S77: =Q77*VLOOKUP(CAPA!$C$15,Índices!$B$8:$F$1000,5)/VLOOKUP(EDATE('Multas Geradores'!R77,-1),Índices!$B$8:$F$1000,5) -> 2367896.964 | T77: 5697 | U77: N | X77: =IFERROR(V77*VLOOKUP(CAPA!$C$15,Índices!$B$8:$F$1000,5)/VLOOKUP(EDATE('Multas Geradores'!W77,-1),Índices!$B$8:$F$1000,5),0) -> 0
J78: Desp. nº 2.495/2024 | K78: Termoceará | L78: PETROB PIE 1LN | M78: CELG | N78: 16335 | O78: 1º LEN | P78: 2010-T15 | Q78: 885275.08 | R78: 45231 | S78: =Q78*VLOOKUP(CAPA!$C$15,Índices!$B$8:$F$1000,5)/VLOOKUP(EDATE('Multas Geradores'!R78,-1),Índices!$B$8:$F$1000,5) -> 1220757.622 | T78: 6072 | U78: N | X78: =IFERROR(V78*VLOOKUP(CAPA!$C$15,Índices!$B$8:$F$1000,5)/VLOOKUP(EDATE('Multas Geradores'!W78,-1),Índices!$B$8:$F$1000,5),0) -> 0
J79: Desp. nº 2.495/2024 | K79: Termoceará | L79: PETROB PIE 1LN | M79: CELPA | N79: 16317 | O79: 1º LEN | P79: 2010-T15 | Q79: 941775.92 | R79: 45231 | S79: =Q79*VLOOKUP(CAPA!$C$15,Índices!$B$8:$F$1000,5)/VLOOKUP(EDATE('Multas Geradores'!R79,-1),Índices!$B$8:$F$1000,5) -> 1298669.937 | T79: 371 | U79: N | X79: =IFERROR(V79*VLOOKUP(CAPA!$C$15,Índices!$B$8:$F$1000,5)/VLOOKUP(EDATE('Multas Geradores'!W79,-1),Índices!$B$8:$F$1000,5),0) -> 0
J80: Desp. nº 2.495/2024 | K80: Termoceará | L80: PETROB PIE 1LN | M80: CELPE | N80: 16311 | O80: 1º LEN | P80: 2010-T15 | Q80: 1119228.98 | R80: 45231 | S80: =Q80*VLOOKUP(CAPA!$C$15,Índices!$B$8:$F$1000,5)/VLOOKUP(EDATE('Multas Geradores'!R80,-1),Índices!$B$8:$F$1000,5) -> 1543370.347 | T80: 43 | U80: N | X80: =IFERROR(V80*VLOOKUP(CAPA!$C$15,Índices!$B$8:$F$1000,5)/VLOOKUP(EDATE('Multas Geradores'!W80,-1),Índices!$B$8:$F$1000,5),0) -> 0
J81: Desp. nº 2.495/2024 | K81: Termoceará | L81: PETROB PIE 1LN | M81: CEMAR | N81: 16341 | O81: 1º LEN | P81: 2010-T15 | Q81: 592386.96 | R81: 45231 | S81: =Q81*VLOOKUP(CAPA!$C$15,Índices!$B$8:$F$1000,5)/VLOOKUP(EDATE('Multas Geradores'!R81,-1),Índices!$B$8:$F$1000,5) -> 816877.0507 | T81: 37 | U81: N | X81: =IFERROR(V81*VLOOKUP(CAPA!$C$15,Índices!$B$8:$F$1000,5)/VLOOKUP(EDATE('Multas Geradores'!W81,-1),Índices!$B$8:$F$1000,5),0) -> 0
J82: Desp. nº 2.495/2024 | K82: Termoceará | L82: PETROB PIE 1LN | M82: CEMIG DISTRIB | N82: 16325 | O82: 1º LEN | P82: 2010-T15 | Q82: 2529782.66 | R82: 45231 | S82: =Q82*VLOOKUP(CAPA!$C$15,Índices!$B$8:$F$1000,5)/VLOOKUP(EDATE('Multas Geradores'!R82,-1),Índices!$B$8:$F$1000,5) -> 3488465.375 | T82: 4950 | U82: N | X82: =IFERROR(V82*VLOOKUP(CAPA!$C$15,Índices!$B$8:$F$1000,5)/VLOOKUP(EDATE('Multas Geradores'!W82,-1),Índices!$B$8:$F$1000,5),0) -> 0
J83: Desp. nº 2.495/2024 | K83: Termoceará | L83: PETROB PIE 1LN | M83: CEPISA | N83: 16318 | O83: 1º LEN | P83: 2010-T15 | Q83: 336873.28 | R83: 45231 | S83: =Q83*VLOOKUP(CAPA!$C$15,Índices!$B$8:$F$1000,5)/VLOOKUP(EDATE('Multas Geradores'!R83,-1),Índices!$B$8:$F$1000,5) -> 464534.2825 | T83: 4950 | U83: N | X83: =IFERROR(V83*VLOOKUP(CAPA!$C$15,Índices!$B$8:$F$1000,5)/VLOOKUP(EDATE('Multas Geradores'!W83,-1),Índices!$B$8:$F$1000,5),0) -> 0
J84: Desp. nº 2.495/2024 | K84: Termoceará | L84: PETROB PIE 1LN | M84: COELBA | N84: 16326 | O84: 1º LEN | P84: 2010-T15 | Q84: 1598898.52 | R84: 45231 | S84: =Q84*VLOOKUP(CAPA!$C$15,Índices!$B$8:$F$1000,5)/VLOOKUP(EDATE('Multas Geradores'!R84,-1),Índices!$B$8:$F$1000,5) -> 2204814.751 | T84: 47 | U84: S | V84: =-1801895.84088413*1598898.52/(185312.57+1598898.52) -> -1614746.489 | W84: 45748 | X84: =IFERROR(V84*VLOOKUP(CAPA!$C$15,Índices!$B$8:$F$1000,5)/VLOOKUP(EDATE('Multas Geradores'!W84,-1),Índices!$B$8:$F$1000,5),0) -> -1915082.242
J85: Desp. nº 2.495/2024 | K85: Termoceará | L85: PETROB PIE 1LN | M85: COELCE | N85: 16313 | O85: 1º LEN | P85: 2010-T15 | Q85: 978924.04 | R85: 45231 | S85: =Q85*VLOOKUP(CAPA!$C$15,Índices!$B$8:$F$1000,5)/VLOOKUP(EDATE('Multas Geradores'!R85,-1),Índices!$B$8:$F$1000,5) -> 1349895.654 | T85: 39 | U85: N | X85: =IFERROR(V85*VLOOKUP(CAPA!$C$15,Índices!$B$8:$F$1000,5)/VLOOKUP(EDATE('Multas Geradores'!W85,-1),Índices!$B$8:$F$1000,5),0) -> 0
J86: Desp. nº 2.495/2024 | K86: Termoceará | L86: PETROB PIE 1LN | M86: COPEL DISTRIB | N86: 16333 | O86: 1º LEN | P86: 2010-T15 | Q86: 1852455.66 | R86: 45231 | S86: =Q86*VLOOKUP(CAPA!$C$15,Índices!$B$8:$F$1000,5)/VLOOKUP(EDATE('Multas Geradores'!R86,-1),Índices!$B$8:$F$1000,5) -> 2554459.531 | T86: 2866 | U86: N | X86: =IFERROR(V86*VLOOKUP(CAPA!$C$15,Índices!$B$8:$F$1000,5)/VLOOKUP(EDATE('Multas Geradores'!W86,-1),Índices!$B$8:$F$1000,5),0) -> 0
J87: Desp. nº 2.495/2024 | K87: Termoceará | L87: PETROB PIE 1LN | M87: COSERN | N87: 16315 | O87: 1º LEN | P87: 2010-T15 | Q87: 639559.39 | R87: 45231 | S87: =Q87*VLOOKUP(CAPA!$C$15,Índices!$B$8:$F$1000,5)/VLOOKUP(EDATE('Multas Geradores'!R87,-1),Índices!$B$8:$F$1000,5) -> 881925.8754 | T87: 40 | U87: N | X87: =IFERROR(V87*VLOOKUP(CAPA!$C$15,Índices!$B$8:$F$1000,5)/VLOOKUP(EDATE('Multas Geradores'!W87,-1),Índices!$B$8:$F$1000,5),0) -> 0
J88: Desp. nº 2.495/2024 | K88: Termoceará | L88: PETROB PIE 1LN | M88: CPFL LESTE PAULISTA | N88: 245806 | O88: 1º LEN | P88: 2010-T15 | Q88: 68.22 | R88: 45231 | S88: =Q88*VLOOKUP(CAPA!$C$15,Índices!$B$8:$F$1000,5)/VLOOKUP(EDATE('Multas Geradores'!R88,-1),Índices!$B$8:$F$1000,5) -> 94.07255082 | T88: 1000041 | U88: S | V88: =-82230.1*68.22/(8518.79+72840.76+68.22) -> -68.89219024 | W88: 45717 | X88: =IFERROR(V88*VLOOKUP(CAPA!$C$15,Índices!$B$8:$F$1000,5)/VLOOKUP(EDATE('Multas Geradores'!W88,-1),Índices!$B$8:$F$1000,5),0) -> -82.49350336
J89: Desp. nº 2.495/2024 | K89: Termoceará | L89: PETROB PIE 1LN | M89: CPFL PAULISTA | N89: 245945 | O89: 1º LEN | P89: 2010-T15 | Q89: 182.83 | R89: 45231 | S89: =Q89*VLOOKUP(CAPA!$C$15,Índices!$B$8:$F$1000,5)/VLOOKUP(EDATE('Multas Geradores'!R89,-1),Índices!$B$8:$F$1000,5) -> 252.1149878 | T89: 63 | U89: N | V89: 0 | W89: 45748 | X89: =IFERROR(V89*VLOOKUP(CAPA!$C$15,Índices!$B$8:$F$1000,5)/VLOOKUP(EDATE('Multas Geradores'!W89,-1),Índices!$B$8:$F$1000,5),0) -> 0
J90: Desp. nº 2.495/2024 | K90: Termoceará | L90: PETROB PIE 1LN | M90: CPFL PIRATINGA | N90: 246009 | O90: 1º LEN | P90: 2010-T15 | Q90: 1117.55 | R90: 45231 | S90: =Q90*VLOOKUP(CAPA!$C$15,Índices!$B$8:$F$1000,5)/VLOOKUP(EDATE('Multas Geradores'!R90,-1),Índices!$B$8:$F$1000,5) -> 1541.055104 | T90: 2937 | U90: N | X90: =IFERROR(V90*VLOOKUP(CAPA!$C$15,Índices!$B$8:$F$1000,5)/VLOOKUP(EDATE('Multas Geradores'!W90,-1),Índices!$B$8:$F$1000,5),0) -> 0
J91: Desp. nº 2.495/2024 | K91: Termoceará | L91: PETROB PIE 1LN | M91: CPFL SANTA CRUZ | N91: 16320 | O91: 1º LEN | P91: 2010-T15 | Q91: 72840.76 | R91: 45231 | S91: =Q91*VLOOKUP(CAPA!$C$15,Índices!$B$8:$F$1000,5)/VLOOKUP(EDATE('Multas Geradores'!R91,-1),Índices!$B$8:$F$1000,5) -> 100444.3872 | T91: 1000041 | U91: S | V91: =-82230.1*72840.76/(8518.79+72840.76+68.22) -> -73558.47985 | W91: 45717 | X91: =IFERROR(V91*VLOOKUP(CAPA!$C$15,Índices!$B$8:$F$1000,5)/VLOOKUP(EDATE('Multas Geradores'!W91,-1),Índices!$B$8:$F$1000,5),0) -> -88081.05365
J92: Desp. nº 2.495/2024 | K92: Termoceará | L92: PETROB PIE 1LN | M92: ELEKTRO | N92: 16327 | O92: 1º LEN | P92: 2010-T15 | Q92: 935155.36 | R92: 45231 | S92: =Q92*VLOOKUP(CAPA!$C$15,Índices!$B$8:$F$1000,5)/VLOOKUP(EDATE('Multas Geradores'!R92,-1),Índices!$B$8:$F$1000,5) -> 1289540.459 | T92: 385 | U92: S | V92: =-1153405.38*935155.36/(135021.97+935155.36) -> -1007882.706 | W92: 45870 | X92: =IFERROR(V92*VLOOKUP(CAPA!$C$15,Índices!$B$8:$F$1000,5)/VLOOKUP(EDATE('Multas Geradores'!W92,-1),Índices!$B$8:$F$1000,5),0) -> -1142273.003
J93: Desp. nº 2.495/2024 | K93: Termoceará | L93: PETROB PIE 1LN | M93: ELETROPAULO | N93: 16329 | O93: 1º LEN | P93: 2010-T15 | Q93: 2489755.81 | R93: 45231 | S93: =Q93*VLOOKUP(CAPA!$C$15,Índices!$B$8:$F$1000,5)/VLOOKUP(EDATE('Multas Geradores'!R93,-1),Índices!$B$8:$F$1000,5) -> 3433270.008 | T93: 390 | U93: N | X93: =IFERROR(V93*VLOOKUP(CAPA!$C$15,Índices!$B$8:$F$1000,5)/VLOOKUP(EDATE('Multas Geradores'!W93,-1),Índices!$B$8:$F$1000,5),0) -> 0
J94: Desp. nº 2.495/2024 | K94: Termoceará | L94: PETROB PIE 1LN | M94: ENERGISA BORBOREMA | N94: 16321 | O94: 1º LEN | P94: 2010-T15 | Q94: 44113.25 | R94: 45231 | S94: =Q94*VLOOKUP(CAPA!$C$15,Índices!$B$8:$F$1000,5)/VLOOKUP(EDATE('Multas Geradores'!R94,-1),Índices!$B$8:$F$1000,5) -> 60830.34231 | T94: 6600 | U94: S | V94: =-439557.38*44113.25/(5193.13+32889.97+44113.25+279067.32) -> -53673.5526 | W94: 45809 | X94: =IFERROR(V94*VLOOKUP(CAPA!$C$15,Índices!$B$8:$F$1000,5)/VLOOKUP(EDATE('Multas Geradores'!W94,-1),Índices!$B$8:$F$1000,5),0) -> -62282.22835
J95: Desp. nº 2.495/2024 | K95: 1 | L95: PETROB PIE 1LN | M95: ENERGISA BR | N95: 16324 | O95: 1º LEN | P95: 2010-T15 | Q95: 65963.88 | R95: 45231 | S95: =Q95*VLOOKUP(CAPA!$C$15,Índices!$B$8:$F$1000,5)/VLOOKUP(EDATE('Multas Geradores'!R95,-1),Índices!$B$8:$F$1000,5) -> 90961.45491 | T95: 1000040 | U95: S | V95: =-276681.523893658*65963.88/(4981.23+65963.88+292.48+9950.3+102128.5+6243.38+68032.54) -> -70852.21931 | W95: 45839 | X95: =IFERROR(V95*VLOOKUP(CAPA!$C$15,Índices!$B$8:$F$1000,5)/VLOOKUP(EDATE('Multas Geradores'!W95,-1),Índices!$B$8:$F$1000,5),0) -> -81324.00725
J96: Desp. nº 2.495/2024 | K96: Termoceará | L96: PETROB PIE 1LN | M96: ENERGISA MS | N96: 16323 | O96: 1º LEN | P96: 2010-T15 | Q96: 296566.55 | R96: 45231 | S96: =Q96*VLOOKUP(CAPA!$C$15,Índices!$B$8:$F$1000,5)/VLOOKUP(EDATE('Multas Geradores'!R96,-1),Índices!$B$8:$F$1000,5) -> 408952.9734 | T96: 404 | U96: N | X96: =IFERROR(V96*VLOOKUP(CAPA!$C$15,Índices!$B$8:$F$1000,5)/VLOOKUP(EDATE('Multas Geradores'!W96,-1),Índices!$B$8:$F$1000,5),0) -> 0
J97: Desp. nº 2.495/2024 | K97: Termoceará | L97: PETROB PIE 1LN | M97: ENERGISA MT | N97: 16338 | O97: 1º LEN | P97: 2010-T15 | Q97: 788678.48 | R97: 45231 | S97: =Q97*VLOOKUP(CAPA!$C$15,Índices!$B$8:$F$1000,5)/VLOOKUP(EDATE('Multas Geradores'!R97,-1),Índices!$B$8:$F$1000,5) -> 1087554.916 | T97: 405 | U97: N | X97: =IFERROR(V97*VLOOKUP(CAPA!$C$15,Índices!$B$8:$F$1000,5)/VLOOKUP(EDATE('Multas Geradores'!W97,-1),Índices!$B$8:$F$1000,5),0) -> 0
J98: Desp. nº 2.495/2024 | K98: Termoceará | L98: PETROB PIE 1LN | M98: ENERGISA NA | N98: 245908 | O98: 1º LEN | P98: 2010-T15 | Q98: 292.48 | R98: 45231 | S98: =Q98*VLOOKUP(CAPA!$C$15,Índices!$B$8:$F$1000,5)/VLOOKUP(EDATE('Multas Geradores'!R98,-1),Índices!$B$8:$F$1000,5) -> 403.3177905 | T98: 1000040 | U98: S | V98: =-276681.523893658*292.48/(4981.23+65963.88+292.48+9950.3+102128.5+6243.38+68032.54) -> -314.1546116 | W98: 45839 | X98: =IFERROR(V98*VLOOKUP(CAPA!$C$15,Índices!$B$8:$F$1000,5)/VLOOKUP(EDATE('Multas Geradores'!W98,-1),Índices!$B$8:$F$1000,5),0) -> -360.5859091
J99: Desp. nº 2.495/2024 | K99: Termoceará | L99: PETROB PIE 1LN | M99: ENERGISA PB | N99: 16331 | O99: 1º LEN | P99: 2010-T15 | Q99: 279067.32 | R99: 45231 | S99: =Q99*VLOOKUP(CAPA!$C$15,Índices!$B$8:$F$1000,5)/VLOOKUP(EDATE('Multas Geradores'!R99,-1),Índices!$B$8:$F$1000,5) -> 384822.261 | T99: 6600 | U99: S | V99: =-439557.38*279067.32/(5193.13+32889.97+44113.25+279067.32) -> -339547.2897 | W99: 45809 | X99: =IFERROR(V99*VLOOKUP(CAPA!$C$15,Índices!$B$8:$F$1000,5)/VLOOKUP(EDATE('Multas Geradores'!W99,-1),Índices!$B$8:$F$1000,5),0) -> -394007.1192
J100: Desp. nº 2.495/2024 | K100: Termoceará | L100: PETROB PIE 1LN | M100: ENERGISA SE | N100: 16334 | O100: 1º LEN | P100: 2010-T15 | Q100: 174425.31 | R100: 45231 | S100: =Q100*VLOOKUP(CAPA!$C$15,Índices!$B$8:$F$1000,5)/VLOOKUP(EDATE('Multas Geradores'!R100,-1),Índices!$B$8:$F$1000,5) -> 240525.2688 | T100: 6587 | U100: N | X100: =IFERROR(V100*VLOOKUP(CAPA!$C$15,Índices!$B$8:$F$1000,5)/VLOOKUP(EDATE('Multas Geradores'!W100,-1),Índices!$B$8:$F$1000,5),0) -> 0
J101: Desp. nº 2.495/2024 | K101: Termoceará | L101: PETROB PIE 1LN | M101: ENERGISA SS | N101: 16322 | O101: 1º LEN | P101: 2010-T15 | Q101: 102128.5 | R101: 45231 | S101: =Q101*VLOOKUP(CAPA!$C$15,Índices!$B$8:$F$1000,5)/VLOOKUP(EDATE('Multas Geradores'!R101,-1),Índices!$B$8:$F$1000,5) -> 140830.9661 | T101: 1000040 | U101: S | V101: =-276681.523893658*102128.5/(4981.23+65963.88+292.48+9950.3+102128.5+6243.38+68032.54) -> -109696.8656 | W101: 45839 | X101: =IFERROR(V101*VLOOKUP(CAPA!$C$15,Índices!$B$8:$F$1000,5)/VLOOKUP(EDATE('Multas Geradores'!W101,-1),Índices!$B$8:$F$1000,5),0) -> -125909.799
J102: Desp. nº 2.495/2024 | K102: Termoceará | L102: PETROB PIE 1LN | M102: ENERGISA TO | N102: 16337 | O102: 1º LEN | P102: 2010-T15 | Q102: 128398.18 | R102: 45231 | S102: =Q102*VLOOKUP(CAPA!$C$15,Índices!$B$8:$F$1000,5)/VLOOKUP(EDATE('Multas Geradores'!R102,-1),Índices!$B$8:$F$1000,5) -> 177055.7654 | T102: 32 | U102: S | V102: =-152142.474781536*128398.18/(13247.46+128398.18) -> -137913.2945 | W102: 45839 | X102: =IFERROR(V102*VLOOKUP(CAPA!$C$15,Índices!$B$8:$F$1000,5)/VLOOKUP(EDATE('Multas Geradores'!W102,-1),Índices!$B$8:$F$1000,5),0) -> -158296.5484
J103: Desp. nº 2.495/2024 | K103: Termoceará | L103: PETROB PIE 1LN | M103: ENERGISA VP | N103: 16339 | O103: 1º LEN | P103: 2010-T15 | Q103: 68032.54 | R103: 45231 | S103: =Q103*VLOOKUP(CAPA!$C$15,Índices!$B$8:$F$1000,5)/VLOOKUP(EDATE('Multas Geradores'!R103,-1),Índices!$B$8:$F$1000,5) -> 93814.05126 | T103: 1000040 | U103: S | V103: =-276681.523893658*68032.54/(4981.23+65963.88+292.48+9950.3+102128.5+6243.38+68032.54) -> -73074.18005 | W103: 45839 | X103: =IFERROR(V103*VLOOKUP(CAPA!$C$15,Índices!$B$8:$F$1000,5)/VLOOKUP(EDATE('Multas Geradores'!W103,-1),Índices!$B$8:$F$1000,5),0) -> -83874.36846
J104: Desp. nº 2.495/2024 | K104: Termoceará | L104: PETROB PIE 1LN | M104: ESCELSA | N104: 16314 | O104: 1º LEN | P104: 2010-T15 | Q104: 1188927.8 | R104: 45231 | S104: =Q104*VLOOKUP(CAPA!$C$15,Índices!$B$8:$F$1000,5)/VLOOKUP(EDATE('Multas Geradores'!R104,-1),Índices!$B$8:$F$1000,5) -> 1639482.13 | T104: 380 | U104: S | V104: =-1385727.16615225*1188922.8/(74919.9+1188922.8) -> -1303582.022 | W104: 45870 | X104: =IFERROR(V104*VLOOKUP(CAPA!$C$15,Índices!$B$8:$F$1000,5)/VLOOKUP(EDATE('Multas Geradores'!W104,-1),Índices!$B$8:$F$1000,5),0) -> -1477400.636
J105: Desp. nº 2.495/2024 | K105: Termoceará | L105: PETROB PIE 1LN | M105: LIGHT | N105: 16316 | O105: 1º LEN | P105: 2010-T15 | Q105: 966965.63 | R105: 45231 | S105: =Q105*VLOOKUP(CAPA!$C$15,Índices!$B$8:$F$1000,5)/VLOOKUP(EDATE('Multas Geradores'!R105,-1),Índices!$B$8:$F$1000,5) -> 1333405.502 | T105: 382 | U105: N | X105: =IFERROR(V105*VLOOKUP(CAPA!$C$15,Índices!$B$8:$F$1000,5)/VLOOKUP(EDATE('Multas Geradores'!W105,-1),Índices!$B$8:$F$1000,5),0) -> 0
J106: Desp. nº 2.495/2024 | K106: Termoceará | L106: PETROB PIE 1LN | M106: RGE DIST | N106: 245979 | O106: 1º LEN | P106: 2010-T15 | Q106: 3208.42 | R106: 45231 | S106: =Q106*VLOOKUP(CAPA!$C$15,Índices!$B$8:$F$1000,5)/VLOOKUP(EDATE('Multas Geradores'!R106,-1),Índices!$B$8:$F$1000,5) -> 4424.278122 | T106: 382 | U106: S | V106: =-928794.33*3208.42/(90322.36+797751.65+3208.42) -> -3343.454559 | W106: 45809 | X106: =IFERROR(V106*VLOOKUP(CAPA!$C$15,Índices!$B$8:$F$1000,5)/VLOOKUP(EDATE('Multas Geradores'!W106,-1),Índices!$B$8:$F$1000,5),0) -> -3879.709657
J107: Desp. nº 2.495/2024 | K107: Termoceará | L107: PETROB PIE 1LN | M107: RGE SUL | N107: 16319 | O107: 1º LEN | P107: 2010-T15 | Q107: 797751.65 | R107: 45231 | S107: =Q107*VLOOKUP(CAPA!$C$15,Índices!$B$8:$F$1000,5)/VLOOKUP(EDATE('Multas Geradores'!R107,-1),Índices!$B$8:$F$1000,5) -> 1100066.441 | T107: 1000042 | U107: S | V107: =-928794.33*797751.65/(90322.36+797751.65+3208.42) -> -831327.068 | W107: 45809 | X107: =IFERROR(V107*VLOOKUP(CAPA!$C$15,Índices!$B$8:$F$1000,5)/VLOOKUP(EDATE('Multas Geradores'!W107,-1),Índices!$B$8:$F$1000,5),0) -> -964663.2238

Sheet BD_Uderor
K1: Número de lançamentos por item e por competência
A2: Dados SAMP Opção:Cativo Classe:Industrial | K2: Descrição | L2: =DATE(YEAR(LnkTxtDRPData),MONTH(LnkTxtDRPData),1) -> 2026-07-01 | M2: =EDATE(L2,-1) -> 2026-06-01 | N2: =EDATE(M2,-1) -> 2026-05-01 | O2: 2026-04-01 | P2: 2026-03-01 | Q2: 2026-02-01 | R2: 2026-01-01 | S2: 2025-12-01 | T2: 2025-11-01 | U2: 2025-10-01 | V2: 2025-09-01 | W2: 2025-08-01 | X2: 2025-07-01 | Y2: 2025-06-01 | Z2: 2025-05-01 | AA2: 2025-04-01
A3: Competencia | B3: COFINS (R$) | C3: ICMS (R$) | D3: PIS/PASEP (R$) | E3: Receita Bandeiras (R$) | F3: Receita Demanda (R$) | G3: Receita Energia (R$) | H3: PIS_Cofins_% | I3: ICMS_% | K3: =Entrada!P8 -> Serviços Cobráveis | L3: =IF(COUNTIFS($C$30:$C$200000,$K3,$H$30:$H$200000,L$2)=0,"",COUNTIFS($C$30:$C$200000,$K3,$H$30:$H$200000,L$2)) ->  | M3: =IF(COUNTIFS($C$30:$C$200000,$K3,$H$30:$H$200000,M$2)=0,"",COUNTIFS($C$30:$C$200000,$K3,$H$30:$H$200000,M$2)) -> 1 | N3: 1 | O3: 1 | P3: 1 | Q3: 1 | R3: 1 | S3: 1 | T3: 1 | U3: 1 | V3: 1 | W3: 1 | X3: 1 | Y3: 1 | Z3: 1 | AA3: 1
A4: 45748 | B4: 234170.52 | C4: 1506429.68 | D4: 50829.25 | E4: 349.92 | F4: 1974335.17 | G4: 4951795.25 | H4: 0.03269260828 | I4: 0.1728040533 | K4: =Entrada!P9 -> Arrecadação de convênios ou valores pela fatura | L4: =IF(COUNTIFS($C$30:$C$200000,$K4,$H$30:$H$200000,L$2)=0,"",COUNTIFS($C$30:$C$200000,$K4,$H$30:$H$200000,L$2)) ->  | M4: 1 | N4: 1 | O4: 1 | P4: 1 | Q4: 1 | R4: 1 | S4: 1 | T4: 1 | U4: 1 | V4: 1 | W4: 1 | X4: 1 | Y4: 1 | Z4: 1 | AA4: 1
A5: 45778 | B5: 212721.84 | C5: 1432153.76 | D5: 46172.2 | E5: 82016.79 | F5: 1786285 | G5: 4510853.7 | H5: 0.03240961387 | I5: 0.1792839664 | K5: =Entrada!P10 -> Arrecadação de faturas de terceiros por estrutura própria
A6: 45809 | B6: 226754.16 | C6: 1476263.08 | D6: 49219.2 | E6: 278259.97 | F6: 1659024.02 | G6: 4730709.28 | H6: 0.03389515913 | I6: 0.1813152256 | K6: =Entrada!P11 -> Veiculação de publicidade
A7: 45839 | B7: 272312.78 | C7: 1588589.61 | D7: 59110.34 | E7: 423153.96 | F7: 1790307.64 | G7: 5270040.66 | H7: 0.0369053225 | I7: 0.1768959627 | K7: =Entrada!P12 -> Aluguel ou cessão onerosa de imóveis e espaços físicos
A8: 45870 | B8: 319992.27 | C8: 1733160.47 | D8: 69458.86 | E8: 545118.63 | F8: 1731969.27 | G8: 5791026.31 | H8: 0.0403760098 | I8: 0.179683916 | K8: =Entrada!P13 -> Compartilhamento de infraestrutura | M8: 1 | N8: 1 | O8: 1 | P8: 1 | Q8: 1 | R8: 1 | S8: 1 | T8: 1 | U8: 1 | V8: 1 | W8: 1 | X8: 1 | Y8: 1 | Z8: 1 | AA8: 1
A9: 45901 | B9: 328180.3 | C9: 1786815.02 | D9: 71239.16 | E9: 683873.94 | F9: 1733786.81 | G9: 5913443.77 | H9: 0.04061838401 | I9: 0.1817075679 | K9: =Entrada!P14 -> Serviços de avaliação técnica e aferição de medidores.
A10: 45931 | B10: 348664.46 | C10: 1805553.96 | D10: 74986.87 | E10: 569660.99 | F10: 1641460.97 | G10: 6004622.16 | H10: 0.04290014752 | I10: 0.1828355672 | K10: =Entrada!P15 -> Operacionalização de serviço de créditos tributários
A11: 45962 | B11: 383703.96 | C11: 1761597.71 | D11: 83291.8 | E11: 406638.66 | F11: 1642588.12 | G11: 5828208.8 | H11: 0.04814691864 | I11: 0.1816194255 | K11: =Entrada!P16 -> Elaboração de projeto, construção, operação, manutenção ou reforma de:
A12: 45992 | B12: 352823.22 | C12: 1660486.11 | D12: 76588.62 | E12: 285782.08 | F12: 1639528.76 | G12: 5488549.06 | H12: 0.04658417973 | I12: 0.1801356557 | K12: =Entrada!P17 -> (1) redes de distribuição de energia elétrica destinadas à regularização fundiária de interesse específico e ao atendimento dos empreendimentos de múltiplas unidades consumidoras;
A13: 46023 | B13: 246087.19 | C13: 1421418.92 | D13: 53416.4 | E13: 75092.59 | F13: 1697178.3 | G13: 4644638.41 | H13: 0.03714662993 | I13: 0.1762947903 | K13: =Entrada!P18 -> (2) redes de energia elétrica destinadas ao acesso dos sistemas de distribuição ou transmissão;
A14: 46054 | B14: 198722.08 | C14: 1532630.54 | D14: 43134.63 | E14: -50.88 | F14: 1642450.79 | G14: 5175184.48 | H14: 0.02814865703 | I14: 0.1783762436 | K14: =Entrada!P19 -> (3) subestações de energia;
A15: 46082 | B15: 228679.97 | C15: 1612576.57 | D15: 49638.89 | E15: -51 | F15: 1708884.03 | G15: 5476420.32 | H15: 0.03066469081 | I15: 0.1776708985 | K15: =Entrada!P20 -> (4) instalações elétricas internas de unidades consumidoras;
A16: 46113 | B16: 214654.83 | C16: 1649957.89 | D16: 46596.45 | E16: 0.66 | F16: 1665509.17 | G16: 5523211.99 | H16: 0.02870915167 | I16: 0.181315442 | K16: =Entrada!P21 -> (5) banco de capacitores;
A17: 46143 | B17: 233239.99 | C17: 1642802.07 | D17: 50628.85 | E17: 73585.72 | F17: 1674111.36 | G17: 5557258.68 | H17: 0.0309966773 | I17: 0.1793835689 | K17: =Entrada!P22 -> (6) padrões de entrada de unidades consumidoras atendidas em baixa tensão;
A18: 46174 | B18: 233239.99 | C18: 1642802.07 | D18: 50628.85 | E18: 73585.72 | F18: 1674111.36 | G18: 5557258.68 | H18: 0.0309966773 | I18: 0.1793835689 | K18: =Entrada!P23 -> (7) sistemas de medição de energia elétrica;
K19: =Entrada!P24 -> (8) geradores, incluindo-se unidades de microgeração e minigeração distribuída; | AA19: =IF(COUNTIFS($C$30:$C$200000,$K19,$H$30:$H$200000,AA$2)=0,"",COUNTIFS($C$30:$C$200000,$K19,$H$30:$H$200000,AA$2)) -> 
K20: =Entrada!P25 -> (9) sistemas de iluminação pública. | L20: =IF(COUNTIFS($C$30:$C$200000,$K20,$H$30:$H$200000,L$2)=0,"",COUNTIFS($C$30:$C$200000,$K20,$H$30:$H$200000,L$2)) -> 
K21: =Entrada!P26 -> (10) estações de recarga de veículos elétricos, incluindo a prestação de serviços aos usuários
K22: =Entrada!P27 -> Eficientização do consumo de energia elétrica e instalação de cogeração qualificada, desde que não enquadráveis nos projetos de Pesquisa e Desenvolvimento (P&D) ou de Eficiência Energética estabelecidos em lei
K23: =Entrada!P28 -> Serviços de comunicação de dados
K24: =Entrada!P29 -> Serviços de consultoria
K25: =Entrada!P30 -> Receita proveniente da comercialização de resultados de projetos de P&D COM comprovação
K26: =Entrada!P31 -> Receita proveniente da comercialização de resultados de projetos de P&D SEM comprovação
A28: Tab_Uderor | K28: Descrição | L28: =L2 -> 2026-07-01 | M28: =M2 -> 2026-06-01 | N28: 2026-05-01 | O28: 2026-04-01 | P28: 2026-03-01 | Q28: 2026-02-01 | R28: 2026-01-01 | S28: 2025-12-01 | T28: 2025-11-01 | U28: 2025-10-01 | V28: 2025-09-01 | W28: 2025-08-01 | X28: 2025-07-01 | Y28: 2025-06-01 | Z28: 2025-05-01 | AA28: =AA2 -> 2025-04-01
A29: IdeTipoReceita | B29: TipoReceitaArquivo | C29: TipoReceita | D29: CompetenciaArquivo | E29: Data_envio_arquivo | F29: NomeArquivo | G29: Data_Lancamento | H29: Competencia | I29: R$ | K29: =Entrada!P51 -> Ultrapassagem de Demanda | L29: =IF(COUNTIFS($C$30:$C$200000,$K29,$H$30:$H$200000,L$2)=0,"",COUNTIFS($C$30:$C$200000,$K29,$H$30:$H$200000,L$2)) ->  | M29: =IF(COUNTIFS($C$30:$C$200000,$K29,$H$30:$H$200000,M$2)=0,"",COUNTIFS($C$30:$C$200000,$K29,$H$30:$H$200000,M$2)) -> 1 | N29: 1 | O29: 1 | P29: 1 | Q29: 1 | R29: 1 | S29: 1 | T29: 1 | U29: 1 | V29: 1 | W29: 1 | X29: 1 | Y29: 1 | Z29: 1 | AA29: 1
A30: 1 | B30: Serviços Cobráveis | C30: Serviços Cobráveis | D30: 202504 | E30: 46092 | F30: APLCVA05216_FLXPAGAMENTOS_042025_S004.XML | G30: 45748 | H30: 45748 | I30: 92282.49 | K30: =Entrada!P52 -> Excedente Reativo | L30: =IF(COUNTIFS($C$30:$C$200000,$K30,$H$30:$H$200000,L$2)=0,"",COUNTIFS($C$30:$C$200000,$K30,$H$30:$H$200000,L$2)) ->  | M30: 1 | N30: 1 | O30: 1 | P30: 1 | Q30: 1 | R30: 1 | S30: 1 | T30: 1 | U30: 1 | V30: 1 | W30: 1 | X30: 1 | Y30: 1 | Z30: 1 | AA30: 1
A31: 1 | B31: Serviços Cobráveis | C31: Serviços Cobráveis | D31: 202505 | E31: 46092 | F31: APLCVA05216_FLXPAGAMENTOS_052025_S004.XML | G31: 45778 | H31: 45778 | I31: 98138.91
A32: 1 | B32: Serviços Cobráveis | C32: Serviços Cobráveis | D32: 202506 | E32: 46184 | F32: APLCVA05216_FLXPAGAMENTOS_062025_S005.XML | G32: 45809 | H32: 45809 | I32: 83912.95
A33: 1 | B33: Serviços Cobráveis | C33: Serviços Cobráveis | D33: 202507 | E33: 46184 | F33: APLCVA05216_FLXPAGAMENTOS_072025_S005.XML | G33: 45839 | H33: 45839 | I33: 114243.04
A34: 1 | B34: Serviços Cobráveis | C34: Serviços Cobráveis | D34: 202508 | E34: 46184 | F34: APLCVA05216_FLXPAGAMENTOS_082025_S005.XML | G34: 45870 | H34: 45870 | I34: 131434.75 | K34: Data do último Lançamento por item e competência
A35: 1 | B35: Serviços Cobráveis | C35: Serviços Cobráveis | D35: 202509 | E35: 46184 | F35: APLCVA05216_FLXPAGAMENTOS_092025_S005.XML | G35: 45901 | H35: 45901 | I35: 134633.25 | K35: Descrição | L35: =DATE(YEAR(LnkTxtDRPData),MONTH(LnkTxtDRPData),1) -> 2026-07-01 | M35: =EDATE(L35,-1) -> 2026-06-01 | N35: =EDATE(M35,-1) -> 2026-05-01 | O35: 2026-04-01 | P35: 2026-03-01 | Q35: 2026-02-01 | R35: 2026-01-01 | S35: 2025-12-01 | T35: 2025-11-01 | U35: 2025-10-01 | V35: 2025-09-01 | W35: 2025-08-01 | X35: 2025-07-01 | Y35: 2025-06-01 | Z35: 2025-05-01 | AA35: 2025-04-01
A36: 1 | B36: Serviços Cobráveis | C36: Serviços Cobráveis | D36: 202510 | E36: 46184 | F36: APLCVA05216_FLXPAGAMENTOS_102025_S005.XML | G36: 45931 | H36: 45931 | I36: 111965.06 | K36: =Entrada!P8 -> Serviços Cobráveis | L36: =IF(_xlfn.MAXIFS($G$30:$G$200000,$C$30:$C$200000,$K36,$H$30:$H$200000,L$2)=0,"",_xlfn.MAXIFS($G$30:$G$200000,$C$30:$C$200000,$K36,$H$30:$H$200000,L$2)) ->  | M36: 46174 | N36: 46143 | O36: 46113 | P36: 46082 | Q36: 46054 | R36: 46023 | S36: 45992 | T36: 45962 | U36: 45931 | V36: 45901 | W36: 45870 | X36: 45839 | Y36: 45809 | Z36: 45778 | AA36: 45748
A37: 1 | B37: Serviços Cobráveis | C37: Serviços Cobráveis | D37: 202511 | E37: 46184 | F37: APLCVA05216_FLXPAGAMENTOS_112025_S005.XML | G37: 45962 | H37: 45962 | I37: 131153.87 | K37: =Entrada!P9 -> Arrecadação de convênios ou valores pela fatura | M37: 46174 | N37: 46143 | O37: 46113 | P37: 46082 | Q37: 46054 | R37: 46023 | S37: 45992 | T37: 45962 | U37: 45931 | V37: 45901 | W37: 45870 | X37: 45839 | Y37: 45809 | Z37: 45778 | AA37: 45748
A38: 1 | B38: Serviços Cobráveis | C38: Serviços Cobráveis | D38: 202512 | E38: 46190 | F38: APLCVA05216_FLXPAGAMENTOS_122025_S007.XML | G38: 45992 | H38: 45992 | I38: 149459.39 | K38: =Entrada!P10 -> Arrecadação de faturas de terceiros por estrutura própria
A39: 1 | B39: Serviços Cobráveis | C39: Serviços Cobráveis | D39: 202601 | E39: 46184 | F39: APLCVA05216_FLXPAGAMENTOS_012026_S003.XML | G39: 46023 | H39: 46023 | I39: 108651.47 | K39: =Entrada!P11 -> Veiculação de publicidade
A40: 1 | B40: Serviços Cobráveis | C40: Serviços Cobráveis | D40: 202602 | E40: 46184 | F40: APLCVA05216_FLXPAGAMENTOS_022026_S002.XML | G40: 46054 | H40: 46054 | I40: 99114.36 | K40: =Entrada!P12 -> Aluguel ou cessão onerosa de imóveis e espaços físicos
A41: 1 | B41: Serviços Cobráveis | C41: Serviços Cobráveis | D41: 202603 | E41: 46184 | F41: APLCVA05216_FLXPAGAMENTOS_032026_S002.XML | G41: 46082 | H41: 46082 | I41: 58801.71 | K41: =Entrada!P13 -> Compartilhamento de infraestrutura | M41: 46174 | N41: 46143 | O41: 46113 | P41: 46082 | Q41: 46054 | R41: 46023 | S41: 45992 | T41: 45962 | U41: 45931 | V41: 45901 | W41: 45870 | X41: 45839 | Y41: 45809 | Z41: 45778 | AA41: 45748
A42: 1 | B42: Serviços Cobráveis | C42: Serviços Cobráveis | D42: 202604 | E42: 46184 | F42: APLCVA05216_FLXPAGAMENTOS_042026_S001.XML | G42: 46113 | H42: 46113 | I42: 86869.33 | K42: =Entrada!P14 -> Serviços de avaliação técnica e aferição de medidores.
A43: 1 | B43: Serviços Cobráveis | C43: Serviços Cobráveis | D43: 202605 | E43: 46184 | F43: APLCVA05216_FLXPAGAMENTOS_052026_S000.XML | G43: 46143 | H43: 46143 | I43: 0 | K43: =Entrada!P15 -> Operacionalização de serviço de créditos tributários
A44: 1 | B44: Serviços Cobráveis | C44: Serviços Cobráveis | D44: 202606 | E44: 46184 | F44: APLCVA05216_FLXPAGAMENTOS_062026_S000.XML | G44: 46174 | H44: 46174 | I44: 0 | K44: =Entrada!P16 -> Elaboração de projeto, construção, operação, manutenção ou reforma de:
A45: 2 | B45: Arrecadação de convênios ou valores pela fatura | C45: Arrecadação de convênios ou valores pela fatura | D45: 202504 | E45: 46092 | F45: APLCVA05216_FLXPAGAMENTOS_042025_S004.XML | G45: 45748 | H45: 45748 | I45: 404839.24 | K45: =Entrada!P17 -> (1) redes de distribuição de energia elétrica destinadas à regularização fundiária de interesse específico e ao atendimento dos empreendimentos de múltiplas unidades consumidoras;
A46: 2 | B46: Arrecadação de convênios ou valores pela fatura | C46: Arrecadação de convênios ou valores pela fatura | D46: 202505 | E46: 46092 | F46: APLCVA05216_FLXPAGAMENTOS_052025_S004.XML | G46: 45778 | H46: 45778 | I46: 439035.2 | K46: =Entrada!P18 -> (2) redes de energia elétrica destinadas ao acesso dos sistemas de distribuição ou transmissão; | L46: =IF(_xlfn.MAXIFS($G$30:$G$200000,$C$30:$C$200000,$K46,$H$30:$H$200000,L$2)=0,"",_xlfn.MAXIFS($G$30:$G$200000,$C$30:$C$200000,$K46,$H$30:$H$200000,L$2)) -> 
A47: 2 | B47: Arrecadação de convênios ou valores pela fatura | C47: Arrecadação de convênios ou valores pela fatura | D47: 202506 | E47: 46184 | F47: APLCVA05216_FLXPAGAMENTOS_062025_S005.XML | G47: 45809 | H47: 45809 | I47: 422854.35 | K47: =Entrada!P19 -> (3) subestações de energia;
A48: 2 | B48: Arrecadação de convênios ou valores pela fatura | C48: Arrecadação de convênios ou valores pela fatura | D48: 202507 | E48: 46184 | F48: APLCVA05216_FLXPAGAMENTOS_072025_S005.XML | G48: 45839 | H48: 45839 | I48: 855426.43 | K48: =Entrada!P20 -> (4) instalações elétricas internas de unidades consumidoras;
A49: 2 | B49: Arrecadação de convênios ou valores pela fatura | C49: Arrecadação de convênios ou valores pela fatura | D49: 202508 | E49: 46184 | F49: APLCVA05216_FLXPAGAMENTOS_082025_S005.XML | G49: 45870 | H49: 45870 | I49: 366175.62 | K49: =Entrada!P21 -> (5) banco de capacitores;
A50: 2 | B50: Arrecadação de convênios ou valores pela fatura | C50: Arrecadação de convênios ou valores pela fatura | D50: 202509 | E50: 46184 | F50: APLCVA05216_FLXPAGAMENTOS_092025_S005.XML | G50: 45901 | H50: 45901 | I50: 91229.56 | K50: =Entrada!P22 -> (6) padrões de entrada de unidades consumidoras atendidas em baixa tensão;
A51: 2 | B51: Arrecadação de convênios ou valores pela fatura | C51: Arrecadação de convênios ou valores pela fatura | D51: 202510 | E51: 46184 | F51: APLCVA05216_FLXPAGAMENTOS_102025_S005.XML | G51: 45931 | H51: 45931 | I51: 389295.64 | K51: =Entrada!P23 -> (7) sistemas de medição de energia elétrica;
A52: 2 | B52: Arrecadação de convênios ou valores pela fatura | C52: Arrecadação de convênios ou valores pela fatura | D52: 202511 | E52: 46184 | F52: APLCVA05216_FLXPAGAMENTOS_112025_S005.XML | G52: 45962 | H52: 45962 | I52: 458461.57 | K52: =Entrada!P24 -> (8) geradores, incluindo-se unidades de microgeração e minigeração distribuída;
A53: 2 | B53: Arrecadação de convênios ou valores pela fatura | C53: Arrecadação de convênios ou valores pela fatura | D53: 202512 | E53: 46190 | F53: APLCVA05216_FLXPAGAMENTOS_122025_S007.XML | G53: 45992 | H53: 45992 | I53: 464064.69 | K53: =Entrada!P25 -> (9) sistemas de iluminação pública.
A54: 2 | B54: Arrecadação de convênios ou valores pela fatura | C54: Arrecadação de convênios ou valores pela fatura | D54: 202601 | E54: 46184 | F54: APLCVA05216_FLXPAGAMENTOS_012026_S003.XML | G54: 46023 | H54: 46023 | I54: 445770.76 | K54: =Entrada!P26 -> (10) estações de recarga de veículos elétricos, incluindo a prestação de serviços aos usuários
A55: 2 | B55: Arrecadação de convênios ou valores pela fatura | C55: Arrecadação de convênios ou valores pela fatura | D55: 202602 | E55: 46184 | F55: APLCVA05216_FLXPAGAMENTOS_022026_S002.XML | G55: 46054 | H55: 46054 | I55: 2471.29 | K55: =Entrada!P27 -> Eficientização do consumo de energia elétrica e instalação de cogeração qualificada, desde que não enquadráveis nos projetos de Pesquisa e Desenvolvimento (P&D) ou de Eficiência Energética estabelecidos em lei
A56: 2 | B56: Arrecadação de convênios ou valores pela fatura | C56: Arrecadação de convênios ou valores pela fatura | D56: 202603 | E56: 46184 | F56: APLCVA05216_FLXPAGAMENTOS_032026_S002.XML | G56: 46082 | H56: 46082 | I56: 0.52 | K56: =Entrada!P28 -> Serviços de comunicação de dados
A57: 2 | B57: Arrecadação de convênios ou valores pela fatura | C57: Arrecadação de convênios ou valores pela fatura | D57: 202604 | E57: 46184 | F57: APLCVA05216_FLXPAGAMENTOS_042026_S001.XML | G57: 46113 | H57: 46113 | I57: 0 | K57: =Entrada!P29 -> Serviços de consultoria
A58: 2 | B58: Arrecadação de convênios ou valores pela fatura | C58: Arrecadação de convênios ou valores pela fatura | D58: 202605 | E58: 46184 | F58: APLCVA05216_FLXPAGAMENTOS_052026_S000.XML | G58: 46143 | H58: 46143 | I58: 0 | K58: =Entrada!P30 -> Receita proveniente da comercialização de resultados de projetos de P&D COM comprovação
A59: 2 | B59: Arrecadação de convênios ou valores pela fatura | C59: Arrecadação de convênios ou valores pela fatura | D59: 202606 | E59: 46184 | F59: APLCVA05216_FLXPAGAMENTOS_062026_S000.XML | G59: 46174 | H59: 46174 | I59: 0 | K59: =Entrada!P31 -> Receita proveniente da comercialização de resultados de projetos de P&D SEM comprovação
A60: 6 | B60: Compartilhamento de infraestrutura | C60: Compartilhamento de infraestrutura | D60: 202504 | E60: 46092 | F60: APLCVA05216_FLXPAGAMENTOS_042025_S004.XML | G60: 45748 | H60: 45748 | I60: 5357521.12
A61: 6 | B61: Compartilhamento de infraestrutura | C61: Compartilhamento de infraestrutura | D61: 202505 | E61: 46092 | F61: APLCVA05216_FLXPAGAMENTOS_052025_S004.XML | G61: 45778 | H61: 45778 | I61: 5556362.36 | K61: Descrição | L61: =L35 -> 2026-07-01 | M61: =M35 -> 2026-06-01 | N61: 2026-05-01 | O61: 2026-04-01 | P61: 2026-03-01 | Q61: 2026-02-01 | R61: 2026-01-01 | S61: 2025-12-01 | T61: 2025-11-01 | U61: 2025-10-01 | V61: 2025-09-01 | W61: 2025-08-01 | X61: 2025-07-01 | Y61: 2025-06-01 | Z61: 2025-05-01 | AA61: 2025-04-01
A62: 6 | B62: Compartilhamento de infraestrutura | C62: Compartilhamento de infraestrutura | D62: 202506 | E62: 46184 | F62: APLCVA05216_FLXPAGAMENTOS_062025_S005.XML | G62: 45809 | H62: 45809 | I62: 4986734.19 | K62: =Entrada!P51 -> Ultrapassagem de Demanda | L62: =IF(COUNTIFS($C$30:$C$200000,$K62,$H$30:$H$200000,L$2)=0,"",COUNTIFS($C$30:$C$200000,$K62,$H$30:$H$200000,L$2)) ->  | M62: 1 | N62: 1 | O62: 1 | P62: 1 | Q62: 1 | R62: 1 | S62: 1 | T62: 1 | U62: 1 | V62: 1 | W62: 1 | X62: 1 | Y62: 1 | Z62: 1 | AA62: 1
A63: 6 | B63: Compartilhamento de infraestrutura | C63: Compartilhamento de infraestrutura | D63: 202507 | E63: 46184 | F63: APLCVA05216_FLXPAGAMENTOS_072025_S005.XML | G63: 45839 | H63: 45839 | I63: 5322559.53 | K63: =Entrada!P52 -> Excedente Reativo | M63: 1 | N63: =IF(COUNTIFS($C$30:$C$200000,$K63,$H$30:$H$200000,N$2)=0,"",COUNTIFS($C$30:$C$200000,$K63,$H$30:$H$200000,N$2)) -> 1 | O63: 1 | P63: 1 | Q63: 1 | R63: 1 | S63: 1 | T63: 1 | U63: 1 | V63: 1 | W63: 1 | X63: 1 | Y63: 1 | Z63: 1 | AA63: 1
A64: 6 | B64: Compartilhamento de infraestrutura | C64: Compartilhamento de infraestrutura | D64: 202508 | E64: 46184 | F64: APLCVA05216_FLXPAGAMENTOS_082025_S005.XML | G64: 45870 | H64: 45870 | I64: 5052224.24
A65: 6 | B65: Compartilhamento de infraestrutura | C65: Compartilhamento de infraestrutura | D65: 202509 | E65: 46184 | F65: APLCVA05216_FLXPAGAMENTOS_092025_S005.XML | G65: 45901 | H65: 45901 | I65: 5914003.47
A66: 6 | B66: Compartilhamento de infraestrutura | C66: Compartilhamento de infraestrutura | D66: 202510 | E66: 46184 | F66: APLCVA05216_FLXPAGAMENTOS_102025_S005.XML | G66: 45931 | H66: 45931 | I66: 7029593.48
A67: 6 | B67: Compartilhamento de infraestrutura | C67: Compartilhamento de infraestrutura | D67: 202511 | E67: 46184 | F67: APLCVA05216_FLXPAGAMENTOS_112025_S005.XML | G67: 45962 | H67: 45962 | I67: 5916375.09
A68: 6 | B68: Compartilhamento de infraestrutura | C68: Compartilhamento de infraestrutura | D68: 202512 | E68: 46190 | F68: APLCVA05216_FLXPAGAMENTOS_122025_S007.XML | G68: 45992 | H68: 45992 | I68: 4790658.41
A69: 6 | B69: Compartilhamento de infraestrutura | C69: Compartilhamento de infraestrutura | D69: 202601 | E69: 46184 | F69: APLCVA05216_FLXPAGAMENTOS_012026_S003.XML | G69: 46023 | H69: 46023 | I69: 5696089.29
A70: 6 | B70: Compartilhamento de infraestrutura | C70: Compartilhamento de infraestrutura | D70: 202602 | E70: 46184 | F70: APLCVA05216_FLXPAGAMENTOS_022026_S002.XML | G70: 46054 | H70: 46054 | I70: 5296197.64
A71: 6 | B71: Compartilhamento de infraestrutura | C71: Compartilhamento de infraestrutura | D71: 202603 | E71: 46184 | F71: APLCVA05216_FLXPAGAMENTOS_032026_S002.XML | G71: 46082 | H71: 46082 | I71: 5349653.73
A72: 6 | B72: Compartilhamento de infraestrutura | C72: Compartilhamento de infraestrutura | D72: 202604 | E72: 46184 | F72: APLCVA05216_FLXPAGAMENTOS_042026_S001.XML | G72: 46113 | H72: 46113 | I72: 5361316.42
A73: 6 | B73: Compartilhamento de infraestrutura | C73: Compartilhamento de infraestrutura | D73: 202605 | E73: 46184 | F73: APLCVA05216_FLXPAGAMENTOS_052026_S000.XML | G73: 46143 | H73: 46143 | I73: 0
A74: 6 | B74: Compartilhamento de infraestrutura | C74: Compartilhamento de infraestrutura | D74: 202606 | E74: 46184 | F74: APLCVA05216_FLXPAGAMENTOS_062026_S000.XML | G74: 46174 | H74: 46174 | I74: 0
A75: 23 | B75: Ultrapassagem de Demanda | C75: Ultrapassagem de Demanda | D75: 202504 | E75: 46092 | F75: APLCVA05216_FLXPAGAMENTOS_042025_S004.XML | G75: 45748 | H75: 45748 | I75: 1026112.28
A76: 23 | B76: Ultrapassagem de Demanda | C76: Ultrapassagem de Demanda | D76: 202505 | E76: 46092 | F76: APLCVA05216_FLXPAGAMENTOS_052025_S004.XML | G76: 45778 | H76: 45778 | I76: 1987166.14
A77: 23 | B77: Ultrapassagem de Demanda | C77: Ultrapassagem de Demanda | D77: 202506 | E77: 46184 | F77: APLCVA05216_FLXPAGAMENTOS_062025_S005.XML | G77: 45809 | H77: 45809 | I77: 338252.92
A78: 23 | B78: Ultrapassagem de Demanda | C78: Ultrapassagem de Demanda | D78: 202507 | E78: 46184 | F78: APLCVA05216_FLXPAGAMENTOS_072025_S005.XML | G78: 45839 | H78: 45839 | I78: 1191737.19
A79: 23 | B79: Ultrapassagem de Demanda | C79: Ultrapassagem de Demanda | D79: 202508 | E79: 46184 | F79: APLCVA05216_FLXPAGAMENTOS_082025_S005.XML | G79: 45870 | H79: 45870 | I79: 1319612.4
A80: 23 | B80: Ultrapassagem de Demanda | C80: Ultrapassagem de Demanda | D80: 202509 | E80: 46184 | F80: APLCVA05216_FLXPAGAMENTOS_092025_S005.XML | G80: 45901 | H80: 45901 | I80: 1452259.21
A81: 23 | B81: Ultrapassagem de Demanda | C81: Ultrapassagem de Demanda | D81: 202510 | E81: 46184 | F81: APLCVA05216_FLXPAGAMENTOS_102025_S005.XML | G81: 45931 | H81: 45931 | I81: 1428252.37
A82: 23 | B82: Ultrapassagem de Demanda | C82: Ultrapassagem de Demanda | D82: 202511 | E82: 46184 | F82: APLCVA05216_FLXPAGAMENTOS_112025_S005.XML | G82: 45962 | H82: 45962 | I82: 1460254.9
A83: 23 | B83: Ultrapassagem de Demanda | C83: Ultrapassagem de Demanda | D83: 202512 | E83: 46190 | F83: APLCVA05216_FLXPAGAMENTOS_122025_S007.XML | G83: 45992 | H83: 45992 | I83: 1730863.15
A84: 23 | B84: Ultrapassagem de Demanda | C84: Ultrapassagem de Demanda | D84: 202601 | E84: 46184 | F84: APLCVA05216_FLXPAGAMENTOS_012026_S003.XML | G84: 46023 | H84: 46023 | I84: 1465491.04
A85: 23 | B85: Ultrapassagem de Demanda | C85: Ultrapassagem de Demanda | D85: 202602 | E85: 46184 | F85: APLCVA05216_FLXPAGAMENTOS_022026_S002.XML | G85: 46054 | H85: 46054 | I85: 1273524.29
A86: 23 | B86: Ultrapassagem de Demanda | C86: Ultrapassagem de Demanda | D86: 202603 | E86: 46184 | F86: APLCVA05216_FLXPAGAMENTOS_032026_S002.XML | G86: 46082 | H86: 46082 | I86: 1410184.4
A87: 23 | B87: Ultrapassagem de Demanda | C87: Ultrapassagem de Demanda | D87: 202604 | E87: 46184 | F87: APLCVA05216_FLXPAGAMENTOS_042026_S001.XML | G87: 46113 | H87: 46113 | I87: 1539127.12
A88: 23 | B88: Ultrapassagem de Demanda | C88: Ultrapassagem de Demanda | D88: 202605 | E88: 46184 | F88: APLCVA05216_FLXPAGAMENTOS_052026_S000.XML | G88: 46143 | H88: 46143 | I88: 0
A89: 23 | B89: Ultrapassagem de Demanda | C89: Ultrapassagem de Demanda | D89: 202606 | E89: 46184 | F89: APLCVA05216_FLXPAGAMENTOS_062026_S000.XML | G89: 46174 | H89: 46174 | I89: 0
A90: 24 | B90: Excedente Reativo | C90: Excedente Reativo | D90: 202504 | E90: 46092 | F90: APLCVA05216_FLXPAGAMENTOS_042025_S004.XML | G90: 45748 | H90: 45748 | I90: 1843914.52
A91: 24 | B91: Excedente Reativo | C91: Excedente Reativo | D91: 202505 | E91: 46092 | F91: APLCVA05216_FLXPAGAMENTOS_052025_S004.XML | G91: 45778 | H91: 45778 | I91: 1877466.35
A92: 24 | B92: Excedente Reativo | C92: Excedente Reativo | D92: 202506 | E92: 46184 | F92: APLCVA05216_FLXPAGAMENTOS_062025_S005.XML | G92: 45809 | H92: 45809 | I92: 1474203.29
A93: 24 | B93: Excedente Reativo | C93: Excedente Reativo | D93: 202507 | E93: 46184 | F93: APLCVA05216_FLXPAGAMENTOS_072025_S005.XML | G93: 45839 | H93: 45839 | I93: 1384701.15
A94: 24 | B94: Excedente Reativo | C94: Excedente Reativo | D94: 202508 | E94: 46184 | F94: APLCVA05216_FLXPAGAMENTOS_082025_S005.XML | G94: 45870 | H94: 45870 | I94: 1980395.86
A95: 24 | B95: Excedente Reativo | C95: Excedente Reativo | D95: 202509 | E95: 46184 | F95: APLCVA05216_FLXPAGAMENTOS_092025_S005.XML | G95: 45901 | H95: 45901 | I95: 1893642.48
A96: 24 | B96: Excedente Reativo | C96: Excedente Reativo | D96: 202510 | E96: 46184 | F96: APLCVA05216_FLXPAGAMENTOS_102025_S005.XML | G96: 45931 | H96: 45931 | I96: 1795664.14
A97: 24 | B97: Excedente Reativo | C97: Excedente Reativo | D97: 202511 | E97: 46184 | F97: APLCVA05216_FLXPAGAMENTOS_112025_S005.XML | G97: 45962 | H97: 45962 | I97: 1906114.68
A98: 24 | B98: Excedente Reativo | C98: Excedente Reativo | D98: 202512 | E98: 46190 | F98: APLCVA05216_FLXPAGAMENTOS_122025_S007.XML | G98: 45992 | H98: 45992 | I98: 1834669.11
A99: 24 | B99: Excedente Reativo | C99: Excedente Reativo | D99: 202601 | E99: 46184 | F99: APLCVA05216_FLXPAGAMENTOS_012026_S003.XML | G99: 46023 | H99: 46023 | I99: 1957846.52
A100: 24 | B100: Excedente Reativo | C100: Excedente Reativo | D100: 202602 | E100: 46184 | F100: APLCVA05216_FLXPAGAMENTOS_022026_S002.XML | G100: 46054 | H100: 46054 | I100: 1980017.04
A101: 24 | B101: Excedente Reativo | C101: Excedente Reativo | D101: 202603 | E101: 46184 | F101: APLCVA05216_FLXPAGAMENTOS_032026_S002.XML | G101: 46082 | H101: 46082 | I101: 1857924.67
A102: 24 | B102: Excedente Reativo | C102: Excedente Reativo | D102: 202604 | E102: 46184 | F102: APLCVA05216_FLXPAGAMENTOS_042026_S001.XML | G102: 46113 | H102: 46113 | I102: 2277820.14
A103: 24 | B103: Excedente Reativo | C103: Excedente Reativo | D103: 202605 | E103: 46184 | F103: APLCVA05216_FLXPAGAMENTOS_052026_S000.XML | G103: 46143 | H103: 46143 | I103: 0
A104: 24 | B104: Excedente Reativo | C104: Excedente Reativo | D104: 202606 | E104: 46184 | F104: APLCVA05216_FLXPAGAMENTOS_062026_S000.XML | G104: 46174 | H104: 46174 | I104: 0

Sheet BD
B1: Banco de Dados | M1: Anexo II | N1: =Resultado!$D$6 -> 0.07219975241
B2: =CAPA!B6 -> ESS | M2: Anexo I | N2: =Resultado!$D$8 -> 0.1146383353
B5: Informações do ano anterior | G5: Dados de abertura (Neutralidade e CVA saldo a compensar) | L5: Dados de Energia | S5: Dados para Revisão | AA5: BMP_RIT | AK5: Avaliação Parcela B | AQ5: Compensação DIC FIC | BF5: Financeiro Desconcatenação Permissionárias
B7: Encargos | G7: Encargo | H7: Valor | I7: Norma | L7: Cotas | M7: Valor da "Cota" | N7: Ano | O7: Custo Médio da Cota | P7: Energia MWh | S7: item | T7: Descrição | U7: Detalhe | V7: Valor | AA7: IDAGENTE | AB7: ANO | AC7: SIGLA | AD7: ContaPrincipal | AE7: ContaDetalhada | AF7: CONTA | AG7: SALDO | AK7: Ano | AL7: DataRevREa | AM7: item | AN7: valor | AQ7: Competência | AR7: IdSariAcessado | AS7: IdSariAcessante | AT7: IdcTipoPontoConexao | AU7: VlrCompensacao | AV7: VlrDIC | AW7: VlrDMICMensal | AX7: VrlCompensasao_compensado | AY7: VlrDIC_compensado | AZ7: VlrDMICMensal_compensado | BA7: VlrCompensacao_a_Compensar | BB7: VlrDIC_a_compensar | BC7: VlrDMICMensal_a_compensar | BD7: Vlr_a_Compensar | BF7: IdAg_acessado | BG7: Sigla_acessada | BH7: IdAg_acessante | BI7: Sigla_acessante | BJ7: Competência | BK7: AnoRef | BL7: NomSubgrupo | BM7: DetalheTarifario | BN7: Posto | BO7: Vlr_Mercado | BP7: Tarifa | BQ7: Tarifa_ant | BR7: Vig_ini_acessada | BS7: Vig_fin_acessada | BT7: Competencia_seg | BU7: Vig_ini_acessante | BV7: Desconto | BW7: Desconto_ant | BX7: Financeiro
B8: CDE Covid TE | C8: 0 | G8: CDE Eletrobras | H8: -2314457.87 | I8: DSP 1894/2026 | L8: Angra | M8: NT 5/2026-STR-ANEEL | N8: 2026 | O8: 361.56 | P8: 81231.15967 | S8: 0 | T8: Duração do Ciclo de Revisão | V8: 5 | AA8: 1000040 | AB8: 2023 | AC8: ESS | AD8: Pessoal | AE8: Remuneração | AF8: 610530501 | AG8: 23268172.81 | AK8: 2021 | AL8: 22473 | AM8: ANEXO II | AN8: 0.03492162053 | AQ8: 45261 | AR8: 2866 | AS8: 5216 | AT8: D | AU8: 0 | AV8: 0.3 | AW8: 0 | AX8: 0 | AY8: 0 | AZ8: 0 | BA8: 0 | BB8: -0.3 | BC8: 0 | BD8: -0.3 | BF8: 1000040 | BG8: ESS | BH8: 5385 | BI8: Cerrp | BJ8: 46023 | BK8: 2025 | BL8: A4 | BM8: Demanda Faturada (kW) | BN8: Fora ponta | BO8: 7117 | BP8: 15.48 | BQ8: 15.17 | BR8: 46023 | BS8: 46214 | BT8: 46054 | BU8: 46171 | BV8: 0 | BW8: 0 | BX8: 2206.27
B9: CDE Covid TUSD | C9: 0 | G9: CDE | H9: 535885311.2 | I9: REH 3.564/2025 | S9: 1 | T9: RI Limite de Neutralidade de Encargos (por grupo) | U9: Residencial | V9: 0.0295 | AA9: 1000040 | AB9: 2023 | AC9: ESS | AD9: Pessoal | AE9: Encargos | AF9: 610530502 | AG9: 18168871.91 | AK9: 2021 | AL9: 22473 | AM9: Base de Remuneração Bruta | AN9: 1582447973 | AQ9: 44986 | AR9: 2866 | AS9: 5216 | AT9: D | AU9: 0 | AV9: 0.3 | AW9: 0 | AX9: 0 | AY9: 0 | AZ9: 0 | BA9: 0 | BB9: -0.3 | BC9: 0 | BD9: -0.3 | BF9: 1000040 | BG9: ESS | BH9: 5385 | BI9: Cerrp | BJ9: 46023 | BK9: 2025 | BL9: A4 | BM9: Demanda Faturada (kW) | BN9: Ponta | BO9: 6346 | BP9: 24.64 | BQ9: 24.12 | BR9: 46023 | BS9: 46214 | BT9: 46054 | BU9: 46171 | BV9: 0 | BW9: 0 | BX9: 3299.92
B10: TFSEE | C10: 2603047.716 | G10: CFURH | S10: 2 | T10: RI Limite de Neutralidade de Encargos (por grupo) | U10: Industrial | V10: 0.0219 | AA10: 1000040 | AB10: 2023 | AC10: ESS | AD10: Pessoal | AE10: Previdência Privada - Corrente | AF10: 610530503 | AG10: 1895651 | AK10: 2021 | AL10: 22473 | AM10: Base de Remuneração Líquida | AN10: 1102566874 | AQ10: 44958 | AR10: 2866 | AS10: 5216 | AT10: D | AU10: 0 | AV10: 0.3 | AW10: 0.3 | AX10: 0 | AY10: 0 | AZ10: 0 | BA10: 0 | BB10: -0.3 | BC10: -0.3 | BD10: -0.6 | BF10: 1000040 | BG10: ESS | BH10: 5385 | BI10: Cerrp | BJ10: 46023 | BK10: 2025 | BL10: A4 | BM10: Energia TUSD (kWh) | BN10: Não se aplica | BO10: 2188.867 | BP10: 14.7 | BQ10: 11.04 | BR10: 46023 | BS10: 46214 | BT10: 46054 | BU10: 46171 | BV10: 0 | BW10: 0 | BX10: 8011.25322
B11: CDE | C11: 479299222.9 | G11: PROINFA | H11: 51243636.72 | I11: REH 3.558/2025 | L11: Ano | M11: Cota Itaipu | S11: 3 | T11: RI Limite de Neutralidade de Encargos (por grupo) | U11: COMERCIAL | V11: 0.0154 | AA11: 1000040 | AB11: 2023 | AC11: ESS | AD11: Pessoal | AE11: Despesas Rescisórias | AF11: 610530506 | AG11: 0 | AK11: 2021 | AL11: 22473 | AM11: CONSUMIDOR DISTRIBUIÇÃO | AN11: 72546.798 | BF11: 1000040 | BG11: ESS | BH11: 5385 | BI11: Cerrp | BJ11: 46054 | BK11: 2025 | BL11: A4 | BM11: Demanda Faturada (kW) | BN11: Fora ponta | BO11: 7008 | BP11: 15.48 | BQ11: 15.17 | BR11: 46023 | BS11: 46214 | BT11: 46082 | BU11: 46171 | BV11: 0 | BW11: 0 | BX11: 2172.48
B12: ESS/ERR | C12: 68402147.82 | G12: ONS | H12: 105546.6 | I12: Contribuição 2025 | L12: 2024 | M12: 0.01423147037 | S12: 4 | T12: RI Limite de Neutralidade de Encargos (por grupo) | U12: RURAL | V12: 0.0317 | AA12: 1000040 | AB12: 2023 | AC12: ESS | AD12: Pessoal | AE12: Participação nos Lucros e Resultados - PLR | AF12: 610530507 | AG12: 6937795.36 | AK12: 2021 | AL12: 22473 | AM12: CONSUMIDOR LIVRE | AN12: 1131105.149 | BF12: 1000040 | BG12: ESS | BH12: 5385 | BI12: Cerrp | BJ12: 46054 | BK12: 2025 | BL12: A4 | BM12: Demanda Faturada (kW) | BN12: Ponta | BO12: 5380 | BP12: 24.64 | BQ12: 24.12 | BR12: 46023 | BS12: 46214 | BT12: 46082 | BU12: 46171 | BV12: 0 | BW12: 0 | BX12: 2797.6
B13: PROINFA | C13: 60628717.87 | G13: ERCAP | H13: 29865808.32 | I13: DSP 2.204/2026 | L13: 2025 | M13: 0.01422849 | S13: 5 | T13: RI Limite de Neutralidade de Encargos (por grupo) | U13: PODERPUBLICO | V13: 0.0252 | AA13: 1000040 | AB13: 2023 | AC13: ESS | AD13: Pessoal | AE13: Outros Benefícios - Corrente | AF13: 610530508 | AG13: 25388766.17 | AK13: 2021 | AL13: 22473 | AM13: ENCARGO | AN13: 359058290.7 | BF13: 1000040 | BG13: ESS | BH13: 5385 | BI13: Cerrp | BJ13: 46054 | BK13: 2025 | BL13: A4 | BM13: Energia TUSD (kWh) | BN13: Não se aplica | BO13: 2053.349 | BP13: 14.7 | BQ13: 11.04 | BR13: 46023 | BS13: 46214 | BT13: 46082 | BU13: 46171 | BV13: 0 | BW13: 0 | BX13: 7515.25734
B14: P&D | C14: 21804018.74 | G14: EER | H14: 48114366.69 | I14: DSP 2.204/2026 | L14: 2026 | M14: 0.01423267 | N14: 0.01422016 | S14: 6 | T14: RI Limite de Neutralidade de Encargos (por grupo) | U14: ILUMPUBLICA | V14: 0.0184 | AA14: 1000040 | AB14: 2023 | AC14: ESS | AD14: Pessoal | AE14: (-) Créditos de Tributos Recuperáveis | AF14: 610530510 | AG14: 0 | AK14: 2021 | AL14: 22473 | AM14: ENERGIA | AN14: 853322245.8 | BF14: 1000040 | BG14: ESS | BH14: 5385 | BI14: Cerrp | BJ14: 46082 | BK14: 2025 | BL14: A4 | BM14: Demanda Faturada (kW) | BN14: Fora ponta | BO14: 6730 | BP14: 15.48 | BQ14: 15.17 | BR14: 46023 | BS14: 46214 | BT14: 46113 | BU14: 46171 | BV14: 0 | BW14: 0 | BX14: 2086.3
B15: ONS | C15: 0 | G15: ESS | H15: 1651045.222 | I15: DSP 2.204/2026 | L15: 2027 | M15: 0.01450573 | N15: 0.01450279 | S15: 7 | T15: RI Limite de Neutralidade de Encargos (por grupo) | U15: SERVPUBLICO | V15: 0.1299 | AA15: 1000040 | AB15: 2023 | AC15: ESS | AD15: Pessoal | AE15: Estagiários e Programas de Iniciação ao Trabalho | AF15: 610530511 | AG15: 680143.92 | AK15: 2021 | AL15: 22473 | AM15: FATOR X | AN15: -0.01154032016 | BF15: 1000040 | BG15: ESS | BH15: 5385 | BI15: Cerrp | BJ15: 46082 | BK15: 2025 | BL15: A4 | BM15: Demanda Faturada (kW) | BN15: Ponta | BO15: 5738 | BP15: 24.64 | BQ15: 24.12 | BR15: 46023 | BS15: 46214 | BT15: 46113 | BU15: 46171 | BV15: 0 | BW15: 0 | BX15: 2983.76
B16: CDE Eletrobras | C16: -2321987.81 | G16: TFSEE Fator de Carga | H16: 0.902 | S16: 11 | T16: RI Limite de outros componentes (por empresa) | U16: Residencial | V16: 0.0064 | AA16: 1000040 | AB16: 2023 | AC16: ESS | AD16: Pessoal | AE16: Outros | AF16: 610530599 | AG16: 0 | AK16: 2021 | AL16: 22473 | AM16: Fornecimento | AN16: 3369650.451 | BF16: 1000040 | BG16: ESS | BH16: 5385 | BI16: Cerrp | BJ16: 46082 | BK16: 2025 | BL16: A4 | BM16: Energia TUSD (kWh) | BN16: Não se aplica | BO16: 1891.846 | BP16: 14.7 | BQ16: 11.04 | BR16: 46023 | BS16: 46214 | BT16: 46113 | BU16: 46171 | BV16: 0 | BW16: 0 | BX16: 6924.15636
B17: CDE GD | C17: 67315980.86 | G17: CDE Covid | H17: 0 | I17: Quitação | S17: 12 | T17: RI Limite de outros componentes (por empresa) | U17: Industrial | V17: 0.0035 | AA17: 1000040 | AB17: 2023 | AC17: ESS | AD17: Pessoal | AE17: Honorários e Encargos (Diretoria e Conselho) | AF17: 610530601 | AG17: 0 | AK17: 2021 | AL17: 22473 | AM17: IGPM | AN17: 0.3575134176 | BF17: 1000040 | BG17: ESS | BH17: 5385 | BI17: Cerrp | BJ17: 46113 | BK17: 2025 | BL17: A4 | BM17: Demanda Faturada (kW) | BN17: Fora ponta | BO17: 6000 | BP17: 15.48 | BQ17: 15.17 | BR17: 46023 | BS17: 46214 | BT17: 46143 | BU17: 46171 | BV17: 0 | BW17: 0 | BX17: 1860
B18: CDE Conta - Escassez Hídrica TUSD | C18: 1543949.016 | G18: CDE Covid TE% | H18: 0.4996011048 | S18: 13 | T18: RI Limite de outros componentes (por empresa) | U18: COMERCIAL | V18: 0.004 | AA18: 1000040 | AB18: 2023 | AC18: ESS | AD18: Pessoal | AE18: Benefícios dos Administradores | AF18: 610530602 | AG18: 0 | AK18: 2021 | AL18: 22473 | AM18: IPCA | AN18: 0.08400954058 | BF18: 1000040 | BG18: ESS | BH18: 5385 | BI18: Cerrp | BJ18: 46113 | BK18: 2025 | BL18: A4 | BM18: Demanda Faturada (kW) | BN18: Ponta | BO18: 4600 | BP18: 24.64 | BQ18: 24.12 | BR18: 46023 | BS18: 46214 | BT18: 46143 | BU18: 46171 | BV18: 0 | BW18: 0 | BX18: 2392
B19: CDE Conta - Escassez Hídrica TE | C19: 20581272.03 | G19: CDE Covid TUSD% | H19: 0.5003988952 | S19: 14 | T19: RI Limite de outros componentes (por empresa) | U19: RURAL | V19: 0.002 | AA19: 1000040 | AB19: 2023 | AC19: ESS | AD19: Materiais | AE19: Materiais | AF19: 610530701 | AG19: 13477714.05 | AK19: 2021 | AL19: 22473 | AM19: Parcela B | AN19: 450262934.4 | BF19: 1000040 | BG19: ESS | BH19: 5385 | BI19: Cerrp | BJ19: 46113 | BK19: 2025 | BL19: A4 | BM19: Energia TUSD (kWh) | BN19: Não se aplica | BO19: 2027.148 | BP19: 14.7 | BQ19: 11.04 | BR19: 46023 | BS19: 46214 | BT19: 46143 | BU19: 46171 | BV19: 0 | BW19: 0 | BX19: 7419.36168
G20: CDE Escassez Hidrica | H20: 22125221.04 | I20: DSP 510/2023 | S20: 15 | T20: RI Limite de outros componentes (por empresa) | U20: PODERPUBLICO | V20: 0.0001 | AA20: 1000040 | AB20: 2023 | AC20: ESS | AD20: Materiais | AE20: (-) Créditos de Tributos Recuperáveis | AF20: 610530710 | AG20: -205699.59 | AK20: 2021 | AL20: 22473 | AM20: Receita Irrecuperável | AN20: 1251677.702 | BF20: 1000040 | BG20: ESS | BH20: 6609 | BI20: Cernhe | BJ20: 45839 | BK20: 2025 | BL20: A4 | BM20: Demanda Faturada (kW) | BN20: Fora ponta | BO20: 8370 | BP20: 15.48 | BQ20: 15.17 | BR20: 45850 | BS20: 46022 | BT20: 45870 | BU20: 45868 | BV20: 0 | BW20: 0 | BX20: 1674
B21: Pmix | C21: 253.8711873 | G21: CDE Escassez Hidr TE% | H21: 0.9302176908 | S21: 16 | T21: RI Limite de outros componentes (por empresa) | U21: ILUMPUBLICA | V21: 0 | AA21: 1000040 | AB21: 2023 | AC21: ESS | AD21: Materiais | AE21: Outros | AF21: 610530799 | AG21: 299982.04 | AK21: 2021 | AL21: 22473 | AM21: Revisão ou Reajuste (1-REVI,0-Reaj) | AN21: 1 | BF21: 1000040 | BG21: ESS | BH21: 6609 | BI21: Cernhe | BJ21: 45839 | BK21: 2025 | BL21: A4 | BM21: Demanda Faturada (kW) | BN21: Ponta | BO21: 7507 | BP21: 24.64 | BQ21: 24.12 | BR21: 45850 | BS21: 46022 | BT21: 45870 | BU21: 45868 | BV21: 0 | BW21: 0 | BX21: 2518.477419
B22: PN2025 | C22: 0.01200004116 | G22: CDE Escassez Hidr TUSD% | H22: 0.06978230922 | L22: Mês | M22: Potência | N22: Tarifa | O22: Perdas | P22: Energia | S22: 17 | T22: RI Limite de outros componentes (por empresa) | U22: SERVPUBLICO | V22: 0 | AA22: 1000040 | AB22: 2023 | AC22: ESS | AD22: Serviços | AE22: Serviços de Terceiros | AF22: 610530801 | AG22: 34263369.22 | AK22: 2021 | AL22: 22473 | AM22: SUPRIMENTO (Mercado TUSD) | AN22: 46050.93 | BF22: 1000040 | BG22: ESS | BH22: 6609 | BI22: Cernhe | BJ22: 45839 | BK22: 2025 | BL22: A4 | BM22: Energia TUSD (kWh) | BN22: Não se aplica | BO22: 1730.225 | BP22: 14.7 | BQ22: 11.04 | BR22: 45850 | BS22: 46022 | BT22: 45870 | BU22: 45868 | BV22: 0 | BW22: 0 | BX22: 4085.563548
B23: PT2021 | C23: 0.06631 | G23: CDE GD | H23: 0.001 | I23: Art. 23, Lei 15.269/2025 | L23: 46204 | M23: 137.0748448 | N23: 17.66 | O23: 0.05425644814 | P23: 60625.21043 | S23: 101 | T23: Parâmetros de Custos Operacionais | U23: CO1_Theta_inf | AA23: 1000040 | AB23: 2023 | AC23: ESS | AD23: Serviços | AE23: (-) Créditos de Tributos Recuperáveis | AF23: 610530810 | AG23: -1691249.98 | AK23: 2021 | AL23: 22473 | AM23: TRANSPORTE TERCEIROS | AN23: 266860632.7
L24: 46235 | M24: 134.2852415 | N24: 17.66 | O24: 0.05425644814 | P24: 60625.21043 | S24: 102 | T24: Parâmetros de Custos Operacionais | U24: CO2_Theta_centro | AA24: 1000040 | AB24: 2023 | AC24: ESS | AD24: Seguros | AE24: Seguros | AF24: 610531001 | AG24: 0 | AK24: 2022 | AL24: 22838 | AM24: ANEXO II | AN24: 0.1641375592
B25: Perda RB total | C25: 0.01625521013 | G25: Informações de Postergação | L25: 46266 | M25: 132.1503409 | N25: 17.66 | O25: 0.05425644814 | P25: 58669.55848 | S25: 103 | T25: Parâmetros de Custos Operacionais | U25: CO3_Theta_sup | AA25: 1000040 | AB25: 2023 | AC25: ESS | AD25: Seguros | AE25: (-) Créditos de Tributos Recuperáveis | AF25: 610531010 | AG25: 0 | AK25: 2022 | AL25: 22838 | AM25: CONSUMIDOR DISTRIBUIÇÃO | AN25: 70006.835
L26: 46296 | M26: 129.3038069 | N26: 17.66 | O26: 0.05425644814 | P26: 60625.21043 | S26: 104 | T26: Parâmetros de Custos Operacionais | U26: CO4_Theta_ref | AA26: 1000040 | AB26: 2023 | AC26: ESS | AD26: Seguros | AE26: Outros | AF26: 610531099 | AG26: 0 | AK26: 2022 | AL26: 22838 | AM26: CONSUMIDOR LIVRE | AN26: 1285466.467
B27: CVA RB | C27: -4559605.098 | G27: Tipo | H27: Valor | I27: Coluna1 | L27: 46327 | M27: 128.5921734 | N27: 17.66 | O27: 0.05425644814 | P27: 58669.55848 | S27: 105 | T27: Parâmetros de Custos Operacionais | U27: CO5_Opex_real | AA27: 1000040 | AB27: 2023 | AC27: ESS | AD27: Tributos | AE27: Tributos | AF27: 610531601 | AG27: 114882.79 | AK27: 2022 | AL27: 22838 | AM27: ENCARGO | AN27: 495203581.7
B28: CVA CDE Covid TUSD | C28: -10822391.33 | G28: Data Postergada | H28: DtAniversario | I28: 46215 | L28: 46357 | M28: 128.5921734 | N28: 17.66 | O28: 0.05425644814 | P28: 60625.21043 | S28: 106 | T28: Parâmetros de Custos Operacionais | U28: CO6_PMSOcorrigido | AA28: 1000040 | AB28: 2023 | AC28: ESS | AD28: Outros | AE28: Indenização por Perdas e Danos | AF28: 610531901 | AG28: 1642087.43 | AK28: 2022 | AL28: 22838 | AM28: ENERGIA | AN28: 876859139.4
B29: CVA CCC | C29: 0 | G29: Data Anterior | I29: 46215 | L29: 46388 | M29: 131.0327076 | N29: 17.66 | O29: 0.05425644814 | P29: 61775.80845 | S29: 107 | T29: Parâmetros de Custos Operacionais | U29: CO7_FatorEscala | AA29: 1000040 | AB29: 2023 | AC29: ESS | AD29: Outros | AE29: Consumo Próprio de Energia | AF29: 610531902 | AG29: 3552929.89 | AK29: 2022 | AL29: 22838 | AM29: FATOR X | AN29: -0.005079257165
B30: CVA CDE | C30: 40742014.38 | G30: Diferença de Dias | I30: 0 | L30: 46419 | M30: 131.0327076 | N30: 17.66 | O30: 0.05425644814 | P30: 55797.5044 | S30: 108 | T30: Parâmetros de Custos Operacionais | U30: CO8_u | AA30: 1000040 | AB30: 2023 | AC30: ESS | AD30: Outros | AE30: Taxa de Arrecadação | AF30: 610531903 | AG30: 0 | AK30: 2022 | AL30: 22838 | AM30: Fornecimento | AN30: 3250734.652
B31: CVA CFURH | G31: MesesAdin | I31: 0 | L31: 46447 | M31: 131.0327076 | N31: 17.66 | O31: 0.05425644814 | P31: 61775.80845 | S31: 109 | T31: Parâmetros de Custos Operacionais | U31: CO9_Vs_Yrsub | AA31: 1000040 | AB31: 2023 | AC31: ESS | AD31: Outros | AE31: Taxas Bancárias | AF31: 610531904 | AG31: 0 | AK31: 2022 | AL31: 22838 | AM31: IGPM | AN31: 0.1070423609
B32: CVA ESS\ERR | C32: 2334577.382 | G32: Reversão Subvenção CDE | L32: 46478 | M32: 136.1086842 | N32: 17.66 | O32: 0.05425644814 | P32: 59783.04043 | S32: 110 | T32: Parâmetros de Custos Operacionais | U32: CO10_Vs_Yrdist_a | AA32: 1000040 | AB32: 2023 | AC32: ESS | AD32: Outros | AE32: Despesas com Conselho de Consumidores | AF32: 610531905 | AG32: 0 | AK32: 2022 | AL32: 22838 | AM32: IPCA | AN32: 0.1161239546
B33: CVA PROINFA | C33: 7419647.716 | G33: Data 4CRT | I33: 46215 | L33: 46508 | M33: 139.0092422 | N33: 17.66 | O33: 0.05425644814 | P33: 61775.80845 | S33: 111 | T33: Parâmetros de Custos Operacionais | U33: CO11_Vs_Yralta | AA33: 1000040 | AB33: 2023 | AC33: ESS | AD33: Outros | AE33: Comunicação e Reprografia | AF33: 610531907 | AG33: 2710715.68 | AK33: 2022 | AL33: 22838 | AM33: Parcela B | AN33: 499585097.4
B34: CVA TRANS. ITAIPU | C34: -4651615.671 | L34: 46539 | M34: 139.7343817 | N34: 17.66 | O34: 0.05425644814 | P34: 59783.04043 | S34: 112 | T34: Parâmetros de Custos Operacionais | U34: CO12_Vs_Ycons | AA34: 1000040 | AB34: 2023 | AC34: ESS | AD34: Outros | AE34: Contribuição Associativa - CCEE | AF34: 610531908 | AG34: 363535.93 | AK34: 2022 | AL34: 22838 | AM34: Receita Irrecuperável | AN34: 14323524.54
B35: CVA ENERGIA | C35: 60211700.48 | G35: Nome | H35: Valor | S35: 113 | T35: Parâmetros de Custos Operacionais | U35: CO13_Vs_Ymponderado | AA35: 1000040 | AB35: 2023 | AC35: ESS | AD35: Outros | AE35: Contribuição Associativa - ONS | AF35: 610531909 | AG35: 98038.36 | AK35: 2022 | AL35: 22838 | AM35: Revisão ou Reajuste (1-REVI,0-Reaj) | AN35: 0
B36: CVA CDE Covid TE | C36: -10805137.1 | G36: TUSDg Export DRP | H36: 0 | L36: Mês | M36: Potência | N36: Tarifa DRA | O36: Tarifa DRP | P36: Colunas1 | S36: 114 | T36: Parâmetros de Custos Operacionais | U36: CO14_Vs_Yd_perdas_dif2 | AA36: 1000040 | AB36: 2023 | AC36: ESS | AD36: Outros | AE36: (-) Créditos de Tributos Recuperáveis | AF36: 610531910 | AG36: 0 | AK36: 2022 | AL36: 22838 | AM36: SUPRIMENTO (Mercado TUSD) | AN36: 45389.623
G37: TUSDg ONS DRP | H37: 1356753.29 | L37: 45839 | M37: 145.0309986 | N37: 14961.37 | O37: 17208.16 | Q37: aguardar novas tarifas | S37: 115 | T37: Parâmetros de Custos Operacionais | U37: CO15_Vs_Yd_DEC_V8 | AA37: 1000040 | AB37: 2023 | AC37: ESS | AD37: Pessoal | AE37: Remuneração | AF37: 610532501 | AG37: 10575011.48 | AK37: 2022 | AL37: 22838 | AM37: TRANSPORTE TERCEIROS | AN37: 329931951.3
G38: TUSDg ONS DRA | H38: 1068173.7 | L38: 45870 | M38: 139.3680595 | N38: 14961.37 | O38: 17208.16 | S38: 116 | T38: Parâmetros de Custos Operacionais | U38: CO16_P_AT | AA38: 1000040 | AB38: 2023 | AC38: ESS | AD38: Pessoal | AE38: Encargos | AF38: 610532502 | AG38: 4191947.43 | AK38: 2023 | AL38: 23203 | AM38: ANEXO II | AN38: 0.08279603217
B39: Transporte | G39: TUSDg Export DRA | H39: 0 | L39: 45901 | M39: 136.5223615 | N39: 14961.37 | O39: 17208.16 | S39: 117 | T39: Parâmetros de Custos Operacionais | U39: CO17_P_MT | AA39: 1000040 | AB39: 2023 | AC39: ESS | AD39: Pessoal | AE39: Previdência Privada - Corrente | AF39: 610532503 | AG39: 534110.01 | AK39: 2023 | AL39: 23203 | AM39: CONSUMIDOR DISTRIBUIÇÃO | AN39: 75508.73
B40: Conexao | C40: 2059997.562 | L40: 45931 | M40: 129.4081165 | N40: 14961.37 | O40: 17208.16 | S40: 118 | T40: Parâmetros de Custos Operacionais | U40: CO18_P_BT | AA40: 1000040 | AB40: 2023 | AC40: ESS | AD40: Pessoal | AE40: Despesas Rescisórias | AF40: 610532506 | AG40: 0 | AK40: 2023 | AL40: 23203 | AM40: CONSUMIDOR LIVRE | AN40: 1377558.625
L41: 45962 | M41: 127.9852676 | N41: 14961.37 | O41: 17208.16 | S41: 119 | T41: Parâmetros de Custos Operacionais | U41: CO19_PMSO2013 | AA41: 1000040 | AB41: 2023 | AC41: ESS | AD41: Pessoal | AE41: Participação nos Lucros e Resultados - PLR | AF41: 610532507 | AG41: 3078405.44 | AK41: 2023 | AL41: 23203 | AM41: ENCARGO | AN41: 542305295
G42: Fator X | H42: Valor | L42: 45992 | M42: 125.7087092 | N42: 14961.37 | O42: 17208.16 | S42: 120 | T42: Parâmetros de Custos Operacionais | U42: CO20_Cont_Associativa | AA42: 1000040 | AB42: 2023 | AC42: ESS | AD42: Pessoal | AE42: Outros Benefícios - Corrente | AF42: 610532508 | AG42: 4739818.31 | AK42: 2023 | AL42: 23203 | AM42: ENERGIA | AN42: 841793164.8
L43: 46023 | M43: 128.5921734 | N43: 14961.37 | O43: 17208.16 | S43: 201 | T43: Parâmetros de Custos Operacionais | U43: pesoAT | AA43: 1000040 | AB43: 2023 | AC43: ESS | AD43: Pessoal | AE43: (-) Créditos de Tributos Recuperáveis | AF43: 610532510 | AG43: 0 | AK43: 2023 | AL43: 23203 | AM43: FATOR X | AN43: -0.007179037557
B44: Mercado | L44: 46054 | M44: 128.5921734 | N44: 14961.37 | O44: 17208.16 | S44: 202 | T44: Parâmetros de Custos Operacionais | U44: pesoMT | AA44: 1000040 | AB44: 2023 | AC44: ESS | AD44: Pessoal | AE44: Estagiários e programa de iniciação ao trabalho | AF44: 610532511 | AG44: 250170.4 | AK44: 2023 | AL44: 23203 | AM44: Fornecimento | AN44: 3086162.264
B45: RA0_MWh_Tusd | C45: 5045873.962 | L45: 46082 | M45: 128.5921734 | N45: 14961.37 | O45: 17208.16 | S45: 203 | T45: Parâmetros de Custos Operacionais | U45: pesoBT | AA45: 1000040 | AB45: 2023 | AC45: ESS | AD45: Pessoal | AE45: Outros | AF45: 610532599 | AG45: 0 | AK45: 2023 | AL45: 23203 | AM45: IGPM | AN45: -0.05209942451
B46: RA1_R$ | C46: 2702836134 | G46: DecFec Processo Anterior | H46: Valor | L46: 46113 | M46: 133.5736079 | N46: 14961.37 | O46: 17208.16 | S46: 401 | T46: Duração do Próximo Ciclo de Revisão | V46: 5 | AA46: 1000040 | AB46: 2023 | AC46: ESS | AD46: Pessoal | AE46: Honorários e Encargos (Diretoria e Conselho) | AF46: 610532601 | AG46: 3400267.57 | AK46: 2023 | AL46: 23203 | AM46: IPCA | AN46: 0.03550978995
B47: Proinfa | L47: 46143 | M47: 136.4201419 | N47: 14961.37 | O47: 17208.16 | AA47: 1000040 | AB47: 2023 | AC47: ESS | AD47: Pessoal | AE47: Benefícios dos Administradores | AF47: 610532602 | AG47: 347821.59 | AK47: 2023 | AL47: 23203 | AM47: Parcela B | AN47: 503233843.8
B48: 2026 | C48: 65842.67688 | L48: 46174 | M48: 137.1317754 | N48: 14961.37 | O48: 17208.16 | AA48: 1000040 | AB48: 2023 | AC48: ESS | AD48: Pessoal | AE48: (-) Créditos de Tributos Recuperáveis | AF48: 610532610 | AG48: 0 | AK48: 2023 | AL48: 23203 | AM48: Receita Irrecuperável | AN48: 12710050.98
B49: Detalhamento de Encargos ESS e CDE | AA49: 1000040 | AB49: 2023 | AC49: ESS | AD49: Materiais | AE49: Materiais | AF49: 610532701 | AG49: 8087701.18 | AK49: 2023 | AL49: 23203 | AM49: Revisão ou Reajuste (1-REVI,0-Reaj) | AN49: 0
L50: Dado | M50: Valor | N50: Início | O50: Fim | AA50: 1000040 | AB50: 2023 | AC50: ESS | AD50: Materiais | AE50: (-) Créditos de Tributos Recuperáveis | AF50: 610532710 | AG50: 0 | AK50: 2023 | AL50: 23203 | AM50: SUPRIMENTO (Mercado TUSD) | AN50: 41448.611
L51: MUST | M51: 7170 | N51: 45839 | O51: 46203 | AA51: 1000040 | AB51: 2023 | AC51: ESS | AD51: Materiais | AE51: Outros | AF51: 610532799 | AG51: 0 | AK51: 2023 | AL51: 23203 | AM51: SUPRIMENTO (via Rede Básica) | AN51: 0
G52: Dados de dólar | H52: Valor | L52: MUST | M52: 6570 | N52: 46204 | O52: 46568 | AA52: 1000040 | AB52: 2023 | AC52: ESS | AD52: Serviços | AE52: Serviços de Terceiros | AF52: 610532801 | AG52: 72000705.93 | AK52: 2023 | AL52: 23203 | AM52: TRANSPORTE TERCEIROS | AN52: 430423807.9
B53: Ciclo de Revisão | C53: 5 | G53: Dólar médio | H53: 5.067966667 | L53: Potência Max | M53: 10193 | N53: 45658 | O53: 46022 | AA53: 1000040 | AB53: 2023 | AC53: ESS | AD53: Serviços | AE53: (-) Créditos de Tributos Recuperáveis | AF53: 610532810 | AG53: 0 | AK53: 2024 | AL53: 23569 | AM53: ANEXO II | AN53: -0.0265150646
G54: Data Inicial | H54: 46161 | L54: Potência Max | M54: 9635 | N54: 46023 | O54: 46387 | AA54: 1000040 | AB54: 2023 | AC54: ESS | AD54: Seguros | AE54: Seguros | AF54: 610533001 | AG54: 1601275.32 | AK54: 2024 | AL54: 23569 | AM54: CONSUMIDOR DISTRIBUIÇÃO | AN54: 77666.865
G55: Data Final | H55: 46190 | AA55: 1000040 | AB55: 2023 | AC55: ESS | AD55: Seguros | AE55: (-) Créditos de Tributos Recuperáveis | AF55: 610533010 | AG55: 0 | AK55: 2024 | AL55: 23569 | AM55: CONSUMIDOR LIVRE | AN55: 1559370.807
L56: Dados de perda | M56: Valor | O56: Agente | P56: Ressarcimento P&D | AA56: 1000040 | AB56: 2023 | AC56: ESS | AD56: Seguros | AE56: Outros | AF56: 610533099 | AG56: 0 | AK56: 2024 | AL56: 23569 | AM56: ENCARGO | AN56: 526229571.7
B57: Subsídios Concedidos (sem ajuste) - Valor Mensal | L57: Perdas RB | M57: 48935.42389 | AA57: 1000040 | AB57: 2023 | AC57: ESS | AD57: Tributos | AE57: Tributos | AF57: 610533601 | AG57: 1407905.92 | AK57: 2024 | AL57: 23569 | AM57: ENERGIA | AN57: 906833304.5
B58: Mês de Início | C58: Carga Fonte | D58: Geração | E58: Distribuição | F58: Água, Esgoto e Saneamento | G58: Rural | H58: Irrigante/Aquicultor | I58: SCEE | J58: Lei 14299/20222 | L58: Perdas DITs | M58: 91246.75944 | AA58: 1000040 | AB58: 2023 | AC58: ESS | AD58: Outros | AE58: Indenização por Perdas e Danos | AF58: 610533901 | AG58: 0 | AK58: 2024 | AL58: 23569 | AM58: FATOR X | AN58: -0.01164309734
B59: 2025-07-01 | C59: 9762531.795 | D59: 695271.0717 | E59: 0 | F59: 0 | G59: 0 | H59: 1005595.013 | I59: 4614692.081 | J59: 0 | AA59: 1000040 | AB59: 2023 | AC59: ESS | AD59: Outros | AE59: Consumo Próprio de Energia | AF59: 610533902 | AG59: 0 | AK59: 2024 | AL59: 23569 | AM59: Fornecimento | AN59: 3350543.419
AA60: 1000040 | AB60: 2023 | AC60: ESS | AD60: Outros | AE60: Taxa de Arrecadação | AF60: 610533903 | AG60: 0 | AK60: 2024 | AL60: 23569 | AM60: IGPM | AN60: 0.02450258287
AA61: 1000040 | AB61: 2023 | AC61: ESS | AD61: Outros | AE61: Taxas Bancárias | AF61: 610533904 | AG61: 0 | AK61: 2024 | AL61: 23569 | AM61: IPCA | AN61: 0.04333966471
L62: Informações de DR1 | AA62: 1000040 | AB62: 2023 | AC62: ESS | AD62: Outros | AE62: Comunicação e Reprografia | AF62: 610533907 | AG62: 4809172.78 | AK62: 2024 | AL62: 23569 | AM62: Parcela B | AN62: 601137560.9
L63: fator PB1 | M63: 1.089535448 | AA63: 1000040 | AB63: 2023 | AC63: ESS | AD63: Outros | AE63: Contribuição Associativa - CCEE | AF63: 610533908 | AG63: 0 | AK63: 2024 | AL63: 23569 | AM63: Receita Irrecuperável | AN63: 13024842.45
L64: Informações de RI | AA64: 1000040 | AB64: 2023 | AC64: ESS | AD64: Outros | AE64: Contribuição Associativa - ONS | AF64: 610533909 | AG64: 0 | AK64: 2024 | AL64: 23569 | AM64: Revisão ou Reajuste (1-REVI,0-Reaj) | AN64: 0
B65: Data | C65: Tipo | D65: Valor | E65: Valor IGPM | F65: Valor IPCA | G65: EixoRef | AA65: 1000040 | AB65: 2023 | AC65: ESS | AD65: Outros | AE65: (-) Créditos de Tributos Recuperáveis | AF65: 610533910 | AG65: 0 | AK65: 2024 | AL65: 23569 | AM65: SUPRIMENTO (Mercado TUSD) | AN65: 27289.345
B66: =DATE(YEAR(CAPA!C10),MONTH(CAPA!C10),1) -> 2026-07-01 | C66: =IF(CAPA!C7="Revisão",1,0) -> 1 | D66: =Resultado!L11 -> 814.2444874 | E66: =IFERROR(VLOOKUP(EDATE($B66,-1),Índices!$B$6:$F$500,2,FALSE)/VLOOKUP(EDATE(MIN($B$67:$B$81),-1),Índices!$B$6:$F$500,2,FALSE)*VLOOKUP(MIN($B$67:$B$81),$B$67:$D$81,3,FALSE),0) -> 0 | F66: =IFERROR(VLOOKUP(EDATE($B66,-1),Índices!$B$6:$F$500,3,FALSE)/VLOOKUP(EDATE(MIN($B$67:$B$81),-1),Índices!$B$6:$F$500,3,FALSE)*VLOOKUP(MIN($B$67:$B$81),$B$67:$D$81,3,FALSE),0) -> 0 | G66: =IF(B66<>"",150+1,"") -> 151 | L66: Tipo | M66: % RI | O66: Data | P66: Fat Bandeiras | AA66: 1000040 | AB66: 2023 | AC66: ESS | AD66: Alienação | AE66: Ganhos na Alienação de Bens Reversíveis | AF66: 611112203 | AG66: 0 | AK66: 2024 | AL66: 23569 | AM66: SUPRIMENTO (via Rede Básica) | AN66: 0
L67: PctRIResidencial | M67: 0.0064 | O67: 45839 | P67: 9044872.36 | AA67: 1000040 | AB67: 2023 | AC67: ESS | AD67: Desativação | AE67: Ganhos na Desativação de Bens Reversíveis | AF67: 611112403 | AG67: 0 | AK67: 2024 | AL67: 23569 | AM67: TRANSPORTE TERCEIROS | AN67: 441784205.1
L68: PctRIIndustrial | M68: 0.0035 | O68: 45870 | P68: 12542137.18 | AA68: 1000040 | AB68: 2023 | AC68: ESS | AD68: Desativação | AE68: Perdas na Desativação de Bens Reversíveis | AF68: 611512003 | AG68: 5217075.5 | AK68: 2025 | AL68: 23934 | AM68: ANEXO II | AN68: 0.1137924044
L69: PctRICOMERCIAL | M69: 0.004 | O69: 45901 | P69: 17164607.9 | AA69: 1000040 | AB69: 2023 | AC69: ESS | AD69: Alienação | AE69: Perdas na Alienação de Bens Reversíveis | AF69: 611512203 | AG69: -2106983.62 | AK69: 2025 | AL69: 23934 | AM69: CONSUMIDOR DISTRIBUIÇÃO | AN69: 78195.055
L70: PctRIRURAL | M70: 0.002 | O70: 45931 | P70: 13884750.25 | AA70: 1000040 | AB70: 2024 | AC70: ESS | AD70: Pessoal | AE70: Remuneração | AF70: 610530501 | AG70: 21622285.98 | AK70: 2025 | AL70: 23934 | AM70: CONSUMIDOR LIVRE | AN70: 1743928.96
L71: PctRILUMPUBLICA | M71: 0 | O71: 45962 | P71: 9723857.76 | AA71: 1000040 | AB71: 2024 | AC71: ESS | AD71: Pessoal | AE71: Encargos | AF71: 610530502 | AG71: 21250384.45 | AK71: 2025 | AL71: 23934 | AM71: ENCARGO | AN71: 719856369.1
L72: PctRIPODERPUBLICO | M72: 0.0001 | O72: 45992 | P72: 6962287.66 | AA72: 1000040 | AB72: 2024 | AC72: ESS | AD72: Pessoal | AE72: Previdência Privada - Corrente | AF72: 610530503 | AG72: 2109450.34 | AK72: 2025 | AL72: 23934 | AM72: ENERGIA | AN72: 877636028
L73: PctRISERVPUBLICO | M73: 0 | O73: 46023 | P73: 2169484.58 | AA73: 1000040 | AB73: 2024 | AC73: ESS | AD73: Pessoal | AE73: Despesas Rescisórias | AF73: 610530506 | AG73: 0 | AK73: 2025 | AL73: 23934 | AM73: FATOR X | AN73: -0.01094585804
O74: 46054 | P74: 65 | AA74: 1000040 | AB74: 2024 | AC74: ESS | AD74: Pessoal | AE74: Participação nos Lucros e Resultados - PLR | AF74: 610530507 | AG74: 11421408.14 | AK74: 2025 | AL74: 23934 | AM74: Fornecimento | AN74: 3182857.078
L75: Tipo | M75: % RI Anterior | O75: 46082 | P75: 7460.73 | AA75: 1000040 | AB75: 2024 | AC75: ESS | AD75: Pessoal | AE75: Outros Benefícios - Corrente | AF75: 610530508 | AG75: 27631463.42 | AK75: 2025 | AL75: 23934 | AM75: IGPM | AN75: 0.05795448646
L76: PctRIResidencial | M76: 0.0064 | O76: 46113 | P76: 2838.05 | AA76: 1000040 | AB76: 2024 | AC76: ESS | AD76: Pessoal | AE76: (-) Créditos de Tributos Recuperáveis | AF76: 610530510 | AG76: 0 | AK76: 2025 | AL76: 23934 | AM76: IPCA | AN76: 0.0538269051
L77: PctRIIndustrial | M77: 0.0035 | O77: 46143 | P77: 2838.05 | AA77: 1000040 | AB77: 2024 | AC77: ESS | AD77: Pessoal | AE77: Estagiários e Programas de Iniciação ao Trabalho | AF77: 610530511 | AG77: 637641.04 | AK77: 2025 | AL77: 23934 | AM77: Parcela B | AN77: 654467129
L78: PctRICOMERCIAL | M78: 0.004 | O78: 46174 | P78: 2838.05 | AA78: 1000040 | AB78: 2024 | AC78: ESS | AD78: Pessoal | AE78: Outros | AF78: 610530599 | AG78: 0 | AK78: 2025 | AL78: 23934 | AM78: Receita Irrecuperável | AN78: 15481475.1
L79: PctRIRURAL | M79: 0.002 | AA79: 1000040 | AB79: 2024 | AC79: ESS | AD79: Pessoal | AE79: Honorários e Encargos (Diretoria e Conselho) | AF79: 610530601 | AG79: 0 | AK79: 2025 | AL79: 23934 | AM79: Revisão ou Reajuste (1-REVI,0-Reaj) | AN79: 0
L80: PctRILUMPUBLICA | M80: 0 | AA80: 1000040 | AB80: 2024 | AC80: ESS | AD80: Pessoal | AE80: Benefícios dos Administradores | AF80: 610530602 | AG80: 0 | AK80: 2025 | AL80: 23934 | AM80: SUPRIMENTO (Mercado TUSD) | AN80: 40892.869
L81: PctRIPODERPUBLICO | M81: 0.0001 | AA81: 1000040 | AB81: 2024 | AC81: ESS | AD81: Materiais | AE81: Materiais | AF81: 610530701 | AG81: 16367976.89 | AK81: 2025 | AL81: 23934 | AM81: SUPRIMENTO (via Rede Básica) | AN81: 0
L82: PctRISERVPUBLICO | M82: 0 | AA82: 1000040 | AB82: 2024 | AC82: ESS | AD82: Materiais | AE82: (-) Créditos de Tributos Recuperáveis | AF82: 610530710 | AG82: -421421.88 | AK82: 2025 | AL82: 23934 | AM82: TRANSPORTE TERCEIROS | AN82: 435395132.7
AA83: 1000040 | AB83: 2024 | AC83: ESS | AD83: Materiais | AE83: Outros | AF83: 610530799 | AG83: 124904.27 | AK83: 2026 | AL83: 24131 | AM83: ANEXO II | AN83: 0.1299872536
B84: Tabela de Resumo de Montante DRP ano anterior/ Montante Apurado pelo Mercado | AA84: 1000040 | AB84: 2024 | AC84: ESS | AD84: Serviços | AE84: Serviços de Terceiros | AF84: 610530801 | AG84: 33261262.93 | AK84: 2026 | AL84: 24131 | AM84: CONSUMIDOR DISTRIBUIÇÃO | AN84: 0
B85: detalhe_grupo | C85: GrupoTarifa | D85: tipoBase | E85: tipofatura | F85: ValorCTAnterior_Sum | G85: ValorAnt_Sum | L85: Prcesso Anterior | N85: RTE | AA85: 1000040 | AB85: 2024 | AC85: ESS | AD85: Serviços | AE85: (-) Créditos de Tributos Recuperáveis | AF85: 610530810 | AG85: -1356015.08 | AK85: 2026 | AL85: 24131 | AM85: CONSUMIDOR LIVRE | AN85: 0
L86: MWh | M86: R$ | N86: MWh | O86: R$ | S86: DthEfetivaPagamento | T86: VlrGarantiaFinanceira | V86: Conta Escassez | W86: Valor | X86: Legislacao | AA86: 1000040 | AB86: 2024 | AC86: ESS | AD86: Seguros | AE86: Seguros | AF86: 610531001 | AG86: 0 | AK86: 2026 | AL86: 24131 | AM86: ENCARGO | AN86: 170650797.2
I87: BILATERAL | K87: valor | L87: 601848 | M87: 218950583.6 | S87: 45809 | T87: 79360.01 | AA87: 1000040 | AB87: 2024 | AC87: ESS | AD87: Seguros | AE87: (-) Créditos de Tributos Recuperáveis | AF87: 610531010 | AG87: 0 | AK87: 2026 | AL87: 24131 | AM87: ENERGIA | AN87: 944754283.7
I88: CCEAR-DISP | J88: Alternativa | K88: valor | L88: 51293.09572 | M88: 16243894.99 | S88: 45839 | T88: 83581.66 | AA88: 1000040 | AB88: 2024 | AC88: ESS | AD88: Seguros | AE88: Outros | AF88: 610531099 | AG88: 0 | AK88: 2026 | AL88: 24131 | AM88: FATOR X | AN88: 0.006139531123
I89: CCEAR-DISP | J89: Nova | K89: valor | L89: 440111.3118 | M89: 153641793.5 | S89: 45870 | T89: 83581.66 | AA89: 1000040 | AB89: 2024 | AC89: ESS | AD89: Tributos | AE89: Tributos | AF89: 610531601 | AG89: 898664.13 | AK89: 2026 | AL89: 24131 | AM89: Fornecimento | AN89: 1366853.09
I90: CCEAR-QTD | J90: Alternativa | K90: valor | L90: 4057.024 | M90: 1401600.665 | S90: 45901 | T90: 83581.66 | AA90: 1000040 | AB90: 2024 | AC90: ESS | AD90: Outros | AE90: Indenização por Perdas e Danos | AF90: 610531901 | AG90: 1549383.96 | AK90: 2026 | AL90: 24131 | AM90: IGPM | AN90: -0.01049131485
I91: CCEAR-QTD | J91: Belo Monte | K91: valor | L91: 478811.271 | M91: 88372366.49 | S91: 45931 | T91: 83581.66 | AA91: 1000040 | AB91: 2024 | AC91: ESS | AD91: Outros | AE91: Consumo Próprio de Energia | AF91: 610531902 | AG91: 4283002.78 | AK91: 2026 | AL91: 24131 | AM91: IPCA | AN91: 0.04264347581
I92: CCEAR-QTD | J92: Madeira | K92: valor | L92: 168323.488 | M92: 31747628.72 | S92: 45962 | T92: 83581.66 | AA92: 1000040 | AB92: 2024 | AC92: ESS | AD92: Outros | AE92: Taxa de Arrecadação | AF92: 610531903 | AG92: 0 | AK92: 2026 | AL92: 24131 | AM92: Parcela B | AN92: 263234255.5
I93: CCEAR-QTD | J93: Nova | K93: valor | L93: 501042.6802 | M93: 110615272.4 | S93: 45992 | T93: 83581.66 | AA93: 1000040 | AB93: 2024 | AC93: ESS | AD93: Outros | AE93: Taxas Bancárias | AF93: 610531904 | AG93: 0 | AK93: 2026 | AL93: 24131 | AM93: Receita Irrecuperável | AN93: 6898785.748
I94: CCEN | K94: valor | L94: 139605.4727 | M94: 43101793.65 | S94: 46023 | T94: 83581.66 | AA94: 1000040 | AB94: 2024 | AC94: ESS | AD94: Outros | AE94: Despesas com Conselho de Consumidores | AF94: 610531905 | AG94: 0 | AK94: 2026 | AL94: 24131 | AM94: Revisão ou Reajuste (1-REVI,0-Reaj) | AN94: 0
I95: CCGF | K95: valor | L95: 500575.6871 | M95: 103851211.2 | S95: 46054 | T95: 83581.65 | AA95: 1000040 | AB95: 2024 | AC95: ESS | AD95: Outros | AE95: Comunicação e Reprografia | AF95: 610531907 | AG95: 1504963.85 | AK95: 2026 | AL95: 24131 | AM95: SUPRIMENTO (Mercado TUSD) | AN95: 0
I96: ITAIPU | K96: valor | L96: 697818.7831 | M96: 161473945.8 | S96: 46082 | T96: 83581.65 | AA96: 1000040 | AB96: 2024 | AC96: ESS | AD96: Outros | AE96: Contribuição Associativa - CCEE | AF96: 610531908 | AG96: 438135.72 | AK96: 2026 | AL96: 24131 | AM96: SUPRIMENTO (via Rede Básica) | AN96: 0
I97: PROINFA | K97: valor | L97: 73112.9519 | S97: 46113 | T97: 83581.65 | AA97: 1000040 | AB97: 2024 | AC97: ESS | AD97: Outros | AE97: Contribuição Associativa - ONS | AF97: 610531909 | AG97: 101342.17 | AK97: 2026 | AL97: 24131 | AM97: TRANSPORTE TERCEIROS | AN97: 40136200.7
I98: SOBRA/EXPOSIÇÃO | K98: valor | L98: -199586.6356 | M98: -51764063.02 | S98: 46143 | T98: 83581.65 | AA98: 1000040 | AB98: 2024 | AC98: ESS | AD98: Outros | AE98: (-) Créditos de Tributos Recuperáveis | AF98: 610531910 | AG98: 0
AA99: 1000040 | AB99: 2024 | AC99: ESS | AD99: Pessoal | AE99: Remuneração | AF99: 610532501 | AG99: 10373951.74
AA100: 1000040 | AB100: 2024 | AC100: ESS | AD100: Pessoal | AE100: Encargos | AF100: 610532502 | AG100: 5011845.47
AA101: 1000040 | AB101: 2024 | AC101: ESS | AD101: Pessoal | AE101: Previdência Privada - Corrente | AF101: 610532503 | AG101: 623687.12
AA102: 1000040 | AB102: 2024 | AC102: ESS | AD102: Pessoal | AE102: Despesas Rescisórias | AF102: 610532506 | AG102: 0
AA103: 1000040 | AB103: 2024 | AC103: ESS | AD103: Pessoal | AE103: Participação nos Lucros e Resultados - PLR | AF103: 610532507 | AG103: 5426576.75
AA104: 1000040 | AB104: 2024 | AC104: ESS | AD104: Pessoal | AE104: Outros Benefícios - Corrente | AF104: 610532508 | AG104: 5282712.33
V105: Empresa | W105: AT | X105: MT | Y105: BT | AA105: 1000040 | AB105: 2024 | AC105: ESS | AD105: Pessoal | AE105: (-) Créditos de Tributos Recuperáveis | AF105: 610532510 | AG105: 0
V106: 167 | W106: 0.02134 | X106: 0.35825 | Y106: 0.62041 | AA106: 1000040 | AB106: 2024 | AC106: ESS | AD106: Pessoal | AE106: Estagiários e programa de iniciação ao trabalho | AF106: 610532511 | AG106: 135609.27
V107: 102 | W107: 0.064 | X107: 0.32003 | Y107: 0.61596 | AA107: 1000040 | AB107: 2024 | AC107: ESS | AD107: Pessoal | AE107: Outros | AF107: 610532599 | AG107: 0
V108: 103 | W108: 0.02996 | X108: 0.27106 | Y108: 0.69898 | AA108: 1000040 | AB108: 2024 | AC108: ESS | AD108: Pessoal | AE108: Honorários e Encargos (Diretoria e Conselho) | AF108: 610532601 | AG108: 4315943.28
V109: 104 | W109: 0.07171 | X109: 0.2909 | Y109: 0.63739 | AA109: 1000040 | AB109: 2024 | AC109: ESS | AD109: Pessoal | AE109: Benefícios dos Administradores | AF109: 610532602 | AG109: 356537.53
V110: 105 | W110: 0.00823 | X110: 0.24677 | Y110: 0.745 | AA110: 1000040 | AB110: 2024 | AC110: ESS | AD110: Pessoal | AE110: (-) Créditos de Tributos Recuperáveis | AF110: 610532610 | AG110: 0
I111: Agente | J111: idagente | K111: indexador | L111: database | M111: RAP do ciclo | N111: Colunas1 | O111: RAP atualizada | V111: 165 | W111: 0.00795 | X111: 0.22554 | Y111: 0.76651 | AA111: 1000040 | AB111: 2024 | AC111: ESS | AD111: Materiais | AE111: Materiais | AF111: 610532701 | AG111: 6048196.85
O112: =M112*VLOOKUP(CAPA!C15,Índices!$B$6:$F$626,IF(BD!K112="IPCA",3,2),FALSE)/VLOOKUP(L112,Índices!$B$6:$F$626,IF(BD!K112="IPCA",3,2),FALSE) ->  | V112: 108 | W112: 0.06098 | X112: 0.1711 | Y112: 0.76792 | AA112: 1000040 | AB112: 2024 | AC112: ESS | AD112: Materiais | AE112: (-) Créditos de Tributos Recuperáveis | AF112: 610532710 | AG112: 0
O113: =M113*VLOOKUP(CAPA!C16,Índices!$B$6:$F$626,IF(BD!K113="IPCA",3,2),FALSE)/VLOOKUP(L113,Índices!$B$6:$F$626,IF(BD!K113="IPCA",3,2),FALSE) ->  | V113: 109 | W113: 0.01034 | X113: 0.24366 | Y113: 0.746 | AA113: 1000040 | AB113: 2024 | AC113: ESS | AD113: Materiais | AE113: Outros | AF113: 610532799 | AG113: 0
O114: =M114*VLOOKUP(CAPA!C17,Índices!$B$6:$F$626,IF(BD!K114="IPCA",3,2),FALSE)/VLOOKUP(L114,Índices!$B$6:$F$626,IF(BD!K114="IPCA",3,2),FALSE) ->  | V114: 110 | W114: 0.01165 | X114: 0.24322 | Y114: 0.74513 | AA114: 1000040 | AB114: 2024 | AC114: ESS | AD114: Serviços | AE114: Serviços de Terceiros | AF114: 610532801 | AG114: 77353686.35
O115: =M115*VLOOKUP(CAPA!C18,Índices!$B$6:$F$626,IF(BD!K115="IPCA",3,2),FALSE)/VLOOKUP(L115,Índices!$B$6:$F$626,IF(BD!K115="IPCA",3,2),FALSE) ->  | V115: 111 | W115: 0.03791 | X115: 0.37961 | Y115: 0.58248 | AA115: 1000040 | AB115: 2024 | AC115: ESS | AD115: Serviços | AE115: (-) Créditos de Tributos Recuperáveis | AF115: 610532810 | AG115: 0
O116: =M116*VLOOKUP(CAPA!C19,Índices!$B$6:$F$626,IF(BD!K116="IPCA",3,2),FALSE)/VLOOKUP(L116,Índices!$B$6:$F$626,IF(BD!K116="IPCA",3,2),FALSE) ->  | V116: 112 | W116: 0.02273 | X116: 0.26361 | Y116: 0.71367 | AA116: 1000040 | AB116: 2024 | AC116: ESS | AD116: Seguros | AE116: Seguros | AF116: 610533001 | AG116: 1732706.13
O117: =M117*VLOOKUP(CAPA!C20,Índices!$B$6:$F$626,IF(BD!K117="IPCA",3,2),FALSE)/VLOOKUP(L117,Índices!$B$6:$F$626,IF(BD!K117="IPCA",3,2),FALSE) ->  | V117: 113 | W117: 0.01263 | X117: 0.23345 | Y117: 0.75392 | AA117: 1000040 | AB117: 2024 | AC117: ESS | AD117: Seguros | AE117: (-) Créditos de Tributos Recuperáveis | AF117: 610533010 | AG117: 0
O118: =M118*VLOOKUP(CAPA!C21,Índices!$B$6:$F$626,IF(BD!K118="IPCA",3,2),FALSE)/VLOOKUP(L118,Índices!$B$6:$F$626,IF(BD!K118="IPCA",3,2),FALSE) ->  | V118: 114 | W118: 0.01726 | X118: 0.23794 | Y118: 0.7448 | AA118: 1000040 | AB118: 2024 | AC118: ESS | AD118: Seguros | AE118: Outros | AF118: 610533099 | AG118: 0
O119: =M119*VLOOKUP(CAPA!C22,Índices!$B$6:$F$626,IF(BD!K119="IPCA",3,2),FALSE)/VLOOKUP(L119,Índices!$B$6:$F$626,IF(BD!K119="IPCA",3,2),FALSE) ->  | V119: 115 | W119: 0.00993 | X119: 0.23087 | Y119: 0.7592 | AA119: 1000040 | AB119: 2024 | AC119: ESS | AD119: Tributos | AE119: Tributos | AF119: 610533601 | AG119: 647550.18
O120: =M120*VLOOKUP(CAPA!C23,Índices!$B$6:$F$626,IF(BD!K120="IPCA",3,2),FALSE)/VLOOKUP(L120,Índices!$B$6:$F$626,IF(BD!K120="IPCA",3,2),FALSE) ->  | S120: iddet1 | T120: valor | V120: 116 | W120: 0.00806 | X120: 0.16835 | Y120: 0.82359 | AA120: 1000040 | AB120: 2024 | AC120: ESS | AD120: Outros | AE120: Indenização por Perdas e Danos | AF120: 610533901 | AG120: 100
O121: =M121*VLOOKUP(CAPA!C24,Índices!$B$6:$F$626,IF(BD!K121="IPCA",3,2),FALSE)/VLOOKUP(L121,Índices!$B$6:$F$626,IF(BD!K121="IPCA",3,2),FALSE) ->  | S121: 56-Datalimite_D-25 | T121: 46191 | V121: 117 | W121: 0.03028 | X121: 0.29131 | Y121: 0.67841 | AA121: 1000040 | AB121: 2024 | AC121: ESS | AD121: Outros | AE121: Consumo Próprio de Energia | AF121: 610533902 | AG121: 0
O122: =M122*VLOOKUP(CAPA!C25,Índices!$B$6:$F$626,IF(BD!K122="IPCA",3,2),FALSE)/VLOOKUP(L122,Índices!$B$6:$F$626,IF(BD!K122="IPCA",3,2),FALSE) ->  | S122: 57-DthEfetivaPagamento | T122: 46157 | V122: 118 | W122: 0.04215 | X122: 0.2081 | Y122: 0.74975 | AA122: 1000040 | AB122: 2024 | AC122: ESS | AD122: Outros | AE122: Taxa de Arrecadação | AF122: 610533903 | AG122: 0
O123: =M123*VLOOKUP(CAPA!C26,Índices!$B$6:$F$626,IF(BD!K123="IPCA",3,2),FALSE)/VLOOKUP(L123,Índices!$B$6:$F$626,IF(BD!K123="IPCA",3,2),FALSE) ->  | S123: 58-DthCompetenciaPagamento | T123: 46113 | V123: 119 | W123: 0.01807 | X123: 0.11713 | Y123: 0.8648 | AA123: 1000040 | AB123: 2024 | AC123: ESS | AD123: Outros | AE123: Taxas Bancárias | AF123: 610533904 | AG123: 0
O124: =M124*VLOOKUP(CAPA!C27,Índices!$B$6:$F$626,IF(BD!K124="IPCA",3,2),FALSE)/VLOOKUP(L124,Índices!$B$6:$F$626,IF(BD!K124="IPCA",3,2),FALSE) ->  | V124: 120 | W124: - | X124: 0.17688 | Y124: 0.82312 | AA124: 1000040 | AB124: 2024 | AC124: ESS | AD124: Outros | AE124: Comunicação e Reprografia | AF124: 610533907 | AG124: 4910126.95
O125: =M125*VLOOKUP(CAPA!C28,Índices!$B$6:$F$626,IF(BD!K125="IPCA",3,2),FALSE)/VLOOKUP(L125,Índices!$B$6:$F$626,IF(BD!K125="IPCA",3,2),FALSE) ->  | V125: 123 | W125: - | X125: 0.13612 | Y125: 0.86388 | AA125: 1000040 | AB125: 2024 | AC125: ESS | AD125: Outros | AE125: Contribuição Associativa - CCEE | AF125: 610533908 | AG125: 0
O126: =M126*VLOOKUP(CAPA!C29,Índices!$B$6:$F$626,IF(BD!K126="IPCA",3,2),FALSE)/VLOOKUP(L126,Índices!$B$6:$F$626,IF(BD!K126="IPCA",3,2),FALSE) ->  | V126: 166 | W126: 0.04257 | X126: 0.29652 | Y126: 0.66092 | AA126: 1000040 | AB126: 2024 | AC126: ESS | AD126: Outros | AE126: Contribuição Associativa - ONS | AF126: 610533909 | AG126: 0
O127: =M127*VLOOKUP(CAPA!C30,Índices!$B$6:$F$626,IF(BD!K127="IPCA",3,2),FALSE)/VLOOKUP(L127,Índices!$B$6:$F$626,IF(BD!K127="IPCA",3,2),FALSE) ->  | V127: 128 | W127: - | X127: 0.40427 | Y127: 0.59573 | AA127: 1000040 | AB127: 2024 | AC127: ESS | AD127: Outros | AE127: (-) Créditos de Tributos Recuperáveis | AF127: 610533910 | AG127: 0
O128: =M128*VLOOKUP(CAPA!C31,Índices!$B$6:$F$626,IF(BD!K128="IPCA",3,2),FALSE)/VLOOKUP(L128,Índices!$B$6:$F$626,IF(BD!K128="IPCA",3,2),FALSE) ->  | V128: 129 | W128: 0.02905 | X128: 0.24895 | Y128: 0.722 | AA128: 1000040 | AB128: 2024 | AC128: ESS | AD128: Alienação | AE128: Ganhos na Alienação de Bens Reversíveis | AF128: 611112203 | AG128: 0
O129: =M129*VLOOKUP(CAPA!C32,Índices!$B$6:$F$626,IF(BD!K129="IPCA",3,2),FALSE)/VLOOKUP(L129,Índices!$B$6:$F$626,IF(BD!K129="IPCA",3,2),FALSE) ->  | V129: 130 | W129: 0.0175 | X129: 0.14397 | Y129: 0.83853 | AA129: 1000040 | AB129: 2024 | AC129: ESS | AD129: Desativação | AE129: Ganhos na Desativação de Bens Reversíveis | AF129: 611112403 | AG129: 0
O130: =M130*VLOOKUP(CAPA!C33,Índices!$B$6:$F$626,IF(BD!K130="IPCA",3,2),FALSE)/VLOOKUP(L130,Índices!$B$6:$F$626,IF(BD!K130="IPCA",3,2),FALSE) ->  | S130: Nível | T130: Mercado Faturado A-6 | V130: 131 | W130: - | X130: 0.30099 | Y130: 0.69901 | AA130: 1000040 | AB130: 2024 | AC130: ESS | AD130: Desativação | AE130: Perdas na Desativação de Bens Reversíveis | AF130: 611512003 | AG130: 17609460.97
O131: =M131*VLOOKUP(CAPA!C34,Índices!$B$6:$F$626,IF(BD!K131="IPCA",3,2),FALSE)/VLOOKUP(L131,Índices!$B$6:$F$626,IF(BD!K131="IPCA",3,2),FALSE) ->  | S131: AT | T131: 373498.073 | V131: 132 | W131: 0.02757 | X131: 0.26424 | Y131: 0.70819 | AA131: 1000040 | AB131: 2024 | AC131: ESS | AD131: Alienação | AE131: Perdas na Alienação de Bens Reversíveis | AF131: 611512203 | AG131: 4313412.28
O132: =M132*VLOOKUP(CAPA!C35,Índices!$B$6:$F$626,IF(BD!K132="IPCA",3,2),FALSE)/VLOOKUP(L132,Índices!$B$6:$F$626,IF(BD!K132="IPCA",3,2),FALSE) ->  | S132: BT | T132: 2652726.177 | V132: 133 | W132: 0.01856 | X132: 0.19536 | Y132: 0.78608 | AA132: 1000040 | AB132: 2025 | AC132: ESS | AD132: Pessoal | AE132: Remuneração | AF132: 610530501 | AG132: 22331988.91
S133: MT | T133: 1571148.002 | V133: 135 | W133: 0.04788 | X133: 0.27054 | Y133: 0.68158 | AA133: 1000040 | AB133: 2025 | AC133: ESS | AD133: Pessoal | AE133: Encargos | AF133: 610530502 | AG133: 23198634.54
V134: 136 | W134: 0.06732 | X134: 0.35547 | Y134: 0.57721 | AA134: 1000040 | AB134: 2025 | AC134: ESS | AD134: Pessoal | AE134: Previdência Privada - Corrente | AF134: 610530503 | AG134: 2389188.9
V135: 138 | W135: - | X135: 0.07651 | Y135: 0.92349 | AA135: 1000040 | AB135: 2025 | AC135: ESS | AD135: Pessoal | AE135: Despesas Rescisórias | AF135: 610530506 | AG135: 0
V136: 139 | W136: - | X136: 0.35483 | Y136: 0.64517 | AA136: 1000040 | AB136: 2025 | AC136: ESS | AD136: Pessoal | AE136: Participação nos Lucros e Resultados - PLR | AF136: 610530507 | AG136: 8743695.82
V137: 140 | W137: 0.01004 | X137: 0.21058 | Y137: 0.77938 | AA137: 1000040 | AB137: 2025 | AC137: ESS | AD137: Pessoal | AE137: Outros Benefícios - Corrente | AF137: 610530508 | AG137: 31730266.87
V138: 143 | W138: - | X138: 0.20409 | Y138: 0.79591 | AA138: 1000040 | AB138: 2025 | AC138: ESS | AD138: Pessoal | AE138: (-) Créditos de Tributos Recuperáveis | AF138: 610530510 | AG138: 0
V139: 144 | W139: - | X139: 0.48131 | Y139: 0.51869 | AA139: 1000040 | AB139: 2025 | AC139: ESS | AD139: Pessoal | AE139: Estagiários e Programas de Iniciação ao Trabalho | AF139: 610530511 | AG139: 947148.9
A140: NumBar | B140: Nome Conexão | C140: Tensão | D140: Posto Tarifário | E140: Tarifas RB - DRA | F140: Tarifa RB - DRP | G140: Tarifas Fronteira - DRA | H140: Tarifa Fronteira - DRP | I140: M01 | J140: M02 | K140: M03 | L140: M04 | M140: M05 | N140: M06 | O140: M07 | P140: M08 | Q140: M09 | R140: M10 | S140: M11 | T140: M12 | V140: 145 | W140: 0.03725 | X140: 0.29306 | Y140: 0.66969 | AA140: 1000040 | AB140: 2025 | AC140: ESS | AD140: Pessoal | AE140: Outros | AF140: 610530599 | AG140: 0
A141: SPUFA-138 | B141: ALTO ALEGRE - 138 kV (A) | C141: 138.0 | D141: Ponta | E141: 6560 | F141: 7050 | G141: 6560 | H141: 6780 | I141: 3 | J141: 3 | K141: 3 | L141: 3 | M141: 3 | N141: 3 | O141: 3 | P141: 3 | Q141: 3 | R141: 3 | S141: 3 | T141: 3 | W141: - | X141: 0.14124 | Y141: 0.85876 | AA141: 1000040 | AB141: 2025 | AC141: ESS | AD141: Pessoal | AE141: Honorários e Encargos (Diretoria e Conselho) | AF141: 610530601 | AG141: 94332.52
A142: SPUFA-138 | B142: ALTO ALEGRE - 138 kV (A) - FLEXÍVEL | C142: 138.0 | D142: Ponta | F142: 7128.333333 | H142: 6855.333333 | I142: 0 | J142: 0 | K142: 0.03333333333 | L142: 0.03333333333 | M142: 0 | N142: 0 | O142: 0 | P142: 0 | Q142: 0 | R142: 0 | S142: 0 | T142: 0 | V142: 147 | W142: - | X142: 0.20977 | Y142: 0.79023 | AA142: 1000040 | AB142: 2025 | AC142: ESS | AD142: Pessoal | AE142: Benefícios dos Administradores | AF142: 610530602 | AG142: 0
A143: SPASS188 | B143: ASSIS I - 88 kV (A) | C143: 88.0 | D143: Ponta | E143: 7390 | F143: 8100 | G143: 6560 | H143: 6780 | I143: 44.7 | J143: 44.7 | K143: 44.7 | L143: 44.7 | M143: 44.7 | N143: 44.7 | O143: 49.6 | P143: 49.6 | Q143: 49.6 | R143: 49.6 | S143: 49.6 | T143: 49.6 | V143: 148 | W143: 0.03455 | X143: 0.23757 | Y143: 0.72788 | AA143: 1000040 | AB143: 2025 | AC143: ESS | AD143: Materiais | AE143: Materiais | AF143: 610530701 | AG143: 15485203.11
A144: SPASS388 | B144: ASSIS III - 88 kV (A) | C144: 88.0 | D144: Ponta | E144: 7380 | F144: 8090 | G144: 6560 | H144: 6780 | I144: 34.5 | J144: 34.5 | K144: 34.5 | L144: 34.5 | M144: 34.5 | N144: 34.5 | O144: 37.9 | P144: 37.9 | Q144: 37.9 | R144: 37.9 | S144: 37.9 | T144: 37.9 | V144: 149 | W144: - | X144: 0.17399 | Y144: 0.82601 | AA144: 1000040 | AB144: 2025 | AC144: ESS | AD144: Materiais | AE144: (-) Créditos de Tributos Recuperáveis | AF144: 610530710 | AG144: -453923.28
A145: SPBAST138 | B145: BASTOS - 138 kV (A) | C145: 138.0 | D145: Ponta | E145: 6650 | F145: 7130 | G145: 6560 | H145: 6780 | I145: 19.8 | J145: 19.8 | K145: 19.8 | L145: 19.8 | M145: 19.8 | N145: 19.8 | O145: 21.2 | P145: 21.2 | Q145: 21.2 | R145: 21.2 | S145: 21.2 | T145: 21.2 | V145: 150 | W145: 0.03635 | X145: 0.17413 | Y145: 0.78952 | AA145: 1000040 | AB145: 2025 | AC145: ESS | AD145: Materiais | AE145: Outros | AF145: 610530799 | AG145: 606057.21
A146: SPBRB-138 | B146: BORBOREMA - 138 kV (A) | C146: 138.0 | D146: Ponta | E146: 7070 | F146: 7550 | G146: 6560 | H146: 6780 | I146: 23.9 | J146: 23.9 | K146: 23.9 | L146: 23.9 | M146: 23.9 | N146: 23.9 | O146: 23.9 | P146: 23.9 | Q146: 23.9 | R146: 23.9 | S146: 23.9 | T146: 23.9 | V146: 151 | W146: 0.02735 | X146: 0.28351 | Y146: 0.68915 | AA146: 1000040 | AB146: 2025 | AC146: ESS | AD146: Serviços | AE146: Serviços de Terceiros | AF146: 610530801 | AG146: 41258219.31
A147: SPBRP-138 | B147: BRA. PAULISTA - 138 kV (A) | C147: 138.0 | D147: Ponta | E147: 7660 | F147: 8140 | G147: 6560 | H147: 6780 | I147: 208.5 | J147: 208.5 | K147: 214 | L147: 214 | M147: 214 | N147: 214 | O147: 215.4 | P147: 215.4 | Q147: 215.4 | R147: 215.4 | S147: 215.4 | T147: 215.4 | V147: 152 | W147: 0.00215 | X147: 0.1412 | Y147: 0.85665 | AA147: 1000040 | AB147: 2025 | AC147: ESS | AD147: Serviços | AE147: (-) Créditos de Tributos Recuperáveis | AF147: 610530810 | AG147: -1269387.4
A148: SPBRT-138-A | B148: BRA. PAULISTA 3138kVA | C148: 138.0 | D148: Ponta | E148: 7660 | F148: 8140 | G148: 6560 | H148: 6780 | I148: 0 | J148: 0 | K148: 0 | L148: 0 | M148: 0 | N148: 9.238709677 | O148: 17.9 | P148: 17.9 | Q148: 17.9 | R148: 17.9 | S148: 17.9 | T148: 17.9 | V148: 153 | W148: 0.03606 | X148: 0.17601 | Y148: 0.78793 | AA148: 1000040 | AB148: 2025 | AC148: ESS | AD148: Seguros | AE148: Seguros | AF148: 610531001 | AG148: 0
A149: SPBPER138-A | B149: BRANCO PERES138kVA | C149: 138.0 | D149: Ponta | E149: 6560 | F149: 7030 | G149: 6560 | H149: 6780 | I149: 4.285 | J149: 4.285 | K149: 4.285 | L149: 4.285 | M149: 4.285 | N149: 4.285 | O149: 4.285 | P149: 4.285 | Q149: 4.285 | R149: 4.285 | S149: 4.285 | T149: 4.285 | V149: 154 | W149: 0.12913 | X149: 0.26626 | Y149: 0.60462 | AA149: 1000040 | AB149: 2025 | AC149: ESS | AD149: Seguros | AE149: (-) Créditos de Tributos Recuperáveis | AF149: 610531010 | AG149: 0
A150: SPCDM-88 | B150: CANDIDO MOTA - 88 kV (A) | C150: 88.0 | D150: Ponta | E150: 7610 | F150: 8320 | G150: 6560 | H150: 6780 | I150: 19.5 | J150: 19.5 | K150: 19.5 | L150: 19.5 | M150: 19.5 | N150: 19.5 | O150: 20.7 | P150: 20.7 | Q150: 20.7 | R150: 20.7 | S150: 20.7 | T150: 20.7 | V150: 155 | W150: 0.04008 | X150: 0.23225 | Y150: 0.72768 | AA150: 1000040 | AB150: 2025 | AC150: ESS | AD150: Seguros | AE150: Outros | AF150: 610531099 | AG150: 0
A151: SPCPV-138 | B151: CAPIVARA - 138 kV (A) | C151: 138.0 | D151: Ponta | E151: 6750 | F151: 7340 | G151: 10 | H151: 10 | I151: 6.4 | J151: 6.4 | K151: 6.4 | L151: 6.4 | M151: 6.4 | N151: 6.4 | O151: 7.6 | P151: 7.6 | Q151: 7.6 | R151: 7.6 | S151: 7.6 | T151: 7.6 | V151: 156 | W151: - | X151: 0.35985 | Y151: 0.64015 | AA151: 1000040 | AB151: 2025 | AC151: ESS | AD151: Tributos | AE151: Tributos | AF151: 610531601 | AG151: 866205.37
A152: SPCAT-138 | B152: CATANDUVA - 138 kV (A) | C152: 138.0 | D152: Ponta | E152: 6900 | F152: 7350 | G152: 6560 | H152: 6780 | I152: 75.8 | J152: 75.8 | K152: 75.8 | L152: 75.8 | M152: 75.8 | N152: 75.8 | O152: 69 | P152: 69 | Q152: 69 | R152: 69 | S152: 69 | T152: 69 | V152: 157 | W152: - | X152: 0.15963 | Y152: 0.84037 | AA152: 1000040 | AB152: 2025 | AC152: ESS | AD152: Outros | AE152: Indenização por Perdas e Danos | AF152: 610531901 | AG152: 1500722.69
A153: SPCAT3138-A | B153: CATANDUVA 3138kVA | C153: 138.0 | D153: Ponta | E153: 6900 | F153: 7350 | G153: 6560 | H153: 6780 | I153: 0 | J153: 0 | K153: 0 | L153: 0 | M153: 0 | N153: 7.2774 | O153: 14.3 | P153: 14.3 | Q153: 14.3 | R153: 14.3 | S153: 14.3 | T153: 14.3 | V153: 158 | W153: - | X153: 0.33049 | Y153: 0.66951 | AA153: 1000040 | AB153: 2025 | AC153: ESS | AD153: Outros | AE153: Consumo Próprio de Energia | AF153: 610531902 | AG153: 4413145.73
A154: SPDEC-88--A | B154: DECASA - 88 kV (A) | C154: 88.0 | D154: Ponta | E154: 7500 | F154: 8210 | G154: 6560 | H154: 6780 | I154: 2.5 | J154: 2.5 | K154: 2.5 | L154: 2.5 | M154: 2.5 | N154: 2.5 | O154: 2.5 | P154: 2.5 | Q154: 2.5 | R154: 2.5 | S154: 2.5 | T154: 2.5 | V154: 160 | W154: 0.1013 | X154: 0.22818 | Y154: 0.67051 | AA154: 1000040 | AB154: 2025 | AC154: ESS | AD154: Outros | AE154: Taxa de Arrecadação | AF154: 610531903 | AG154: 0
A155: SPENE-138 | B155: ENEIDA - 138 kV (A) | C155: 138.0 | D155: Ponta | E155: 6560 | F155: 7050 | G155: 6560 | H155: 6780 | I155: 3 | J155: 3 | K155: 3 | L155: 3 | M155: 3 | N155: 3 | O155: 3.4 | P155: 3.4 | Q155: 3.4 | R155: 3.4 | S155: 3.4 | T155: 3.4 | V155: 161 | W155: - | X155: 0.28355 | Y155: 0.71645 | AA155: 1000040 | AB155: 2025 | AC155: ESS | AD155: Outros | AE155: Taxas Bancárias | AF155: 610531904 | AG155: 0
A156: SPFLP-69 | B156: FLOR.PAULISTA - 69 kV (A) | C156: 69.0 | D156: Ponta | E156: 6570 | F156: 7050 | G156: 6560 | H156: 6780 | I156: 29.4 | J156: 29.4 | K156: 29.4 | L156: 29.4 | M156: 29.4 | N156: 29.4 | O156: 31.9 | P156: 31.9 | Q156: 31.9 | R156: 31.9 | S156: 31.9 | T156: 31.9 | V156: 163 | W156: 0.03507 | X156: 0.1664 | Y156: 0.79853 | AA156: 1000040 | AB156: 2025 | AC156: ESS | AD156: Outros | AE156: Despesas com Conselho de Consumidores | AF156: 610531905 | AG156: 0
A157: SPYHF-88--A | B157: HALOTEK FADEL - 88 kV (A) | C157: 88.0 | D157: Ponta | E157: 7460 | F157: 8160 | G157: 6560 | H157: 6780 | I157: 6.3 | J157: 6.3 | K157: 6.3 | L157: 6.3 | M157: 6.3 | N157: 6.3 | O157: 6.3 | P157: 6.3 | Q157: 6.3 | R157: 6.3 | S157: 6.3 | T157: 6.3 | V157: 164 | W157: - | X157: 0.12897 | Y157: 0.87103 | AA157: 1000040 | AB157: 2025 | AC157: ESS | AD157: Outros | AE157: Comunicação e Reprografia | AF157: 610531907 | AG157: 1256807.66
A158: SPIBM-88 | B158: IBIRAREMA - 88 kV (A) | C158: 88.0 | D158: Ponta | E158: 7530 | F158: 8240 | G158: 6560 | H158: 6780 | I158: 12.1 | J158: 12.1 | K158: 12.1 | L158: 12.1 | M158: 12.1 | N158: 12.1 | O158: 14.6 | P158: 14.6 | Q158: 14.6 | R158: 14.6 | S158: 14.6 | T158: 14.6 | AA158: 1000040 | AB158: 2025 | AC158: ESS | AD158: Outros | AE158: Contribuição Associativa - CCEE | AF158: 610531908 | AG158: 433994.79
A159: SPIJB2138-A | B159: ITAJOBI 2138kVA | C159: 138.0 | D159: Ponta | E159: 6970 | F159: 7430 | G159: 6560 | H159: 6780 | I159: 11.5 | J159: 11.5 | K159: 11.5 | L159: 11.5 | M159: 11.5 | N159: 11.5 | O159: 11.5 | P159: 11.5 | Q159: 11.5 | R159: 11.5 | S159: 11.5 | T159: 11.5 | AA159: 1000040 | AB159: 2025 | AC159: ESS | AD159: Outros | AE159: Contribuição Associativa - ONS | AF159: 610531909 | AG159: 102468.44
A160: SPMARA88--A | B160: MARACAI - 88 kV (A) | C160: 88.0 | D160: Ponta | E160: 7320 | F160: 8010 | G160: 6560 | H160: 6780 | I160: 6.5 | J160: 6.5 | K160: 6.5 | L160: 6.5 | M160: 6.5 | N160: 6.5 | O160: 6.5 | P160: 6.5 | Q160: 6.5 | R160: 6.5 | S160: 6.5 | T160: 6.5 | AA160: 1000040 | AB160: 2025 | AC160: ESS | AD160: Outros | AE160: (-) Créditos de Tributos Recuperáveis | AF160: 610531910 | AG160: 0
B161: MARTINOPOLIS - 88 kV (A) | C161: 88.0 | D161: Ponta | E161: 6910 | F161: 7540 | G161: 6560 | H161: 6780 | I161: 18 | J161: 18 | K161: 18 | L161: 18 | M161: 22 | N161: 22 | O161: 23.8 | P161: 23.8 | Q161: 23.8 | R161: 23.8 | S161: 23.8 | T161: 23.8 | AA161: 1000040 | AB161: 2025 | AC161: ESS | AD161: Pessoal | AE161: Remuneração | AF161: 610532501 | AG161: 12512245.27
B162: OSVALDO CRUZ - 138 kV (A) | C162: 138.0 | D162: Ponta | E162: 6610 | F162: 7100 | G162: 6560 | H162: 6780 | I162: 23.4 | J162: 23.4 | K162: 23.4 | L162: 23.4 | M162: 23.4 | N162: 23.4 | O162: 43.9 | P162: 43.9 | Q162: 43.9 | R162: 43.9 | S162: 43.9 | T162: 43.9 | AA162: 1000040 | AB162: 2025 | AC162: ESS | AD162: Pessoal | AE162: Encargos | AF162: 610532502 | AG162: 5640916.25
A163: SPPRP2138-A | B163: P.PRUDENTE 2138kVA | C163: 138.0 | D163: Ponta | E163: 6760 | F163: 7340 | G163: 6560 | H163: 6780 | I163: 21.1 | J163: 21.1 | K163: 21.1 | L163: 21.1 | M163: 21.1 | N163: 21.1 | O163: 25.3 | P163: 25.3 | Q163: 25.3 | R163: 25.3 | S163: 25.3 | T163: 25.3 | V163: Tab_EnergiaConsumidaMWh | AA163: 1000040 | AB163: 2025 | AC163: ESS | AD163: Pessoal | AE163: Previdência Privada - Corrente | AF163: 610532503 | AG163: 704193.58
A164: SPPMT-88 | B164: PALMITAL - 88 kV (A) | C164: 88.0 | D164: Ponta | E164: 7470 | F164: 8170 | G164: 6560 | H164: 6780 | I164: 12.6 | J164: 12.6 | K164: 12.6 | L164: 12.6 | M164: 12.6 | N164: 12.6 | O164: 14.1 | P164: 14.1 | Q164: 14.1 | R164: 14.1 | S164: 14.1 | T164: 14.1 | V164: Competencia | W164: EnergiaConsumidaMWh | X164: EnergiaFaturadaMWh | Y164: Dif_Consumida_FaturadaMWh | AA164: 1000040 | AB164: 2025 | AC164: ESS | AD164: Pessoal | AE164: Despesas Rescisórias | AF164: 610532506 | AG164: 0
A165: SPPAD-88--A | B165: PAR.PAULISTA2 - 88 kV (A) | C165: 88.0 | D165: Ponta | E165: 7280 | F165: 7970 | G165: 6560 | H165: 6780 | I165: 23.6 | J165: 23.6 | K165: 23.6 | L165: 23.6 | M165: 23.6 | N165: 23.6 | O165: 27.2 | P165: 27.2 | Q165: 27.2 | R165: 27.2 | S165: 27.2 | T165: 27.2 | V165: 45839 | W165: 63496.489 | X165: 24104.035 | Y165: 39392.454 | AA165: 1000040 | AB165: 2025 | AC165: ESS | AD165: Pessoal | AE165: Participação nos Lucros e Resultados - PLR | AF165: 610532507 | AG165: 4851577.41
A166: SPPRP188 | B166: PRE.PRUDENTE1 - 88 kV (A) | C166: 88.0 | D166: Ponta | E166: 6820 | F166: 7410 | G166: 6560 | H166: 6780 | I166: 71.5 | J166: 71.5 | K166: 71.5 | L166: 71.5 | M166: 71.5 | N166: 71.5 | O166: 80.7 | P166: 80.7 | Q166: 80.7 | R166: 80.7 | S166: 80.7 | T166: 80.7 | V166: 45870 | W166: 63743.575 | X166: 22755.049 | Y166: 40988.526 | AA166: 1000040 | AB166: 2025 | AC166: ESS | AD166: Pessoal | AE166: Outros Benefícios - Corrente | AF166: 610532508 | AG166: 5573679.92
A167: SPPRP4138 | B167: PRE.PRUDENTE4 - 138 kV (A) | C167: 138.0 | D167: Ponta | E167: 6760 | F167: 7340 | G167: 6560 | H167: 6780 | I167: 32.2 | J167: 32.2 | K167: 32.2 | L167: 32.2 | M167: 32.2 | N167: 32.2 | O167: 35.6 | P167: 35.6 | Q167: 35.6 | R167: 35.6 | S167: 35.6 | T167: 35.6 | V167: 45901 | W167: 72952.06 | X167: 24076.124 | Y167: 48875.936 | AA167: 1000040 | AB167: 2025 | AC167: ESS | AD167: Pessoal | AE167: (-) Créditos de Tributos Recuperáveis | AF167: 610532510 | AG167: 0
A168: SPPRP5138-A | B168: PRE.PRUDENTE5 - 138 kV (A) | C168: 138.0 | D168: Ponta | E168: 6740 | F168: 7320 | G168: 6560 | H168: 6780 | I168: 63.6 | J168: 63.6 | K168: 63.6 | L168: 63.6 | M168: 63.6 | N168: 63.6 | O168: 70.8 | P168: 70.8 | Q168: 70.8 | R168: 70.8 | S168: 70.8 | T168: 70.8 | V168: 45931 | W168: 80714.565 | X168: 26433.879 | Y168: 54280.686 | AA168: 1000040 | AB168: 2025 | AC168: ESS | AD168: Pessoal | AE168: Estagiários e programa de iniciação ao trabalho | AF168: 610532511 | AG168: 267174.67
B169: PRE.VENCESLAU - 138 kV (A) | C169: 138.0 | D169: Ponta | E169: 6610 | F169: 7150 | G169: 6560 | H169: 6780 | I169: 77.3 | J169: 77.3 | K169: 80 | L169: 80 | M169: 80 | N169: 80 | O169: 85.1 | P169: 85.1 | Q169: 85.1 | R169: 85.1 | S169: 85.1 | T169: 85.1 | V169: 45962 | W169: 76067.129 | X169: 25080.405 | Y169: 50986.724 | AA169: 1000040 | AB169: 2025 | AC169: ESS | AD169: Pessoal | AE169: Outros | AF169: 610532599 | AG169: -1571568.95
A170: SPQUA288--A | B170: QUATA II - 88 kV (A) | C170: 88.0 | D170: Ponta | E170: 7170 | F170: 7840 | G170: 6560 | H170: 6780 | I170: 15.1 | J170: 15.1 | K170: 15.1 | L170: 15.1 | M170: 16.1 | N170: 16.1 | O170: 16.1 | P170: 16.1 | Q170: 16.1 | R170: 16.1 | S170: 16.1 | T170: 16.1 | V170: 45992 | W170: 82883.36 | X170: 25268.607 | Y170: 57614.753 | AA170: 1000040 | AB170: 2025 | AC170: ESS | AD170: Pessoal | AE170: Honorários e Encargos (Diretoria e Conselho) | AF170: 610532601 | AG170: 3922468.61
A171: SPRAN-88 | B171: RANCHARIA - 88 kV (A) | C171: 88.0 | D171: Ponta | E171: 7070 | F171: 7720 | G171: 6560 | H171: 6780 | I171: 20.8 | J171: 20.8 | K171: 20.8 | L171: 20.8 | M171: 24 | N171: 24 | O171: 25.7 | P171: 25.7 | Q171: 25.7 | R171: 25.7 | S171: 25.7 | T171: 25.7 | V171: 46023 | W171: 89699.708 | X171: 26885.451 | Y171: 62814.257 | AA171: 1000040 | AB171: 2025 | AC171: ESS | AD171: Pessoal | AE171: Benefícios dos Administradores | AF171: 610532602 | AG171: 445622.33
A172: SPSAL-88 | B172: SANTA LINA - 88 kV (A) | C172: 88.0 | D172: Ponta | E172: 7190 | F172: 7860 | G172: 6560 | H172: 6780 | I172: 8.1 | J172: 8.1 | K172: 8.1 | L172: 8.1 | M172: 8.1 | N172: 8.1 | O172: 8.8 | P172: 8.8 | Q172: 8.8 | R172: 8.8 | S172: 8.8 | T172: 8.8 | V172: 46054 | W172: 88877.995 | X172: 28374.097 | Y172: 60503.898 | AA172: 1000040 | AB172: 2025 | AC172: ESS | AD172: Pessoal | AE172: (-) Créditos de Tributos Recuperáveis | AF172: 610532610 | AG172: 0
A173: SPSAT-138 | B173: STA.TEREZINHA - 138 kV (A) | C173: 138.0 | D173: Ponta | E173: 7650 | F173: 8130 | G173: 6560 | H173: 6780 | I173: 37.2 | J173: 37.2 | K173: 37.2 | L173: 37.2 | M173: 37.2 | N173: 37.2 | O173: 38.8 | P173: 38.8 | Q173: 38.8 | R173: 38.8 | S173: 38.8 | T173: 38.8 | V173: 46082 | W173: 92625.49 | X173: 30682.19 | Y173: 61943.3 | AA173: 1000040 | AB173: 2025 | AC173: ESS | AD173: Materiais | AE173: Materiais | AF173: 610532701 | AG173: 6754606.88
A174: SPTUA-138 | B174: TUPA - 138 kV (A) | C174: 138.0 | D174: Ponta | E174: 6680 | F174: 7160 | G174: 6560 | H174: 6780 | I174: 39.7 | J174: 39.7 | K174: 39.7 | L174: 39.7 | M174: 39.7 | N174: 39.7 | O174: 40.7 | P174: 40.7 | Q174: 40.7 | R174: 40.7 | S174: 40.7 | T174: 40.7 | V174: 46113 | W174: 93134.042 | X174: 31901.666 | Y174: 61232.376 | AA174: 1000040 | AB174: 2025 | AC174: ESS | AD174: Materiais | AE174: (-) Créditos de Tributos Recuperáveis | AF174: 610532710 | AG174: 0
A175: SPUBN-69 | B175: UBARANA - 69 kV (A) | C175: 69.0 | D175: Ponta | E175: 6850 | F175: 7310 | G175: 6560 | H175: 6780 | I175: 16.2 | J175: 16.2 | K175: 16.2 | L175: 16.2 | M175: 16.2 | N175: 16.2 | O175: 16.2 | P175: 16.2 | Q175: 16.2 | R175: 16.2 | S175: 16.2 | T175: 16.2 | V175: 46143 | W175: 86280.971 | X175: 31304.877 | Y175: 54976.094 | AA175: 1000040 | AB175: 2025 | AC175: ESS | AD175: Materiais | AE175: Outros | AF175: 610532799 | AG175: 0
A176: SPURU-138-A | B176: URUPES - 138 kV (A) | C176: 138.0 | D176: Ponta | E176: 6880 | F176: 7330 | G176: 6560 | H176: 6780 | I176: 25.4 | J176: 25.4 | K176: 25.4 | L176: 25.4 | M176: 25.4 | N176: 25.4 | O176: 25.4 | P176: 25.4 | Q176: 25.4 | R176: 25.4 | S176: 25.4 | T176: 25.4 | V176: 46174 | W176: 86280.971 | X176: 31304.877 | Y176: 54976.094 | AA176: 1000040 | AB176: 2025 | AC176: ESS | AD176: Serviços | AE176: Serviços de Terceiros | AF176: 610532801 | AG176: 76945242.47
A177: SPCOCL88--A | B177: UTE COCAL - 88 kV (A) | C177: 88.0 | D177: Ponta | E177: 7280 | F177: 7960 | G177: 6560 | H177: 6780 | I177: 4 | J177: 10 | K177: 10 | L177: 10 | M177: 10 | N177: 10 | O177: 10 | P177: 10 | Q177: 10 | R177: 10 | S177: 10 | T177: 10 | AA177: 1000040 | AB177: 2025 | AC177: ESS | AD177: Serviços | AE177: (-) Créditos de Tributos Recuperáveis | AF177: 610532810 | AG177: 0
A178: SPUFA-138 | B178: ALTO ALEGRE - 138 kV (A) | C178: 138.0 | D178: Fora Ponta | E178: 6520 | F178: 7030 | G178: 6560 | H178: 6780 | I178: 3.5 | J178: 3.5 | K178: 3.5 | L178: 3.5 | M178: 3.5 | N178: 3.5 | O178: 3.5 | P178: 3.5 | Q178: 3.5 | R178: 3.5 | S178: 3.5 | T178: 3.5 | AA178: 1000040 | AB178: 2025 | AC178: ESS | AD178: Seguros | AE178: Seguros | AF178: 610533001 | AG178: 1696635.72
A179: SPUFA-138 | B179: ALTO ALEGRE - 138 kV (A) - FLEXÍVEL | C179: 138.0 | D179: Fora Ponta | F179: 7096.952381 | H179: 6844.571429 | I179: 0 | J179: 0 | K179: 0.03333333333 | L179: 0.03333333333 | M179: 0 | N179: 0 | O179: 0 | P179: 0 | Q179: 0 | R179: 0 | S179: 0 | T179: 0 | AA179: 1000040 | AB179: 2025 | AC179: ESS | AD179: Seguros | AE179: (-) Créditos de Tributos Recuperáveis | AF179: 610533010 | AG179: 0
A180: SPASS188 | B180: ASSIS I - 88 kV (A) | C180: 88.0 | D180: Fora Ponta | E180: 7420 | F180: 8160 | G180: 6560 | H180: 6780 | I180: 41.9 | J180: 41.9 | K180: 41.9 | L180: 41.9 | M180: 41.9 | N180: 41.9 | O180: 46.4 | P180: 46.4 | Q180: 46.4 | R180: 46.4 | S180: 46.4 | T180: 46.4 | AA180: 1000040 | AB180: 2025 | AC180: ESS | AD180: Seguros | AE180: Outros | AF180: 610533099 | AG180: 0
A181: SPASS388 | B181: ASSIS III - 88 kV (A) | C181: 88.0 | D181: Fora Ponta | E181: 7410 | F181: 8150 | G181: 6560 | H181: 6780 | I181: 35.7 | J181: 35.7 | K181: 35.7 | L181: 35.7 | M181: 35.7 | N181: 35.7 | O181: 37.1 | P181: 37.1 | Q181: 37.1 | R181: 37.1 | S181: 37.1 | T181: 37.1 | AA181: 1000040 | AB181: 2025 | AC181: ESS | AD181: Tributos | AE181: Tributos | AF181: 610533601 | AG181: 760291.1
A182: SPBAST138 | B182: BASTOS - 138 kV (A) | C182: 138.0 | D182: Fora Ponta | E182: 6610 | F182: 7120 | G182: 6560 | H182: 6780 | I182: 20.4 | J182: 20.4 | K182: 20.4 | L182: 20.4 | M182: 20.4 | N182: 20.4 | O182: 21.3 | P182: 21.3 | Q182: 21.3 | R182: 21.3 | S182: 21.3 | T182: 21.3 | AA182: 1000040 | AB182: 2025 | AC182: ESS | AD182: Outros | AE182: Indenização por Perdas e Danos | AF182: 610533901 | AG182: 0
A183: SPBRB-138 | B183: BORBOREMA - 138 kV (A) | C183: 138.0 | D183: Fora Ponta | E183: 7060 | F183: 7560 | G183: 6560 | H183: 6780 | I183: 24.4 | J183: 24.4 | K183: 24.4 | L183: 24.4 | M183: 24.4 | N183: 24.4 | O183: 24.4 | P183: 24.4 | Q183: 24.4 | R183: 24.4 | S183: 24.4 | T183: 24.4 | AA183: 1000040 | AB183: 2025 | AC183: ESS | AD183: Outros | AE183: Consumo Próprio de Energia | AF183: 610533902 | AG183: 0
A184: SPBRP-138 | B184: BRA. PAULISTA - 138 kV (A) | C184: 138.0 | D184: Fora Ponta | E184: 7680 | F184: 8180 | G184: 6560 | H184: 6780 | I184: 195.7 | J184: 195.7 | K184: 195.7 | L184: 195.7 | M184: 195.7 | N184: 195.7 | O184: 192.1 | P184: 192.1 | Q184: 192.1 | R184: 192.1 | S184: 192.1 | T184: 192.1 | AA184: 1000040 | AB184: 2025 | AC184: ESS | AD184: Outros | AE184: Taxa de Arrecadação | AF184: 610533903 | AG184: 0
A185: SPBRT-138-A | B185: BRA. PAULISTA 3138kVA | C185: 138.0 | D185: Fora Ponta | E185: 7680 | F185: 8180 | G185: 6560 | H185: 6780 | I185: 0 | J185: 0 | K185: 0 | L185: 0 | M185: 0 | N185: 10.16774194 | O185: 19.7 | P185: 19.7 | Q185: 19.7 | R185: 19.7 | S185: 19.7 | T185: 19.7 | AA185: 1000040 | AB185: 2025 | AC185: ESS | AD185: Outros | AE185: Taxas Bancárias | AF185: 610533904 | AG185: 0
A186: SPBPER138-A | B186: BRANCO PERES138kVA | C186: 138.0 | D186: Fora Ponta | E186: 6510 | F186: 7010 | G186: 6560 | H186: 6780 | I186: 4.285 | J186: 4.285 | K186: 4.285 | L186: 4.285 | M186: 4.285 | N186: 4.285 | O186: 4.285 | P186: 4.285 | Q186: 4.285 | R186: 4.285 | S186: 4.285 | T186: 4.285 | AA186: 1000040 | AB186: 2025 | AC186: ESS | AD186: Outros | AE186: Comunicação e Reprografia | AF186: 610533907 | AG186: 4781034.05
A187: SPCDM-88 | B187: CANDIDO MOTA - 88 kV (A) | C187: 88.0 | D187: Fora Ponta | E187: 7670 | F187: 8400 | G187: 6560 | H187: 6780 | I187: 23 | J187: 23 | K187: 23 | L187: 23 | M187: 23 | N187: 23 | O187: 24.1 | P187: 24.1 | Q187: 24.1 | R187: 24.1 | S187: 24.1 | T187: 24.1 | AA187: 1000040 | AB187: 2025 | AC187: ESS | AD187: Outros | AE187: Contribuição Associativa - CCEE | AF187: 610533908 | AG187: 0
A188: SPCPV-138 | B188: CAPIVARA - 138 kV (A) | C188: 138.0 | D188: Fora Ponta | E188: 6720 | F188: 7350 | G188: 10 | H188: 10 | I188: 7.1 | J188: 7.1 | K188: 7.1 | L188: 7.1 | M188: 7.1 | N188: 7.1 | O188: 8.7 | P188: 8.7 | Q188: 8.7 | R188: 8.7 | S188: 8.7 | T188: 8.7 | AA188: 1000040 | AB188: 2025 | AC188: ESS | AD188: Outros | AE188: Contribuição Associativa - ONS | AF188: 610533909 | AG188: 0
A189: SPCAT-138 | B189: CATANDUVA - 138 kV (A) | C189: 138.0 | D189: Fora Ponta | E189: 6880 | F189: 7350 | G189: 6560 | H189: 6780 | I189: 84.9 | J189: 84.9 | K189: 84.9 | L189: 84.9 | M189: 84.9 | N189: 84.9 | O189: 77.1 | P189: 77.1 | Q189: 77.1 | R189: 77.1 | S189: 77.1 | T189: 77.1 | AA189: 1000040 | AB189: 2025 | AC189: ESS | AD189: Outros | AE189: (-) Créditos de Tributos Recuperáveis | AF189: 610533910 | AG189: 0
A190: SPCAT3138-A | B190: CATANDUVA 3138kVA | C190: 138.0 | D190: Fora Ponta | E190: 6880 | F190: 7350 | G190: 6560 | H190: 6780 | I190: 0 | J190: 0 | K190: 0 | L190: 0 | M190: 0 | N190: 8.2065 | O190: 16.1 | P190: 16.1 | Q190: 16.1 | R190: 16.1 | S190: 16.1 | T190: 16.1 | AA190: 1000040 | AB190: 2025 | AC190: ESS | AD190: Alienação | AE190: Ganhos na Alienação de Bens Reversíveis | AF190: 611112203 | AG190: -1435679.78
A191: SPDEC-88--A | B191: DECASA - 88 kV (A) | C191: 88.0 | D191: Fora Ponta | E191: 7550 | F191: 8280 | G191: 6560 | H191: 6780 | I191: 2.5 | J191: 2.5 | K191: 2.5 | L191: 2.5 | M191: 2.5 | N191: 2.5 | O191: 2.5 | P191: 2.5 | Q191: 2.5 | R191: 2.5 | S191: 2.5 | T191: 2.5 | AA191: 1000040 | AB191: 2025 | AC191: ESS | AD191: Desativação | AE191: Ganhos na Desativação de Bens Reversíveis | AF191: 611112403 | AG191: -1103970.64
A192: SPENE-138 | B192: ENEIDA - 138 kV (A) | C192: 138.0 | D192: Fora Ponta | E192: 6520 | F192: 7030 | G192: 6560 | H192: 6780 | I192: 3 | J192: 3 | K192: 3 | L192: 3 | M192: 3 | N192: 3 | O192: 3.4 | P192: 3.4 | Q192: 3.4 | R192: 3.4 | S192: 3.4 | T192: 3.4 | AA192: 1000040 | AB192: 2025 | AC192: ESS | AD192: Desativação | AE192: Perdas na Desativação de Bens Reversíveis | AF192: 611512003 | AG192: 23291202.65
A193: SPFLP-69 | B193: FLOR.PAULISTA - 69 kV (A) | C193: 69.0 | D193: Fora Ponta | E193: 6520 | F193: 7030 | G193: 6560 | H193: 6780 | I193: 29.6 | J193: 29.6 | K193: 29.6 | L193: 29.6 | M193: 29.6 | N193: 29.6 | O193: 32.2 | P193: 32.2 | Q193: 32.2 | R193: 32.2 | S193: 32.2 | T193: 32.2 | AA193: 1000040 | AB193: 2025 | AC193: ESS | AD193: Alienação | AE193: Perdas na Alienação de Bens Reversíveis | AF193: 611512203 | AG193: 1158429.43
A194: SPYHF-88--A | B194: HALOTEK FADEL - 88 kV (A) | C194: 88.0 | D194: Fora Ponta | E194: 7490 | F194: 8230 | G194: 6560 | H194: 6780 | I194: 6.3 | J194: 6.3 | K194: 6.3 | L194: 6.3 | M194: 6.3 | N194: 6.3 | O194: 6.3 | P194: 6.3 | Q194: 6.3 | R194: 6.3 | S194: 6.3 | T194: 6.3
A195: SPIBM-88 | B195: IBIRAREMA - 88 kV (A) | C195: 88.0 | D195: Fora Ponta | E195: 7580 | F195: 8310 | G195: 6560 | H195: 6780 | I195: 12.1 | J195: 12.1 | K195: 12.1 | L195: 12.1 | M195: 12.1 | N195: 12.1 | O195: 13.3 | P195: 13.3 | Q195: 13.3 | R195: 13.3 | S195: 13.3 | T195: 13.3
A196: SPIJB2138-A | B196: ITAJOBI 2138kVA | C196: 138.0 | D196: Fora Ponta | E196: 6950 | F196: 7430 | G196: 6560 | H196: 6780 | I196: 12.7 | J196: 12.7 | K196: 12.7 | L196: 12.7 | M196: 12.7 | N196: 12.7 | O196: 12.7 | P196: 12.7 | Q196: 12.7 | R196: 12.7 | S196: 12.7 | T196: 12.7
A197: SPMARA88--A | B197: MARACAI - 88 kV (A) | C197: 88.0 | D197: Fora Ponta | E197: 7340 | F197: 8070 | G197: 6560 | H197: 6780 | I197: 6.5 | J197: 6.5 | K197: 6.5 | L197: 6.5 | M197: 6.5 | N197: 6.5 | O197: 6.5 | P197: 6.5 | Q197: 6.5 | R197: 6.5 | S197: 6.5 | T197: 6.5
B198: MARTINOPOLIS - 88 kV (A) | C198: 88.0 | D198: Fora Ponta | E198: 6900 | F198: 7560 | G198: 6560 | H198: 6780 | I198: 19 | J198: 19 | K198: 19 | L198: 19 | M198: 19 | N198: 19 | O198: 23.4 | P198: 23.4 | Q198: 23.4 | R198: 23.4 | S198: 23.4 | T198: 23.4
B199: OSVALDO CRUZ - 138 kV (A) | C199: 138.0 | D199: Fora Ponta | E199: 6570 | F199: 7090 | G199: 6560 | H199: 6780 | I199: 26.5 | J199: 26.5 | K199: 26.5 | L199: 26.5 | M199: 26.5 | N199: 26.5 | O199: 44.6 | P199: 44.6 | Q199: 44.6 | R199: 44.6 | S199: 44.6 | T199: 44.6
A200: SPPRP2138-A | B200: P.PRUDENTE 2138kVA | C200: 138.0 | D200: Fora Ponta | E200: 6730 | F200: 7340 | G200: 6560 | H200: 6780 | I200: 21.7 | J200: 21.7 | K200: 21.7 | L200: 21.7 | M200: 21.7 | N200: 21.7 | O200: 24.5 | P200: 24.5 | Q200: 24.5 | R200: 24.5 | S200: 24.5 | T200: 24.5
A201: SPPMT-88 | B201: PALMITAL - 88 kV (A) | C201: 88.0 | D201: Fora Ponta | E201: 7500 | F201: 8240 | G201: 6560 | H201: 6780 | I201: 14.2 | J201: 14.2 | K201: 14.2 | L201: 14.2 | M201: 14.2 | N201: 14.2 | O201: 15.2 | P201: 15.2 | Q201: 15.2 | R201: 15.2 | S201: 15.2 | T201: 15.2
A202: SPPAD-88--A | B202: PAR.PAULISTA2 - 88 kV (A) | C202: 88.0 | D202: Fora Ponta | E202: 7300 | F202: 8020 | G202: 6560 | H202: 6780 | I202: 22.9 | J202: 22.9 | K202: 22.9 | L202: 22.9 | M202: 22.9 | N202: 22.9 | O202: 27.2 | P202: 27.2 | Q202: 27.2 | R202: 27.2 | S202: 27.2 | T202: 27.2
A203: SPPRP188 | B203: PRE.PRUDENTE1 - 88 kV (A) | C203: 88.0 | D203: Fora Ponta | E203: 6800 | F203: 7430 | G203: 6560 | H203: 6780 | I203: 78.6 | J203: 78.6 | K203: 78.6 | L203: 78.6 | M203: 78.6 | N203: 78.6 | O203: 84.1 | P203: 84.1 | Q203: 84.1 | R203: 84.1 | S203: 84.1 | T203: 84.1
... 50 more rows

Sheet Entrada
B1: Entrada de parâmetros para cálculo tarifário
B4: Energia | D4: Últ. Atualização | F4: Parâmetros para Revisão | P4: ="Caso de OR para a empresa é: " &IF(BD!C53=4,"caso 1","caso 3") -> Caso de OR para a empresa é: caso 3
D6: 45931 | F6: CAPEX - Ativos de Distribuição | J6: Custo Operacional Real do(s) último(s) ano(s) | P6: Outras Receitas - Caso 1 e 2 | AC6: =" Diferenças em relação ao RTA "&YEAR(AC7) -> Diferenças em relação ao RTA 2025 | AG6: ="Valores RTA "&YEAR(AG7) -> Valores RTA 2025
B7: Montante de Geração Própria | D7: 45931 | F7: (1) Ativo Imobilizado em Serviço (Valor Novo de Reposição) | G7: =G71*VLOOKUP(DATE(YEAR(CAPA!$C$10),MONTH(CAPA!$C$10)-1,1),Índices!$B$135:$D$638,3,0)/VLOOKUP(DATE(YEAR($G$70),MONTH($G$70)-1,1),Índices!$B$135:$D$638,3,0) -> 5023742940 | J7: Ano do Custo Operacional | L7: =M7-1 -> 2024 | M7: =IF(SUMIFS(Tab_RIT_BMP[SALDO],Tab_RIT_BMP[ANO],MAX(Tab_RIT_BMP[ANO]))=0,MAX(Tab_RIT_BMP[ANO])-1,MAX(Tab_RIT_BMP[ANO])) -> 2025 | P7: Tipo de Receita | Q7: =DATE(YEAR(LnkTxtDRPData),MONTH(LnkTxtDRPData)-1,1) -> 2026-06-01 | R7: =DATE(YEAR(Q7),MONTH(Q7)-1,1) -> 2026-05-01 | S7: =DATE(YEAR(R7),MONTH(R7)-1,1) -> 2026-04-01 | T7: 2026-03-01 | U7: 2026-02-01 | V7: 2026-01-01 | W7: 2025-12-01 | X7: 2025-11-01 | Y7: 2025-10-01 | Z7: 2025-09-01 | AA7: 2025-08-01 | AB7: 2025-07-01 | AC7: =EDATE(AB7,-1) -> 2025-06-01 | AD7: =EDATE(AC7,-1) -> 2025-05-01 | AE7: 2025-04-01 | AF7: =AC7 -> 2025-06-01 | AG7: =AD7 -> 2025-05-01 | AH7: 2025-04-01 | AI7: =UDEROR!Y12 -> 00:00:00 | AJ7: =UDEROR!Z12 -> 00:00:00 | AK7: =UDEROR!AA12 -> 00:00:00 | AL7: =UDEROR!AB12 -> 00:00:00 | AM7: =UDEROR!AC12 -> 00:00:00 | AN7: =UDEROR!AD12 -> 00:00:00 | AO7: =UDEROR!AE12 -> 00:00:00 | AP7: =UDEROR!AF12 -> 00:00:00 | AQ7: =UDEROR!AG12 -> 00:00:00 | AR7: =UDEROR!AH12 -> 00:00:00 | AS7: =UDEROR!AI12 -> 00:00:00 | AT7: =UDEROR!AJ12 -> 00:00:00 | AU7: =UDEROR!AK12 -> 00:00:00 | AV7: =UDEROR!AL12 -> 00:00:00 | AW7: =UDEROR!AM12 -> 00:00:00 | AX7: =UDEROR!AN12 -> 00:00:00 | AY7: =UDEROR!AO12 -> 00:00:00 | AZ7: =UDEROR!AP12 -> 00:00:00 | BA7: =UDEROR!AQ12 -> 00:00:00 | BB7: =UDEROR!AR12 -> 00:00:00 | BC7: =UDEROR!AS12 -> 00:00:00 | BD7: =UDEROR!AT12 -> 00:00:00
B8: Custo médio da Geração Própria | D8: 45931 | F8: (2) Índice de Aproveitamento Integral | G8: =G72*VLOOKUP(DATE(YEAR(CAPA!$C$10),MONTH(CAPA!$C$10)-1,1),Índices!$B$135:$D$638,3,0)/VLOOKUP(DATE(YEAR($G$70),MONTH($G$70)-1,1),Índices!$B$135:$D$638,3,0) -> 3001952.411 | J8: PESSOAL | P8: Serviços Cobráveis | Q8: =IF((SUMIFS(Tab_Uderor[R$],Tab_Uderor[Competencia],Entrada!Q$7,Tab_Uderor[TipoReceita],Entrada!$P8))=0,R8,SUMIFS(Tab_Uderor[R$],Tab_Uderor[Competencia],Entrada!Q$7,Tab_Uderor[TipoReceita],Entrada!$P8)) -> 86869.33 | R8: =IF((SUMIFS(Tab_Uderor[R$],Tab_Uderor[Competencia],Entrada!R$7,Tab_Uderor[TipoReceita],Entrada!$P8))=0,S8,SUMIFS(Tab_Uderor[R$],Tab_Uderor[Competencia],Entrada!R$7,Tab_Uderor[TipoReceita],Entrada!$P8)) -> 86869.33 | S8: =SUMIFS(Tab_Uderor[R$],Tab_Uderor[Competencia],Entrada!S$7,Tab_Uderor[TipoReceita],Entrada!$P8) -> 86869.33 | T8: =SUMIFS(Tab_Uderor[R$],Tab_Uderor[Competencia],Entrada!T$7,Tab_Uderor[TipoReceita],Entrada!$P8) -> 58801.71 | U8: =SUMIFS(Tab_Uderor[R$],Tab_Uderor[Competencia],Entrada!U$7,Tab_Uderor[TipoReceita],Entrada!$P8) -> 99114.36 | V8: =SUMIFS(Tab_Uderor[R$],Tab_Uderor[Competencia],Entrada!V$7,Tab_Uderor[TipoReceita],Entrada!$P8) -> 108651.47 | W8: =SUMIFS(Tab_Uderor[R$],Tab_Uderor[Competencia],Entrada!W$7,Tab_Uderor[TipoReceita],Entrada!$P8) -> 149459.39 | X8: =SUMIFS(Tab_Uderor[R$],Tab_Uderor[Competencia],Entrada!X$7,Tab_Uderor[TipoReceita],Entrada!$P8) -> 131153.87 | Y8: =SUMIFS(Tab_Uderor[R$],Tab_Uderor[Competencia],Entrada!Y$7,Tab_Uderor[TipoReceita],Entrada!$P8) -> 111965.06 | Z8: =SUMIFS(Tab_Uderor[R$],Tab_Uderor[Competencia],Entrada!Z$7,Tab_Uderor[TipoReceita],Entrada!$P8) -> 134633.25 | AA8: =SUMIFS(Tab_Uderor[R$],Tab_Uderor[Competencia],Entrada!AA$7,Tab_Uderor[TipoReceita],Entrada!$P8) -> 131434.75 | AB8: =SUMIFS(Tab_Uderor[R$],Tab_Uderor[Competencia],Entrada!AB$7,Tab_Uderor[TipoReceita],Entrada!$P8) -> 114243.04 | AC8: =SUMIFS(Tab_Uderor[R$],Tab_Uderor[Competencia],Entrada!AC$7,Tab_Uderor[TipoReceita],Entrada!$P8)-AF8 -> -8369.05 | AD8: =SUMIFS(Tab_Uderor[R$],Tab_Uderor[Competencia],Entrada!AD$7,Tab_Uderor[TipoReceita],Entrada!$P8)-AG8 -> 5856.91 | AE8: =SUMIFS(Tab_Uderor[R$],Tab_Uderor[Competencia],Entrada!AE$7,Tab_Uderor[TipoReceita],Entrada!$P8)-AH8 -> 0.49 | AF8: 92282 | AG8: 92282 | AH8: 92282
D9: 45931 | F9: (3) Obrigações Especiais Bruta | G9: =G73*VLOOKUP(DATE(YEAR(CAPA!$C$10),MONTH(CAPA!$C$10)-1,1),Índices!$B$135:$D$638,3,0)/VLOOKUP(DATE(YEAR($G$70),MONTH($G$70)-1,1),Índices!$B$135:$D$638,3,0) -> 1118701528 | J9: BMP - 610530501; 610532501; 610530511; 610532511; | K9: Remuneração/Estagiários | L9: =SUMIFS(Tab_RIT_BMP[SALDO],Tab_RIT_BMP[ContaDetalhada],"Remuneração",Tab_RIT_BMP[ANO],$L$7,Tab_RIT_BMP[ContaPrincipal],"Pessoal") + SUMIFS(Tab_RIT_BMP[SALDO],Tab_RIT_BMP[ContaDetalhada],"Estagiários*",Tab_RIT_BMP[ANO],$L$7,Tab_RIT_BMP[ContaPrincipal],"Pessoal") -> 32769488.03 | M9: =SUMIFS(Tab_RIT_BMP[SALDO],Tab_RIT_BMP[ContaDetalhada],"Remuneração",Tab_RIT_BMP[ANO],$M$7,Tab_RIT_BMP[ContaPrincipal],"Pessoal") + SUMIFS(Tab_RIT_BMP[SALDO],Tab_RIT_BMP[ContaDetalhada],"Estagiários*",Tab_RIT_BMP[ANO],$M$7,Tab_RIT_BMP[ContaPrincipal],"Pessoal") -> 36058557.75 | P9: Arrecadação de convênios ou valores pela fatura | Q9: =IF((SUMIFS(Tab_Uderor[R$],Tab_Uderor[Competencia],Entrada!Q$7,Tab_Uderor[TipoReceita],Entrada!$P9))=0,R9,SUMIFS(Tab_Uderor[R$],Tab_Uderor[Competencia],Entrada!Q$7,Tab_Uderor[TipoReceita],Entrada!$P9)) -> 0 | R9: =IF((SUMIFS(Tab_Uderor[R$],Tab_Uderor[Competencia],Entrada!R$7,Tab_Uderor[TipoReceita],Entrada!$P9))=0,S9,SUMIFS(Tab_Uderor[R$],Tab_Uderor[Competencia],Entrada!R$7,Tab_Uderor[TipoReceita],Entrada!$P9)) -> 0 | S9: =SUMIFS(Tab_Uderor[R$],Tab_Uderor[Competencia],Entrada!S$7,Tab_Uderor[TipoReceita],Entrada!$P9) -> 0 | T9: =SUMIFS(Tab_Uderor[R$],Tab_Uderor[Competencia],Entrada!T$7,Tab_Uderor[TipoReceita],Entrada!$P9) -> 0.52 | U9: =SUMIFS(Tab_Uderor[R$],Tab_Uderor[Competencia],Entrada!U$7,Tab_Uderor[TipoReceita],Entrada!$P9) -> 2471.29 | V9: =SUMIFS(Tab_Uderor[R$],Tab_Uderor[Competencia],Entrada!V$7,Tab_Uderor[TipoReceita],Entrada!$P9) -> 445770.76 | W9: =SUMIFS(Tab_Uderor[R$],Tab_Uderor[Competencia],Entrada!W$7,Tab_Uderor[TipoReceita],Entrada!$P9) -> 464064.69 | X9: =SUMIFS(Tab_Uderor[R$],Tab_Uderor[Competencia],Entrada!X$7,Tab_Uderor[TipoReceita],Entrada!$P9) -> 458461.57 | Y9: =SUMIFS(Tab_Uderor[R$],Tab_Uderor[Competencia],Entrada!Y$7,Tab_Uderor[TipoReceita],Entrada!$P9) -> 389295.64 | Z9: =SUMIFS(Tab_Uderor[R$],Tab_Uderor[Competencia],Entrada!Z$7,Tab_Uderor[TipoReceita],Entrada!$P9) -> 91229.56 | AA9: =SUMIFS(Tab_Uderor[R$],Tab_Uderor[Competencia],Entrada!AA$7,Tab_Uderor[TipoReceita],Entrada!$P9) -> 366175.62 | AB9: =SUMIFS(Tab_Uderor[R$],Tab_Uderor[Competencia],Entrada!AB$7,Tab_Uderor[TipoReceita],Entrada!$P9) -> 855426.43 | AC9: =SUMIFS(Tab_Uderor[R$],Tab_Uderor[Competencia],Entrada!AC$7,Tab_Uderor[TipoReceita],Entrada!$P9)-AF9 -> 18015.35 | AD9: =SUMIFS(Tab_Uderor[R$],Tab_Uderor[Competencia],Entrada!AD$7,Tab_Uderor[TipoReceita],Entrada!$P9)-AG9 -> 34196.2 | AE9: =SUMIFS(Tab_Uderor[R$],Tab_Uderor[Competencia],Entrada!AE$7,Tab_Uderor[TipoReceita],Entrada!$P9)-AH9 -> 0.24 | AF9: 404839 | AG9: 404839 | AH9: 404839
D10: 45931 | F10: (4) Bens Totalmente Depreciados | G10: =G74*VLOOKUP(DATE(YEAR(CAPA!$C$10),MONTH(CAPA!$C$10)-1,1),Índices!$B$135:$D$638,3,0)/VLOOKUP(DATE(YEAR($G$70),MONTH($G$70)-1,1),Índices!$B$135:$D$638,3,0) -> 958702955.6 | J10: BMP - 610530502; 610532502; | K10: Encargos | L10: =SUMIFS(Tab_RIT_BMP[SALDO],Tab_RIT_BMP[ContaDetalhada],K10,Tab_RIT_BMP[ANO],$L$7,Tab_RIT_BMP[ContaPrincipal],"Pessoal") -> 26262229.92 | M10: =SUMIFS(Tab_RIT_BMP[SALDO],Tab_RIT_BMP[ContaDetalhada],K10,Tab_RIT_BMP[ANO],$M$7,Tab_RIT_BMP[ContaPrincipal],"Pessoal") -> 28839550.79 | P10: Arrecadação de faturas de terceiros por estrutura própria | Q10: =IF((SUMIFS(Tab_Uderor[R$],Tab_Uderor[Competencia],Entrada!Q$7,Tab_Uderor[TipoReceita],Entrada!$P10))=0,R10,SUMIFS(Tab_Uderor[R$],Tab_Uderor[Competencia],Entrada!Q$7,Tab_Uderor[TipoReceita],Entrada!$P10)) -> 0 | R10: =IF((SUMIFS(Tab_Uderor[R$],Tab_Uderor[Competencia],Entrada!R$7,Tab_Uderor[TipoReceita],Entrada!$P10))=0,S10,SUMIFS(Tab_Uderor[R$],Tab_Uderor[Competencia],Entrada!R$7,Tab_Uderor[TipoReceita],Entrada!$P10)) -> 0 | S10: =SUMIFS(Tab_Uderor[R$],Tab_Uderor[Competencia],Entrada!S$7,Tab_Uderor[TipoReceita],Entrada!$P10) -> 0 | T10: =SUMIFS(Tab_Uderor[R$],Tab_Uderor[Competencia],Entrada!T$7,Tab_Uderor[TipoReceita],Entrada!$P10) -> 0 | U10: =SUMIFS(Tab_Uderor[R$],Tab_Uderor[Competencia],Entrada!U$7,Tab_Uderor[TipoReceita],Entrada!$P10) -> 0 | V10: =SUMIFS(Tab_Uderor[R$],Tab_Uderor[Competencia],Entrada!V$7,Tab_Uderor[TipoReceita],Entrada!$P10) -> 0 | W10: =SUMIFS(Tab_Uderor[R$],Tab_Uderor[Competencia],Entrada!W$7,Tab_Uderor[TipoReceita],Entrada!$P10) -> 0 | X10: =SUMIFS(Tab_Uderor[R$],Tab_Uderor[Competencia],Entrada!X$7,Tab_Uderor[TipoReceita],Entrada!$P10) -> 0 | Y10: =SUMIFS(Tab_Uderor[R$],Tab_Uderor[Competencia],Entrada!Y$7,Tab_Uderor[TipoReceita],Entrada!$P10) -> 0 | Z10: =SUMIFS(Tab_Uderor[R$],Tab_Uderor[Competencia],Entrada!Z$7,Tab_Uderor[TipoReceita],Entrada!$P10) -> 0 | AA10: =SUMIFS(Tab_Uderor[R$],Tab_Uderor[Competencia],Entrada!AA$7,Tab_Uderor[TipoReceita],Entrada!$P10) -> 0 | AB10: =SUMIFS(Tab_Uderor[R$],Tab_Uderor[Competencia],Entrada!AB$7,Tab_Uderor[TipoReceita],Entrada!$P10) -> 0 | AC10: =SUMIFS(Tab_Uderor[R$],Tab_Uderor[Competencia],Entrada!AC$7,Tab_Uderor[TipoReceita],Entrada!$P10)-AF10 -> 0 | AD10: =SUMIFS(Tab_Uderor[R$],Tab_Uderor[Competencia],Entrada!AD$7,Tab_Uderor[TipoReceita],Entrada!$P10)-AG10 -> 0 | AE10: =SUMIFS(Tab_Uderor[R$],Tab_Uderor[Competencia],Entrada!AE$7,Tab_Uderor[TipoReceita],Entrada!$P10)-AH10 -> 0
F11: (5) Base de Remuneração Bruta = (1)-(2)-(3)-(4) | G11: =G7-G8-G9-G10 -> 2943336505 | J11: BMP - 610530503; 610532503; | K11: Previdência Privada - Corrente | L11: =SUMIFS(Tab_RIT_BMP[SALDO],Tab_RIT_BMP[ContaDetalhada],K11,Tab_RIT_BMP[ANO],$L$7,Tab_RIT_BMP[ContaPrincipal],"Pessoal") -> 2733137.46 | M11: =SUMIFS(Tab_RIT_BMP[SALDO],Tab_RIT_BMP[ContaDetalhada],K11,Tab_RIT_BMP[ANO],$M$7,Tab_RIT_BMP[ContaPrincipal],"Pessoal") -> 3093382.48 | P11: Veiculação de publicidade | Q11: =IF((SUMIFS(Tab_Uderor[R$],Tab_Uderor[Competencia],Entrada!Q$7,Tab_Uderor[TipoReceita],Entrada!$P11))=0,R11,SUMIFS(Tab_Uderor[R$],Tab_Uderor[Competencia],Entrada!Q$7,Tab_Uderor[TipoReceita],Entrada!$P11)) -> 0 | R11: =IF((SUMIFS(Tab_Uderor[R$],Tab_Uderor[Competencia],Entrada!R$7,Tab_Uderor[TipoReceita],Entrada!$P11))=0,S11,SUMIFS(Tab_Uderor[R$],Tab_Uderor[Competencia],Entrada!R$7,Tab_Uderor[TipoReceita],Entrada!$P11)) -> 0 | S11: =SUMIFS(Tab_Uderor[R$],Tab_Uderor[Competencia],Entrada!S$7,Tab_Uderor[TipoReceita],Entrada!$P11) -> 0 | T11: =SUMIFS(Tab_Uderor[R$],Tab_Uderor[Competencia],Entrada!T$7,Tab_Uderor[TipoReceita],Entrada!$P11) -> 0 | U11: =SUMIFS(Tab_Uderor[R$],Tab_Uderor[Competencia],Entrada!U$7,Tab_Uderor[TipoReceita],Entrada!$P11) -> 0 | V11: =SUMIFS(Tab_Uderor[R$],Tab_Uderor[Competencia],Entrada!V$7,Tab_Uderor[TipoReceita],Entrada!$P11) -> 0 | W11: =SUMIFS(Tab_Uderor[R$],Tab_Uderor[Competencia],Entrada!W$7,Tab_Uderor[TipoReceita],Entrada!$P11) -> 0 | X11: =SUMIFS(Tab_Uderor[R$],Tab_Uderor[Competencia],Entrada!X$7,Tab_Uderor[TipoReceita],Entrada!$P11) -> 0 | Y11: =SUMIFS(Tab_Uderor[R$],Tab_Uderor[Competencia],Entrada!Y$7,Tab_Uderor[TipoReceita],Entrada!$P11) -> 0 | Z11: =SUMIFS(Tab_Uderor[R$],Tab_Uderor[Competencia],Entrada!Z$7,Tab_Uderor[TipoReceita],Entrada!$P11) -> 0 | AA11: =SUMIFS(Tab_Uderor[R$],Tab_Uderor[Competencia],Entrada!AA$7,Tab_Uderor[TipoReceita],Entrada!$P11) -> 0 | AB11: =SUMIFS(Tab_Uderor[R$],Tab_Uderor[Competencia],Entrada!AB$7,Tab_Uderor[TipoReceita],Entrada!$P11) -> 0 | AC11: =SUMIFS(Tab_Uderor[R$],Tab_Uderor[Competencia],Entrada!AC$7,Tab_Uderor[TipoReceita],Entrada!$P11)-AF11 -> 0 | AD11: =SUMIFS(Tab_Uderor[R$],Tab_Uderor[Competencia],Entrada!AD$7,Tab_Uderor[TipoReceita],Entrada!$P11)-AG11 -> 0 | AE11: =SUMIFS(Tab_Uderor[R$],Tab_Uderor[Competencia],Entrada!AE$7,Tab_Uderor[TipoReceita],Entrada!$P11)-AH11 -> 0
F12: (6) Depreciação Acumulada | G12: =G76*VLOOKUP(DATE(YEAR(CAPA!$C$10),MONTH(CAPA!$C$10)-1,1),Índices!$B$135:$D$638,3,0)/VLOOKUP(DATE(YEAR($G$70),MONTH($G$70)-1,1),Índices!$B$135:$D$638,3,0) -> 2327265005 | J12: BMP - 610530508; 610532508; | K12: Outros Benefícios | L12: =SUMIFS(Tab_RIT_BMP[SALDO],Tab_RIT_BMP[ContaDetalhada],"Outros benefícios*",Tab_RIT_BMP[ANO],$L$7,Tab_RIT_BMP[ContaPrincipal],"Pessoal") -> 32914175.75 | M12: =SUMIFS(Tab_RIT_BMP[SALDO],Tab_RIT_BMP[ContaDetalhada],"Outros benefícios*",Tab_RIT_BMP[ANO],$M$7,Tab_RIT_BMP[ContaPrincipal],"Pessoal") -> 37303946.79 | P12: Aluguel ou cessão onerosa de imóveis e espaços físicos | Q12: =IF((SUMIFS(Tab_Uderor[R$],Tab_Uderor[Competencia],Entrada!Q$7,Tab_Uderor[TipoReceita],Entrada!$P12))=0,R12,SUMIFS(Tab_Uderor[R$],Tab_Uderor[Competencia],Entrada!Q$7,Tab_Uderor[TipoReceita],Entrada!$P12)) -> 0 | R12: =IF((SUMIFS(Tab_Uderor[R$],Tab_Uderor[Competencia],Entrada!R$7,Tab_Uderor[TipoReceita],Entrada!$P12))=0,S12,SUMIFS(Tab_Uderor[R$],Tab_Uderor[Competencia],Entrada!R$7,Tab_Uderor[TipoReceita],Entrada!$P12)) -> 0 | S12: =SUMIFS(Tab_Uderor[R$],Tab_Uderor[Competencia],Entrada!S$7,Tab_Uderor[TipoReceita],Entrada!$P12) -> 0 | T12: =SUMIFS(Tab_Uderor[R$],Tab_Uderor[Competencia],Entrada!T$7,Tab_Uderor[TipoReceita],Entrada!$P12) -> 0 | U12: =SUMIFS(Tab_Uderor[R$],Tab_Uderor[Competencia],Entrada!U$7,Tab_Uderor[TipoReceita],Entrada!$P12) -> 0 | V12: =SUMIFS(Tab_Uderor[R$],Tab_Uderor[Competencia],Entrada!V$7,Tab_Uderor[TipoReceita],Entrada!$P12) -> 0 | W12: =SUMIFS(Tab_Uderor[R$],Tab_Uderor[Competencia],Entrada!W$7,Tab_Uderor[TipoReceita],Entrada!$P12) -> 0 | X12: =SUMIFS(Tab_Uderor[R$],Tab_Uderor[Competencia],Entrada!X$7,Tab_Uderor[TipoReceita],Entrada!$P12) -> 0 | Y12: =SUMIFS(Tab_Uderor[R$],Tab_Uderor[Competencia],Entrada!Y$7,Tab_Uderor[TipoReceita],Entrada!$P12) -> 0 | Z12: =SUMIFS(Tab_Uderor[R$],Tab_Uderor[Competencia],Entrada!Z$7,Tab_Uderor[TipoReceita],Entrada!$P12) -> 0 | AA12: =SUMIFS(Tab_Uderor[R$],Tab_Uderor[Competencia],Entrada!AA$7,Tab_Uderor[TipoReceita],Entrada!$P12) -> 0 | AB12: =SUMIFS(Tab_Uderor[R$],Tab_Uderor[Competencia],Entrada!AB$7,Tab_Uderor[TipoReceita],Entrada!$P12) -> 0 | AC12: =SUMIFS(Tab_Uderor[R$],Tab_Uderor[Competencia],Entrada!AC$7,Tab_Uderor[TipoReceita],Entrada!$P12)-AF12 -> 0 | AD12: =SUMIFS(Tab_Uderor[R$],Tab_Uderor[Competencia],Entrada!AD$7,Tab_Uderor[TipoReceita],Entrada!$P12)-AG12 -> 0 | AE12: =SUMIFS(Tab_Uderor[R$],Tab_Uderor[Competencia],Entrada!AE$7,Tab_Uderor[TipoReceita],Entrada!$P12)-AH12 -> 0
F13: (7) AIS Líquido (Valor de Mercado em Uso) | G13: =G7-G12 -> 2696477935 | J13: BMP - 610530506; 610532506; | K13: Despesas Rescisórias | L13: =SUMIFS(Tab_RIT_BMP[SALDO],Tab_RIT_BMP[ContaDetalhada],K13,Tab_RIT_BMP[ANO],$L$7,Tab_RIT_BMP[ContaPrincipal],"Pessoal") -> 0 | M13: =SUMIFS(Tab_RIT_BMP[SALDO],Tab_RIT_BMP[ContaDetalhada],K13,Tab_RIT_BMP[ANO],$M$7,Tab_RIT_BMP[ContaPrincipal],"Pessoal") -> 0 | P13: Compartilhamento de infraestrutura | Q13: =IF((SUMIFS(Tab_Uderor[R$],Tab_Uderor[Competencia],Entrada!Q$7,Tab_Uderor[TipoReceita],Entrada!$P13))=0,R13,SUMIFS(Tab_Uderor[R$],Tab_Uderor[Competencia],Entrada!Q$7,Tab_Uderor[TipoReceita],Entrada!$P13)) -> 5361316.42 | R13: =IF((SUMIFS(Tab_Uderor[R$],Tab_Uderor[Competencia],Entrada!R$7,Tab_Uderor[TipoReceita],Entrada!$P13))=0,S13,SUMIFS(Tab_Uderor[R$],Tab_Uderor[Competencia],Entrada!R$7,Tab_Uderor[TipoReceita],Entrada!$P13)) -> 5361316.42 | S13: =SUMIFS(Tab_Uderor[R$],Tab_Uderor[Competencia],Entrada!S$7,Tab_Uderor[TipoReceita],Entrada!$P13) -> 5361316.42 | T13: =SUMIFS(Tab_Uderor[R$],Tab_Uderor[Competencia],Entrada!T$7,Tab_Uderor[TipoReceita],Entrada!$P13) -> 5349653.73 | U13: =SUMIFS(Tab_Uderor[R$],Tab_Uderor[Competencia],Entrada!U$7,Tab_Uderor[TipoReceita],Entrada!$P13) -> 5296197.64 | V13: =SUMIFS(Tab_Uderor[R$],Tab_Uderor[Competencia],Entrada!V$7,Tab_Uderor[TipoReceita],Entrada!$P13) -> 5696089.29 | W13: =SUMIFS(Tab_Uderor[R$],Tab_Uderor[Competencia],Entrada!W$7,Tab_Uderor[TipoReceita],Entrada!$P13) -> 4790658.41 | X13: =SUMIFS(Tab_Uderor[R$],Tab_Uderor[Competencia],Entrada!X$7,Tab_Uderor[TipoReceita],Entrada!$P13) -> 5916375.09 | Y13: =SUMIFS(Tab_Uderor[R$],Tab_Uderor[Competencia],Entrada!Y$7,Tab_Uderor[TipoReceita],Entrada!$P13) -> 7029593.48 | Z13: =SUMIFS(Tab_Uderor[R$],Tab_Uderor[Competencia],Entrada!Z$7,Tab_Uderor[TipoReceita],Entrada!$P13) -> 5914003.47 | AA13: =SUMIFS(Tab_Uderor[R$],Tab_Uderor[Competencia],Entrada!AA$7,Tab_Uderor[TipoReceita],Entrada!$P13) -> 5052224.24 | AB13: =SUMIFS(Tab_Uderor[R$],Tab_Uderor[Competencia],Entrada!AB$7,Tab_Uderor[TipoReceita],Entrada!$P13) -> 5322559.53 | AC13: =SUMIFS(Tab_Uderor[R$],Tab_Uderor[Competencia],Entrada!AC$7,Tab_Uderor[TipoReceita],Entrada!$P13)-AF13 -> -370786.81 | AD13: =SUMIFS(Tab_Uderor[R$],Tab_Uderor[Competencia],Entrada!AD$7,Tab_Uderor[TipoReceita],Entrada!$P13)-AG13 -> 198841.36 | AE13: =SUMIFS(Tab_Uderor[R$],Tab_Uderor[Competencia],Entrada!AE$7,Tab_Uderor[TipoReceita],Entrada!$P13)-AH13 -> 0.1200000001 | AF13: 5357521 | AG13: 5357521 | AH13: 5357521
F14: (8) Índice de Aproveitamento Depreciado | G14: =G78*VLOOKUP(DATE(YEAR(CAPA!$C$10),MONTH(CAPA!$C$10)-1,1),Índices!$B$135:$D$638,3,0)/VLOOKUP(DATE(YEAR($G$70),MONTH($G$70)-1,1),Índices!$B$135:$D$638,3,0) -> 2025784.87 | J14: BMP - 610530507; 610532507; | K14: Participação nos Lucros e Resultados - PLR | L14: =SUMIFS(Tab_RIT_BMP[SALDO],Tab_RIT_BMP[ContaDetalhada],K14,Tab_RIT_BMP[ANO],$L$7,Tab_RIT_BMP[ContaPrincipal],"Pessoal") -> 16847984.89 | M14: =SUMIFS(Tab_RIT_BMP[SALDO],Tab_RIT_BMP[ContaDetalhada],K14,Tab_RIT_BMP[ANO],$M$7,Tab_RIT_BMP[ContaPrincipal],"Pessoal") -> 13595273.23 | P14: Serviços de avaliação técnica e aferição de medidores. | Q14: =IF((SUMIFS(Tab_Uderor[R$],Tab_Uderor[Competencia],Entrada!Q$7,Tab_Uderor[TipoReceita],Entrada!$P14))=0,R14,SUMIFS(Tab_Uderor[R$],Tab_Uderor[Competencia],Entrada!Q$7,Tab_Uderor[TipoReceita],Entrada!$P14)) -> 0 | R14: =IF((SUMIFS(Tab_Uderor[R$],Tab_Uderor[Competencia],Entrada!R$7,Tab_Uderor[TipoReceita],Entrada!$P14))=0,S14,SUMIFS(Tab_Uderor[R$],Tab_Uderor[Competencia],Entrada!R$7,Tab_Uderor[TipoReceita],Entrada!$P14)) -> 0 | S14: =SUMIFS(Tab_Uderor[R$],Tab_Uderor[Competencia],Entrada!S$7,Tab_Uderor[TipoReceita],Entrada!$P14) -> 0 | T14: =SUMIFS(Tab_Uderor[R$],Tab_Uderor[Competencia],Entrada!T$7,Tab_Uderor[TipoReceita],Entrada!$P14) -> 0 | U14: =SUMIFS(Tab_Uderor[R$],Tab_Uderor[Competencia],Entrada!U$7,Tab_Uderor[TipoReceita],Entrada!$P14) -> 0 | V14: =SUMIFS(Tab_Uderor[R$],Tab_Uderor[Competencia],Entrada!V$7,Tab_Uderor[TipoReceita],Entrada!$P14) -> 0 | W14: =SUMIFS(Tab_Uderor[R$],Tab_Uderor[Competencia],Entrada!W$7,Tab_Uderor[TipoReceita],Entrada!$P14) -> 0 | X14: =SUMIFS(Tab_Uderor[R$],Tab_Uderor[Competencia],Entrada!X$7,Tab_Uderor[TipoReceita],Entrada!$P14) -> 0 | Y14: =SUMIFS(Tab_Uderor[R$],Tab_Uderor[Competencia],Entrada!Y$7,Tab_Uderor[TipoReceita],Entrada!$P14) -> 0 | Z14: =SUMIFS(Tab_Uderor[R$],Tab_Uderor[Competencia],Entrada!Z$7,Tab_Uderor[TipoReceita],Entrada!$P14) -> 0 | AA14: =SUMIFS(Tab_Uderor[R$],Tab_Uderor[Competencia],Entrada!AA$7,Tab_Uderor[TipoReceita],Entrada!$P14) -> 0 | AB14: =SUMIFS(Tab_Uderor[R$],Tab_Uderor[Competencia],Entrada!AB$7,Tab_Uderor[TipoReceita],Entrada!$P14) -> 0 | AC14: =SUMIFS(Tab_Uderor[R$],Tab_Uderor[Competencia],Entrada!AC$7,Tab_Uderor[TipoReceita],Entrada!$P14)-AF14 -> 0 | AD14: =SUMIFS(Tab_Uderor[R$],Tab_Uderor[Competencia],Entrada!AD$7,Tab_Uderor[TipoReceita],Entrada!$P14)-AG14 -> 0 | AE14: =SUMIFS(Tab_Uderor[R$],Tab_Uderor[Competencia],Entrada!AE$7,Tab_Uderor[TipoReceita],Entrada!$P14)-AH14 -> 0
F15: (9) Valor da Base de Remuneração (VBR) | G15: =G13-G14 -> 2694452150 | J15: BMP - 610530599; 610532599; | K15: Outros | L15: =SUMIFS(Tab_RIT_BMP[SALDO],Tab_RIT_BMP[ContaDetalhada],K15,Tab_RIT_BMP[ANO],$L$7,Tab_RIT_BMP[ContaPrincipal],"Pessoal") -> 0 | M15: =SUMIFS(Tab_RIT_BMP[SALDO],Tab_RIT_BMP[ContaDetalhada],K15,Tab_RIT_BMP[ANO],$M$7,Tab_RIT_BMP[ContaPrincipal],"Pessoal") -> -1571568.95 | P15: Operacionalização de serviço de créditos tributários | Q15: =IF((SUMIFS(Tab_Uderor[R$],Tab_Uderor[Competencia],Entrada!Q$7,Tab_Uderor[TipoReceita],Entrada!$P15))=0,R15,SUMIFS(Tab_Uderor[R$],Tab_Uderor[Competencia],Entrada!Q$7,Tab_Uderor[TipoReceita],Entrada!$P15)) -> 0 | R15: =IF((SUMIFS(Tab_Uderor[R$],Tab_Uderor[Competencia],Entrada!R$7,Tab_Uderor[TipoReceita],Entrada!$P15))=0,S15,SUMIFS(Tab_Uderor[R$],Tab_Uderor[Competencia],Entrada!R$7,Tab_Uderor[TipoReceita],Entrada!$P15)) -> 0 | S15: =SUMIFS(Tab_Uderor[R$],Tab_Uderor[Competencia],Entrada!S$7,Tab_Uderor[TipoReceita],Entrada!$P15) -> 0 | T15: =SUMIFS(Tab_Uderor[R$],Tab_Uderor[Competencia],Entrada!T$7,Tab_Uderor[TipoReceita],Entrada!$P15) -> 0 | U15: =SUMIFS(Tab_Uderor[R$],Tab_Uderor[Competencia],Entrada!U$7,Tab_Uderor[TipoReceita],Entrada!$P15) -> 0 | V15: =SUMIFS(Tab_Uderor[R$],Tab_Uderor[Competencia],Entrada!V$7,Tab_Uderor[TipoReceita],Entrada!$P15) -> 0 | W15: =SUMIFS(Tab_Uderor[R$],Tab_Uderor[Competencia],Entrada!W$7,Tab_Uderor[TipoReceita],Entrada!$P15) -> 0 | X15: =SUMIFS(Tab_Uderor[R$],Tab_Uderor[Competencia],Entrada!X$7,Tab_Uderor[TipoReceita],Entrada!$P15) -> 0 | Y15: =SUMIFS(Tab_Uderor[R$],Tab_Uderor[Competencia],Entrada!Y$7,Tab_Uderor[TipoReceita],Entrada!$P15) -> 0 | Z15: =SUMIFS(Tab_Uderor[R$],Tab_Uderor[Competencia],Entrada!Z$7,Tab_Uderor[TipoReceita],Entrada!$P15) -> 0 | AA15: =SUMIFS(Tab_Uderor[R$],Tab_Uderor[Competencia],Entrada!AA$7,Tab_Uderor[TipoReceita],Entrada!$P15) -> 0 | AB15: =SUMIFS(Tab_Uderor[R$],Tab_Uderor[Competencia],Entrada!AB$7,Tab_Uderor[TipoReceita],Entrada!$P15) -> 0 | AC15: =SUMIFS(Tab_Uderor[R$],Tab_Uderor[Competencia],Entrada!AC$7,Tab_Uderor[TipoReceita],Entrada!$P15)-AF15 -> 0 | AD15: =SUMIFS(Tab_Uderor[R$],Tab_Uderor[Competencia],Entrada!AD$7,Tab_Uderor[TipoReceita],Entrada!$P15)-AG15 -> 0 | AE15: =SUMIFS(Tab_Uderor[R$],Tab_Uderor[Competencia],Entrada!AE$7,Tab_Uderor[TipoReceita],Entrada!$P15)-AH15 -> 0
F16: (10) Almoxarifado em Operação | G16: =G80*VLOOKUP(DATE(YEAR(CAPA!$C$10),MONTH(CAPA!$C$10)-1,1),Índices!$B$135:$D$638,3,0)/VLOOKUP(DATE(YEAR($G$70),MONTH($G$70)-1,1),Índices!$B$135:$D$638,3,0) -> 7490828.138 | J16: BMP - 610530510; 610532510; 610532610; | K16: (-) Créditos de Tributos Recuperáveis | L16: =SUMIFS(Tab_RIT_BMP[SALDO],Tab_RIT_BMP[ContaDetalhada],K16,Tab_RIT_BMP[ANO],$L$7,Tab_RIT_BMP[ContaPrincipal],"Pessoal") -> 0 | M16: =SUMIFS(Tab_RIT_BMP[SALDO],Tab_RIT_BMP[ContaDetalhada],K16,Tab_RIT_BMP[ANO],$M$7,Tab_RIT_BMP[ContaPrincipal],"Pessoal") -> 0 | P16: Elaboração de projeto, construção, operação, manutenção ou reforma de: | Q16: =IF((SUMIFS(Tab_Uderor[R$],Tab_Uderor[Competencia],Entrada!Q$7,Tab_Uderor[TipoReceita],Entrada!$P16))=0,R16,SUMIFS(Tab_Uderor[R$],Tab_Uderor[Competencia],Entrada!Q$7,Tab_Uderor[TipoReceita],Entrada!$P16)) -> 0 | R16: =IF((SUMIFS(Tab_Uderor[R$],Tab_Uderor[Competencia],Entrada!R$7,Tab_Uderor[TipoReceita],Entrada!$P16))=0,S16,SUMIFS(Tab_Uderor[R$],Tab_Uderor[Competencia],Entrada!R$7,Tab_Uderor[TipoReceita],Entrada!$P16)) -> 0 | S16: =SUMIFS(Tab_Uderor[R$],Tab_Uderor[Competencia],Entrada!S$7,Tab_Uderor[TipoReceita],Entrada!$P16) -> 0 | T16: =SUMIFS(Tab_Uderor[R$],Tab_Uderor[Competencia],Entrada!T$7,Tab_Uderor[TipoReceita],Entrada!$P16) -> 0 | U16: =SUMIFS(Tab_Uderor[R$],Tab_Uderor[Competencia],Entrada!U$7,Tab_Uderor[TipoReceita],Entrada!$P16) -> 0 | V16: =SUMIFS(Tab_Uderor[R$],Tab_Uderor[Competencia],Entrada!V$7,Tab_Uderor[TipoReceita],Entrada!$P16) -> 0 | W16: =SUMIFS(Tab_Uderor[R$],Tab_Uderor[Competencia],Entrada!W$7,Tab_Uderor[TipoReceita],Entrada!$P16) -> 0 | X16: =SUMIFS(Tab_Uderor[R$],Tab_Uderor[Competencia],Entrada!X$7,Tab_Uderor[TipoReceita],Entrada!$P16) -> 0 | Y16: =SUMIFS(Tab_Uderor[R$],Tab_Uderor[Competencia],Entrada!Y$7,Tab_Uderor[TipoReceita],Entrada!$P16) -> 0 | Z16: =SUMIFS(Tab_Uderor[R$],Tab_Uderor[Competencia],Entrada!Z$7,Tab_Uderor[TipoReceita],Entrada!$P16) -> 0 | AA16: =SUMIFS(Tab_Uderor[R$],Tab_Uderor[Competencia],Entrada!AA$7,Tab_Uderor[TipoReceita],Entrada!$P16) -> 0 | AB16: =SUMIFS(Tab_Uderor[R$],Tab_Uderor[Competencia],Entrada!AB$7,Tab_Uderor[TipoReceita],Entrada!$P16) -> 0 | AC16: =SUMIFS(Tab_Uderor[R$],Tab_Uderor[Competencia],Entrada!AC$7,Tab_Uderor[TipoReceita],Entrada!$P16)-AF16 -> 0 | AD16: =SUMIFS(Tab_Uderor[R$],Tab_Uderor[Competencia],Entrada!AD$7,Tab_Uderor[TipoReceita],Entrada!$P16)-AG16 -> 0 | AE16: =SUMIFS(Tab_Uderor[R$],Tab_Uderor[Competencia],Entrada!AE$7,Tab_Uderor[TipoReceita],Entrada!$P16)-AH16 -> 0
F17: (11) Ativo Diferido | G17: =G81*VLOOKUP(DATE(YEAR(CAPA!$C$10),MONTH(CAPA!$C$10)-1,1),Índices!$B$135:$D$638,3,0)/VLOOKUP(DATE(YEAR($G$70),MONTH($G$70)-1,1),Índices!$B$135:$D$638,3,0) -> 0 | J17: BMP - 610530602; 610532602; 610530601; 610532601; | K17: Honorários/Administradores | L17: =SUMIFS(Tab_RIT_BMP[SALDO],Tab_RIT_BMP[ContaDetalhada],"Honorários*",Tab_RIT_BMP[ANO],$L$7,Tab_RIT_BMP[ContaPrincipal],"Pessoal") + SUMIFS(Tab_RIT_BMP[SALDO],Tab_RIT_BMP[ContaDetalhada],"*Administradores",Tab_RIT_BMP[ANO],$L$7,Tab_RIT_BMP[ContaPrincipal],"Pessoal") -> 4672480.81 | M17: =SUMIFS(Tab_RIT_BMP[SALDO],Tab_RIT_BMP[ContaDetalhada],"Honorários*",Tab_RIT_BMP[ANO],$M$7,Tab_RIT_BMP[ContaPrincipal],"Pessoal") + SUMIFS(Tab_RIT_BMP[SALDO],Tab_RIT_BMP[ContaDetalhada],"*Administradores",Tab_RIT_BMP[ANO],$M$7,Tab_RIT_BMP[ContaPrincipal],"Pessoal") -> 4462423.46 | P17: (1) redes de distribuição de energia elétrica destinadas à regularização fundiária de interesse específico e ao atendimento dos empreendimentos de múltiplas unidades consumidoras; | Q17: =IF((SUMIFS(Tab_Uderor[R$],Tab_Uderor[Competencia],Entrada!Q$7,Tab_Uderor[TipoReceita],Entrada!$P17))=0,R17,SUMIFS(Tab_Uderor[R$],Tab_Uderor[Competencia],Entrada!Q$7,Tab_Uderor[TipoReceita],Entrada!$P17)) -> 0 | R17: =IF((SUMIFS(Tab_Uderor[R$],Tab_Uderor[Competencia],Entrada!R$7,Tab_Uderor[TipoReceita],Entrada!$P17))=0,S17,SUMIFS(Tab_Uderor[R$],Tab_Uderor[Competencia],Entrada!R$7,Tab_Uderor[TipoReceita],Entrada!$P17)) -> 0 | S17: =SUMIFS(Tab_Uderor[R$],Tab_Uderor[Competencia],Entrada!S$7,Tab_Uderor[TipoReceita],Entrada!$P17) -> 0 | T17: =SUMIFS(Tab_Uderor[R$],Tab_Uderor[Competencia],Entrada!T$7,Tab_Uderor[TipoReceita],Entrada!$P17) -> 0 | U17: =SUMIFS(Tab_Uderor[R$],Tab_Uderor[Competencia],Entrada!U$7,Tab_Uderor[TipoReceita],Entrada!$P17) -> 0 | V17: =SUMIFS(Tab_Uderor[R$],Tab_Uderor[Competencia],Entrada!V$7,Tab_Uderor[TipoReceita],Entrada!$P17) -> 0 | W17: =SUMIFS(Tab_Uderor[R$],Tab_Uderor[Competencia],Entrada!W$7,Tab_Uderor[TipoReceita],Entrada!$P17) -> 0 | X17: =SUMIFS(Tab_Uderor[R$],Tab_Uderor[Competencia],Entrada!X$7,Tab_Uderor[TipoReceita],Entrada!$P17) -> 0 | Y17: =SUMIFS(Tab_Uderor[R$],Tab_Uderor[Competencia],Entrada!Y$7,Tab_Uderor[TipoReceita],Entrada!$P17) -> 0 | Z17: =SUMIFS(Tab_Uderor[R$],Tab_Uderor[Competencia],Entrada!Z$7,Tab_Uderor[TipoReceita],Entrada!$P17) -> 0 | AA17: =SUMIFS(Tab_Uderor[R$],Tab_Uderor[Competencia],Entrada!AA$7,Tab_Uderor[TipoReceita],Entrada!$P17) -> 0 | AB17: =SUMIFS(Tab_Uderor[R$],Tab_Uderor[Competencia],Entrada!AB$7,Tab_Uderor[TipoReceita],Entrada!$P17) -> 0 | AC17: =SUMIFS(Tab_Uderor[R$],Tab_Uderor[Competencia],Entrada!AC$7,Tab_Uderor[TipoReceita],Entrada!$P17)-AF17 -> 0 | AD17: =SUMIFS(Tab_Uderor[R$],Tab_Uderor[Competencia],Entrada!AD$7,Tab_Uderor[TipoReceita],Entrada!$P17)-AG17 -> 0 | AE17: =SUMIFS(Tab_Uderor[R$],Tab_Uderor[Competencia],Entrada!AE$7,Tab_Uderor[TipoReceita],Entrada!$P17)-AH17 -> 0
F18: (12) Obrigações Especiais Líquida | G18: =G82*VLOOKUP(DATE(YEAR(CAPA!$C$10),MONTH(CAPA!$C$10)-1,1),Índices!$B$135:$D$638,3,0)/VLOOKUP(DATE(YEAR($G$70),MONTH($G$70)-1,1),Índices!$B$135:$D$638,3,0) -> 520472230 | K18: Subtotal | L18: =SUM(L9:L17) -> 116199496.9 | M18: =SUM(M9:M17) -> 121781565.5 | P18: (2) redes de energia elétrica destinadas ao acesso dos sistemas de distribuição ou transmissão; | Q18: =IF((SUMIFS(Tab_Uderor[R$],Tab_Uderor[Competencia],Entrada!Q$7,Tab_Uderor[TipoReceita],Entrada!$P18))=0,R18,SUMIFS(Tab_Uderor[R$],Tab_Uderor[Competencia],Entrada!Q$7,Tab_Uderor[TipoReceita],Entrada!$P18)) -> 0 | R18: =IF((SUMIFS(Tab_Uderor[R$],Tab_Uderor[Competencia],Entrada!R$7,Tab_Uderor[TipoReceita],Entrada!$P18))=0,S18,SUMIFS(Tab_Uderor[R$],Tab_Uderor[Competencia],Entrada!R$7,Tab_Uderor[TipoReceita],Entrada!$P18)) -> 0 | S18: =SUMIFS(Tab_Uderor[R$],Tab_Uderor[Competencia],Entrada!S$7,Tab_Uderor[TipoReceita],Entrada!$P18) -> 0 | T18: =SUMIFS(Tab_Uderor[R$],Tab_Uderor[Competencia],Entrada!T$7,Tab_Uderor[TipoReceita],Entrada!$P18) -> 0 | U18: =SUMIFS(Tab_Uderor[R$],Tab_Uderor[Competencia],Entrada!U$7,Tab_Uderor[TipoReceita],Entrada!$P18) -> 0 | V18: =SUMIFS(Tab_Uderor[R$],Tab_Uderor[Competencia],Entrada!V$7,Tab_Uderor[TipoReceita],Entrada!$P18) -> 0 | W18: =SUMIFS(Tab_Uderor[R$],Tab_Uderor[Competencia],Entrada!W$7,Tab_Uderor[TipoReceita],Entrada!$P18) -> 0 | X18: =SUMIFS(Tab_Uderor[R$],Tab_Uderor[Competencia],Entrada!X$7,Tab_Uderor[TipoReceita],Entrada!$P18) -> 0 | Y18: =SUMIFS(Tab_Uderor[R$],Tab_Uderor[Competencia],Entrada!Y$7,Tab_Uderor[TipoReceita],Entrada!$P18) -> 0 | Z18: =SUMIFS(Tab_Uderor[R$],Tab_Uderor[Competencia],Entrada!Z$7,Tab_Uderor[TipoReceita],Entrada!$P18) -> 0 | AA18: =SUMIFS(Tab_Uderor[R$],Tab_Uderor[Competencia],Entrada!AA$7,Tab_Uderor[TipoReceita],Entrada!$P18) -> 0 | AB18: =SUMIFS(Tab_Uderor[R$],Tab_Uderor[Competencia],Entrada!AB$7,Tab_Uderor[TipoReceita],Entrada!$P18) -> 0 | AC18: =SUMIFS(Tab_Uderor[R$],Tab_Uderor[Competencia],Entrada!AC$7,Tab_Uderor[TipoReceita],Entrada!$P18)-AF18 -> 0 | AD18: =SUMIFS(Tab_Uderor[R$],Tab_Uderor[Competencia],Entrada!AD$7,Tab_Uderor[TipoReceita],Entrada!$P18)-AG18 -> 0 | AE18: =SUMIFS(Tab_Uderor[R$],Tab_Uderor[Competencia],Entrada!AE$7,Tab_Uderor[TipoReceita],Entrada!$P18)-AH18 -> 0
F19: (13) Terrenos e Servidões | G19: =G83*VLOOKUP(DATE(YEAR(CAPA!$C$10),MONTH(CAPA!$C$10)-1,1),Índices!$B$135:$D$638,3,0)/VLOOKUP(DATE(YEAR($G$70),MONTH($G$70)-1,1),Índices!$B$135:$D$638,3,0) -> 71718692.63 | J19: MATERIAIS | P19: (3) subestações de energia; | Q19: =IF((SUMIFS(Tab_Uderor[R$],Tab_Uderor[Competencia],Entrada!Q$7,Tab_Uderor[TipoReceita],Entrada!$P19))=0,R19,SUMIFS(Tab_Uderor[R$],Tab_Uderor[Competencia],Entrada!Q$7,Tab_Uderor[TipoReceita],Entrada!$P19)) -> 0 | R19: =IF((SUMIFS(Tab_Uderor[R$],Tab_Uderor[Competencia],Entrada!R$7,Tab_Uderor[TipoReceita],Entrada!$P19))=0,S19,SUMIFS(Tab_Uderor[R$],Tab_Uderor[Competencia],Entrada!R$7,Tab_Uderor[TipoReceita],Entrada!$P19)) -> 0 | S19: =SUMIFS(Tab_Uderor[R$],Tab_Uderor[Competencia],Entrada!S$7,Tab_Uderor[TipoReceita],Entrada!$P19) -> 0 | T19: =SUMIFS(Tab_Uderor[R$],Tab_Uderor[Competencia],Entrada!T$7,Tab_Uderor[TipoReceita],Entrada!$P19) -> 0 | U19: =SUMIFS(Tab_Uderor[R$],Tab_Uderor[Competencia],Entrada!U$7,Tab_Uderor[TipoReceita],Entrada!$P19) -> 0 | V19: =SUMIFS(Tab_Uderor[R$],Tab_Uderor[Competencia],Entrada!V$7,Tab_Uderor[TipoReceita],Entrada!$P19) -> 0 | W19: =SUMIFS(Tab_Uderor[R$],Tab_Uderor[Competencia],Entrada!W$7,Tab_Uderor[TipoReceita],Entrada!$P19) -> 0 | X19: =SUMIFS(Tab_Uderor[R$],Tab_Uderor[Competencia],Entrada!X$7,Tab_Uderor[TipoReceita],Entrada!$P19) -> 0 | Y19: =SUMIFS(Tab_Uderor[R$],Tab_Uderor[Competencia],Entrada!Y$7,Tab_Uderor[TipoReceita],Entrada!$P19) -> 0 | Z19: =SUMIFS(Tab_Uderor[R$],Tab_Uderor[Competencia],Entrada!Z$7,Tab_Uderor[TipoReceita],Entrada!$P19) -> 0 | AA19: =SUMIFS(Tab_Uderor[R$],Tab_Uderor[Competencia],Entrada!AA$7,Tab_Uderor[TipoReceita],Entrada!$P19) -> 0 | AB19: =SUMIFS(Tab_Uderor[R$],Tab_Uderor[Competencia],Entrada!AB$7,Tab_Uderor[TipoReceita],Entrada!$P19) -> 0 | AC19: =SUMIFS(Tab_Uderor[R$],Tab_Uderor[Competencia],Entrada!AC$7,Tab_Uderor[TipoReceita],Entrada!$P19)-AF19 -> 0 | AD19: =SUMIFS(Tab_Uderor[R$],Tab_Uderor[Competencia],Entrada!AD$7,Tab_Uderor[TipoReceita],Entrada!$P19)-AG19 -> 0 | AE19: =SUMIFS(Tab_Uderor[R$],Tab_Uderor[Competencia],Entrada!AE$7,Tab_Uderor[TipoReceita],Entrada!$P19)-AH19 -> 0
F20: (14) Base de Rem. Líquida Total = (1)-(6)-(8)+(10)+(11)-(12)+(13) | G20: =G15+G16+G17-G18+G19 -> 2253189441 | J20: BMP - 610530701; 610532701; | K20: Materiais | L20: =SUMIFS(Tab_RIT_BMP[SALDO],Tab_RIT_BMP[ContaDetalhada],K20,Tab_RIT_BMP[ANO],$L$7,Tab_RIT_BMP[ContaPrincipal],"Materiais") -> 22416173.74 | M20: =SUMIFS(Tab_RIT_BMP[SALDO],Tab_RIT_BMP[ContaDetalhada],K20,Tab_RIT_BMP[ANO],$M$7,Tab_RIT_BMP[ContaPrincipal],"Materiais") -> 22239809.99 | P20: (4) instalações elétricas internas de unidades consumidoras; | Q20: =IF((SUMIFS(Tab_Uderor[R$],Tab_Uderor[Competencia],Entrada!Q$7,Tab_Uderor[TipoReceita],Entrada!$P20))=0,R20,SUMIFS(Tab_Uderor[R$],Tab_Uderor[Competencia],Entrada!Q$7,Tab_Uderor[TipoReceita],Entrada!$P20)) -> 0 | R20: =IF((SUMIFS(Tab_Uderor[R$],Tab_Uderor[Competencia],Entrada!R$7,Tab_Uderor[TipoReceita],Entrada!$P20))=0,S20,SUMIFS(Tab_Uderor[R$],Tab_Uderor[Competencia],Entrada!R$7,Tab_Uderor[TipoReceita],Entrada!$P20)) -> 0 | S20: =SUMIFS(Tab_Uderor[R$],Tab_Uderor[Competencia],Entrada!S$7,Tab_Uderor[TipoReceita],Entrada!$P20) -> 0 | T20: =SUMIFS(Tab_Uderor[R$],Tab_Uderor[Competencia],Entrada!T$7,Tab_Uderor[TipoReceita],Entrada!$P20) -> 0 | U20: =SUMIFS(Tab_Uderor[R$],Tab_Uderor[Competencia],Entrada!U$7,Tab_Uderor[TipoReceita],Entrada!$P20) -> 0 | V20: =SUMIFS(Tab_Uderor[R$],Tab_Uderor[Competencia],Entrada!V$7,Tab_Uderor[TipoReceita],Entrada!$P20) -> 0 | W20: =SUMIFS(Tab_Uderor[R$],Tab_Uderor[Competencia],Entrada!W$7,Tab_Uderor[TipoReceita],Entrada!$P20) -> 0 | X20: =SUMIFS(Tab_Uderor[R$],Tab_Uderor[Competencia],Entrada!X$7,Tab_Uderor[TipoReceita],Entrada!$P20) -> 0 | Y20: =SUMIFS(Tab_Uderor[R$],Tab_Uderor[Competencia],Entrada!Y$7,Tab_Uderor[TipoReceita],Entrada!$P20) -> 0 | Z20: =SUMIFS(Tab_Uderor[R$],Tab_Uderor[Competencia],Entrada!Z$7,Tab_Uderor[TipoReceita],Entrada!$P20) -> 0 | AA20: =SUMIFS(Tab_Uderor[R$],Tab_Uderor[Competencia],Entrada!AA$7,Tab_Uderor[TipoReceita],Entrada!$P20) -> 0 | AB20: =SUMIFS(Tab_Uderor[R$],Tab_Uderor[Competencia],Entrada!AB$7,Tab_Uderor[TipoReceita],Entrada!$P20) -> 0 | AC20: =SUMIFS(Tab_Uderor[R$],Tab_Uderor[Competencia],Entrada!AC$7,Tab_Uderor[TipoReceita],Entrada!$P20)-AF20 -> 0 | AD20: =SUMIFS(Tab_Uderor[R$],Tab_Uderor[Competencia],Entrada!AD$7,Tab_Uderor[TipoReceita],Entrada!$P20)-AG20 -> 0 | AE20: =SUMIFS(Tab_Uderor[R$],Tab_Uderor[Competencia],Entrada!AE$7,Tab_Uderor[TipoReceita],Entrada!$P20)-AH20 -> 0
F21: (15) Saldo RGR PLPT | G21: =G85*VLOOKUP(DATE(YEAR(CAPA!$C$10),MONTH(CAPA!$C$10)-1,1),Índices!$B$135:$D$638,3,0)/VLOOKUP(DATE(YEAR($G$70),MONTH($G$70)-1,1),Índices!$B$135:$D$638,3,0) -> 0 | J21: BMP - 610530799; 610532799; | K21: Outros | L21: =SUMIFS(Tab_RIT_BMP[SALDO],Tab_RIT_BMP[ContaDetalhada],K21,Tab_RIT_BMP[ANO],$L$7,Tab_RIT_BMP[ContaPrincipal],"Materiais") -> 124904.27 | M21: =SUMIFS(Tab_RIT_BMP[SALDO],Tab_RIT_BMP[ContaDetalhada],K21,Tab_RIT_BMP[ANO],$M$7,Tab_RIT_BMP[ContaPrincipal],"Materiais") -> 606057.21 | P21: (5) banco de capacitores; | Q21: =IF((SUMIFS(Tab_Uderor[R$],Tab_Uderor[Competencia],Entrada!Q$7,Tab_Uderor[TipoReceita],Entrada!$P21))=0,R21,SUMIFS(Tab_Uderor[R$],Tab_Uderor[Competencia],Entrada!Q$7,Tab_Uderor[TipoReceita],Entrada!$P21)) -> 0 | R21: =IF((SUMIFS(Tab_Uderor[R$],Tab_Uderor[Competencia],Entrada!R$7,Tab_Uderor[TipoReceita],Entrada!$P21))=0,S21,SUMIFS(Tab_Uderor[R$],Tab_Uderor[Competencia],Entrada!R$7,Tab_Uderor[TipoReceita],Entrada!$P21)) -> 0 | S21: =SUMIFS(Tab_Uderor[R$],Tab_Uderor[Competencia],Entrada!S$7,Tab_Uderor[TipoReceita],Entrada!$P21) -> 0 | T21: =SUMIFS(Tab_Uderor[R$],Tab_Uderor[Competencia],Entrada!T$7,Tab_Uderor[TipoReceita],Entrada!$P21) -> 0 | U21: =SUMIFS(Tab_Uderor[R$],Tab_Uderor[Competencia],Entrada!U$7,Tab_Uderor[TipoReceita],Entrada!$P21) -> 0 | V21: =SUMIFS(Tab_Uderor[R$],Tab_Uderor[Competencia],Entrada!V$7,Tab_Uderor[TipoReceita],Entrada!$P21) -> 0 | W21: =SUMIFS(Tab_Uderor[R$],Tab_Uderor[Competencia],Entrada!W$7,Tab_Uderor[TipoReceita],Entrada!$P21) -> 0 | X21: =SUMIFS(Tab_Uderor[R$],Tab_Uderor[Competencia],Entrada!X$7,Tab_Uderor[TipoReceita],Entrada!$P21) -> 0 | Y21: =SUMIFS(Tab_Uderor[R$],Tab_Uderor[Competencia],Entrada!Y$7,Tab_Uderor[TipoReceita],Entrada!$P21) -> 0 | Z21: =SUMIFS(Tab_Uderor[R$],Tab_Uderor[Competencia],Entrada!Z$7,Tab_Uderor[TipoReceita],Entrada!$P21) -> 0 | AA21: =SUMIFS(Tab_Uderor[R$],Tab_Uderor[Competencia],Entrada!AA$7,Tab_Uderor[TipoReceita],Entrada!$P21) -> 0 | AB21: =SUMIFS(Tab_Uderor[R$],Tab_Uderor[Competencia],Entrada!AB$7,Tab_Uderor[TipoReceita],Entrada!$P21) -> 0 | AC21: =SUMIFS(Tab_Uderor[R$],Tab_Uderor[Competencia],Entrada!AC$7,Tab_Uderor[TipoReceita],Entrada!$P21)-AF21 -> 0 | AD21: =SUMIFS(Tab_Uderor[R$],Tab_Uderor[Competencia],Entrada!AD$7,Tab_Uderor[TipoReceita],Entrada!$P21)-AG21 -> 0 | AE21: =SUMIFS(Tab_Uderor[R$],Tab_Uderor[Competencia],Entrada!AE$7,Tab_Uderor[TipoReceita],Entrada!$P21)-AH21 -> 0
F22: (16) Saldo RGR Demais Investimentos | G22: =G86*VLOOKUP(DATE(YEAR(CAPA!$C$10),MONTH(CAPA!$C$10)-1,1),Índices!$B$135:$D$638,3,0)/VLOOKUP(DATE(YEAR($G$70),MONTH($G$70)-1,1),Índices!$B$135:$D$638,3,0) -> 0 | J22: BMP - 610530710; 610532710; | K22: (-) Créditos de Tributos Recuperáveis | L22: =SUMIFS(Tab_RIT_BMP[SALDO],Tab_RIT_BMP[ContaDetalhada],K22,Tab_RIT_BMP[ANO],$L$7,Tab_RIT_BMP[ContaPrincipal],"Materiais") -> -421421.88 | M22: =SUMIFS(Tab_RIT_BMP[SALDO],Tab_RIT_BMP[ContaDetalhada],K22,Tab_RIT_BMP[ANO],$M$7,Tab_RIT_BMP[ContaPrincipal],"Materiais") -> -453923.28 | P22: (6) padrões de entrada de unidades consumidoras atendidas em baixa tensão; | Q22: =IF((SUMIFS(Tab_Uderor[R$],Tab_Uderor[Competencia],Entrada!Q$7,Tab_Uderor[TipoReceita],Entrada!$P22))=0,R22,SUMIFS(Tab_Uderor[R$],Tab_Uderor[Competencia],Entrada!Q$7,Tab_Uderor[TipoReceita],Entrada!$P22)) -> 0 | R22: =IF((SUMIFS(Tab_Uderor[R$],Tab_Uderor[Competencia],Entrada!R$7,Tab_Uderor[TipoReceita],Entrada!$P22))=0,S22,SUMIFS(Tab_Uderor[R$],Tab_Uderor[Competencia],Entrada!R$7,Tab_Uderor[TipoReceita],Entrada!$P22)) -> 0 | S22: =SUMIFS(Tab_Uderor[R$],Tab_Uderor[Competencia],Entrada!S$7,Tab_Uderor[TipoReceita],Entrada!$P22) -> 0 | T22: =SUMIFS(Tab_Uderor[R$],Tab_Uderor[Competencia],Entrada!T$7,Tab_Uderor[TipoReceita],Entrada!$P22) -> 0 | U22: =SUMIFS(Tab_Uderor[R$],Tab_Uderor[Competencia],Entrada!U$7,Tab_Uderor[TipoReceita],Entrada!$P22) -> 0 | V22: =SUMIFS(Tab_Uderor[R$],Tab_Uderor[Competencia],Entrada!V$7,Tab_Uderor[TipoReceita],Entrada!$P22) -> 0 | W22: =SUMIFS(Tab_Uderor[R$],Tab_Uderor[Competencia],Entrada!W$7,Tab_Uderor[TipoReceita],Entrada!$P22) -> 0 | X22: =SUMIFS(Tab_Uderor[R$],Tab_Uderor[Competencia],Entrada!X$7,Tab_Uderor[TipoReceita],Entrada!$P22) -> 0 | Y22: =SUMIFS(Tab_Uderor[R$],Tab_Uderor[Competencia],Entrada!Y$7,Tab_Uderor[TipoReceita],Entrada!$P22) -> 0 | Z22: =SUMIFS(Tab_Uderor[R$],Tab_Uderor[Competencia],Entrada!Z$7,Tab_Uderor[TipoReceita],Entrada!$P22) -> 0 | AA22: =SUMIFS(Tab_Uderor[R$],Tab_Uderor[Competencia],Entrada!AA$7,Tab_Uderor[TipoReceita],Entrada!$P22) -> 0 | AB22: =SUMIFS(Tab_Uderor[R$],Tab_Uderor[Competencia],Entrada!AB$7,Tab_Uderor[TipoReceita],Entrada!$P22) -> 0 | AC22: =SUMIFS(Tab_Uderor[R$],Tab_Uderor[Competencia],Entrada!AC$7,Tab_Uderor[TipoReceita],Entrada!$P22)-AF22 -> 0 | AD22: =SUMIFS(Tab_Uderor[R$],Tab_Uderor[Competencia],Entrada!AD$7,Tab_Uderor[TipoReceita],Entrada!$P22)-AG22 -> 0 | AE22: =SUMIFS(Tab_Uderor[R$],Tab_Uderor[Competencia],Entrada!AE$7,Tab_Uderor[TipoReceita],Entrada!$P22)-AH22 -> 0
F23: (17) Taxa de Depreciação | G23: =G87 -> 0.0419 | K23: Subtotal | L23: =SUM(L20:L22) -> 22119656.13 | M23: =SUM(M20:M22) -> 22391943.92 | P23: (7) sistemas de medição de energia elétrica; | Q23: =IF((SUMIFS(Tab_Uderor[R$],Tab_Uderor[Competencia],Entrada!Q$7,Tab_Uderor[TipoReceita],Entrada!$P23))=0,R23,SUMIFS(Tab_Uderor[R$],Tab_Uderor[Competencia],Entrada!Q$7,Tab_Uderor[TipoReceita],Entrada!$P23)) -> 0 | R23: =IF((SUMIFS(Tab_Uderor[R$],Tab_Uderor[Competencia],Entrada!R$7,Tab_Uderor[TipoReceita],Entrada!$P23))=0,S23,SUMIFS(Tab_Uderor[R$],Tab_Uderor[Competencia],Entrada!R$7,Tab_Uderor[TipoReceita],Entrada!$P23)) -> 0 | S23: =SUMIFS(Tab_Uderor[R$],Tab_Uderor[Competencia],Entrada!S$7,Tab_Uderor[TipoReceita],Entrada!$P23) -> 0 | T23: =SUMIFS(Tab_Uderor[R$],Tab_Uderor[Competencia],Entrada!T$7,Tab_Uderor[TipoReceita],Entrada!$P23) -> 0 | U23: =SUMIFS(Tab_Uderor[R$],Tab_Uderor[Competencia],Entrada!U$7,Tab_Uderor[TipoReceita],Entrada!$P23) -> 0 | V23: =SUMIFS(Tab_Uderor[R$],Tab_Uderor[Competencia],Entrada!V$7,Tab_Uderor[TipoReceita],Entrada!$P23) -> 0 | W23: =SUMIFS(Tab_Uderor[R$],Tab_Uderor[Competencia],Entrada!W$7,Tab_Uderor[TipoReceita],Entrada!$P23) -> 0 | X23: =SUMIFS(Tab_Uderor[R$],Tab_Uderor[Competencia],Entrada!X$7,Tab_Uderor[TipoReceita],Entrada!$P23) -> 0 | Y23: =SUMIFS(Tab_Uderor[R$],Tab_Uderor[Competencia],Entrada!Y$7,Tab_Uderor[TipoReceita],Entrada!$P23) -> 0 | Z23: =SUMIFS(Tab_Uderor[R$],Tab_Uderor[Competencia],Entrada!Z$7,Tab_Uderor[TipoReceita],Entrada!$P23) -> 0 | AA23: =SUMIFS(Tab_Uderor[R$],Tab_Uderor[Competencia],Entrada!AA$7,Tab_Uderor[TipoReceita],Entrada!$P23) -> 0 | AB23: =SUMIFS(Tab_Uderor[R$],Tab_Uderor[Competencia],Entrada!AB$7,Tab_Uderor[TipoReceita],Entrada!$P23) -> 0 | AC23: =SUMIFS(Tab_Uderor[R$],Tab_Uderor[Competencia],Entrada!AC$7,Tab_Uderor[TipoReceita],Entrada!$P23)-AF23 -> 0 | AD23: =SUMIFS(Tab_Uderor[R$],Tab_Uderor[Competencia],Entrada!AD$7,Tab_Uderor[TipoReceita],Entrada!$P23)-AG23 -> 0 | AE23: =SUMIFS(Tab_Uderor[R$],Tab_Uderor[Competencia],Entrada!AE$7,Tab_Uderor[TipoReceita],Entrada!$P23)-AH23 -> 0
F24: (18) Quota de Reintegração Regulatória = (5) * (17) | G24: =G23*G11 -> 123325799.5 | J24: SERVIÇOS | P24: (8) geradores, incluindo-se unidades de microgeração e minigeração distribuída; | Q24: =IF((SUMIFS(Tab_Uderor[R$],Tab_Uderor[Competencia],Entrada!Q$7,Tab_Uderor[TipoReceita],Entrada!$P24))=0,R24,SUMIFS(Tab_Uderor[R$],Tab_Uderor[Competencia],Entrada!Q$7,Tab_Uderor[TipoReceita],Entrada!$P24)) -> 0 | R24: =IF((SUMIFS(Tab_Uderor[R$],Tab_Uderor[Competencia],Entrada!R$7,Tab_Uderor[TipoReceita],Entrada!$P24))=0,S24,SUMIFS(Tab_Uderor[R$],Tab_Uderor[Competencia],Entrada!R$7,Tab_Uderor[TipoReceita],Entrada!$P24)) -> 0 | S24: =SUMIFS(Tab_Uderor[R$],Tab_Uderor[Competencia],Entrada!S$7,Tab_Uderor[TipoReceita],Entrada!$P24) -> 0 | T24: =SUMIFS(Tab_Uderor[R$],Tab_Uderor[Competencia],Entrada!T$7,Tab_Uderor[TipoReceita],Entrada!$P24) -> 0 | U24: =SUMIFS(Tab_Uderor[R$],Tab_Uderor[Competencia],Entrada!U$7,Tab_Uderor[TipoReceita],Entrada!$P24) -> 0 | V24: =SUMIFS(Tab_Uderor[R$],Tab_Uderor[Competencia],Entrada!V$7,Tab_Uderor[TipoReceita],Entrada!$P24) -> 0 | W24: =SUMIFS(Tab_Uderor[R$],Tab_Uderor[Competencia],Entrada!W$7,Tab_Uderor[TipoReceita],Entrada!$P24) -> 0 | X24: =SUMIFS(Tab_Uderor[R$],Tab_Uderor[Competencia],Entrada!X$7,Tab_Uderor[TipoReceita],Entrada!$P24) -> 0 | Y24: =SUMIFS(Tab_Uderor[R$],Tab_Uderor[Competencia],Entrada!Y$7,Tab_Uderor[TipoReceita],Entrada!$P24) -> 0 | Z24: =SUMIFS(Tab_Uderor[R$],Tab_Uderor[Competencia],Entrada!Z$7,Tab_Uderor[TipoReceita],Entrada!$P24) -> 0 | AA24: =SUMIFS(Tab_Uderor[R$],Tab_Uderor[Competencia],Entrada!AA$7,Tab_Uderor[TipoReceita],Entrada!$P24) -> 0 | AB24: =SUMIFS(Tab_Uderor[R$],Tab_Uderor[Competencia],Entrada!AB$7,Tab_Uderor[TipoReceita],Entrada!$P24) -> 0 | AC24: =SUMIFS(Tab_Uderor[R$],Tab_Uderor[Competencia],Entrada!AC$7,Tab_Uderor[TipoReceita],Entrada!$P24)-AF24 -> 0 | AD24: =SUMIFS(Tab_Uderor[R$],Tab_Uderor[Competencia],Entrada!AD$7,Tab_Uderor[TipoReceita],Entrada!$P24)-AG24 -> 0 | AE24: =SUMIFS(Tab_Uderor[R$],Tab_Uderor[Competencia],Entrada!AE$7,Tab_Uderor[TipoReceita],Entrada!$P24)-AH24 -> 0
J25: BMP - 610530801; 610532801; | K25: (-) Créditos de Tributos Recuperáveis | L25: =SUMIFS(Tab_RIT_BMP[SALDO],Tab_RIT_BMP[ContaDetalhada],"Serviços de Terceiros",Tab_RIT_BMP[ANO],$L$7,Tab_RIT_BMP[ContaPrincipal],"Serviços") -> 110614949.3 | M25: =SUMIFS(Tab_RIT_BMP[SALDO],Tab_RIT_BMP[ContaDetalhada],"Serviços de Terceiros",Tab_RIT_BMP[ANO],$M$7,Tab_RIT_BMP[ContaPrincipal],"Serviços") -> 118203461.8 | P25: (9) sistemas de iluminação pública. | Q25: =IF((SUMIFS(Tab_Uderor[R$],Tab_Uderor[Competencia],Entrada!Q$7,Tab_Uderor[TipoReceita],Entrada!$P25))=0,R25,SUMIFS(Tab_Uderor[R$],Tab_Uderor[Competencia],Entrada!Q$7,Tab_Uderor[TipoReceita],Entrada!$P25)) -> 0 | R25: =IF((SUMIFS(Tab_Uderor[R$],Tab_Uderor[Competencia],Entrada!R$7,Tab_Uderor[TipoReceita],Entrada!$P25))=0,S25,SUMIFS(Tab_Uderor[R$],Tab_Uderor[Competencia],Entrada!R$7,Tab_Uderor[TipoReceita],Entrada!$P25)) -> 0 | S25: =SUMIFS(Tab_Uderor[R$],Tab_Uderor[Competencia],Entrada!S$7,Tab_Uderor[TipoReceita],Entrada!$P25) -> 0 | T25: =SUMIFS(Tab_Uderor[R$],Tab_Uderor[Competencia],Entrada!T$7,Tab_Uderor[TipoReceita],Entrada!$P25) -> 0 | U25: =SUMIFS(Tab_Uderor[R$],Tab_Uderor[Competencia],Entrada!U$7,Tab_Uderor[TipoReceita],Entrada!$P25) -> 0 | V25: =SUMIFS(Tab_Uderor[R$],Tab_Uderor[Competencia],Entrada!V$7,Tab_Uderor[TipoReceita],Entrada!$P25) -> 0 | W25: =SUMIFS(Tab_Uderor[R$],Tab_Uderor[Competencia],Entrada!W$7,Tab_Uderor[TipoReceita],Entrada!$P25) -> 0 | X25: =SUMIFS(Tab_Uderor[R$],Tab_Uderor[Competencia],Entrada!X$7,Tab_Uderor[TipoReceita],Entrada!$P25) -> 0 | Y25: =SUMIFS(Tab_Uderor[R$],Tab_Uderor[Competencia],Entrada!Y$7,Tab_Uderor[TipoReceita],Entrada!$P25) -> 0 | Z25: =SUMIFS(Tab_Uderor[R$],Tab_Uderor[Competencia],Entrada!Z$7,Tab_Uderor[TipoReceita],Entrada!$P25) -> 0 | AA25: =SUMIFS(Tab_Uderor[R$],Tab_Uderor[Competencia],Entrada!AA$7,Tab_Uderor[TipoReceita],Entrada!$P25) -> 0 | AB25: =SUMIFS(Tab_Uderor[R$],Tab_Uderor[Competencia],Entrada!AB$7,Tab_Uderor[TipoReceita],Entrada!$P25) -> 0 | AC25: =SUMIFS(Tab_Uderor[R$],Tab_Uderor[Competencia],Entrada!AC$7,Tab_Uderor[TipoReceita],Entrada!$P25)-AF25 -> 0 | AD25: =SUMIFS(Tab_Uderor[R$],Tab_Uderor[Competencia],Entrada!AD$7,Tab_Uderor[TipoReceita],Entrada!$P25)-AG25 -> 0 | AE25: =SUMIFS(Tab_Uderor[R$],Tab_Uderor[Competencia],Entrada!AE$7,Tab_Uderor[TipoReceita],Entrada!$P25)-AH25 -> 0
F26: Gasto do Conselho de Consumidores | J26: BMP - 610530810; 610532810; | K26: Transferências da Administração Central | L26: =SUMIFS(Tab_RIT_BMP[SALDO],Tab_RIT_BMP[ContaDetalhada],"*Créditos*",Tab_RIT_BMP[ANO],$L$7,Tab_RIT_BMP[ContaPrincipal],"Serviços") -> -1356015.08 | M26: =SUMIFS(Tab_RIT_BMP[SALDO],Tab_RIT_BMP[ContaDetalhada],"*Créditos*",Tab_RIT_BMP[ANO],$M$7,Tab_RIT_BMP[ContaPrincipal],"Serviços") -> -1269387.4 | P26: (10) estações de recarga de veículos elétricos, incluindo a prestação de serviços aos usuários | Q26: =IF((SUMIFS(Tab_Uderor[R$],Tab_Uderor[Competencia],Entrada!Q$7,Tab_Uderor[TipoReceita],Entrada!$P26))=0,R26,SUMIFS(Tab_Uderor[R$],Tab_Uderor[Competencia],Entrada!Q$7,Tab_Uderor[TipoReceita],Entrada!$P26)) -> 0 | R26: =IF((SUMIFS(Tab_Uderor[R$],Tab_Uderor[Competencia],Entrada!R$7,Tab_Uderor[TipoReceita],Entrada!$P26))=0,S26,SUMIFS(Tab_Uderor[R$],Tab_Uderor[Competencia],Entrada!R$7,Tab_Uderor[TipoReceita],Entrada!$P26)) -> 0 | S26: =SUMIFS(Tab_Uderor[R$],Tab_Uderor[Competencia],Entrada!S$7,Tab_Uderor[TipoReceita],Entrada!$P26) -> 0 | T26: =SUMIFS(Tab_Uderor[R$],Tab_Uderor[Competencia],Entrada!T$7,Tab_Uderor[TipoReceita],Entrada!$P26) -> 0 | U26: =SUMIFS(Tab_Uderor[R$],Tab_Uderor[Competencia],Entrada!U$7,Tab_Uderor[TipoReceita],Entrada!$P26) -> 0 | V26: =SUMIFS(Tab_Uderor[R$],Tab_Uderor[Competencia],Entrada!V$7,Tab_Uderor[TipoReceita],Entrada!$P26) -> 0 | W26: =SUMIFS(Tab_Uderor[R$],Tab_Uderor[Competencia],Entrada!W$7,Tab_Uderor[TipoReceita],Entrada!$P26) -> 0 | X26: =SUMIFS(Tab_Uderor[R$],Tab_Uderor[Competencia],Entrada!X$7,Tab_Uderor[TipoReceita],Entrada!$P26) -> 0 | Y26: =SUMIFS(Tab_Uderor[R$],Tab_Uderor[Competencia],Entrada!Y$7,Tab_Uderor[TipoReceita],Entrada!$P26) -> 0 | Z26: =SUMIFS(Tab_Uderor[R$],Tab_Uderor[Competencia],Entrada!Z$7,Tab_Uderor[TipoReceita],Entrada!$P26) -> 0 | AA26: =SUMIFS(Tab_Uderor[R$],Tab_Uderor[Competencia],Entrada!AA$7,Tab_Uderor[TipoReceita],Entrada!$P26) -> 0 | AB26: =SUMIFS(Tab_Uderor[R$],Tab_Uderor[Competencia],Entrada!AB$7,Tab_Uderor[TipoReceita],Entrada!$P26) -> 0 | AC26: =SUMIFS(Tab_Uderor[R$],Tab_Uderor[Competencia],Entrada!AC$7,Tab_Uderor[TipoReceita],Entrada!$P26)-AF26 -> 0 | AD26: =SUMIFS(Tab_Uderor[R$],Tab_Uderor[Competencia],Entrada!AD$7,Tab_Uderor[TipoReceita],Entrada!$P26)-AG26 -> 0 | AE26: =SUMIFS(Tab_Uderor[R$],Tab_Uderor[Competencia],Entrada!AE$7,Tab_Uderor[TipoReceita],Entrada!$P26)-AH26 -> 0
F27: =Indexador!D132 -> Despesa 2025 | G27: 206327 | H27: 46183 | K27: Subtotal | L27: =SUM(L25:L26) -> 109258934.2 | M27: =SUM(M25:M26) -> 116934074.4 | P27: Eficientização do consumo de energia elétrica e instalação de cogeração qualificada, desde que não enquadráveis nos projetos de Pesquisa e Desenvolvimento (P&D) ou de Eficiência Energética estabelecidos em lei | Q27: =IF((SUMIFS(Tab_Uderor[R$],Tab_Uderor[Competencia],Entrada!Q$7,Tab_Uderor[TipoReceita],Entrada!$P27))=0,R27,SUMIFS(Tab_Uderor[R$],Tab_Uderor[Competencia],Entrada!Q$7,Tab_Uderor[TipoReceita],Entrada!$P27)) -> 0 | R27: =IF((SUMIFS(Tab_Uderor[R$],Tab_Uderor[Competencia],Entrada!R$7,Tab_Uderor[TipoReceita],Entrada!$P27))=0,S27,SUMIFS(Tab_Uderor[R$],Tab_Uderor[Competencia],Entrada!R$7,Tab_Uderor[TipoReceita],Entrada!$P27)) -> 0 | S27: =SUMIFS(Tab_Uderor[R$],Tab_Uderor[Competencia],Entrada!S$7,Tab_Uderor[TipoReceita],Entrada!$P27) -> 0 | T27: =SUMIFS(Tab_Uderor[R$],Tab_Uderor[Competencia],Entrada!T$7,Tab_Uderor[TipoReceita],Entrada!$P27) -> 0 | U27: =SUMIFS(Tab_Uderor[R$],Tab_Uderor[Competencia],Entrada!U$7,Tab_Uderor[TipoReceita],Entrada!$P27) -> 0 | V27: =SUMIFS(Tab_Uderor[R$],Tab_Uderor[Competencia],Entrada!V$7,Tab_Uderor[TipoReceita],Entrada!$P27) -> 0 | W27: =SUMIFS(Tab_Uderor[R$],Tab_Uderor[Competencia],Entrada!W$7,Tab_Uderor[TipoReceita],Entrada!$P27) -> 0 | X27: =SUMIFS(Tab_Uderor[R$],Tab_Uderor[Competencia],Entrada!X$7,Tab_Uderor[TipoReceita],Entrada!$P27) -> 0 | Y27: =SUMIFS(Tab_Uderor[R$],Tab_Uderor[Competencia],Entrada!Y$7,Tab_Uderor[TipoReceita],Entrada!$P27) -> 0 | Z27: =SUMIFS(Tab_Uderor[R$],Tab_Uderor[Competencia],Entrada!Z$7,Tab_Uderor[TipoReceita],Entrada!$P27) -> 0 | AA27: =SUMIFS(Tab_Uderor[R$],Tab_Uderor[Competencia],Entrada!AA$7,Tab_Uderor[TipoReceita],Entrada!$P27) -> 0 | AB27: =SUMIFS(Tab_Uderor[R$],Tab_Uderor[Competencia],Entrada!AB$7,Tab_Uderor[TipoReceita],Entrada!$P27) -> 0 | AC27: =SUMIFS(Tab_Uderor[R$],Tab_Uderor[Competencia],Entrada!AC$7,Tab_Uderor[TipoReceita],Entrada!$P27)-AF27 -> 0 | AD27: =SUMIFS(Tab_Uderor[R$],Tab_Uderor[Competencia],Entrada!AD$7,Tab_Uderor[TipoReceita],Entrada!$P27)-AG27 -> 0 | AE27: =SUMIFS(Tab_Uderor[R$],Tab_Uderor[Competencia],Entrada!AE$7,Tab_Uderor[TipoReceita],Entrada!$P27)-AH27 -> 0
F28: =Indexador!E132 -> Despesa 2024 | G28: 206327 | J28: SEGUROS | P28: Serviços de comunicação de dados | Q28: =IF((SUMIFS(Tab_Uderor[R$],Tab_Uderor[Competencia],Entrada!Q$7,Tab_Uderor[TipoReceita],Entrada!$P28))=0,R28,SUMIFS(Tab_Uderor[R$],Tab_Uderor[Competencia],Entrada!Q$7,Tab_Uderor[TipoReceita],Entrada!$P28)) -> 0 | R28: =IF((SUMIFS(Tab_Uderor[R$],Tab_Uderor[Competencia],Entrada!R$7,Tab_Uderor[TipoReceita],Entrada!$P28))=0,S28,SUMIFS(Tab_Uderor[R$],Tab_Uderor[Competencia],Entrada!R$7,Tab_Uderor[TipoReceita],Entrada!$P28)) -> 0 | S28: =SUMIFS(Tab_Uderor[R$],Tab_Uderor[Competencia],Entrada!S$7,Tab_Uderor[TipoReceita],Entrada!$P28) -> 0 | T28: =SUMIFS(Tab_Uderor[R$],Tab_Uderor[Competencia],Entrada!T$7,Tab_Uderor[TipoReceita],Entrada!$P28) -> 0 | U28: =SUMIFS(Tab_Uderor[R$],Tab_Uderor[Competencia],Entrada!U$7,Tab_Uderor[TipoReceita],Entrada!$P28) -> 0 | V28: =SUMIFS(Tab_Uderor[R$],Tab_Uderor[Competencia],Entrada!V$7,Tab_Uderor[TipoReceita],Entrada!$P28) -> 0 | W28: =SUMIFS(Tab_Uderor[R$],Tab_Uderor[Competencia],Entrada!W$7,Tab_Uderor[TipoReceita],Entrada!$P28) -> 0 | X28: =SUMIFS(Tab_Uderor[R$],Tab_Uderor[Competencia],Entrada!X$7,Tab_Uderor[TipoReceita],Entrada!$P28) -> 0 | Y28: =SUMIFS(Tab_Uderor[R$],Tab_Uderor[Competencia],Entrada!Y$7,Tab_Uderor[TipoReceita],Entrada!$P28) -> 0 | Z28: =SUMIFS(Tab_Uderor[R$],Tab_Uderor[Competencia],Entrada!Z$7,Tab_Uderor[TipoReceita],Entrada!$P28) -> 0 | AA28: =SUMIFS(Tab_Uderor[R$],Tab_Uderor[Competencia],Entrada!AA$7,Tab_Uderor[TipoReceita],Entrada!$P28) -> 0 | AB28: =SUMIFS(Tab_Uderor[R$],Tab_Uderor[Competencia],Entrada!AB$7,Tab_Uderor[TipoReceita],Entrada!$P28) -> 0 | AC28: =SUMIFS(Tab_Uderor[R$],Tab_Uderor[Competencia],Entrada!AC$7,Tab_Uderor[TipoReceita],Entrada!$P28)-AF28 -> 0 | AD28: =SUMIFS(Tab_Uderor[R$],Tab_Uderor[Competencia],Entrada!AD$7,Tab_Uderor[TipoReceita],Entrada!$P28)-AG28 -> 0 | AE28: =SUMIFS(Tab_Uderor[R$],Tab_Uderor[Competencia],Entrada!AE$7,Tab_Uderor[TipoReceita],Entrada!$P28)-AH28 -> 0
F29: =Indexador!F132 -> Despesa 2023 | G29: 245471 | J29: BMP - 610531001; 610533001; | K29: Seguros | L29: =SUMIFS(Tab_RIT_BMP[SALDO],Tab_RIT_BMP[ContaDetalhada],"Seguros",Tab_RIT_BMP[ANO],$L$7,Tab_RIT_BMP[ContaPrincipal],"Seguros") -> 1732706.13 | M29: =SUMIFS(Tab_RIT_BMP[SALDO],Tab_RIT_BMP[ContaDetalhada],"Seguros",Tab_RIT_BMP[ANO],$M$7,Tab_RIT_BMP[ContaPrincipal],"Seguros") -> 1696635.72 | P29: Serviços de consultoria | Q29: =IF((SUMIFS(Tab_Uderor[R$],Tab_Uderor[Competencia],Entrada!Q$7,Tab_Uderor[TipoReceita],Entrada!$P29))=0,R29,SUMIFS(Tab_Uderor[R$],Tab_Uderor[Competencia],Entrada!Q$7,Tab_Uderor[TipoReceita],Entrada!$P29)) -> 0 | R29: =IF((SUMIFS(Tab_Uderor[R$],Tab_Uderor[Competencia],Entrada!R$7,Tab_Uderor[TipoReceita],Entrada!$P29))=0,S29,SUMIFS(Tab_Uderor[R$],Tab_Uderor[Competencia],Entrada!R$7,Tab_Uderor[TipoReceita],Entrada!$P29)) -> 0 | S29: =SUMIFS(Tab_Uderor[R$],Tab_Uderor[Competencia],Entrada!S$7,Tab_Uderor[TipoReceita],Entrada!$P29) -> 0 | T29: =SUMIFS(Tab_Uderor[R$],Tab_Uderor[Competencia],Entrada!T$7,Tab_Uderor[TipoReceita],Entrada!$P29) -> 0 | U29: =SUMIFS(Tab_Uderor[R$],Tab_Uderor[Competencia],Entrada!U$7,Tab_Uderor[TipoReceita],Entrada!$P29) -> 0 | V29: =SUMIFS(Tab_Uderor[R$],Tab_Uderor[Competencia],Entrada!V$7,Tab_Uderor[TipoReceita],Entrada!$P29) -> 0 | W29: =SUMIFS(Tab_Uderor[R$],Tab_Uderor[Competencia],Entrada!W$7,Tab_Uderor[TipoReceita],Entrada!$P29) -> 0 | X29: =SUMIFS(Tab_Uderor[R$],Tab_Uderor[Competencia],Entrada!X$7,Tab_Uderor[TipoReceita],Entrada!$P29) -> 0 | Y29: =SUMIFS(Tab_Uderor[R$],Tab_Uderor[Competencia],Entrada!Y$7,Tab_Uderor[TipoReceita],Entrada!$P29) -> 0 | Z29: =SUMIFS(Tab_Uderor[R$],Tab_Uderor[Competencia],Entrada!Z$7,Tab_Uderor[TipoReceita],Entrada!$P29) -> 0 | AA29: =SUMIFS(Tab_Uderor[R$],Tab_Uderor[Competencia],Entrada!AA$7,Tab_Uderor[TipoReceita],Entrada!$P29) -> 0 | AB29: =SUMIFS(Tab_Uderor[R$],Tab_Uderor[Competencia],Entrada!AB$7,Tab_Uderor[TipoReceita],Entrada!$P29) -> 0 | AC29: =SUMIFS(Tab_Uderor[R$],Tab_Uderor[Competencia],Entrada!AC$7,Tab_Uderor[TipoReceita],Entrada!$P29)-AF29 -> 0 | AD29: =SUMIFS(Tab_Uderor[R$],Tab_Uderor[Competencia],Entrada!AD$7,Tab_Uderor[TipoReceita],Entrada!$P29)-AG29 -> 0 | AE29: =SUMIFS(Tab_Uderor[R$],Tab_Uderor[Competencia],Entrada!AE$7,Tab_Uderor[TipoReceita],Entrada!$P29)-AH29 -> 0
F30: =Indexador!G132 -> Despesa 2022 | G30: 196136 | J30: BMP - 610531099; 610533099; | K30: Outros | L30: =SUMIFS(Tab_RIT_BMP[SALDO],Tab_RIT_BMP[ContaDetalhada],"Outros",Tab_RIT_BMP[ANO],$L$7,Tab_RIT_BMP[ContaPrincipal],"Seguros") -> 0 | M30: =SUMIFS(Tab_RIT_BMP[SALDO],Tab_RIT_BMP[ContaDetalhada],"Outros",Tab_RIT_BMP[ANO],$M$7,Tab_RIT_BMP[ContaPrincipal],"Seguros") -> 0 | P30: Receita proveniente da comercialização de resultados de projetos de P&D COM comprovação | Q30: =IF((SUMIFS(Tab_Uderor[R$],Tab_Uderor[Competencia],Entrada!Q$7,Tab_Uderor[TipoReceita],Entrada!$P30))=0,R30,SUMIFS(Tab_Uderor[R$],Tab_Uderor[Competencia],Entrada!Q$7,Tab_Uderor[TipoReceita],Entrada!$P30)) -> 0 | R30: =IF((SUMIFS(Tab_Uderor[R$],Tab_Uderor[Competencia],Entrada!R$7,Tab_Uderor[TipoReceita],Entrada!$P30))=0,S30,SUMIFS(Tab_Uderor[R$],Tab_Uderor[Competencia],Entrada!R$7,Tab_Uderor[TipoReceita],Entrada!$P30)) -> 0 | S30: =SUMIFS(Tab_Uderor[R$],Tab_Uderor[Competencia],Entrada!S$7,Tab_Uderor[TipoReceita],Entrada!$P30) -> 0 | T30: =SUMIFS(Tab_Uderor[R$],Tab_Uderor[Competencia],Entrada!T$7,Tab_Uderor[TipoReceita],Entrada!$P30) -> 0 | U30: =SUMIFS(Tab_Uderor[R$],Tab_Uderor[Competencia],Entrada!U$7,Tab_Uderor[TipoReceita],Entrada!$P30) -> 0 | V30: =SUMIFS(Tab_Uderor[R$],Tab_Uderor[Competencia],Entrada!V$7,Tab_Uderor[TipoReceita],Entrada!$P30) -> 0 | W30: =SUMIFS(Tab_Uderor[R$],Tab_Uderor[Competencia],Entrada!W$7,Tab_Uderor[TipoReceita],Entrada!$P30) -> 0 | X30: =SUMIFS(Tab_Uderor[R$],Tab_Uderor[Competencia],Entrada!X$7,Tab_Uderor[TipoReceita],Entrada!$P30) -> 0 | Y30: =SUMIFS(Tab_Uderor[R$],Tab_Uderor[Competencia],Entrada!Y$7,Tab_Uderor[TipoReceita],Entrada!$P30) -> 0 | Z30: =SUMIFS(Tab_Uderor[R$],Tab_Uderor[Competencia],Entrada!Z$7,Tab_Uderor[TipoReceita],Entrada!$P30) -> 0 | AA30: =SUMIFS(Tab_Uderor[R$],Tab_Uderor[Competencia],Entrada!AA$7,Tab_Uderor[TipoReceita],Entrada!$P30) -> 0 | AB30: =SUMIFS(Tab_Uderor[R$],Tab_Uderor[Competencia],Entrada!AB$7,Tab_Uderor[TipoReceita],Entrada!$P30) -> 0 | AC30: =SUMIFS(Tab_Uderor[R$],Tab_Uderor[Competencia],Entrada!AC$7,Tab_Uderor[TipoReceita],Entrada!$P30)-AF30 -> 0 | AD30: =SUMIFS(Tab_Uderor[R$],Tab_Uderor[Competencia],Entrada!AD$7,Tab_Uderor[TipoReceita],Entrada!$P30)-AG30 -> 0 | AE30: =SUMIFS(Tab_Uderor[R$],Tab_Uderor[Competencia],Entrada!AE$7,Tab_Uderor[TipoReceita],Entrada!$P30)-AH30 -> 0
F31: =Indexador!H132 -> Despesa 2021 | G31: 221590 | J31: BMP - 610531010; 610533010; | K31: (-) Créditos de Tributos Recuperáveis | L31: =SUMIFS(Tab_RIT_BMP[SALDO],Tab_RIT_BMP[ContaDetalhada],"*Créditos*",Tab_RIT_BMP[ANO],$L$7,Tab_RIT_BMP[ContaPrincipal],"Seguros") -> 0 | M31: =SUMIFS(Tab_RIT_BMP[SALDO],Tab_RIT_BMP[ContaDetalhada],"*Créditos*",Tab_RIT_BMP[ANO],$M$7,Tab_RIT_BMP[ContaPrincipal],"Seguros") -> 0 | P31: Receita proveniente da comercialização de resultados de projetos de P&D SEM comprovação | Q31: =IF((SUMIFS(Tab_Uderor[R$],Tab_Uderor[Competencia],Entrada!Q$7,Tab_Uderor[TipoReceita],Entrada!$P31))=0,R31,SUMIFS(Tab_Uderor[R$],Tab_Uderor[Competencia],Entrada!Q$7,Tab_Uderor[TipoReceita],Entrada!$P31)) -> 0 | R31: =IF((SUMIFS(Tab_Uderor[R$],Tab_Uderor[Competencia],Entrada!R$7,Tab_Uderor[TipoReceita],Entrada!$P31))=0,S31,SUMIFS(Tab_Uderor[R$],Tab_Uderor[Competencia],Entrada!R$7,Tab_Uderor[TipoReceita],Entrada!$P31)) -> 0 | S31: =SUMIFS(Tab_Uderor[R$],Tab_Uderor[Competencia],Entrada!S$7,Tab_Uderor[TipoReceita],Entrada!$P31) -> 0 | T31: =SUMIFS(Tab_Uderor[R$],Tab_Uderor[Competencia],Entrada!T$7,Tab_Uderor[TipoReceita],Entrada!$P31) -> 0 | U31: =SUMIFS(Tab_Uderor[R$],Tab_Uderor[Competencia],Entrada!U$7,Tab_Uderor[TipoReceita],Entrada!$P31) -> 0 | V31: =SUMIFS(Tab_Uderor[R$],Tab_Uderor[Competencia],Entrada!V$7,Tab_Uderor[TipoReceita],Entrada!$P31) -> 0 | W31: =SUMIFS(Tab_Uderor[R$],Tab_Uderor[Competencia],Entrada!W$7,Tab_Uderor[TipoReceita],Entrada!$P31) -> 0 | X31: =SUMIFS(Tab_Uderor[R$],Tab_Uderor[Competencia],Entrada!X$7,Tab_Uderor[TipoReceita],Entrada!$P31) -> 0 | Y31: =SUMIFS(Tab_Uderor[R$],Tab_Uderor[Competencia],Entrada!Y$7,Tab_Uderor[TipoReceita],Entrada!$P31) -> 0 | Z31: =SUMIFS(Tab_Uderor[R$],Tab_Uderor[Competencia],Entrada!Z$7,Tab_Uderor[TipoReceita],Entrada!$P31) -> 0 | AA31: =SUMIFS(Tab_Uderor[R$],Tab_Uderor[Competencia],Entrada!AA$7,Tab_Uderor[TipoReceita],Entrada!$P31) -> 0 | AB31: =SUMIFS(Tab_Uderor[R$],Tab_Uderor[Competencia],Entrada!AB$7,Tab_Uderor[TipoReceita],Entrada!$P31) -> 0 | AC31: =SUMIFS(Tab_Uderor[R$],Tab_Uderor[Competencia],Entrada!AC$7,Tab_Uderor[TipoReceita],Entrada!$P31)-AF31 -> 0 | AD31: =SUMIFS(Tab_Uderor[R$],Tab_Uderor[Competencia],Entrada!AD$7,Tab_Uderor[TipoReceita],Entrada!$P31)-AG31 -> 0 | AE31: =SUMIFS(Tab_Uderor[R$],Tab_Uderor[Competencia],Entrada!AE$7,Tab_Uderor[TipoReceita],Entrada!$P31)-AH31 -> 0
F32: Perdas Regulatórias | K32: Subtotal | L32: =SUM(L29:L31) -> 1732706.13 | M32: =SUM(M29:M31) -> 1696635.72
F33: Perdas Não Técnicas | G33: 0.01319888336 | H33: 46204 | J33: TRIBUTOS
F34: Perdas Técnicas | G34: 0.05555248181 | J34: BMP - 610531601; 610533601; | K34: Tributos | L34: =SUMIFS(Tab_RIT_BMP[SALDO],Tab_RIT_BMP[ContaDetalhada],"Tributos",Tab_RIT_BMP[ANO],$L$7,Tab_RIT_BMP[ContaPrincipal],"Tributos") -> 1546214.31 | M34: =SUMIFS(Tab_RIT_BMP[SALDO],Tab_RIT_BMP[ContaDetalhada],"Tributos",Tab_RIT_BMP[ANO],$M$7,Tab_RIT_BMP[ContaPrincipal],"Tributos") -> 1626496.47 | P34: Outras Receitas - Caso 3
K35: Subtotal | L35: =L34 -> 1546214.31 | M35: =M34 -> 1626496.47 | P35: Alíquota ISS
F36: Dados da Revisão Anterior - Componente Pd | J36: OUTROS
F37: Data Base Ativos e Consumidores | G37: 44228 | H37: 46183 | J37: BMP - 610531901; 610533901; | K37: Indenização por Perdas e Danos | L37: =SUMIFS(Tab_RIT_BMP[SALDO],Tab_RIT_BMP[ContaDetalhada],"Indenização*",Tab_RIT_BMP[ANO],L$7,Tab_RIT_BMP[ContaPrincipal],"Outros") -> 1549483.96 | M37: =SUMIFS(Tab_RIT_BMP[SALDO],Tab_RIT_BMP[ContaDetalhada],"Indenização*",Tab_RIT_BMP[ANO],$M$7,Tab_RIT_BMP[ContaPrincipal],"Outros") -> 1500722.69 | P37: Tipo de Receita | Q37: =Q7 -> 2026-06-01 | R37: 2026-05-01 | S37: 2026-04-01 | T37: 2026-03-01 | U37: 2026-02-01 | V37: 2026-01-01 | W37: 2025-12-01 | X37: 2025-11-01 | Y37: 2025-10-01 | Z37: 2025-09-01 | AA37: 2025-08-01 | AB37: 2025-07-01
F38: Mercado AT (MWh) | G38: 370702.502 | J38: BMP - 610531902; 610533902; | K38: Consumo Próprio de Energia | L38: =SUMIFS(Tab_RIT_BMP[SALDO],Tab_RIT_BMP[ContaDetalhada],"Consumo*",Tab_RIT_BMP[ANO],L$7,Tab_RIT_BMP[ContaPrincipal],"Outros") -> 4283002.78 | M38: =SUMIFS(Tab_RIT_BMP[SALDO],Tab_RIT_BMP[ContaDetalhada],"Consumo*",Tab_RIT_BMP[ANO],$M$7,Tab_RIT_BMP[ContaPrincipal],"Outros") -> 4413145.73 | P38: Serviços Cobráveis
D39: 45308 | F39: Mercado MT (MWh) | G39: 1600728.509 | J39: BMP - 610531905; | K39: Despesas com Conselho de Consumidores | L39: =SUMIFS(Tab_RIT_BMP[SALDO],Tab_RIT_BMP[ContaDetalhada],"*Conselho*",Tab_RIT_BMP[ANO],$L$7,Tab_RIT_BMP[ContaPrincipal],"Outros") -> 0 | M39: =SUMIFS(Tab_RIT_BMP[SALDO],Tab_RIT_BMP[ContaDetalhada],"*Conselho*",Tab_RIT_BMP[ANO],$M$7,Tab_RIT_BMP[ContaPrincipal],"Outros") -> 0 | P39: Encargos de Conexão
D40: 45308 | F40: Mercado BT (MWh) | G40: 2647922.317 | J40: BMP - 610531907; 610533907; | K40: Comunicação e Reprografia | L40: =SUMIFS(Tab_RIT_BMP[SALDO],Tab_RIT_BMP[ContaDetalhada],"Comunicação*",Tab_RIT_BMP[ANO],$L$7,Tab_RIT_BMP[ContaPrincipal],"Outros") -> 6415090.8 | M40: =SUMIFS(Tab_RIT_BMP[SALDO],Tab_RIT_BMP[ContaDetalhada],"Comunicação*",Tab_RIT_BMP[ANO],$M$7,Tab_RIT_BMP[ContaPrincipal],"Outros") -> 6037841.71 | P40: Compartilhamento de Infraestrutura
D41: 45308 | F41: Número de unidades consumidoras | G41: 820964 | J41: BMP - 610531903; 610533903; | K41: Taxa de Arrecadação | L41: =SUMIFS(Tab_RIT_BMP[SALDO],Tab_RIT_BMP[ContaDetalhada],"*Arrecadação",Tab_RIT_BMP[ANO],$L$7,Tab_RIT_BMP[ContaPrincipal],"Outros") -> 0 | M41: =SUMIFS(Tab_RIT_BMP[SALDO],Tab_RIT_BMP[ContaDetalhada],"*Arrecadação",Tab_RIT_BMP[ANO],$M$7,Tab_RIT_BMP[ContaPrincipal],"Outros") -> 0 | P41: Sistemas de Comunicação (PLC)
D42: 45308 | J42: BMP - 610531904; 610533904; | K42: Taxas Bancárias | L42: =SUMIFS(Tab_RIT_BMP[SALDO],Tab_RIT_BMP[ContaDetalhada],"*bancárias",Tab_RIT_BMP[ANO],$L$7,Tab_RIT_BMP[ContaPrincipal],"Outros") -> 0 | M42: =SUMIFS(Tab_RIT_BMP[SALDO],Tab_RIT_BMP[ContaDetalhada],"*bancárias",Tab_RIT_BMP[ANO],$M$7,Tab_RIT_BMP[ContaPrincipal],"Outros") -> 0 | P42: Serviços de Consultoria
F43: OPEX | J43: BMP - 610531910; 610533910; | K43: (-) Créditos de Tributos Recuperáveis | L43: =SUMIFS(Tab_RIT_BMP[SALDO],Tab_RIT_BMP[ContaDetalhada],"*Créditos*",Tab_RIT_BMP[ANO],$L$7,Tab_RIT_BMP[ContaPrincipal],"Outros") -> 0 | M43: =SUMIFS(Tab_RIT_BMP[SALDO],Tab_RIT_BMP[ContaDetalhada],"*Créditos*",Tab_RIT_BMP[ANO],$M$7,Tab_RIT_BMP[ContaPrincipal],"Outros") -> 0 | P43: Serviços de O&M
F44: Extensão de redes não urbanas (Km) | G44: 21930.58 | H44: 46204 | J44: BMP - 610531908; 610533908; | K44: Contribuição Associativa - CCEE | L44: =SUMIFS(Tab_RIT_BMP[SALDO],Tab_RIT_BMP[ContaDetalhada],"*CCEE",Tab_RIT_BMP[ANO],$L$7,Tab_RIT_BMP[ContaPrincipal],"Outros") -> 438135.72 | M44: =SUMIFS(Tab_RIT_BMP[SALDO],Tab_RIT_BMP[ContaDetalhada],"*CCEE",Tab_RIT_BMP[ANO],$M$7,Tab_RIT_BMP[ContaPrincipal],"Outros") -> 433994.79 | P44: Serviços de Comunicação
F45: Extensão de rede urbana (Km) | G45: 13074.69 | J45: BMP - 610531909; 610533909; | K45: Contrbuição Associativa - ONS | L45: =SUMIFS(Tab_RIT_BMP[SALDO],Tab_RIT_BMP[ContaDetalhada],"*ONS",Tab_RIT_BMP[ANO],$L$7,Tab_RIT_BMP[ContaPrincipal],"Outros") -> 101342.17 | M45: =SUMIFS(Tab_RIT_BMP[SALDO],Tab_RIT_BMP[ContaDetalhada],"*ONS",Tab_RIT_BMP[ANO],$M$7,Tab_RIT_BMP[ContaPrincipal],"Outros") -> 102468.44 | P45: Serviços de Engenharia
K46: Subtotal | L46: =SUM(L37:L45) -> 12787055.43 | M46: =SUM(M37:M45) -> 12488173.36 | P46: Convênios
F47: ="% PNT / BT Real de "&IF(MONTH(LnkTxtDRPData)>6,YEAR(LnkTxtDRPData)-1,YEAR(LnkTxtDRPData)-2) & " (Medido)" -> % PNT / BT Real de 2025 (Medido) | G47: 0.02400803751 | J47: Perdas e Alienações
F48: ="% PNT / BT Real de "&IF(MONTH(LnkTxtDRPData)>6,YEAR(LnkTxtDRPData)-1,YEAR(LnkTxtDRPData)-2)-1 & " (Medido)" -> % PNT / BT Real de 2024 (Medido) | G48: 0.01501005398 | J48: BMP - 611512203; 611512003; | K48: Perdas na Alienação e Desativação | L48: =SUMIFS(Tab_RIT_BMP[SALDO],Tab_RIT_BMP[ANO],$L$7,Tab_RIT_BMP[ContaPrincipal],"Desativação") -> 17609460.97 | M48: =SUMIFS(Tab_RIT_BMP[SALDO],Tab_RIT_BMP[ANO],$M$7,Tab_RIT_BMP[ContaPrincipal],"Desativação") -> 22187232.01 | P48: UDER
F49: ="% PNT / BT Real de "&IF(MONTH(LnkTxtDRPData)>6,YEAR(LnkTxtDRPData)-1,YEAR(LnkTxtDRPData)-2)-2 & " (Medido)" -> % PNT / BT Real de 2023 (Medido) | G49: 0.02575424472 | J49: BMP - 611112203; 611112403; | K49: Ganhos na Alienação de Materiais | L49: =SUMIFS(Tab_RIT_BMP[SALDO],Tab_RIT_BMP[ANO],$L$7,Tab_RIT_BMP[ContaPrincipal],"Alienação") -> 4313412.28 | M49: =SUMIFS(Tab_RIT_BMP[SALDO],Tab_RIT_BMP[ANO],$M$7,Tab_RIT_BMP[ContaPrincipal],"Alienação") -> -277250.35 | AC49: =AC6 -> Diferenças em relação ao RTA 2025 | AG49: =AG6 -> Valores RTA 2025
F50: ="DEC Apurado "&IF(MONTH(LnkTxtDRPData)>3,YEAR(LnkTxtDRPData)-1,YEAR(LnkTxtDRPData)-2) -> DEC Apurado 2025 | G50: =IF(AND(MONTH(LnkTxtDRPData)>3,YEAR(LnkTxtDRPData)-1='Fator Q'!K30),IF(IFERROR(VLOOKUP(CAPA!$C$8,'Fator Q'!B32:K68,9,FALSE)=0,0)=0,VLOOKUP(CAPA!$C$8,'Fator Q'!B75:K104,9,FALSE),VLOOKUP(CAPA!$C$8,'Fator Q'!B32:K68,9,FALSE)),IF(IFERROR(VLOOKUP(CAPA!$C$8,'Fator Q'!B32:K68,9,FALSE)=0,0)=0,(VLOOKUP(CAPA!$C$8,'Fator Q'!B75:K104,9,FALSE)),(VLOOKUP(CAPA!$C$8,'Fator Q'!B32:K68,9,FALSE)))) -> 5.34 | K50: Subtotal | L50: =SUM(L48:L49) -> 21922873.25 | M50: =SUM(M48:M49) -> 21909981.66 | Q50: =$Q$7 -> 2026-06-01 | R50: =DATE(YEAR(Q50),MONTH(Q50)-1,1) -> 2026-05-01 | S50: =DATE(YEAR(R50),MONTH(R50)-1,1) -> 2026-04-01 | T50: 2026-03-01 | U50: 2026-02-01 | V50: 2026-01-01 | W50: 2025-12-01 | X50: 2025-11-01 | Y50: 2025-10-01 | Z50: 2025-09-01 | AA50: 2025-08-01 | AB50: 2025-07-01 | AC50: =EDATE(AB50,-1) -> 2025-06-01 | AD50: =EDATE(AC50,-1) -> 2025-05-01 | AE50: 2025-04-01 | AF50: =AC50 -> 2025-06-01 | AG50: =AD50 -> 2025-05-01 | AH50: 2025-04-01
F51: ="DEC Apurado "&IF(MONTH(LnkTxtDRPData)>3,YEAR(LnkTxtDRPData)-1,YEAR(LnkTxtDRPData)-2)-1 -> DEC Apurado 2024 | G51: =IF(AND(MONTH(LnkTxtDRPData)>3,YEAR(LnkTxtDRPData)-1='Fator Q'!H30),IF(IFERROR(VLOOKUP(CAPA!$C$8,'Fator Q'!B32:K68,6,FALSE)=0,0)=0,VLOOKUP(CAPA!$C$8,'Fator Q'!B75:K104,6,FALSE),VLOOKUP(CAPA!$C$8,'Fator Q'!B32:K68,6,FALSE)),IF(IFERROR(VLOOKUP(CAPA!$C$8,'Fator Q'!B32:K68,6,FALSE)=0,0)=0,(VLOOKUP(CAPA!$C$8,'Fator Q'!B75:K104,6,FALSE)),(VLOOKUP(CAPA!$C$8,'Fator Q'!B32:K68,6,FALSE)))) -> 5.16 | L51: =SUM(L18,L23,L32,L35,L46,L50,L27)-SUMIFS(Tab_RIT_BMP[SALDO],Tab_RIT_BMP[ANO],L7) -> 0 | M51: =SUM(M18,M23,M32,M35,M46,M50,M27)-SUMIFS(Tab_RIT_BMP[SALDO],Tab_RIT_BMP[ANO],M7) -> 0 | P51: Ultrapassagem de Demanda | Q51: =IF((SUMIFS(Tab_Uderor[R$],Tab_Uderor[Competencia],Entrada!Q$50,Tab_Uderor[TipoReceita],Entrada!$P$51))=0,R51,(SUMIFS(Tab_Uderor[R$],Tab_Uderor[Competencia],Entrada!Q$50,Tab_Uderor[TipoReceita],Entrada!$P$51))) -> 1539127.12 | R51: =IF((SUMIFS(Tab_Uderor[R$],Tab_Uderor[Competencia],Entrada!R$50,Tab_Uderor[TipoReceita],Entrada!$P$51))=0,S51,SUMIFS(Tab_Uderor[R$],Tab_Uderor[Competencia],Entrada!R$50,Tab_Uderor[TipoReceita],Entrada!$P$51)) -> 1539127.12 | S51: =SUMIFS(Tab_Uderor[R$],Tab_Uderor[Competencia],Entrada!S$50,Tab_Uderor[TipoReceita],Entrada!$P$51) -> 1539127.12 | T51: =SUMIFS(Tab_Uderor[R$],Tab_Uderor[Competencia],Entrada!T$50,Tab_Uderor[TipoReceita],Entrada!$P$51) -> 1410184.4 | U51: =SUMIFS(Tab_Uderor[R$],Tab_Uderor[Competencia],Entrada!U$50,Tab_Uderor[TipoReceita],Entrada!$P$51) -> 1273524.29 | V51: =SUMIFS(Tab_Uderor[R$],Tab_Uderor[Competencia],Entrada!V$50,Tab_Uderor[TipoReceita],Entrada!$P$51) -> 1465491.04 | W51: =SUMIFS(Tab_Uderor[R$],Tab_Uderor[Competencia],Entrada!W$50,Tab_Uderor[TipoReceita],Entrada!$P$51) -> 1730863.15 | X51: =SUMIFS(Tab_Uderor[R$],Tab_Uderor[Competencia],Entrada!X$50,Tab_Uderor[TipoReceita],Entrada!$P$51) -> 1460254.9 | Y51: =SUMIFS(Tab_Uderor[R$],Tab_Uderor[Competencia],Entrada!Y$50,Tab_Uderor[TipoReceita],Entrada!$P$51) -> 1428252.37 | Z51: =SUMIFS(Tab_Uderor[R$],Tab_Uderor[Competencia],Entrada!Z$50,Tab_Uderor[TipoReceita],Entrada!$P$51) -> 1452259.21 | AA51: =SUMIFS(Tab_Uderor[R$],Tab_Uderor[Competencia],Entrada!AA$50,Tab_Uderor[TipoReceita],Entrada!$P$51) -> 1319612.4 | AB51: =SUMIFS(Tab_Uderor[R$],Tab_Uderor[Competencia],Entrada!AB$50,Tab_Uderor[TipoReceita],Entrada!$P$51) -> 1191737.19 | AC51: =SUMIFS(Tab_Uderor[R$],Tab_Uderor[Competencia],Entrada!AC$50,Tab_Uderor[TipoReceita],Entrada!$P51)-AF51 -> -687859.08 | AD51: =SUMIFS(Tab_Uderor[R$],Tab_Uderor[Competencia],Entrada!AD$50,Tab_Uderor[TipoReceita],Entrada!$P51)-AG51 -> 961054.14 | AE51: =SUMIFS(Tab_Uderor[R$],Tab_Uderor[Competencia],Entrada!AE$50,Tab_Uderor[TipoReceita],Entrada!$P51)-AH51 -> 0.28 | AF51: 1026112 | AG51: 1026112 | AH51: 1026112
F52: ="DEC Apurado "&IF(MONTH(LnkTxtDRPData)>3,YEAR(LnkTxtDRPData)-1,YEAR(LnkTxtDRPData)-2)-2 -> DEC Apurado 2023 | G52: =IF(AND(MONTH(LnkTxtDRPData)>3,YEAR(LnkTxtDRPData)-1='Fator Q'!E30),IF(IFERROR(VLOOKUP(CAPA!$C$8,'Fator Q'!B32:K68,4,FALSE)=0,0)=0,VLOOKUP(CAPA!$C$8,'Fator Q'!B75:K104,4,FALSE),VLOOKUP(CAPA!$C$8,'Fator Q'!B32:K68,4,FALSE)),IF(IFERROR(VLOOKUP(CAPA!$C$8,'Fator Q'!B32:K68,4,FALSE)=0,0)=0,(VLOOKUP(CAPA!$C$8,'Fator Q'!B75:K104,4,FALSE)),(VLOOKUP(CAPA!$C$8,'Fator Q'!B32:K68,4,FALSE)))) -> 5.3 | P52: Excedente Reativo | Q52: =IF((SUMIFS(Tab_Uderor[R$],Tab_Uderor[Competencia],Entrada!Q$50,Tab_Uderor[TipoReceita],Entrada!$P$51))=0,R52,(SUMIFS(Tab_Uderor[R$],Tab_Uderor[Competencia],Entrada!Q$50,Tab_Uderor[TipoReceita],Entrada!$P$51))) -> 2277820.14 | R52: =IF((SUMIFS(Tab_Uderor[R$],Tab_Uderor[Competencia],Entrada!R$50,Tab_Uderor[TipoReceita],Entrada!$P$51))=0,S52,SUMIFS(Tab_Uderor[R$],Tab_Uderor[Competencia],Entrada!R$50,Tab_Uderor[TipoReceita],Entrada!$P$51)) -> 2277820.14 | S52: =SUMIFS(Tab_Uderor[R$],Tab_Uderor[Competencia],Entrada!S$50,Tab_Uderor[TipoReceita],Entrada!$P$52) -> 2277820.14 | T52: =SUMIFS(Tab_Uderor[R$],Tab_Uderor[Competencia],Entrada!T$50,Tab_Uderor[TipoReceita],Entrada!$P$52) -> 1857924.67 | U52: =SUMIFS(Tab_Uderor[R$],Tab_Uderor[Competencia],Entrada!U$50,Tab_Uderor[TipoReceita],Entrada!$P$52) -> 1980017.04 | V52: =SUMIFS(Tab_Uderor[R$],Tab_Uderor[Competencia],Entrada!V$50,Tab_Uderor[TipoReceita],Entrada!$P$52) -> 1957846.52 | W52: =SUMIFS(Tab_Uderor[R$],Tab_Uderor[Competencia],Entrada!W$50,Tab_Uderor[TipoReceita],Entrada!$P$52) -> 1834669.11 | X52: =SUMIFS(Tab_Uderor[R$],Tab_Uderor[Competencia],Entrada!X$50,Tab_Uderor[TipoReceita],Entrada!$P$52) -> 1906114.68 | Y52: =SUMIFS(Tab_Uderor[R$],Tab_Uderor[Competencia],Entrada!Y$50,Tab_Uderor[TipoReceita],Entrada!$P$52) -> 1795664.14 | Z52: =SUMIFS(Tab_Uderor[R$],Tab_Uderor[Competencia],Entrada!Z$50,Tab_Uderor[TipoReceita],Entrada!$P$52) -> 1893642.48 | AA52: =SUMIFS(Tab_Uderor[R$],Tab_Uderor[Competencia],Entrada!AA$50,Tab_Uderor[TipoReceita],Entrada!$P$52) -> 1980395.86 | AB52: =SUMIFS(Tab_Uderor[R$],Tab_Uderor[Competencia],Entrada!AB$50,Tab_Uderor[TipoReceita],Entrada!$P$52) -> 1384701.15 | AC52: =SUMIFS(Tab_Uderor[R$],Tab_Uderor[Competencia],Entrada!AC$50,Tab_Uderor[TipoReceita],Entrada!$P52)-AF52 -> -369711.71 | AD52: =SUMIFS(Tab_Uderor[R$],Tab_Uderor[Competencia],Entrada!AD$50,Tab_Uderor[TipoReceita],Entrada!$P52)-AG52 -> 33551.35 | AE52: =SUMIFS(Tab_Uderor[R$],Tab_Uderor[Competencia],Entrada!AE$50,Tab_Uderor[TipoReceita],Entrada!$P52)-AH52 -> -0.48 | AF52: 1843915 | AG52: 1843915 | AH52: 1843915
F53: Meta de % PNT / BT (Medido) | G53: 0.00452
F54: DEC 8 anos (Limite V8) | G54: 5.09 | H54: enviado pelo Renato da STD
P55: UDER "Limbo"
F57: Dados da última Revisão Tarifária | P57: Preenchimento necessário apenas para cálculos de concessionárias que passaram por alteração contratual, conforme parágrafo 38 do Proret 2.1A.
F58: Custos Operacionais (CO3) | G58: 267462798.6 | H58: 46183 | P58: Mês correspondente à Data de Referência de Alteração Contratual - DRAC
F59: Receitas Irrecuperáveis - Encargos Setoriais (Vi) | P59: Sexto mês anterior à data da última RTP
F60: Demais Receitas Irrecuperáveis (Vse)
F61: Remuneração do Capital (RC) | G61: 129257395.9 | P61: Preenchimento necessário apenas para cálculos de concessionárias que passaram por alteração contratual, conforme parágrafo 38 do Proret 2.1A.
F62: Quota de Reintegração Regulatória (QRR) | G62: 62348450.12 | Q62: =Q58 -> 00:00:00 | R62: =DATE(YEAR(Q62),MONTH(Q62)-1,1) ->  | X62: =DATE(YEAR(W62),MONTH(W62)-1,1) ->  | Y62: =DATE(YEAR(X62),MONTH(X62)-1,1) ->  | Z62: =DATE(YEAR(Y62),MONTH(Y62)-1,1) ->  | AA62: =DATE(YEAR(Z62),MONTH(Z62)-1,1) ->  | AB62: =DATE(YEAR(AA62),MONTH(AA62)-1,1) ->  | AC62: =DATE(YEAR(AB62),MONTH(AB62)-1,1) ->  | AD62: =DATE(YEAR(AC62),MONTH(AC62)-1,1) ->  | AE62: =DATE(YEAR(AD62),MONTH(AD62)-1,1) ->  | AF62: =DATE(YEAR(AE62),MONTH(AE62)-1,1) ->  | AG62: =DATE(YEAR(AF62),MONTH(AF62)-1,1) ->  | AH62: =DATE(YEAR(AG62),MONTH(AG62)-1,1) ->  | AI62: =DATE(YEAR(AH62),MONTH(AH62)-1,1) -> 
F63: Custo anual das instalações móveis e imóveis (CAIMI) | G63: 37329987.57 | P63: Ultrapassagem de Demanda (valores brutos)
F64: Ajuste em função dos investimentos realizados (valor negativo) | G64: 0 | J64: Custo Médio do Capital - Atual | P64: Excedente Reativo (valores brutos)
F65: Índice de Produtividade + Mecanismo de Qualidade | G65: 0.002410974354 | J65: Tipo | K65: Norma | L65: Valor
F66: UDEROR (inserir o valor positivo) | G66: 44938893.38 | J66: WACC real antes de impostos | K66: Despacho n° 675/2026-STR | L66: 0.1228 | M66: <- Confirmar se os valores são os mais recentes
F67: Componente T - Última Revisão | G67: -0.01395129451 | J67: Taxa RGR/PLPT real | K67: Despacho n° 675/2026-STR | L67: -0.0045 | M67: <- Confirmar se os valores são os mais recentes
J68: Taxa RGR Demais Investimentos | K68: Despacho n° 675/2026-STR | L68: -0.0045 | M68: <- Confirmar se os valores são os mais recentes
J69: Participação do Capital Próprio | K69: Despacho n° 675/2026-STR | L69: 0.5824 | M69: <- Confirmar se os valores são os mais recentes
F70: Base de Ativios - SFF | G70: 46054 | H70: 46183 | J70: Prêmio de Risco do negócio e financeiro após impostos | K70: Despacho n° 675/2026-STR | L70: 0.057 | M70: <- Confirmar se os valores são os mais recentes
F71: (1) Ativo Imobilizado em Serviço (Valor Novo de Reposição) | G71: 4868632986 | H71: 4870560801 | I71: =G71-H71 -> -1927815
B72: Ajustes laudo - ESS (31/Jan/26) | C72: QR Final V12 | F72: (2) Índice de Aproveitamento Integral | G72: 2909266 | H72: 2909322 | I72: =G72-H72 -> -56
F73: (3) Obrigações Especiais Bruta | G73: 1084161197 | H73: 1084402738 | I73: -241541 | J73: Custo Médio do Capital - Ultima Revisão
B74: Ativo Imobilizado em Serviço (VNR) | C74: 4870560801 | F74: (4) Bens Totalmente Depreciados | G74: 929102641 | H74: 929102641 | I74: 0 | J74: Tipo | K74: Norma | L74: Valor
B75: Índice de Aproveitamento Integral | C75: 2909322 | F75: (5) Base de Remuneração Bruta = (1)-(2)-(3)-(4) | G75: =G71-G72-G73-G74 -> 2852459882 | H75: 2854146100 | I75: -1686218 | J75: WACC real antes de impostos | K75: REN n° 882/2000, 20/04/2020 | L75: 0.1063543545 | M75: <- Conferir valor na sparta da última revisão!
B76: Obrigações Especiais Bruta | C76: 1084402738 | F76: (6) Depreciação Acumulada | G76: 2255409822 | H76: 2255434679 | I76: -24857 | J76: Taxa RGR/PLPT real | K76: REN n° 882/2000, 20/04/2020 | L76: 0.02281926149 | M76: <- Conferir valor na sparta da última revisão!
B77: Bens Totalmente Depreciados | C77: 929102641 | F77: (7) AIS Líquido (Valor de Mercado em Uso) | G77: =G71-G76 -> 2613223164 | H77: 2615126122 | I77: -1902958 | J77: Taxa RGR Demais Investimentos | K77: REN n° 882/2000, 20/04/2020 | L77: 0.02281926149 | M77: <- Conferir valor na sparta da última revisão!
B78: Base de Remuneração Bruta | C78: 2854146099 | F78: (8) Índice de Aproveitamento Depreciado | G78: 1963238 | H78: 1963293 | I78: -55 | J78: Participação do Capital Próprio | K78: REN n° 882/2000, 20/04/2020 | L78: 0.5183503422 | M78: <- Conferir valor na sparta da última revisão!
B79: Depreciação Acumulada | C79: 2255434679 | F79: (9) Valor da Base de Remuneração (VBR) | G79: =G77-G78 -> 2611259926 | H79: 2613162829 | I79: -1902903 | J79: Prêmio de Risco do negócio e financeiro após impostos | K79: REN n° 882/2000, 20/04/2020 | L79: 0.09120246719 | M79: <- Conferir valor na sparta da última revisão!
B80: AIS Líquido (Valor de Mercado em Uso) | C80: 2615126122 | F80: (10) Almoxarifado em Operação | G80: 7259546 | H80: 7259546 | I80: 0
B81: Índice de Aproveitamento Depreciado | C81: 1963293 | F81: (11) Ativo Diferido | G81: =G102*I81 -> 0 | H81: 0 | I81: 0
B82: Valor da Base de Remuneração (VBR) | C82: 2613162829 | F82: (12) Obrigações Especiais Líquida | G82: 504402454 | H82: 504622509 | I82: -220055
B83: Almoxarifado em Operação | C83: 7259546 | F83: (13) Terrenos e Servidões | G83: 69504351 | H83: 69504351 | I83: 0
B84: Obrigações Especiais Líquida | C84: 504622509 | F84: (14) Base de Rem. Líquida Total = (9)+(10)+(11)-(12)+(13) | G84: =G79+G80+G81-G82+G83 -> 2183621369 | H84: 2185304217 | I84: -1682848
B85: Terrenos e Servidões | C85: 69504351 | F85: (15) Saldo RGR PLPT | I85: 0
B86: Base de Remuneração Líquida Total | C86: 2185304217 | F86: (16) Saldo RGR Demais Investimentos | I86: 0
F87: (17) Taxa de Depreciação | G87: 0.0419 | H87: 0.0419 | I87: 0
B88: Taxa Média | C88: 0.0419 | F88: (18) Quota de Reintegração Regulatória = (5) * (17) | G88: =G87*G75 -> 119518069.1 | H88: 119588721.6 | I88: -70652.5342
F91: Base de Ativios - Ciclo anterior | G91: 44228 | H91: 46183
F92: (1) Ativo Imobilizado em Serviço (Valor Novo de Reposição) | G92: 2720729815
F93: (2) Índice de Aproveitamento Integral | G93: 7484524.71
F94: (3) Obrigações Especiais Bruta | G94: 585718943.7
F95: (4) Bens Totalmente Depreciados | G95: 599452476.4
F96: (5) Base de Remuneração Bruta = (1)-(2)-(3)-(4) | G96: =G92-G93-G94-G95 -> 1528073870
F97: (6) Depreciação Acumulada | G97: 1399652596
F98: (7) AIS Líquido (Valor de Mercado em Uso) | G98: 1321077219
F99: (8) Índice de Aproveitamento Depreciado | G99: 4088036.49
F100: (9) Valor da Base de Remuneração (VBR) | G100: 1316989182
F101: (10) Almoxarifado em Operação | G101: 7271520.98
F102: (11) Ativo Diferido | G102: 0
F103: (12) Obrigações Especiais Líquida | G103: 292494020.1
F104: (13) Terrenos e Servidões | G104: 32915163.99
F105: (14) Base de Rem. Líquida Total = (1)-(6)-(8)+(10)+(11)-(12)+(13) | G105: =G92-G97-G99+G101+G102-G103+G104 -> 1064681847
F106: (15) Saldo RGR PLPT | G106: 0
F107: (16) Saldo RGR Demais Investimentos
F109: (17) Taxa de Depreciação | G109: 0.0394
F110: (18) Quota de Reintegração Regulatória = (5) * (17) | G110: =G96*G109 -> 60206110.49
F111: Base de Anuidade Regulatória (BAR) | G111: 213889843.6
F113: Dados do último Reajuste Anual - Contrato Novo
F114: Parcela B sem desconto UDEROR | G114: =SUM(G115:G118) -> 713065136.2
F115: Outras Receitas (OR) | G115: 40602758.06
F116: Excedente de Reativos (ER) | G116: 10863386.61
F117: Ultrapassagem de Demanda (UD) | G117: 7131862.622
F118: Parcela B | G118: 654467129
F119: Fator PB | G119: =G114/G118 -> 1.089535448
F121: Dados do último Ciclo - Contrato Novo
F122: Número de processos até o primeiro reajuste contrato novo
F123: Número de processos no contrato novo antes da atual revisão
F125: Participação dos componentes da Parcela B no Ano Teste
F126: Descrição | G126: Valor
F127: Custos Operacionais | G127: =(G58*(1-G65)-(SUM(G58:G63)*(1-G65)-G66)*(1-(1-G67)^G122)-((SUM(G58:G63)*(1-G65)-G66)*(1-G67)^G122+G66-SUM(G59:G60)*(1-G65))*(1-(1-G67)^G123))/((((SUM(G58:G63)*(1-G65)-G66)*(1-G67)^G122)+G66-SUM(G59:G60)*(1-G65))*(1-G67)^G123) -> 0.5388064778
F128: Anuidades | G128: =(G63*(1-G65)/((((SUM(G58:G63)*(1-G65)-G66)*(1-G67)^G122)+G66-SUM(G59:G60)*(1-G65))*(1-G67)^G123)) -> 0.07520163261
F129: Remuneração | G129: =(G61*(1-G65)/((((SUM(G58:G63)*(1-G65)-G66)*(1-G67)^G122)+G66-SUM(G59:G60)*(1-G65))*(1-G67)^G123)) -> 0.2603903145
F130: Depreciação | G130: =(G62*(1-G65)/((((SUM(G58:G63)*(1-G65)-G66)*(1-G67)^G122)+G66-SUM(G59:G60)*(1-G65))*(1-G67)^G123)) -> 0.1256015752

Sheet Resultado
B1: =LnkTxtNomeCompleto -> Energisa Sul-Sudeste - Distribuidora de Energia S.A.
B2: Resultado | F2: Parâmetros a serem considerados para os Reajustes subsequentes
B4: RA1 | D4: =D40+D45 -> 2854455115 | F4: FATOR X | K4: Última versão enviada: | L4: 11
B5: RA0 | D5: =Mercado!D24 -> 2662241909 | F5: Componente T do Fator X | G5: ='VPB e Fator X'!C36 -> 0.02256566454 | K5: Data de envio | L5: 2026-07-14T12:05:27
B6: Índice de Reposição/Reajuste | D6: =D4/D5-1 -> 0.07219975241 | F6: Componente Pd do Fator X | G6: ='VPB e Fator X'!C33 -> 0.005306250699 | O6: Efeito Consumidor por subgrupo
B7: Componentes Financeiros | D7: =Financeiros!E8 -> 0.04243858285 | K7: Efeito Consumidor | O7: Subgrupo | P7: Variação
B8: Índice de Reposição/Reajuste com Financeiros | D8: =D6+D7 -> 0.1146383353 | F8: PERDAS | K8: Efeito Grupo A - Alta tensão | L8: 0.0999217837 | O8: A2 | P8: 0.1464527237
F9: Perdas Não Técnicas | G9: =Entrada!G33 -> 0.01319888336 | K9: Efeito Grupo B - Baixa tensão | L9: 0.09486169132 | O9: A3 | P9: 0.1716096353
C10: DRA | D10: DRP | F10: Perdas Técnicas | G10: =Entrada!G34 -> 0.05555248181 | K10: Efeito tarifário médio AT+BT | L10: 0.09628636339 | O10: A3a | P10: 0.1109868693
B11: TOTAL (Parcela A + Parcela B) | C11: =C45+C40 -> 2662241909 | D11: =D45+D40 -> 2854455115 | K11: Tarifa B1 - Residencial (R$)/MWh | L11: 814.2444874 | O11: A4 | P11: 0.09002573051
B12: Financeiros | D12: =Financeiros!D8 -> 112981773.8 | O12: B1 | P12: 0.09602044942
B13: Total com financeiros | D13: =D11+D12 -> 2967436889 | K13: Subvenção da CDE para descontos tarifários (Valores anuais) | M13: Ano anterior | O13: B2 | P13: 0.09250102681
K14: SUBSIDIO CARGA FONTE INCENTIVADA | L14: 147405119.6 | M14: =BD!$C$59*12 -> 117150381.5 | O14: B3 | P14: 0.09256836809
K15: SUBSIDIO GERAÇÃO FONTE INCENTIVADA | L15: 8322005.289 | M15: =BD!$D$59*12 -> 8343252.86 | O15: B4 | P15: 0.0918872598
B16: Parcela A | F16: Formação da Parcela B e Reposicionamento (Resumo) | K16: SUBSIDIO DISTRIBUIÇÃO | L16: 0 | M16: =BD!$E$59*12 -> 0 | O16: A | P16: 0.0999217837
K17: SUBSIDIO ÁGUA, ESGOTO E SANEAMENTO | L17: 0 | M17: =BD!$F$59*12 -> 0 | O17: B | P17: 0.09486169132
C18: Processo Anterior | D18: Processo Atual | K18: SUBSIDIO RURAL | L18: 0 | M18: =BD!$G$59*12 -> 0 | O18: A+B | P18: 0.09628636339
B19: ENCARGOS | C19: =SUM(C20:C28) -> 716216815.4 | D19: =SUM(D20:D28) -> 713197875.9 | F19: Custo de Administração, Operação e Manutenção (CAOM) | G19: =SUM(G20:G20) -> 387601497 | K19: SUBSIDIO IRRIGANTE/AQUICULTOR | L19: 7590748.486 | M19: =BD!$H$59*12 -> 12067140.16
B20: Reserva Global de Reversão – RGR | D20: =Encargos!C16 -> 0 | F20: Custos Operacionais (CO) | G20: ='VPB e Fator X'!C130 -> 387601497 | K20: SUBSIDIO BAIXA RENDA | L20: 56089734
B21: Conta de Consumo de Combustíveis – CCC | D21: =Encargos!C9 -> 0 | F21: Custo Anual dos Ativos (CAA) | G21: =SUM(G22:G24) -> 479251668.1 | K21: SUBSIDIO SCEE | L21: 104206046.7 | M21: =BD!$I$59*12 -> 55376304.97
B22: Taxa de Fisc. de Serviços de E.E. – TFSEE | C22: ='Votos e NTs'!D49 -> 2617065.213 | D22: =Encargos!C17 -> 3169709.039 | F22: Remuneração do Capital (RC) | G22: ='VPB e Fator X'!C95 -> 289459601.1 | K22: SUBSIDIO LEI 14.299/22 | L22: 0 | M22: =BD!$J$59*12 -> 0
B23: Conta de Desenvolvimento Energético – CDE | C23: =SUM('Votos e NTs'!D50:D54) -> 565132045.6 | D23: =Encargos!C10 -> 555696074.4 | F23: Quota de Reintegração Regulatória (QRR) | G23: ='VPB e Fator X'!C77 -> 123325799.5
B24: Compensação financeira - CFURH | C24: ='Votos e NTs'!D55 -> 0 | D24: =Encargos!C11 -> 0 | F24: Custo anual das instalações móveis e imóveis (CAIMI) | G24: ='VPB e Fator X'!C67 -> 66466267.41
B25: Encargos Serv. Sist. - ESS e Energ. Reserv. - EER | C25: ='Votos e NTs'!D56 -> 65598019.96 | D25: =Encargos!C12 -> 79631220.23 | F25: Parcela B (VPB) | G25: =SUM(G21,G19) -> 866853165.1 | K25: Versão de Mercado
B26: PROINFA | C26: ='Votos e NTs'!D57 -> 61377070.56 | D26: =Encargos!C13 -> 51243636.72 | F26: Índice de Produtividade da Parcela B | G26: ='VPB e Fator X'!C33 -> 0.005306250699 | K26: Status de Sincronização de BDL
B27: P&D e Eficiência Energética | C27: ='Votos e NTs'!D58 -> 21492614.02 | D27: =Encargos!C15 -> 23457235.54 | F27: Mecanismo de Incentivo à Qualidade | G27: ='VPB1'!F42 -> 0.0007326063151 | K27: Última Sincronização
F28: Parcela B com ajustes | G28: =((1-G26-G27)*G25) -> 861618362.8 | L28: Trabalha na pasta de rede
B29: TRANSPORTE | C29: =SUM(C30:C37) -> 446837640.6 | D29: =SUM(D30:D37) -> 503975958.8 | F29: Outras Receitas (OR) | G29: =UDEROR!C2 -> 43799430.32
B30: Rede Básica | C30: ='Votos e NTs'!D61 -> 178682155.2 | D30: ='RB e Conexão'!E6 -> 203021611 | F30: Ultrapassagem de Demanda (UD) | G30: =UDEROR!C6+'VPB e Fator X'!D188 -> 9040513.189
B31: Rede Básica Fronteira | C31: ='Votos e NTs'!D62 -> 163610222.5 | D31: ='RB e Conexão'!E7 -> 178798965.1 | F31: Excedente de Reativos (ER) | G31: =UDEROR!C7+'VPB e Fator X'!D189 -> 11830286.13
B32: Rede Básica ONS (A2) | C32: ='Votos e NTs'!D63 -> 946010.8252 | D32: =VLOOKUP("TUSDg ONS DRP",TUSDG[],2,FALSE) -> 1356753.29 | F32: Parcela B deduzidas as outras receitas | G32: =G28-SUM(G29:G31) -> 796948133.2
B33: Rede Básica Export. (A2) | C33: ='Votos e NTs'!D64 -> 0 | D33: =VLOOKUP("TUSDg Export DRP",TUSDG[],2,FALSE) -> 0
B34: MUST Itaipu | C34: ='Votos e NTs'!D65 -> 11578887.78 | D34: ='RB e Conexão'!E8 -> 11122856.55 | F34: 1. Receita Requerida (RR) | G34: =G28+D40 -> 2919125345
B35: Transporte de Itaipu | C35: ='Votos e NTs'!D66 -> 22671306.3 | D35: =SUMPRODUCT(itaiputransporte[Potência],itaiputransporte[Tarifa DRP]) -> 27480150.52 | F35: 2. Outras Receitas (OR) | G35: =G29 -> 43799430.32
B36: Conexão | C36: ='Votos e NTs'!D67 -> 2116832.761 | D36: ='RB e Conexão'!E9 -> 4997785.527 | F36: 3. Receita Verificada (RV) | G36: =Mercado!D24 -> 2662241909
B37: Uso do sistema de distribuição e CCD | C37: ='Votos e NTs'!D68 -> 67232225.19 | D37: =CUSD!D14+CUSD!E14 -> 77197836.8
B38: ENERGIA | C38: ='Votos e NTs'!D69 -> 819207470.1 | D38: =Energia!D15 -> 823064268.5
B39: RECEITA IRRECUPERÁVEL | C39: ='Votos e NTs'!D70 -> 15632398.13 | D39: =Mercado!H38 -> 17268878.97
B40: VPA (ENCARGO + TRANSPORTE + ENERGIA+RI) | C40: =C19+C29+C38+C39 -> 1997894324 | D40: =D19+D29+D38+D39 -> 2057506982
B42: Parcela B
D44: VPB1
B45: ="Parcela B "&IF(CAPA!C7="Revisão","(menos Outras Receitas)",) -> Parcela B (menos Outras Receitas) | C45: ='Votos e NTs'!D71 -> 664347584.5 | D45: =IF(CAPA!$C$7="Revisão",Resultado!$G$32,'VPB1'!$C$43) -> 796948133.2 | H45: =D45-E45 -> 796948133.2
H46: 0

Sheet Subvenção Permissionária (hidden)
A1: Cooperativa
S2: Outras Receitas
A3: Cálculo PB | D3: Receita Agregada | K3: Subvenção
A4: UC | D4: Subgrupo | E4: Modalidade | F4: Classe | G4: Mercado TUSD | H4: Tarifa Fio B eco | I4: Receita | K4: Subvenção | R4: OUTRAS RECEITAS (R$) | W4: 44013 | X4: 43983 | Y4: 43952 | Z4: 43922 | AA4: 43891 | AB4: 43862 | AC4: 43831 | AD4: 43800 | AE4: 43770 | AF4: 43739 | AG4: 43709 | AH4: 43678
A5: Data Base | D5: A3 | E5: Azul | F5: Demanda azul P | I5: =G5*H5 -> 0 | K5: PB COM COOPERATIVA | L5: ='VPB e Fator X - Subvenção'!C26 -> 796948133.2 | R5: Tipo de Receita | Y5: 3 meses antes | Z5: 4 meses antes | AA5: 5 meses antes | AB5: 6 meses antes | AC5: 7 meses antes | AD5: 8 meses antes | AE5: 9 meses antes | AF5: 10 meses antes | AG5: 11 meses antes | AH5: 12 meses antes
A6: (1) Ativo Imobilizado em Serviço (Valor Novo de Reposição) | F6: Demanda azul FP | I6: =G6*H6 -> 0 | K6: PB ORIGINAL SUPRIDORA | L6: =Resultado!D45 -> 796948133.2 | R6: Serviços Cobráveis | V6: Atividade inerente ao serviço
A7: (2) Obrigações Especiais Bruta | F7: Energia TUSD azul | I7: 0 | K7: Diferença | L7: =L5-L6 -> 0 | R7: Arrecadação de convênios ou valores pela fatura | V7: Atividades acessórias próprias
A8: (3) Bens Totalmente Depreciados | E8: Geração | F8: Demanda Geração | I8: 0 | K8: Receita Agregada | L8: =I24 -> 0 | R8: Arrecadação de faturas de terceiros por estrutura própria
A9: (4) Base de Remuneração Bruta = (1)-(2)-(3) | K9: Subvenção | L9: =L7-L8 -> 0 | R9: Veiculação de publicidade
A10: (5) Depreciação Acumulada | D10: A4 | E10: Azul | F10: Demanda azul P | I10: 0 | R10: Aluguel ou cessão onerosa de imóveis e espaços físicos
A11: (6) Valor da Base de Remuneração (VBR) | F11: Demanda azul FP | I11: 0 | K11: subvenção de 2016 | R11: Compartilhamento de infraestrutura
A12: (7) Obrigações Especiais Líquida | F12: Energia TUSD azul E | I12: 0 | L12: =L9/L11-1 ->  | R12: Serviços de avaliação técnica e aferição de medidores.
A13: (8) Terrenos e Servidões | E13: Verde | F13: Demanda verde | I13: 0 | R13: Operacionalização de serviço de créditos tributários
A14: (9) Almoxarifado em Operação | F14: Energia TUSD verde EP | I14: 0 | K14: Item | L14: 2023 | M14: Calculo anterior | N14: variação | R14: Elaboração de projeto, construção, operação, manutenção ou reforma de: | V14: Atividades acessórias complementares
A15: (10) Base de Remuneração Líquida Total = (1)-(5)-(7)+(8)+(9) | F15: Energia TUSD verde EFP | I15: 0 | K15: Densidade Cooperativa | L15: =G24/B21 ->  | N15: =L15/M15-1 ->  | R15: (1) redes de distribuição de energia elétrica destinadas à regularização fundiária de interesse específico e ao atendimento dos empreendimentos de múltiplas unidades consumidoras;
A16: (11) Taxa de Depreciação | E16: Geração | F16: Demanda geração | I16: 0 | K16: Densidade Supridora | L16: =(Mercado!C24-Mercado!C17)/(Entrada!G44+Entrada!G45+Entrada!G46) -> 145.149472 | N16: =L16/M16-1 ->  | R16: (2) redes de energia elétrica destinadas ao acesso dos sistemas de distribuição ou transmissão;
A17: (12) Quota de Reintegração Regulatória | K17: Mercado | L17: =G24 -> 0 | R17: (3) subestações de energia;
A18: (13) Remuneração de Capital (RC) = BRR líq x WACC | D18: BT | E18: Convencional | F18: Energia TUSD B | I18: =G18*H18 -> 0 | K18: Km de rede | L18: =B21 -> 0 | R18: (4) instalações elétricas internas de unidades consumidoras;
E19: Branca | F19: Ponta | I19: 0 | R19: (5) banco de capacitores:
B20: Valores | E20: Branca | F20: Fora Ponta | I20: 0 | R20: (6) padrões de entrada de unidades consumidoras atendidas em baixa tensão;
A21: Total de km de rede (linhas e redes de distribuição) | E21: Branca | F21: Intermediário | I21: 0 | R21: (7) sistemas de medição de energia elétrica;
E22: Iluminação | F22: Energia TUSD B4a | I22: 0 | R22: (8) geradores, incluindo-se unidades de microgeração e minigeração distribuída;
F23: Energia TUSD B4b | I23: =G23*H23 -> 0 | R23: (9) sistemas de iluminação pública.
D24: Total Energia | G24: =G7+G12+G14+G15+G18+G22+G23 -> 0 | H24: Receita total | I24: =SUM(I5:I23) -> 0 | R24: Eficientização do consumo de energia elétrica e instalação de cogeração qualificada, desde que não enquadráveis nos projetos de Pesquisa e Desenvolvimento (P&D) ou de Eficiência Energética estabelecidos em lei
D25: Total demanda | G25: =G5+G6+G8+G10+G11+G13+G16 -> 0 | R25: Serviços de comunicação de dados
R26: Serviços de consultoria

Sheet Votos e NTs
B2: Tabelas | D2: Gráficos
D4: Análise de Impacto da RTA na Tarfia | K4: Composição da Receita | P4: Composição da Receita com Tributos | U4: Composição da Receita com detalhamento de Encargos | Z4: Evolução da Tarifa B1 Residencial
B6: Avaliação RTA
B7: Financeiros
B8: Consumidores
B9: Mercado
B10: Encargos
B11: Custo do Transporte de Energia
B12: Perdas
B13: Energia Requerida
B14: Energia na DRA
B15: Contratos
B16: Fator X
B17: Parcela B
B18: CVA em Processamento
B20: Subsídios
B21: Efeito Médio AT + BT
B22: Variação do Custo de Energia
E23: Impacto da RTA na Tarifa | I23: 1 | K23: Composição da Receita
E24: Encargos | H24: ='Votos e NTs'!G48 -> -0.001133983908 | I24: 1 | K24: Distribuição | M24: =Resultado!D45 -> 796948133.2
E25: Transporte | H25: ='Votos e NTs'!G60 -> 0.02146248171 | I25: 1 | K25: Energia | M25: =Resultado!D38 -> 823064268.5
E26: Energia | H26: ='Votos e NTs'!G69 -> 0.001448703215 | I26: 1 | K26: Transporte | M26: =Resultado!D29 -> 503975958.8
E27: RI | H27: ='Votos e NTs'!G70 -> 0.0006147002776 | I27: 1 | K27: Encargos | M27: =Resultado!D19 -> 713197875.9
E28: Distribuição | H28: ='Votos e NTs'!G71 -> 0.04980785111 | I28: 1 | K28: RI | M28: =Resultado!D39 -> 17268878.97
E29: Financeiros | H29: ='Votos e NTs'!G80 -> 0.04243858285 | I29: 1
E30: Financeiros Anteriores | H30: ='Votos e NTs'!G137 -> -0.0184 | I30: 1
E31: Efeito Lei 14.299 | H31: ='Votos e NTs'!G138 -> 0 | I31: =IFERROR(IF(H31=0,0,1),0) -> 0
E32: Efeito Médio | H32: =G139 -> 0.09628636339 | I32: 1
P33: Composição da Receita com Tributos | U33: Composição da Receita com detalhamento de Encargos
P34: Distribuição | R34: =M24/$R$42 -> 0.2188372224 | U34: Distribuição | W34: =Resultado!D45 -> 796948133.2
P35: Energia | R35: =M25/$R$42 -> 0.226008558 | U35: Energia | W35: =Resultado!D38 -> 823064268.5
P36: Transmissão | R36: =M26/$R$42 -> 0.138388804 | U36: Transmissão | W36: =Resultado!D29 -> 503975958.8
P37: Encargos | R37: =M27/$R$42 -> 0.1958398993 | U37: RI | W37: =Resultado!D39 -> 17268878.97
P38: RI | R38: =M28/R42 -> 0.004741931564 | U38: PROINFA | W38: =Resultado!D26 -> 51243636.72
P39: ICMS | R39: =Mercado!G9 -> 0.1781128527 | U39: CDE | W39: =Resultado!D23 -> 555696074.4
P40: PIS/COFINS | R40: =Mercado!$G$10 -> 0.03807073209 | U40: ESS/EER | W40: =Resultado!D25 -> 79631220.23 | Z40: Data | AA40: Tipo | AC40: B1 - Residencial | AD40: IGPM | AE40: IPCA | AF40: Data
P41: Tributos por dentro | R41: =LnkTxtPisCofins+LnkTxtICMS -> 0.2161835848 | U41: Outros | W41: =Resultado!D27+Resultado!D28+Resultado!D24+Resultado!D22 -> 26626944.58 | Z41: =YEAR(BD!B79) -> 1900 | AA41: =(BD!C79) -> 0 | AB41: =CONCATENATE(AA41," ",Z41) -> 0 1900 | AC41: =BD!D79 -> 0 | AD41: =AC41 -> 0 | AE41: =AD41 -> 0 | AF41: =DATE(YEAR(BD!B79),MONTH(BD!B79)-1,1) -> 
P42: Receita com Tributos | R42: =SUM(W34:W41)/(1-R39-R40) -> 3641739392 | Z42: =YEAR(BD!B78) -> 1900 | AA42: =(BD!C78) -> 0 | AB42: 0 1900 | AC42: =BD!D78 -> 0 | AD42: =AD41*VLOOKUP(AF42,Índices!$B$135:$F$627,2,0)/VLOOKUP(AF41,Índices!$B$135:$F$627,2,0) ->  | AE42: =AE41*VLOOKUP(AF42,Índices!$B$135:$F$627,3,0)/VLOOKUP(AF41,Índices!$B$135:$F$627,3,0) ->  | AF42: =DATE(YEAR(BD!B78),MONTH(BD!B78)-1,1) -> 
P43: Tributos Totais por Fora | R43: =(R39+R40)/(1-R39-R40) -> 0.2758089529 | Z43: =YEAR(BD!B77) -> 1900 | AA43: =(BD!C77) -> 0 | AB43: 0 1900 | AC43: =BD!D77 -> 0 | AD43: =AD42*VLOOKUP(AF43,Índices!$B$135:$F$627,2,0)/VLOOKUP(AF42,Índices!$B$135:$F$627,2,0) ->  | AE43: =AE42*VLOOKUP(AF43,Índices!$B$135:$F$627,3,0)/VLOOKUP(AF42,Índices!$B$135:$F$627,3,0) ->  | AF43: =DATE(YEAR(BD!B77),MONTH(BD!B77)-1,1) -> 
Z44: =YEAR(BD!B76) -> 1900 | AA44: =(BD!C76) -> 0 | AB44: 0 1900 | AC44: =BD!D76 -> 0 | AD44: =AD43*VLOOKUP(AF44,Índices!$B$135:$F$627,2,0)/VLOOKUP(AF43,Índices!$B$135:$F$627,2,0) ->  | AE44: =AE43*VLOOKUP(AF44,Índices!$B$135:$F$627,3,0)/VLOOKUP(AF43,Índices!$B$135:$F$627,3,0) ->  | AF44: =DATE(YEAR(BD!B76),MONTH(BD!B76)-1,1) -> 
B45: TabRevAvalRTE | H45: Voltar | Z45: =YEAR(BD!B75) -> 1900 | AA45: =(BD!C75) -> 0 | AB45: 0 1900 | AC45: =BD!D75 -> 0 | AD45: =AD44*VLOOKUP(AF45,Índices!$B$135:$F$627,2,0)/VLOOKUP(AF44,Índices!$B$135:$F$627,2,0) ->  | AE45: =AE44*VLOOKUP(AF45,Índices!$B$135:$F$627,3,0)/VLOOKUP(AF44,Índices!$B$135:$F$627,3,0) ->  | AF45: =DATE(YEAR(BD!B75),MONTH(BD!B75)-1,1) -> 
C46: Receita Verificada (R$) | D46: Receita Verificada (R$) | E46: Receita Requerida (R$) | F46: Variação | G46: Participação no Efeito | H46: Participação na Receita | Z46: =YEAR(BD!B74) -> 1900 | AA46: =(BD!C74) -> 0 | AB46: 0 1900 | AC46: =BD!D74 -> 0 | AD46: =AD45*VLOOKUP(AF46,Índices!$B$135:$F$627,2,0)/VLOOKUP(AF45,Índices!$B$135:$F$627,2,0) ->  | AE46: =AE45*VLOOKUP(AF46,Índices!$B$135:$F$627,3,0)/VLOOKUP(AF45,Índices!$B$135:$F$627,3,0) ->  | AF46: =DATE(YEAR(BD!B74),MONTH(BD!B74)-1,1) -> 
B47: PARCELA A [Encargos+Transmissão+Energia+RI] | C47: =C48+C60+C69+C70 -> 1997878453 | D47: =D48+D60+D69+D70 -> 1997894324 | E47: =E48+E60+E69+E70 -> 2057506982 | F47: =IFERROR(E47/D47-1,0) -> 0.02983774333 | G47: =IFERROR((E47-D47)/$D$78,0) -> 0.0223919013 | H47: =IFERROR(E47/$E$78,0) -> 0.7208055125 | Z47: =YEAR(BD!B73) -> 1900 | AA47: =(BD!C73) -> 0 | AB47: 0 1900 | AC47: =BD!D73 -> 0 | AD47: =AD46*VLOOKUP(AF47,Índices!$B$135:$F$627,2,0)/VLOOKUP(AF46,Índices!$B$135:$F$627,2,0) ->  | AE47: =AE46*VLOOKUP(AF47,Índices!$B$135:$F$627,3,0)/VLOOKUP(AF46,Índices!$B$135:$F$627,3,0) ->  | AF47: =DATE(YEAR(BD!B73),MONTH(BD!B73)-1,1) -> 
B48: Encargos Setoriais | C48: =SUM(C49:C59) -> 716211125.7 | D48: =SUM(D49:D59) -> 716216815.4 | E48: =SUM(E49:E59) -> 713197875.9 | F48: -0.004215119527 | G48: -0.001133983908 | H48: 0.2498542969 | I48: Colunas1 | J48: Colunas2 | Z48: =YEAR(BD!B72) -> 1900 | AA48: =(BD!C72) -> 0 | AB48: =CONCATENATE(AA48," ",Z48) -> 0 1900 | AC48: =BD!D72 -> 0 | AD48: =AD47*VLOOKUP(AF48,Índices!$B$135:$F$627,2,0)/VLOOKUP(AF47,Índices!$B$135:$F$627,2,0) ->  | AE48: =AE47*VLOOKUP(AF48,Índices!$B$135:$F$627,3,0)/VLOOKUP(AF47,Índices!$B$135:$F$627,3,0) ->  | AF48: =DATE(YEAR(BD!B72),MONTH(BD!B72)-1,1) -> 
B49: Taxa de Fisc. de Serviços de E.E. – TFSEE | C49: =SUM(DADOS_MercadoBase[TFSEE]) -> 2617044.422 | D49: =C49+C49*($D$78-$C$78)/$C$47 -> 2617065.213 | E49: =Resultado!D22 -> 3169709.039 | F49: 0.2111692989 | G49: 0.0002075858788 | H49: 0.001110442768 | I49: =IF(SUM(C49:E49)<>0,1,0) -> 1 | Z49: =YEAR(BD!B71) -> 1900 | AA49: =(BD!C71) -> 0 | AB49: 0 1900 | AC49: =BD!D71 -> 0 | AD49: =AD48*VLOOKUP(AF49,Índices!$B$135:$F$627,2,0)/VLOOKUP(AF48,Índices!$B$135:$F$627,2,0) ->  | AE49: =AE48*VLOOKUP(AF49,Índices!$B$135:$F$627,3,0)/VLOOKUP(AF48,Índices!$B$135:$F$627,3,0) ->  | AF49: =DATE(YEAR(BD!B71),MONTH(BD!B71)-1,1) -> 
B50: Conta de Desenv. Energético – CDE (USO) | C50: =SUM(DADOS_MercadoBase[CDE],DADOS_MercadoBase[RTE_CDE_E]) -> 481360621.3 | D50: 481364445.4 | E50: =Encargos!G23 -> 535885311.2 | F50: 0.1132631759 | G50: 0.02047930568 | H50: 0.1877364644 | I50: =IF(SUM(C50:E50)<>0,1,0) -> 1 | Z50: =YEAR(BD!B70) -> 1900 | AA50: =(BD!C70) -> 0 | AB50: 0 1900 | AC50: =BD!D70 -> 0 | AD50: =AD49*VLOOKUP(AF50,Índices!$B$135:$F$627,2,0)/VLOOKUP(AF49,Índices!$B$135:$F$627,2,0) ->  | AE50: =AE49*VLOOKUP(AF50,Índices!$B$135:$F$627,3,0)/VLOOKUP(AF49,Índices!$B$135:$F$627,3,0) ->  | AF50: =DATE(YEAR(BD!B70),MONTH(BD!B70)-1,1) -> 
B51: Conta de Desenv. Energético – CDE Conta-Covid (TE) | C51: =IFERROR(SUM(DADOS_MercadoBase[covidTeEco])*(IFERROR(VLOOKUP("CDE Covid TE",BD!$B$8:$C$53,2,FALSE),0) /(IFERROR(VLOOKUP("CDE Covid TE",BD!$B$8:$C$53,2,FALSE),0)+IFERROR(VLOOKUP("CDE Conta - Escassez Hídrica TE",BD!$B$8:$C$53,2,FALSE),0)))+ SUM(DADOS_MercadoBase[covidTusdEco])*(IFERROR(VLOOKUP("CDE Covid TUSD",BD!$B$8:$C$53,2,FALSE),0) /(IFERROR(VLOOKUP("CDE Covid TUSD",BD!$B$8:$C$53,2,FALSE),0)+IFERROR(VLOOKUP("CDE Conta - Escassez Hídrica TUSD",BD!$B$8:$C$53,2,FALSE),0))),0) -> 0 | D51: 0 | E51: =Encargos!G24+Encargos!G25 -> 0 | F51: 0 | G51: 0 | H51: 0 | I51: 0 | Z51: =YEAR(BD!B69) -> 1900 | AA51: =(BD!C69) -> 0 | AB51: 0 1900 | AC51: =BD!D69 -> 0 | AD51: =AD50*VLOOKUP(AF51,Índices!$B$135:$F$627,2,0)/VLOOKUP(AF50,Índices!$B$135:$F$627,2,0) ->  | AE51: =AE50*VLOOKUP(AF51,Índices!$B$135:$F$627,3,0)/VLOOKUP(AF50,Índices!$B$135:$F$627,3,0) ->  | AF51: =DATE(YEAR(BD!B69),MONTH(BD!B69)-1,1) -> 
B52: Conta de Desenv. Energético – CDE Eletrobrás | C52: =SUM(DADOS_MercadoBase[CDE_Elet_Eco]) -> -2226780.847 | D52: -2226798.537 | E52: =Encargos!G26 -> -2314457.87 | F52: 0.03936563246 | G52: -3.292688485e-05 | H52: -0.0008108230035 | I52: 1 | Z52: =YEAR(BD!B68) -> 1900 | AA52: =(BD!C68) -> 0 | AB52: 0 1900 | AC52: =BD!D68 -> 0 | AD52: =AD51*VLOOKUP(AF52,Índices!$B$135:$F$627,2,0)/VLOOKUP(AF51,Índices!$B$135:$F$627,2,0) ->  | AE52: =AE51*VLOOKUP(AF52,Índices!$B$135:$F$627,3,0)/VLOOKUP(AF51,Índices!$B$135:$F$627,3,0) ->  | AF52: =DATE(YEAR(BD!B68),MONTH(BD!B68)-1,1) -> 
B53: Conta de Desenv. Energético – CDE Conta-Escassez Hídrica (TE) | C53: =IFERROR(SUM(DADOS_MercadoBase[covidTeEco])*(IFERROR(VLOOKUP("CDE Conta - Escassez Hídrica TE",BD!$B$8:$C$53,2,FALSE),0) /(IFERROR(VLOOKUP("CDE Covid TE",BD!$B$8:$C$53,2,FALSE),0)+IFERROR(VLOOKUP("CDE Conta - Escassez Hídrica TE",BD!$B$8:$C$53,2,FALSE),0))),0)+ IFERROR(SUM(DADOS_MercadoBase[covidTusdEco])*(IFERROR(VLOOKUP("CDE Conta - Escassez Hídrica TUSD",BD!$B$8:$C$53,2,FALSE),0) /(IFERROR(VLOOKUP("CDE Covid TUSD",BD!$B$8:$C$53,2,FALSE),0)+IFERROR(VLOOKUP("CDE Conta - Escassez Hídrica TUSD",BD!$B$8:$C$53,2,FALSE),0))),0) -> 21287980.78 | D53: 21288149.9 | E53: =Encargos!G27+Encargos!G28 -> 22125221.04 | F53: 0.03932099089 | G53: 0.0003144233983 | H53: 0.007751118917 | I53: 1 | Z53: =YEAR(BD!B67) -> 1900 | AA53: =(BD!C67) -> 0 | AB53: 0 1900 | AC53: =BD!D67 -> 0 | AD53: =AD52*VLOOKUP(AF53,Índices!$B$135:$F$627,2,0)/VLOOKUP(AF52,Índices!$B$135:$F$627,2,0) ->  | AE53: =AE52*VLOOKUP(AF53,Índices!$B$135:$F$627,3,0)/VLOOKUP(AF52,Índices!$B$135:$F$627,3,0) ->  | AF53: =DATE(YEAR(BD!B67),MONTH(BD!B67)-1,1) -> 
B54: Conta de Desenv. Energético – CDE GD | C54: =SUM(DADOS_MercadoBase[CDE_GD_Eco]) -> 64705734.89 | D54: 64706248.92 | E54: =Encargos!G29 -> 0.001 | F54: -1 | G54: -0.02430517253 | H54: 3.503295584e-13 | I54: 1 | Z54: =YEAR(BD!B66) -> 2026 | AA54: =(BD!C66) -> 1 | AB54: =CONCATENATE(IF(AA54=1,"Revisão","Reajuste")," ",Z54) -> Revisão 2026 | AC54: =BD!D66 -> 814.2444874 | AD54: =AD53*VLOOKUP(AF54,Índices!$B$135:$F$627,2,0)/VLOOKUP(AF53,Índices!$B$135:$F$627,2,0) ->  | AE54: =AE53*VLOOKUP(AF54,Índices!$B$135:$F$627,3,0)/VLOOKUP(AF53,Índices!$B$135:$F$627,3,0) ->  | AF54: =DATE(YEAR(BD!B66),MONTH(BD!B66)-1,1) -> 2026-06-01
B55: Compensação financeira - CFURH | C55: =SUM(DADOS_MercadoBase[CFURH]) -> 0 | D55: 0 | E55: =Resultado!D24 -> 0 | F55: 0 | G55: 0 | H55: 0 | I55: 0 | AC55: =AC54/AC41-1 ->  | AD55: =AD54/AD41-1 ->  | AE55: =AE54/AE41-1 -> 
B56: Encargos Serv. Sist. - ESS/Energ. Reserv. - EER/ERCAP | C56: =SUM(DADOS_MercadoBase[ESSERR]) -> 65597498.84 | D56: 65598019.96 | E56: =Resultado!D25 -> 79631220.23 | F56: 0.2139271929 | G56: 0.005271196514 | H56: 0.02789717022 | I56: 1
B57: PROINFA | C57: =SUM(DADOS_MercadoBase[PROINFA]) -> 61376582.97 | D57: 61377070.56 | E57: =Resultado!D26 -> 51243636.72 | F57: -0.1651012951 | G57: -0.003806353513 | H57: 0.01795216062 | I57: 1
B58: P&D, Efic.Energ e Ressarc.ICMS Sist.Isol. | C58: =SUM(DADOS_MercadoBase[PeD],DADOS_MercadoBase[RTE_PeD]) -> 21492443.28 | D58: 21492614.02 | E58: =Resultado!D27 -> 23457235.54 | F58: 0.09140914718 | G58: 0.0007379575506 | H58: 0.008217762967 | I58: 1
B59: ONS | C59: =Resultado!C28 -> 0 | D59: 0 | E59: =Resultado!D28 -> 0 | F59: 0 | G59: 0 | H59: 0 | I59: 0
B60: Custos de Transmissão | C60: =SUM(C61:C68) -> 446834090.8 | D60: =SUM(D61:D68) -> 446837640.6 | E60: =SUM(E61:E68) -> 503975958.8 | F60: 0.1278726613 | G60: 0.02146248171 | H60: 0.1765576751 | I60: 1
B61: Rede Básica | C61: =SUM(DADOS_MercadoBase[TUST_RB]) -> 178680735.8 | D61: =C61+C61*($D$78-$C$78)/$C$47 -> 178682155.2 | E61: =Resultado!D30 -> 203021611 | F61: 0.1362164889 | G61: 0.00914246588 | H61: 0.07112447134 | I61: 1 | K61: Total RB e RBF
B62: Rede Básica Fronteira | C62: =SUM(DADOS_MercadoBase[TUST_FR]) -> 163608922.7 | D62: 163610222.5 | E62: =Resultado!D31 -> 178798965.1 | F62: 0.09283492438 | G62: 0.00570524511 | H62: 0.06263856249 | I62: 1 | K62: =SUM(G61:G62) -> 0.01484771099
B63: Rede Básica ONS (A2) | C63: =SUM(DADOS_MercadoBase[TUSDG_ONS]) -> 946003.31 | D63: 946010.8252 | E63: =Resultado!D32 -> 1356753.29 | F63: 0.4341836835 | G63: 0.000154284426 | H63: 0.0004753107809 | I63: 1
B64: Rede Básica Export. (A2) | C64: =SUM(DADOS_MercadoBase[TUSDG_T]) -> 0 | D64: 0 | E64: =Resultado!D33 -> 0 | F64: 0 | G64: 0 | H64: 0 | I64: 0
B65: MUST Itaipu | C65: =SUM(DADOS_MercadoBase[TUST_ITAIPU]) -> 11578795.79 | D65: 11578887.78 | E65: =Resultado!D34 -> 11122856.55 | F65: -0.03938471771 | G65: -0.0001712959386 | H65: 0.003896665424 | I65: 1
B66: Transporte de Itaipu | C66: =SUM(DADOS_MercadoBase[ITAIPU]) -> 22671126.2 | D66: 22671306.3 | E66: =Resultado!D35 -> 27480150.52 | F66: 0.2121114749 | G66: 0.001806313769 | H66: 0.009627108996 | I66: 1
B67: Conexão | C67: =SUM(DADOS_MercadoBase[Conexao_T]) -> 2116815.944 | D67: 2116832.761 | E67: =Resultado!D36 -> 4997785.527 | F67: 1.360973252 | G67: 0.001082152887 | H67: 0.001750871997 | I67: 1
B68: Uso do sistema de distribuição | C68: =SUM(DADOS_MercadoBase[CUSD],DADOS_MercadoBase[RTE_CUSD]) -> 67231691.09 | D68: 67232225.19 | E68: =Resultado!D37 -> 77197836.8 | F68: 0.148226711 | G68: 0.003743315579 | H68: 0.02704468407 | I68: 1
B69: Custos de Aquisição de Energia | C69: =SUM(DADOS_MercadoBase[RTE_Energia],DADOS_MercadoBase[EnergiaRevenda],DADOS_MercadoBase[perdasnt],DADOS_MercadoBase[perdasrb_d],DADOS_MercadoBase[perdasrb_c],DADOS_MercadoBase[perdastec]) -> 819200962.2 | D69: 819207470.1 | E69: =Resultado!D38 -> 823064268.5 | F69: 0.004707962943 | G69: 0.001448703215 | H69: 0.2883437417 | I69: 1
B70: Receitas Irrecuperáveis | C70: =SUM(DADOS_MercadoBase[RI]) -> 15632273.94 | D70: 15632398.13 | E70: =Resultado!D39 -> 17268878.97 | F70: 0.1046852074 | G70: 0.0006147002776 | H70: 0.006049798744 | I70: 1
B71: PARCELA B | C71: =IF(CAPA!$C$7="Reajuste",SUM(DADOS_MercadoBase[DISTRIBUICAO]),SUM(C72:C77)) -> 664347584.5 | D71: =Mercado!Z66 -> 664347584.5 | E71: =IF(CAPA!$C$7="Reajuste",Resultado!D45,SUM(E72:E77)) -> 796948133.2 | F71: 0.1995951392 | G71: 0.04980785111 | H71: 0.2791944875 | I71: 1
B72: Custos Operacionais | C72: ='VPB e Fator X'!C107 -> 408001575.8 | D72: =IF(CAPA!C7="Reajuste",0,C72) -> 408001575.8 | E72: =IF(CAPA!C7="Reajuste",0,Resultado!G20*(1-Resultado!$G$26-Resultado!$G$27)) -> 385260827 | F72: -0.05573691416 | G72: -0.008541954333 | H72: 0.1349682554 | I72: 1
B73: Anuidades | C73: =Entrada!G63*('VPB e Fator X'!$C$102-'VPB e Fator X'!$C$107)/SUM(Entrada!$G$61:$G$63) -> 51498623.12 | D73: =IF(CAPA!C8="Reajuste",0,C73) -> 51498623.12 | E73: =IF(CAPA!C7="Reajuste",0,Resultado!G24*(1-Resultado!$G$26-Resultado!$G$27)) -> 66064887.12 | F73: 0.2828476398 | G73: 0.005471427655 | H73: 0.02314448273 | I73: 1
B74: Remuneração | C74: =Entrada!G61*('VPB e Fator X'!$C$102-'VPB e Fator X'!$C$107)/SUM(Entrada!$G$61:$G$63) -> 178317174.8 | D74: =IF(CAPA!C9="Reajuste",0,C74) -> 178317174.8 | E74: =IF(CAPA!C7="Reajuste",0,Resultado!G22*(1-Resultado!$G$26-Resultado!$G$27)) -> 287711596 | F74: 0.6134822477 | G74: 0.04109108975 | H74: 0.1007938764 | I74: 1
B75: Depreciação | C75: =Entrada!G62*('VPB e Fator X'!$C$102-'VPB e Fator X'!$C$107)/SUM(Entrada!$G$61:$G$63) -> 86012869.11 | D75: =IF(CAPA!C10="Reajuste",0,C75) -> 86012869.11 | E75: =IF(CAPA!C7="Reajuste",0,Resultado!G23*(1-Resultado!$G$26-Resultado!$G$27)) -> 122581052.7 | F75: 0.4251478173 | G75: 0.01373586053 | H75: 0.04294376605 | I75: 1
B76: UD+ER+OR | C76: =-Entrada!G115*'VPB e Fator X'!$C$102/Entrada!$G$114-SUM(Entrada!G116:'Entrada'!G117)*'VPB e Fator X'!C102/Entrada!G114 -> -59482658.3 | D76: =IF(CAPA!C11="Reajuste",0,C76) -> -59482658.3 | E76: =IF(CAPA!C7="Reajuste",0,-(SUM(Resultado!$G$29:$G$31))) -> -64670229.64 | F76: 0.08721149129 | G76: -0.001948572487 | H76: -0.02265589299 | I76: 1
I77: 0
B78: RT considerando a varição tarifária da RTE | C78: =C71+C47 -> 2662226037 | D78: =Mercado!D24 -> 2662241909 | E78: =E71+E47 -> 2854455115 | G78: =IFERROR((E78-D78)/$D$78,0) -> 0.07219975241 | H78: =IFERROR(E78/$E$78,0) -> 1 | I78: 1
I79: 1 | K79: TabFin | M79: Voltar
B80: Efeito dos Componentes Financeiros do Processo Atual | E80: =SUM(E81:E136) -> 112981773.8 | G80: =SUM(G81:G136) -> 0.04243858285 | I80: 1 | K80: Componentes Financeiros | L80: Valor (R$) | M80: Participação | N80: Colunas1 | O80: Colunas2
B81: ='Votos e NTs'!K81 -> CVA em processamento - Energia | E81: =L81 -> 82369141.48 | G81: =M81 -> 0.03093976592 | I81: 1 | K81: CVA em processamento - Energia | L81: =SUMIFS(Financeiros[Valor],Financeiros[idDet1],19,Financeiros[id_Grupo_TARIFA],2,Financeiros[idDet2],60,Financeiros[idDet3],999) -> 82369141.48 | M81: =L81/Financeiros!$D$5 -> 0.03093976592 | O81: Total CVA
B82: ='Votos e NTs'!K82 -> CVA em processamento - Transporte | E82: =L82 -> 25589364.05 | G82: =M82 -> 0.009611960492 | I82: 1 | K82: CVA em processamento - Transporte | L82: =SUMIFS(Financeiros[Valor],Financeiros[idDet1],19,Financeiros[id_Grupo_TARIFA],1,Financeiros[idDet2],60, Financeiros[idDet3],999) -> 25589364.05 | M82: =L82/Financeiros!$D$5 -> 0.009611960492 | O82: =SUM(M81:M83) -> 0.06515418287
B83: ='Votos e NTs'!K83 -> CVA em processamento - Encargos Setoriais | E83: 65497690.65 | G83: 0.02460245646 | I83: 1 | K83: CVA em processamento - Encargos Setoriais | L83: =SUMIFS(Financeiros[Valor],Financeiros[idDet1],19,Financeiros[id_Grupo_TARIFA],3,Financeiros[idDet2],60,Financeiros[idDet3],999)+ SUMIFS(Financeiros[Valor],Financeiros[idDet1],19,Financeiros[id_Grupo_TARIFA],3,Financeiros[idDet2],60,Financeiros[idDet3],73)+ SUMIFS(Financeiros[Valor],Financeiros[idDet1],19,Financeiros[id_Grupo_TARIFA],3,Financeiros[idDet2],60,Financeiros[idDet3],74) -> 65497690.65 | M83: =L83/Financeiros!$D$5 -> 0.02460245646
B84: ='Votos e NTs'!K84 -> Saldo a Compensar CVA-Ano Anterior + Ajustes | E84: 3463345.522 | G84: 0.001300913155 | I84: 1 | K84: Saldo a Compensar CVA-Ano Anterior + Ajustes | L84: =SUMIFS(Financeiros[Valor],Financeiros[idDet1],19,Financeiros[idDet2],64, Financeiros[idDet3],999)+ SUMIFS(Financeiros[Valor],Financeiros[idDet1],19,Financeiros[idDet2],64, Financeiros[idDet3],73)+ SUMIFS(Financeiros[Valor],Financeiros[idDet1],19,Financeiros[idDet2],64, Financeiros[idDet3],74) -> 3463345.522 | M84: =L84/Financeiros!$D$5 -> 0.001300913155
B85: ='Votos e NTs'!K85 -> Neutralidade de Parcela A- Energia | E85: -6889796.661 | G85: -0.002587967922 | I85: 1 | K85: Neutralidade de Parcela A- Energia | L85: =SUMIFS(Financeiros[Valor],Financeiros[idDet1],20,Financeiros[id_Grupo_TARIFA],2,Financeiros[idDet2],60,Financeiros[idDet3],999) -> -6889796.661 | M85: =L85/Financeiros!$D$5 -> -0.002587967922
B86: ='Votos e NTs'!K86 -> Neutralidade de Parcela A - Transporte | E86: 24557647.43 | G86: 0.009224423726 | I86: 1 | K86: Neutralidade de Parcela A - Transporte | L86: =SUMIFS(Financeiros[Valor],Financeiros[idDet1],20,Financeiros[id_Grupo_TARIFA],1,Financeiros[idDet2],60, Financeiros[idDet3],999) -> 24557647.43 | M86: =L86/Financeiros!$D$5 -> 0.009224423726
B87: ='Votos e NTs'!K87 -> Neutralidade de Parcela A - Encargos Setoriais | E87: 1896875.322 | G87: 0.0007125105031 | I87: 1 | K87: Neutralidade de Parcela A - Encargos Setoriais | L87: =SUMIFS(Financeiros[Valor],Financeiros[idDet1],20,Financeiros[id_Grupo_TARIFA],3,Financeiros[idDet2],60,Financeiros[idDet3],999)+ SUMIFS(Financeiros[Valor],Financeiros[idDet1],20,Financeiros[idDet2],60,Financeiros[idDet3],73)+ SUMIFS(Financeiros[Valor],Financeiros[idDet1],20,Financeiros[idDet2],60,Financeiros[idDet3],74)+ SUMIFS(Financeiros[Valor],Financeiros[idDet1],20,Financeiros[idDet2],60,Financeiros[idDet3],81)+ SUMIFS(Financeiros[Valor],Financeiros[idDet1],20,Financeiros[idDet2],60,Financeiros[idDet3],82) -> 1896875.322 | M87: =L87/Financeiros!$D$5 -> 0.0007125105031
B88: ='Votos e NTs'!K88 -> Neutralidade de Parcela A - Receita Irrecuperável | E88: 221549.2527 | G88: 8.321905383e-05 | I88: 1 | K88: Neutralidade de Parcela A - Receita Irrecuperável | L88: =SUMIFS(Financeiros[Valor],Financeiros[idDet1],20,Financeiros[id_Grupo_TARIFA],5,Financeiros[idDet2],60, Financeiros[idDet3],999) -> 221549.2527 | M88: =L88/Financeiros!$D$5 -> 8.321905383e-05
B89: ='Votos e NTs'!K89 -> Neutralidade de Fin. Parcela B - Conta Covid | E89: 0 | G89: 0 | I89: 0 | K89: Neutralidade de Fin. Parcela B - Conta Covid | L89: =SUMIFS(Financeiros[Valor],Financeiros[idDet1],20,Financeiros[id_Grupo_TARIFA],4,Financeiros[idDet2],60, Financeiros[idDet3],999) -> 0 | M89: =L89/Financeiros!$D$5 -> 0
B90: ='Votos e NTs'!K90 -> Neutralidade de Créditos de PIS/COFINS | E90: -1083779.828 | G90: -0.0004070929185 | I90: 1 | K90: Neutralidade de Créditos de PIS/COFINS | L90: =SUMIFS(Financeiros[Valor],Financeiros[idDet1],20,Financeiros[idDet2],60,Financeiros[idDet3],503,Financeiros[id_Grupo_TARIFA],99) -> -1083779.828 | M90: =L90/Financeiros!$D$5 -> -0.0004070929185
B91: ='Votos e NTs'!K91 -> Financeiro CDE Eletrobras | E91: -328781.3045 | G91: -0.0001234979073 | I91: 1 | K91: Financeiro CDE Eletrobras | L91: =SUMIFS(Financeiros[Valor],Financeiros[idDet1],22,Financeiros[idDet2],60, Financeiros[idDet3],512,Financeiros[id_Detalhe_Grupo_TARIFA],28) -> -328781.3045 | M91: =L91/Financeiros!$D$5 -> -0.0001234979073
B92: ='Votos e NTs'!K92 -> Restituição de encargo do ONS | E92: 0 | G92: 0 | I92: 0 | K92: Restituição de encargo do ONS | L92: =SUMIFS(Financeiros[Valor],Financeiros[idDet1],22,Financeiros[idDet2],60, Financeiros[idDet3],123,Financeiros[id_Grupo_TARIFA],4) -> 0 | M92: =L92/Financeiros!$D$5 -> 0
B93: ='Votos e NTs'!K93 -> Financeiros residuais do encargo de ONS | E93: 0 | G93: 0 | I93: 0 | K93: Financeiros residuais do encargo de ONS | L93: =SUMIFS(Financeiros[Valor],Financeiros[idDet1],22,Financeiros[idDet2],60, Financeiros[idDet3],513,Financeiros[id_Grupo_TARIFA],4) -> 0 | M93: =L93/Financeiros!$D$5 -> 0
B94: ='Votos e NTs'!K94 -> Neutralidade de Fin. Parcela B - Conta Covid | E94: 0 | G94: 0 | I94: 0 | K94: Neutralidade de Fin. Parcela B - Conta Covid | L94: =SUMIFS(Financeiros[Valor],Financeiros[idDet1],20,Financeiros[id_Grupo_TARIFA],4,Financeiros[idDet2],60, Financeiros[idDet3],999) -> 0 | M94: =L94/Financeiros!$D$5 -> 0
B95: ='Votos e NTs'!K95 -> Sobrecontratação | E95: 27952419.77 | G95: 0.0104995792 | I95: 1 | K95: Sobrecontratação | L95: =SUMIFS(Financeiros[Valor],Financeiros[idDet1],22,Financeiros[idDet2],60,Financeiros[idDet3],106) -> 27952419.77 | M95: =L95/Financeiros!$D$5 -> 0.0104995792
B96: ='Votos e NTs'!K96 -> Garantias financeiras na contratação regulada de energia (CCEAR) | E96: 1087385.414 | G96: 0.0004084472603 | I96: 1 | K96: Garantias financeiras na contratação regulada de energia (CCEAR) | L96: =SUMIFS(Financeiros[Valor],Financeiros[idDet1],22,Financeiros[idDet2],60,Financeiros[idDet3],102) -> 1087385.414 | M96: =L96/Financeiros!$D$5 -> 0.0004084472603
B97: ='Votos e NTs'!K97 -> Reversão Sobrecontratação | E97: 0 | G97: 0 | I97: 0 | K97: Reversão Sobrecontratação | L97: =SUMIFS(Financeiros[Valor],Financeiros[idDet1],22,Financeiros[idDet2],62,Financeiros[idDet3],106) -> 0 | M97: =L97/Financeiros!$D$5 -> 0
B98: ='Votos e NTs'!K98 -> Recálculo Exposição CCEAR entre Submercados | E98: 0 | G98: 0 | I98: 0 | K98: Recálculo Exposição CCEAR entre Submercados | L98: =SUMIFS(Financeiros[Valor],Financeiros[idDet1],22,Financeiros[idDet2],60,Financeiros[idDet3],101) -> 0 | M98: =L98/Financeiros!$D$5 -> 0
B99: ='Votos e NTs'!K99 -> Compensação ref. acordos bilaterais de CCEAR | E99: 0 | G99: 0 | I99: 0 | K99: Compensação ref. acordos bilaterais de CCEAR | L99: =SUMIFS(Financeiros[Valor],Financeiros[idDet1],22,Financeiros[idDet2],60,Financeiros[idDet3],230) -> 0 | M99: =L99/Financeiros!$D$5 -> 0
B100: ='Votos e NTs'!K100 -> Reversão de Risco Hidrológico | E100: -72261232.2 | G100: -0.02714300003 | I100: 1 | K100: Reversão de Risco Hidrológico | L100: =SUMIFS(Financeiros[Valor],Financeiros[idDet1],22,Financeiros[idDet2],62,Financeiros[idDet3],220) -> -72261232.2 | M100: =L100/Financeiros!$D$5 -> -0.02714300003
B101: ='Votos e NTs'!K101 -> Risco Hidrológico | E101: 77267756.71 | G101: 0.02902356711 | I101: 1 | K101: Risco Hidrológico | L101: =SUMIFS(Financeiros[Valor],Financeiros[idDet1],22,Financeiros[idDet2],60,Financeiros[idDet3],220) -> 77267756.71 | M101: =L101/Financeiros!$D$5 -> 0.02902356711
B102: ='Votos e NTs'!K102 -> Repasse de ultrapassagem de Supridas/Permissionárias | E102: 0 | G102: 0 | I102: 0 | K102: Repasse de ultrapassagem de Supridas/Permissionárias | L102: =SUMIFS(Financeiros[Valor],Financeiros[idDet1],22,Financeiros[idDet2],60,Financeiros[idDet3],187) -> 0 | M102: =L102/Financeiros!$D$5 -> 0
B103: ='Votos e NTs'!K103 -> Ajuste CUSD | E103: 70886.62146 | G103: 2.662666425e-05 | I103: 1 | K103: Ajuste CUSD | L103: =SUMIFS(Financeiros[Valor],Financeiros[idDet1],22,Financeiros[idDet2],60,Financeiros[idDet3],119) -> 70886.62146 | M103: =L103/Financeiros!$D$5 -> 2.662666425e-05
B104: ='Votos e NTs'!K104 -> Conselho de Consumidores | E104: 0 | G104: 0 | I104: 0 | K104: Conselho de Consumidores | L104: =SUMIFS(Financeiros[Valor],Financeiros[idDet1],22,Financeiros[idDet2],60,Financeiros[idDet3],188) -> 0 | M104: =L104/Financeiros!$D$5 -> 0
B105: ='Votos e NTs'!K105 -> Ajuste TUSDg | E105: 0 | G105: 0 | I105: 0 | K105: Ajuste TUSDg | L105: =SUMIFS(Financeiros[Valor],Financeiros[idDet1],22,Financeiros[idDet2],60,Financeiros[idDet3],136) -> 0 | M105: =L105/Financeiros!$D$5 -> 0
B106: ='Votos e NTs'!K106 -> Repasse de compensação DIC/FIC | E106: -1054353.907 | G106: -0.0003960398579 | I106: 1 | K106: Repasse de compensação DIC/FIC | L106: =SUMIFS(Financeiros[Valor],Financeiros[idDet1],22,Financeiros[idDet2],60,Financeiros[idDet3],178) -> -1054353.907 | M106: =L106/Financeiros!$D$5 -> -0.0003960398579
B107: ='Votos e NTs'!K107 -> Acordo REN 824/2018 | E107: 0 | G107: 0 | I107: 0 | K107: Acordo REN 824/2018 | L107: =SUMIFS(Financeiros[Valor],Financeiros[idDet1],22,Financeiros[idDet2],60,Financeiros[idDet3],232) -> 0 | M107: =L107/Financeiros!$D$5 -> 0
B108: ='Votos e NTs'!K108 -> Custo Distribuidora - Conta Covid - Art 4º - REN 952/2021 - Tusd | E108: 0 | G108: 0 | I108: 0 | K108: Custo Distribuidora - Conta Covid - Art 4º - REN 952/2021 - Tusd | L108: =SUMIFS(Financeiros[Valor],Financeiros[idDet1],22,Financeiros[idDet2],60,Financeiros[idDet3],518) -> 0 | M108: =L108/Financeiros!$D$5 -> 0
B109: ='Votos e NTs'!K109 -> Custo Distribuidora - Conta Covid - Art 4º - REN 952/2021 - TE | E109: 0 | G109: 0 | I109: 0 | K109: Custo Distribuidora - Conta Covid - Art 4º - REN 952/2021 - TE | L109: =SUMIFS(Financeiros[Valor],Financeiros[idDet1],22,Financeiros[idDet2],60,Financeiros[idDet3],519) -> 0 | M109: =L109/Financeiros!$D$5 -> 0
B110: ='Votos e NTs'!K110 -> Diferimento Parcela B | E110: 0 | G110: 0 | I110: 0 | K110: Diferimento Parcela B | L110: =SUMIFS(Financeiros[Valor],Financeiros[idDet1],22,Financeiros[idDet2],60,Financeiros[idDet3],501) -> 0 | M110: =L110/Financeiros!$D$5 -> 0
B111: ='Votos e NTs'!K111 -> Recomposição à conta de comercialização de Itaipu - Reversão Bônus Itaipu | E111: 0 | G111: 0 | I111: 0 | K111: Recomposição à conta de comercialização de Itaipu - Reversão Bônus Itaipu | L111: =SUMIFS(Financeiros[Valor],Financeiros[idDet1],22,Financeiros[idDet2],62,Financeiros[idDet3],507) -> 0 | M111: =L111/Financeiros!$D$5 -> 0
